Workbook

Sheet ERROR
A1: =COMP!B1 -> 0; [select]; [select] [select]; | V1: =COMP!N1 -> JFR FBP V24.5
A7: TOTAL ERROR COUNT | E7: =E9+K9+Q9+W9+W12+Q13 -> 
A9: COMP TAB | E9: =COMP!N7 -> 33 | G9: ASSIGN TAB | K9: =SUM(K10:K15) -> 7 | M9: OTH EXP TAB | Q9: =SUM(Q10:Q11) -> 0 | S9: OTH REV TAB | W9: =SUM(W10) -> 0 | Y9: SCHEDULE SUMMARY TAB | AC9: =SUM(AC10) -> 0
B10: General Info | E10: =COMP!N7 -> 33 | H10: Administration | K10: =ASSIGN!C10 -> 0 | N10: Common Costs | Q10: ='OTH EXP'!K7 -> 0 | T10: Other Revenue | W10: ='OTH REV'!B37 -> 0 | Y10: Schedule Summary
B11: Compensation | E11: =COMP!N30 -> 10 | H11: Research | K11: =ASSIGN!C17 -> 0 | N11: Other Costs | Q11: ='OTH EXP'!K17 -> 0
B12: Benchmarks | E12: =COMP!N81 -> 4 | H12: Education | K12: =ASSIGN!C24 -> 0 | S12: CLIN REV TAB | W12: ='CLIN REV'!O9 -> 
H13: Clinical | K13: =ASSIGN!C31 -> 0 | M13: DIVISION TAB | Q13: =DIV!J8 -> 4 | T13: Clinical Revenue | W13: ='CLIN REV'!P47 -> 
H14: Assigned FTE | K14: =SUM(ASSIGN!M49:Q49)+SUM(ASSIGN!R43:T49) -> 7 | M14: Division tab | Q14: =Q13 -> 4
A20: DEPARTMENT REVIEW:
A21: 1. All errors above should be resolved and be = 0.
A22: 2. RVU performance data on DIV tab matches a closed month in PowerBI and it is understandable to an outsider what source is being used.
A23: 3. Budget data is included to a position level so that it can be traced to the position level in Adaptive, by an outsider. Add adaptive position #.
A24: 4. Clinical Need and Patient appointment information is completed on the DIV tab.
A25: 5. If an ACH position, the sign on bonus(s) is/are reflected on the ACH Summmary Sheet tab in cell B44, pulls from COMP tab, was question answered? Was amt entered there?
A26: 6. Check DIV Tab columns Y, AL and BC are completed.
A27: 7. For ACH positions, all "P and L" drop downs should be set to clinical pro fees, not ACH or contract.
A28: 8. ACH positions should have the ACH Hosp based staffing Model and/or ACH Clinic Operations - Staff completed up on submission.
A29: 9. On the DIV tab, remember to complete the Clinic Need sections if a clinical position.
A30: 10. Refresh the pro forma and save prior to submittal.
A31: 11. On the CLIN REV tab, check the revenue data is on the correct funding source (ICE, ACH, etc)
A32: 12. If the unhide macro is used on the DIV, manual hide at this time. Cosmetically needs to look correct when gets to committee.
A33: 13. If ACH position, review ACH Summary sheet for competeness. It autofills, so missing items would be pulled from other tabs.
A34: 14. If the JFR is a resubmit, be sure the reasons and $$ changes are out lined in the Justification box on the COMP tab.
A35: 15. If Immigration expenses are expected, note on Comp tab and add expenses on Other expense tab.
A36: 16. If you have a compensation plan for clinical faculty and the benchmarks are different than the benchmarks that autopopulate on the COMP tab, remember to add the comp plan benchmarks here:
A37: 17. If you hid columns on the DIV tab to make it easier to work with, unhide them back to the original layout.

Sheet DEPT MEMO (hidden)
A1: COLLEGE OF MEDICINE
A2: FACULTY RECRUITMENT BUSINESS PLAN
A3: DEPARTMENT CHAIR MEMO
A4: Memo must address the 1) justification and rationale for the position, 2) the equity analysis of the compensation structure, 3) the subspecialty group's productivity analysis, 4) if necessary the department's budget capacity analysis
A5: Paste Memo Here

Sheet SL MEMO (hidden)
A1: COLLEGE OF MEDICINE
A2: FACULTY RECRUITMENT BUSINESS PLAN
A3: SERVICE LINE DIRECTOR MEMO
A4: Memo must address the 1) justification and rationale for the position, 2) the subspecialty group's productivity analysis, 3) budget capacity analysis, 4) financial return on investment analysis, 5) deployment strategy, and 6) clinical space analysis
A5: Paste Memo Here

Sheet ACH SUMMARY SHEET
A1: Justification for Recruitment Summary - ACH Primary
A2: Position Demographics: | C2: =COMP!D9 -> 0
A3: Employer (UAMS, ACMG, 1099) | B3: =COMP!J21 -> [Select]
A4: UAMS Department or N/A | B4: =COMP!J9 -> [select]
A5: Division of Department | B5: =COMP!J10 -> 0
A6: UAMS Service Line | B6: =COMP!J12 -> [select]
A7: Provider Type: (Physician/APP) | B7: =COMP!J15 -> [select]
A8: New vs. Replacement | B8: =COMP!D18 -> [select]
A9: If Replacement, who replacing: | B9: =COMP!D19 -> 0
A10: If Replacement, date departed: | B10: =COMP!D20 -> 00:00:00
A11: Primary Practice Locaton | B11: =COMP!D21 -> [Select]
A12: Secondary Practice Location(S) | B12: =COMP!D22 -> [Select]
A13: Submitted By | B13: =COMP!D12 -> 0
A14: Position Request for FY/Start Date | B14: =COMP!D15 -> 00:00:00
A15: Date Submitted | B15: =COMP!D13 -> 00:00:00
A16: Current Position Rank (if replacement) | B16: =COMP!J19 -> [select]
A17: Current Candidate(S) | B17: =COMP!D16 -> 0
A18: Academic Rank of Candidate(s) | B18: =COMP!D17 -> [select]
A19: Justification | B19: =COMP!B24 -> 0
A20: Position Roles/Specifics/FTE by Mission | B20: FTE %
A21: =ASSIGN!B10 -> ADMINISTRATION | B21: =ASSIGN!M16 -> 0
A22: =ASSIGN!B17 -> RESEARCH | B22: =ASSIGN!M23 -> 0
A23: =ASSIGN!B24 -> EDUCATION | B23: =ASSIGN!M30 -> 0
A24: =ASSIGN!B31 -> CLINICAL | B24: =ASSIGN!M41 -> 0
A25: Total FTE | B25: =SUM(B21:B24) -> 0
A26: Position FTE Detail:
A27: Total FTE | B27: =ASSIGN!H58 -> 0 | D27: ACH FTE = | E27: =ASSIGN!E58 -> 0
A28: Clinical FTE - AC Clinical FTE | B28: cFTE = | C28: =ASSIGN!H56 -> 0 | D28: ACH cFTE = | E28: =ASSIGN!E56 -> 0
A29: ACH Acad FTE - ACH Admin FTE | B29: ACH Acad FTE = | C29: =ASSIGN!E46 -> 0 | D29: ACH Admin FTE = | E29: =ASSIGN!E53 -> 0
A30: Non-ACH Contract FTE-Funding-Source | B30: =ASSIGN!E47 -> 0 | C30: =ASSIGN!E48 -> [Select]
A33: Other FTE Details: | B33: (FTE) | C33: Funding Source - ACH | D33: Funding Source - UAMS | E33: Total
A34: Research FTE | B34: =ASSIGN!H54 -> 0 | C34: =ASSIGN!E54 -> 0 | D34: =ASSIGN!C54+ASSIGN!D54+ASSIGN!F54+ASSIGN!G54 -> 0 | E34: =+D34+C34 -> 0
A35: Education FTE | B35: =ASSIGN!H55 -> 0
A36: Position Clinical Detail:
A37: Clinic Need:
A38: ACH Practice - 3rd Next Available Appt | B38: =DIV!AB101 -> 0
A39: ACH Practice - Weekly Deficit in New Patient Appts | B39: =DIV!AB102 -> 0
A43: Avg. Service Productivity Percentile | B43: =DIV!BC53 -> 
A44: Total Cost-Salary-Benefits | B44: =(COMP!D36)+(COMP!D36*COMP!D47) -> 0
A45: ACH Sign on Bonus | B45: =IF(COMP!T32=0,COMP!J36+COMP!K36+COMP!L36+COMP!M36+COMP!N36,0) -> 0
A46: Projected Collections, Yr 1 | B46: ='CLIN REV'!D164 -> 0
A47: Projected Net Gain/(Loss) Year One | B47: =PROFORMA!D6 -> 0
A48: Additional Expense related to position: | B48: Expense for Year 1 Only:
A49: Efunds, Malpractice, Computer, Furn, Relocation bonus. | B49: ='OTH EXP'!G15 -> 0
A50: Additional Expenses/positions | B50: ='OTH EXP'!G33 -> 0
A57: Additional Expense/Support Staff/Equip Request/Cost | B57: ='OTH EXP'!C28 -> 0 | C57: ='OTH EXP'!D28 -> 0
A58: Additional Expense/Support Staff/Equip Request/Cost | B58: ='OTH EXP'!C29 -> 0 | C58: ='OTH EXP'!D29 -> 0
A59: Additional Expense/Support Staff/Equip Request/Cost | B59: ='OTH EXP'!C30 -> 0 | C59: ='OTH EXP'!D30 -> 0
A60: The above includes Immigration Expenses? | B60: =COMP!J17 -> [Select] | C60: Amounts included in additional expenses line and details on Other Expense tab
A61: Clinic Availability: Comments | B61: =DIV!AJ101 -> [Select] | C61: =DIV!AG103 -> 0
A62: OR Availability: Comments | B62: =DIV!AJ109 -> [Select] | C62: =DIV!AG111 -> 0
A63: Does this position have an ACH/ACRI Recruitment Package? | B63: =COMP!E57 -> [select] | C63: =COMP!B58 -> If Yes, was a signed and approved copy of the Package documentation included with this request? | D63: =COMP!H58 -> [select]
A64: Challenges | B64: =DIV!V106 -> 0
A65: Other factors | B65: =DIV!V111 -> 0
A66: Position Request Leadership Review Status:
A67: Currently in AOA Budget (COM Finance) | B67: Yes - No | F67: These questions to be added to JFR system in queue review area.
A68: If Yes, Δ to AOA: Gain/(Loss) (COM Finance)
A69: Date(s) Reviewed | B69: Pending Review – Requested Mods.– Approved – Deferred – Denied
A70: Date of Recommendation
A71: Current Status
A72: Requested Modifications
A73: Approved for FY**
A74: Probability in present FY | B74: >90% - > 50% - < 50% explain:
A75: Probability in FY** | B75: >90% - > 50% - < 50% explain:

Sheet ACH Hosp based Staffing Model
A1: Required Weekly Coverage
B2: MON | C2: TUES | D2: WED | E2: THURS | F2: FRI | G2: SAT | H2: SUN
A4: Team 1 | B4: 0 | C4: 0 | D4: 0 | E4: 0 | F4: 0 | G4: 0 | H4: 0
A5: Team 2 | B5: 0 | C5: 0 | D5: 0 | E5: 0 | F5: 0 | G5: 0 | H5: 0
A6: Team 3 | B6: 0 | C6: 0 | D6: 0 | E6: 0 | F6: 0 | G6: 0 | H6: 0
A7: Team 4 | B7: 0 | C7: 0 | D7: 0 | E7: 0 | F7: 0 | G7: 0 | H7: 0
A8: Team 4 | B8: 0 | C8: 0 | D8: 0 | E8: 0 | F8: 0 | G8: 0 | H8: 0
A9: Team 5 | B9: 0 | C9: 0 | D9: 0 | E9: 0 | F9: 0 | G9: 0 | H9: 0
A10: Team 6 | B10: 0 | C10: 0 | D10: 0 | E10: 0 | F10: 0 | G10: 0 | H10: 0
A12: Nights | B12: 0 | C12: 0 | D12: 0 | E12: 0 | F12: 0 | G12: 0 | H12: 0
A14: Team 1- APRN | B14: 0 | C14: 0 | D14: 0 | E14: 0 | F14: 0 | G14: 0 | H14: 0
A15: Team 2- APRN | B15: 0 | C15: 0 | D15: 0 | E15: 0 | F15: 0 | G15: 0 | H15: 0
A16: Team 3- APRN | B16: 0 | C16: 0 | D16: 0 | E16: 0 | F16: 0 | G16: 0 | H16: 0
A18: Monthly Coverage | B18: =SUM(B4:B16) -> 0 | C18: 0 | D18: 0 | E18: 0 | F18: 0 | G18: 0 | H18: 0
A21: Weekly Hours | F21: Weeks | G21: Days per Week | H21: Hours per Day | I21: Total Hours
B22: Hours Per | C22: Weeks | D22: Total Hours | F22: 0 | G22: 0 | H22: 0 | I22: =F22*G22*H22 -> 0
A23: Weekdays | F23: Months | G23: Nights per Month | H23: Hours per night | I23: Total Hours
A24: MD | B24: =SUMPRODUCT(B4:F9) -> 0 | C24: 0 | D24: =B24*C24 -> 0 | F24: 0 | G24: 0 | H24: 0 | I24: =F24*G24*H24 -> 0 | J24: =I24+I22 -> 0
A25: MD - Team 6 | B25: 0 | C25: 0 | D25: =B25*C25 -> 0
A26: APRN | B26: =SUMPRODUCT(B14:F16) -> 0 | C26: 0 | D26: =B26*C26 -> 0
A27: Weekends
A28: MD | B28: =SUM(G4:H9) -> 0 | C28: 0 | D28: =B28*C28 -> 0
A29: MD - Team 6 | B29: =SUM(G10:H10) -> 0 | C29: 0 | D29: =B29*C29 -> 0
A30: Nights
A31: MD | B31: =SUMPRODUCT(B12:H12) -> 0 | C31: 0 | D31: =B31*C31 -> 0
A32: Total | D32: =SUM(D24:D31) -> 0
B34: Hours | C34: Current cFTE | D34: cFTE Needed | E34: Variance
A35: MD | B35: =SUM(D24:D25,D28:D29,D31) -> 0 | C35: 0 | D35: =B35/J24 ->  | E35: =C35-D35 -> 
A36: APRN | B36: =SUM(D26) -> 0 | C36: 0 | D36: =B36/2080 -> 0 | E36: =C36-D36 -> 0

Sheet ACH Clinic Operations - Staff
B2: Joint planning for faculty recruitment - ACH/UAMS
B5: Practice Location(s):
B6: Have all practice locations been signed off?:
B7: Clinic GL #(s):
C9: WHPUOS Productivity from Business Analytics for Clinic - Year to Date
B10: Location | C10: Actual | D10: Budget | E10: % Prod | F10: Flexed FTE Variance (over)/under
C16: Vacancy (latest published report)
B17: Location | C17: YTD - Sched FTE | D17: YTD - Adjust Budgeted FTE | E17: Sched vs Bud FTE Variance (over)/under | F17: Variance Percentage (over)/under
B24: Please update appropriate category/categories below:
B25: Incremental annual clinic visit volume:
B26: Incremental annual inpatient days:
B27: Incremental annual procedural volume (non-OR):
B28: Incremental annual OR procedures:
B29: Can incremental volume be accomodated by existing staff?
B30: Does current clinic space accommodate?
B31: Does current office space accommodate?
B33: Incremental Staffing associated with recruit - clinic GL
B34: - Clinic RN
B35: - Clinic LPN
B36: - Specialty Nurse
B37: - Dietitian
B38: - Social worker
B39: - PCT
B40: - PAR
B41: - Lab assistant
B42: - Respiratory
B43: - Other (indicate position)
B44: TOTAL | C44: 0
B46: Is performance against productivity benchmark negatively impacted by additional staff needs? | D46: if yes, explain
B48: Additional staffing requirements for new recruit - other area(s) | C48: FTE | D48: FTEs supported by volume
C49: none
B60: Specialized/additional capital equipment required
B61: Equipment Name | C61: Location | D61: # of Units | E61: Cost/Unit

Sheet UAMS SUMMARY
I1: COLLEGE OF MEDICINE | Q1: JFR #: | R1: =COMP!D9 -> 0 | AF1: =COMP!N1 -> JFR FBP V24.5
I2: FACULTY RECRUITMENT BUSINESS PLAN | Q2: Printed on: | R2: =TODAY() -> 2024-01-05 | AF2: ="Transaction Type: "&COMP!D11 -> Transaction Type: [select]
Q3: Error Count: | R3: =ERROR!E7 -> 
A4: GENERAL INFORMATION
A5: Department: | F5: =COMP!J9 -> [select] | L5: Working Posn Title: | N5: =COMP!D10 -> [select] [select]; | W5: New/Replacement: | Y5: =COMP!D18 -> [select]
A6: Section/Division: | F6: =COMP!J10 -> 0 | L6: Position Type: | N6: =COMP!J16 -> [select] | W6: Replacing: | Y6: =COMP!D19 -> 0
A7: Service Line: | F7: =COMP!J12 -> [select] | L7: Tenure Track: | N7: =COMP!J18 -> [select] | W7: Departure Date: | Y7: =COMP!D20 -> 0
A8: Candidate Name: | F8: =IF(COMP!D16=0,"TBD",COMP!D16) -> TBD | L8: Rank: | N8: =COMP!D17 -> [select]
A9: Start Date: | F9: =COMP!D15 -> 00:00:00 | L9: Degree: | N9: =COMP!D84 -> [select] | O9: =COMP!J16 -> [select] | W9: Budgeted: | Y9: =COMP!D62&"; "&COMP!D63 -> [select]; [select]
L10: Immigration Status: | N10: =COMP!J17 -> [Select]
A11: JUSTIFICATION
A12: =COMP!B24 -> 0
A15: COMPENSATION
A16: Base Salary: | F16: =COMP!D34 -> 0 | T16: Benchmark Source Data
A17: Base Attachment: | F17: =COMP!D35 -> 0 | J17: =IF(COMP!J20=0,"",COMP!J20) ->  | Q17: Data Year | T17: 25%ILE | W17: MEDIAN | Z17: 75%ILE | AC17: 90%ILE
A18: UAMS Salary: | F18: =SUM(F16:I17) -> 0 | P18: AAMC Public Schools: | Q18: =COMP!J85 -> 2022 | T18: =COMP!K85 -> no data | W18: =COMP!L85 -> no data | Z18: =COMP!M85 -> no data | AC18: =COMP!N85 -> no data
P19: AAMC All Schools: | Q19: =COMP!J86 -> 2022 | T19: =COMP!K86 -> no data | W19: =COMP!L86 -> no data | Z19: =COMP!M86 -> no data | AC19: =COMP!N86 -> no data
A20: VA Salary: | F20: =COMP!D37 -> 0 | P20: MGMA Academic: | Q20: =COMP!J87 -> 2022 | T20: =COMP!K87 -> no data | W20: =COMP!L87 -> no data | Z20: =COMP!M87 -> no data | AC20: =COMP!N87 -> no data
A21: Total Salary: | F21: =F18+F20 -> 0 | P21: MGMA Private Practice: | Q21: =COMP!J88 -> 2022 | T21: =COMP!K88 -> no data | W21: =COMP!L88 -> no data | Z21: =COMP!M88 -> no data | AC21: =COMP!N88 -> no data
T22: Specialty Assoiation Data
A23: Incentive: | F23: =COMP!J40 -> 0 | P23: Specialty Assoc: | Q23: =COMP!J90 -> 0 | T23: =COMP!K90 -> 0 | W23: =COMP!L90 -> 0 | Z23: =COMP!M90 -> 0 | AC23: =COMP!N90 -> 0
A24: Total Comp: | F24: =F21+F23 -> 0 | P24: Specialty Association: | T24: =IF(COMP!K91=0,"",COMP!K91) -> 
P26: 1.0 Normalized FTE Compensation: | T26: =F24/O39 -> 
A27: Salary Justification:
A28: =COMP!B69 -> 0
A32: YEAR 1 COMPENSATION PLAN EFFORT SUMMARY
E33: COM | G33: ICE | I33: ACH | K33: INST | M33: Other | O33: Total | U33: Administrative Assignments | AC33: FTE
A34: Administration | E34: =ASSIGN!C53 -> 0 | G34: =ASSIGN!D53 -> 0 | I34: =ASSIGN!E53 -> 0 | K34: =ASSIGN!F53 -> 0 | M34: =ASSIGN!G53 -> 0 | O34: =SUM(E34:N34) -> 0 | U34: =IF(ASSIGN!B11=0,"",ASSIGN!C11) ->  | AC34: =IF(U34="","",ASSIGN!M11) -> 
A35: Research | E35: =ASSIGN!C54 -> 0 | G35: =ASSIGN!D54 -> 0 | I35: =ASSIGN!E54 -> 0 | K35: =ASSIGN!F54 -> 0 | M35: =ASSIGN!G54 -> 0 | O35: =SUM(E35:N35) -> 0 | U35: =IF(ASSIGN!B12=0,"",ASSIGN!C12) ->  | AC35: =IF(U35="","",ASSIGN!M12) -> 
A36: Education | E36: =ASSIGN!C55 -> 0 | G36: =ASSIGN!D55 -> 0 | I36: =ASSIGN!E55 -> 0 | K36: =ASSIGN!F55 -> 0 | M36: =ASSIGN!G55 -> 0 | O36: 0 | U36: =IF(ASSIGN!B13=0,"",ASSIGN!C13) ->  | AC36: =IF(U36="","",ASSIGN!M13) -> 
A37: Clinical | E37: =ASSIGN!C56 -> 0 | G37: =ASSIGN!D56 -> 0 | I37: =ASSIGN!E56 -> 0 | K37: =ASSIGN!F56 -> 0 | M37: =ASSIGN!G56 -> 0 | O37: 0 | U37: =IF(ASSIGN!B14=0,"",ASSIGN!C14) ->  | AC37: =IF(U37="","",ASSIGN!M14) -> 
A38: VA | E38: =ASSIGN!C57 -> 0 | G38: =ASSIGN!D57 -> 0 | I38: =ASSIGN!E57 -> 0 | K38: =ASSIGN!F57 -> 0 | M38: =ASSIGN!G57 -> 0 | O38: 0 | U38: =IF(ASSIGN!B15=0,"",ASSIGN!C15) ->  | AC38: =IF(U38="","",ASSIGN!M15) -> 
A39: Total | E39: =SUM(E34:F38) -> 0 | G39: =SUM(G34:H38) -> 0 | I39: =SUM(I34:J38) -> 0 | K39: =SUM(K34:L38) -> 0 | M39: =SUM(M34:N38) -> 0 | O39: 0
A41: FINANCIAL IMPACT SUMMARY
E42: Year 1 | I42: Year 2 | M42: Year 3 | Q42: Year 4 | U42: Year 5
A43: COM | E43: =PROFORMA!D52 -> 0 | I43: =PROFORMA!E52 -> 0 | M43: =PROFORMA!F52 -> 0 | Q43: =PROFORMA!G52 -> 0 | U43: =PROFORMA!H52 -> 0
A44: ICE | E44: =PROFORMA!D87 -> 0 | I44: =PROFORMA!E87 -> 0 | M44: =PROFORMA!F87 -> 0 | Q44: =PROFORMA!G87 -> 0 | U44: =PROFORMA!H87 -> 0
A45: ACH | E45: =PROFORMA!D122 -> 0 | I45: =PROFORMA!E122 -> 0 | M45: =PROFORMA!F122 -> 0 | Q45: =PROFORMA!G122 -> 0 | U45: =PROFORMA!H122 -> 0
A46: INST | E46: =PROFORMA!D157 -> 0 | I46: =PROFORMA!E157 -> 0 | M46: =PROFORMA!F157 -> 0 | Q46: =PROFORMA!G157 -> 0 | U46: =PROFORMA!H157 -> 0
A47: Other | E47: =PROFORMA!D192 -> 0 | I47: =PROFORMA!E192 -> 0 | M47: =PROFORMA!F192 -> 0 | Q47: =PROFORMA!JG92 -> 0 | U47: =PROFORMA!HK92 -> 0
A48: Total | E48: =SUM(E43:H47) -> 0 | I48: =SUM(I43:L47) -> 0 | M48: =SUM(M43:P47) -> 0 | Q48: =SUM(Q43:T47) -> 0 | U48: =SUM(U43:X47) -> 0
A51: Net Margin/RVU Summary | H51: =PROFORMA!D14 ->  | K51: =PROFORMA!E14 ->  | N51: =PROFORMA!F14 ->  | S51: =PROFORMA!G14 ->  | W51: =PROFORMA!H14 -> 
A53: wRVU PROJECTED PRODUCTIVITY
A54: Incremental | E54: Year 1 | I54: Year 2 | M54: Year 3 | Q54: Year 4 | U54: Year 5
A55: ICE | E55: =SUMIF('CLIN REV'!$A$13:$A$46,$A55,'CLIN REV'!D$13:D$46) -> 0 | F55: =SUMIF('CLIN REV'!$A$13:$A$46,$A55,'CLIN REV'!F$13:F$46) -> 0 | G55: =SUMIF('CLIN REV'!$A$13:$A$46,$A55,'CLIN REV'!G$13:G$46) -> 0 | H55: =SUMIF('CLIN REV'!$A$13:$A$46,$A55,'CLIN REV'!H$13:H$46) -> 0 | I55: =SUMIF('CLIN REV'!$A$13:$A$46,$A55,'CLIN REV'!E$13:E$46) -> 0 | J55: =SUMIF('CLIN REV'!$A$13:$A$46,$A55,'CLIN REV'!J$13:J$46) -> 0 | K55: =SUMIF('CLIN REV'!$A$13:$A$46,$A55,'CLIN REV'!K$13:K$46) -> 0 | L55: =SUMIF('CLIN REV'!$A$13:$A$46,$A55,'CLIN REV'!L$13:L$46) -> 0 | M55: =SUMIF('CLIN REV'!$A$13:$A$46,$A55,'CLIN REV'!F$13:F$46) -> 0 | N55: =SUMIF('CLIN REV'!$A$13:$A$46,$A55,'CLIN REV'!N$13:N$46) -> 0 | O55: =SUMIF('CLIN REV'!$A$13:$A$46,$A55,'CLIN REV'!O$13:O$46) -> 0 | P55: =SUMIF('CLIN REV'!$A$13:$A$46,$A55,'CLIN REV'!P$13:P$46) -> 0 | Q55: =SUMIF('CLIN REV'!$A$13:$A$46,$A55,'CLIN REV'!G$13:G$46) -> 0 | R55: =SUMIF('CLIN REV'!$A$13:$A$46,$A55,'CLIN REV'!R$13:R$46) -> 0 | S55: =SUMIF('CLIN REV'!$A$13:$A$46,$A55,'CLIN REV'!S$13:S$46) -> 0 | T55: =SUMIF('CLIN REV'!$A$13:$A$46,$A55,'CLIN REV'!T$13:T$46) -> 0 | U55: =SUMIF('CLIN REV'!$A$13:$A$46,$A55,'CLIN REV'!H$13:H$46) -> 0 | V55: =SUMIF('CLIN REV'!$A$13:$A$46,$A55,'CLIN REV'!V$13:V$46) -> 0 | W55: =SUMIF('CLIN REV'!$A$13:$A$46,$A55,'CLIN REV'!W$13:W$46) -> 0 | X55: =SUMIF('CLIN REV'!$A$13:$A$46,$A55,'CLIN REV'!X$13:X$46) -> 0
A56: ACH | E56: =SUMIF('CLIN REV'!$A$131:$A$164,$A56,'CLIN REV'!D$131:D$164) -> 0 | F56: =SUMIF('CLIN REV'!$A$13:$A$46,$A56,'CLIN REV'!F$13:F$46) -> 0 | G56: =SUMIF('CLIN REV'!$A$13:$A$46,$A56,'CLIN REV'!G$13:G$46) -> 0 | H56: =SUMIF('CLIN REV'!$A$13:$A$46,$A56,'CLIN REV'!H$13:H$46) -> 0 | I56: =SUMIF('CLIN REV'!$A$131:$A$164,$A56,'CLIN REV'!E$131:E$164) -> 0 | J56: =SUMIF('CLIN REV'!$A$13:$A$46,$A56,'CLIN REV'!J$13:J$46) -> 0 | K56: =SUMIF('CLIN REV'!$A$13:$A$46,$A56,'CLIN REV'!K$13:K$46) -> 0 | L56: =SUMIF('CLIN REV'!$A$13:$A$46,$A56,'CLIN REV'!L$13:L$46) -> 0 | M56: =SUMIF('CLIN REV'!$A$131:$A$164,$A56,'CLIN REV'!F$131:F$164) -> 0 | N56: =SUMIF('CLIN REV'!$A$13:$A$46,$A56,'CLIN REV'!N$13:N$46) -> 0 | O56: =SUMIF('CLIN REV'!$A$13:$A$46,$A56,'CLIN REV'!O$13:O$46) -> 0 | P56: =SUMIF('CLIN REV'!$A$13:$A$46,$A56,'CLIN REV'!P$13:P$46) -> 0 | Q56: =SUMIF('CLIN REV'!$A$131:$A$164,$A56,'CLIN REV'!G$131:G$164) -> 0 | R56: =SUMIF('CLIN REV'!$A$13:$A$46,$A56,'CLIN REV'!R$13:R$46) -> 0 | S56: =SUMIF('CLIN REV'!$A$13:$A$46,$A56,'CLIN REV'!S$13:S$46) -> 0 | T56: =SUMIF('CLIN REV'!$A$13:$A$46,$A56,'CLIN REV'!T$13:T$46) -> 0 | U56: =SUMIF('CLIN REV'!$A$131:$A$164,$A56,'CLIN REV'!H$131:H$164) -> 0 | V56: =SUMIF('CLIN REV'!$A$13:$A$46,$A56,'CLIN REV'!V$13:V$46) -> 0 | W56: =SUMIF('CLIN REV'!$A$13:$A$46,$A56,'CLIN REV'!W$13:W$46) -> 0 | X56: =SUMIF('CLIN REV'!$A$13:$A$46,$A56,'CLIN REV'!X$13:X$46) -> 0
A57: COM | E57: =SUMIF('CLIN REV'!$A$175:$A$208,$A57,'CLIN REV'!D$175:D$208) -> 0 | F57: =SUMIF('CLIN REV'!$A$13:$A$46,$A57,'CLIN REV'!F$13:F$46) -> 0 | G57: =SUMIF('CLIN REV'!$A$13:$A$46,$A57,'CLIN REV'!G$13:G$46) -> 0 | H57: =SUMIF('CLIN REV'!$A$13:$A$46,$A57,'CLIN REV'!H$13:H$46) -> 0 | I57: =SUMIF('CLIN REV'!$A$175:$A$208,$A57,'CLIN REV'!E$175:E$208) -> 0 | J57: =SUMIF('CLIN REV'!$A$13:$A$46,$A57,'CLIN REV'!J$13:J$46) -> 0 | K57: =SUMIF('CLIN REV'!$A$13:$A$46,$A57,'CLIN REV'!K$13:K$46) -> 0 | L57: =SUMIF('CLIN REV'!$A$13:$A$46,$A57,'CLIN REV'!L$13:L$46) -> 0 | M57: =SUMIF('CLIN REV'!$A$175:$A$208,$A57,'CLIN REV'!F$175:F$208) -> 0 | N57: =SUMIF('CLIN REV'!$A$13:$A$46,$A57,'CLIN REV'!N$13:N$46) -> 0 | O57: =SUMIF('CLIN REV'!$A$13:$A$46,$A57,'CLIN REV'!O$13:O$46) -> 0 | P57: =SUMIF('CLIN REV'!$A$13:$A$46,$A57,'CLIN REV'!P$13:P$46) -> 0 | Q57: =SUMIF('CLIN REV'!$A$175:$A$208,$A57,'CLIN REV'!G$175:G$208) -> 0 | R57: =SUMIF('CLIN REV'!$A$13:$A$46,$A57,'CLIN REV'!R$13:R$46) -> 0 | S57: =SUMIF('CLIN REV'!$A$13:$A$46,$A57,'CLIN REV'!S$13:S$46) -> 0 | T57: =SUMIF('CLIN REV'!$A$13:$A$46,$A57,'CLIN REV'!T$13:T$46) -> 0 | U57: =SUMIF('CLIN REV'!$A$175:$A$208,$A57,'CLIN REV'!H$175:H$208) -> 0 | V57: =SUMIF('CLIN REV'!$A$13:$A$46,$A57,'CLIN REV'!V$13:V$46) -> 0 | W57: =SUMIF('CLIN REV'!$A$13:$A$46,$A57,'CLIN REV'!W$13:W$46) -> 0 | X57: =SUMIF('CLIN REV'!$A$13:$A$46,$A57,'CLIN REV'!X$13:X$46) -> 0
A58: Total | E58: =SUM(E55:E57) -> 0 | I58: =SUM(I55:I57) -> 0 | M58: =SUM(M55:M57) -> 0 | Q58: =SUM(Q55:Q57) -> 0 | U58: =SUM(U55:U57) -> 0
H59: 2022 Benchmark Source Data
H60: 25%ILE | K60: MEDIAN | N60: 75%ILE | Q60: 90%ILE | T60: Data Year
G61: FPSC Academic: | H61: =COMP!K98 -> no data | K61: =COMP!L98 -> no data | N61: =COMP!M98 -> no data | Q61: =COMP!N98 -> no data | T61: =COMP!J98 -> 2022
G62: MGMA Academic: | H62: =COMP!K99 -> no data | K62: =COMP!L99 -> no data | N62: =COMP!M99 -> no data | Q62: =COMP!N99 -> no data | T62: =COMP!J99 -> 2022
G63: MGMA Private Practice: | H63: =COMP!K100 -> no data | K63: =COMP!L100 -> no data | N63: =COMP!M100 -> no data | Q63: =COMP!N100 -> no data | T63: =COMP!J100 -> 2022
G64: Specialty Association: | H64: =COMP!K102 -> 0 | K64: =COMP!L102 -> 0 | N64: =COMP!M102 -> 0 | Q64: =COMP!N102 -> 0 | T64: =COMP!J102 -> 0
G65: FPSC Academic Normalized: | H65: =IFERROR(H61*$O$37,"no data") -> no data | K65: =IFERROR(K61*$O$37,"no data") -> no data | N65: =IFERROR(N61*$O$37,"no data") -> no data | Q65: =IFERROR(Q61*$O$37,"no data") -> no data
G66: MGMA Academic Normalized: | H66: =IFERROR(H62*$O$37,"no data") -> no data | K66: =IFERROR(K62*$O$37,"no data") -> no data | N66: =IFERROR(N62*$O$37,"no data") -> no data | Q66: =IFERROR(Q62*$O$37,"no data") -> no data
G67: MGMA Private Normalized: | H67: no data | K67: =IFERROR(K63*$O$37,"no data") -> no data | N67: =IFERROR(N63*$O$37,"no data") -> no data | Q67: =IFERROR(Q63*$O$37,"no data") -> no data
G68: Specialty Association Normalized: | H68: =H64*$O$37 -> 0 | K68: =K64*$O$37 -> 0 | N68: =N64*$O$37 -> 0 | Q68: =Q64*$O$37 -> 0
A70: DEAN'S COMMITMENT REQUESTS
E71: Year 1 | I71: Year 2 | M71: Year 3 | Q71: Year 4 | U71: Year 5 | Y71: Grand Total
A72: COM | E72: =PROFORMA!D27 -> 0 | I72: =PROFORMA!E27 -> 0 | M72: =PROFORMA!F27 -> 0 | Q72: =PROFORMA!G27 -> 0 | U72: =PROFORMA!H27 -> 0 | Y72: =SUM(E72:X72) -> 0
A73: Part of an existing Dean's Commitment? | H73: =COMP!D50 -> [select] | J73: =IF(H73="Yes",COMP!D51,"") -> 
A75: Requesting New Dean's Commitment? | H75: =COMP!D53 -> [select]

Sheet COMP
A1: HIDE | B1: =D9&"; "&J9&"; "&D10 -> 0; [select]; [select] [select]; | N1: JFR FBP V24.5 | O1: HIDE | P1: HIDE | Q1: HIDE | R1: HIDE | S1: HIDE | T1: HIDE | U1: HIDE | V1: HIDE | W1: HIDE
B7: GENERAL INFORMATION | N7: =SUM(T9:W113) -> 33
B9: JFR #: | D9: 0 | G9: =IF(OR(D9="[enter]",D9="[select]",D9=0)=TRUE,"error","") -> error | H9: Department: | J9: [select] | M9: =IF(OR(J9="[enter]",J9="[select]",J9=0)=TRUE,"error","") -> error | T9: =IF(G9="error",1,0) -> 1 | U9: =IF(M9="error",1,0) -> 1
B10: Working Posn Title: | D10: =J19&" "&D84&"; "&J11 -> [select] [select]; | H10: Section/Division: | M10: =IF(OR(J10="[enter]",J10="[select]",J10=0)=TRUE,"error","") -> error | U10: =IF(M10="error",1,0) -> 1
B11: Transaction Type: | D11: [select] | G11: =IF(OR(D11="[enter]",D11="[select]",D11=0)=TRUE,"error","") -> error | H11: Subspecialty: | M11: =IF(OR(J11="[enter]",J11="[select]",J11=0)=TRUE,"error","") -> error | T11: =IF(G11="error",1,0) -> 1 | U11: =IF(M11="error",1,0) -> 1
B12: Prepared by: | G12: =IF(OR(D12="[enter]",D12="[select]",D12=0)=TRUE,"error","") -> error | H12: Service Line: | J12: [select] | M12: =IF(OR(J12="[enter]",J12="[select]",J12=0)=TRUE,"error","") -> error | T12: =IF(G12="error",1,0) -> 1 | U12: =IF(M12="error",1,0) -> 1
B13: JFR Submit Date: | G13: =IF(OR(D13="[enter]",D13="[select]",D13=0)=TRUE,"error","") -> error | H13: Extra/Future Data | J13: N/A
B15: Start Date: | G15: =IF(OR(D15="[enter]",D15="[select]",D15=0)=TRUE,"error","") -> error | H15: Faculty/Extender: | J15: [select] | M15: =IF(OR(J15="[enter]",J15="[select]",J15=0)=TRUE,"error","") -> error | T15: =IF(G15="error",1,0) -> 1 | U15: =IF(M15="error",1,0) -> 1
B16: Candidate Name: | G16: =IF(OR(D16="[enter]",D16="[select]",D16=0)=TRUE,"error","") -> error | H16: Position Type: | J16: [select] | M16: =IF(OR(J16="[enter]",J16="[select]",J16=0)=TRUE,"error","") -> error | T16: =IF(G16="error",1,0) -> 1 | U16: =IF(M16="error",1,0) -> 1
B17: Candidate Rank: | D17: [select] | G17: =IF(OR(D17="[enter]",D17="[select]",D17=0)=TRUE,"error","") -> error | H17: Immigration Status: | J17: [Select] | M17: =IF(OR(J17="[enter]",J17="[select]",J17=0)=TRUE,"error","") -> error
B18: New/Replacement: | D18: [select] | G18: =IF(OR(D18="[enter]",D18="[select]",D18=0)=TRUE,"error","") -> error | H18: Tenure Track: | J18: [select] | M18: =IF(OR(J18="[enter]",J18="[select]",J18=0)=TRUE,"error","") -> error | T18: =IF(G18="error",1,0) -> 1 | U18: =IF(M18="error",1,0) -> 1
B19: Replacement Name: | G19: =IF(OR(D18="[enter]",D18="[select]",D18=0)=TRUE,"error","") -> error | H19: Current Position Rank: | J19: [select] | M19: =IF(OR(J19="[enter]",J19="[select]",J19=0)=TRUE,"error","") -> error | T19: =IF(G19="error",1,0) -> 1 | U19: =IF(M19="error",1,0) -> 1
B20: Date of Separation: | G20: =IF(OR(D20="[enter]",D20="[select]",D20=0)=TRUE,"error","") -> error | H20: Base Attachment Titles: | M20: =IF(D35>0,IF(J20>0,"","error"),"") ->  | T20: =IF(G20="error",1,0) -> 1 | U20: =IF(M20="error",1,0) -> 0
B21: Primary Practice Location | D21: [Select] | G21: =IF(OR(D21="[enter]",D21="[select]",D21=0)=TRUE,"error","") -> error | H21: Position Employer | J21: [Select] | M21: =IF(OR(J21="[enter]",J21="[select]",J21=0)=TRUE,"error","") -> error
B22: Secondary Practice Location | D22: [Select] | G22: =IF(OR(D22="[enter]",D22="[select]",D22=0)=TRUE,"error","") -> error | H22: Is this a Resubmittal? | J22: [Select] | M22: =IF(OR(J22="[enter]",J22="[select]",J22=0)=TRUE,"error","") -> error
B23: Rationale/Justification: | H23: If Yes, detail changes from originally approved plan in Justification box below.
B27: The above rational/justification inlcudes the department's review of equity, subspecialty productivity, facility capacity, and budget/funding? | N27: [select] | T27: =IF(N27="Yes",0,1) -> 1 | X27: =IF(T27=1,"error","") -> error
B28: If necessary, uploaded a separate Service Line Director's Memo outlining the rational for this new hire, including: the subspecialty productivity, deployment, clinical space, and budget capacity? | N28: [select] | T28: =IF(N28="Yes",0,1) -> 1 | X28: =IF(T28=1,"error","") -> error
B29: If a resubmit, were changes to original business plan added to the justification above? If not, please add notes above regarding what is changing from original approved JFR. | N29: [select]
B30: COMPENSATION | N30: =SUM(T34:W80) -> 10
T32: =IF(K33="error",1,0) -> 1
F33: Is the Incentive below an ACH Sign on Bonus? (line one only) | J33: [select] | K33: =IF(OR(J33="[enter]",J33="[select]",J33=0)=TRUE,"error","") -> error
B34: Base Salary: | D34: 0 | E34: =IF(D34=0,"error","") -> error | F34: INCENTIVES | T34: =IF(E34="error",1,0) -> 1
A35: =F36&G36 ->  | B35: Base Attachment: | D35: 0 | F35: P&L | G35: Rev Type | H35: Description/Calculation | J35: Year 1 | K35: Year 2 | L35: Year 3 | M35: Year 4 | N35: Year 5 | T35: =IF(E35="error",1,0) -> 0
A36: =F37&G37 ->  | B36: UAMS Salary: | D36: =SUM(D34:D35) -> 0 | J36: 0 | K36: 0 | L36: 0 | M36: 0 | N36: 0 | O36: =J36*$D$47 -> 0 | P36: =K36*$D$47 -> 0 | Q36: 0 | R36: 0 | S36: 0 | U36: =IF(SUM($J36:$N36)<>0,IF(F36=0,1,0),0) -> 0 | V36: 0 | W36: 0
A37: =F38&G38 ->  | B37: VA Salary: | D37: 0 | E37: =IF(D41>0,IF(D37>0,"","error"),"") ->  | O37: 0 | P37: 0 | Q37: 0 | R37: 0 | S37: 0 | T37: =IF(E37="error",1,0) -> 0 | U37: 0 | V37: 0 | W37: 0
A38: =F39&G39 ->  | B38: Total Salary: | D38: =IF(D34="[enter]",0,D36+D37) -> 0 | O38: 0 | P38: 0 | Q38: 0 | R38: 0 | S38: 0 | U38: 0 | V38: 0 | W38: 0
B39: UAMS 1.0 Salary: | D39: =IF(D43=0,0,D36/D43) -> 0 | O39: 0 | P39: 0 | Q39: 0 | R39: 0 | S39: 0 | U39: 0 | V39: 0 | W39: 0
F40: =IF(SUM($J36:$N36)>0,IF(F36=0,"error",""),"")&IF(SUM($J37:$N37)>0,IF(F37=0,"error",""),"")&IF(SUM($J38:$N38)>0,IF(F38=0,"error",""),"")&IF(SUM($J39:$N39)>0,IF(F39=0,"error",""),"") ->  | G40: =IF(SUM($J36:$N36)>0,IF(G36=0,"error",""),"")&IF(SUM($J37:$N37)>0,IF(G37=0,"error",""),"")&IF(SUM($J38:$N38)>0,IF(G38=0,"error",""),"")&IF(SUM($J39:$N39)>0,IF(G39=0,"error",""),"") ->  | H40: =IF(SUM($J36:$N36)>0,IF(H36=0,"error",""),"")&IF(SUM($J37:$N37)>0,IF(H37=0,"error",""),"")&IF(SUM($J38:$N38)>0,IF(H38=0,"error",""),"")&IF(SUM($J39:$N39)>0,IF(H39=0,"error",""),"") ->  | J40: =SUM(J36:J39) -> 0 | K40: 0 | L40: 0 | M40: 0 | N40: 0 | O40: 0 | P40: =SUM(P36:P39) -> 0 | Q40: 0 | R40: 0 | S40: 0
B41: VA 8ths | D41: 0 | E41: =IF(D37>0,IF(D41>0,"","error"),"") ->  | T41: =IF(E41="error",1,0) -> 0
F42: COMPENSATION SUMMARY | I42: Year 1 | J42: Year 2 | K42: Year 3 | L42: Year 4 | M42: Year 5
B43: UAMS FTE: | D43: =+D45 -> 0 | F43: UAMS Compensation
B44: VA FTE: | D44: =D45-D43 -> 0 | F44: UAMS FTE by Year: | I44: =D43 -> 0 | J44: =I44 -> 0 | K44: =J44 -> 0 | L44: =K44 -> 0 | M44: =L44 -> 0
B45: Total FTE: | D45: 0 | E45: =IF(D45=0,"error","") -> error | F45: UAMS Salary: | I45: =D36 -> 0 | J45: =IF(I44=J44,I45*(1+$D$48),(I45*(1+$D$48))+((I45*(1+$D$48)/I44)*(J44-I44))) -> 0 | K45: =IF(J44=K44,J45*(1+$D$48),(J45*(1+$D$48))+((J45*(1+$D$48)/J44)*(K44-J44))) -> 0 | L45: =IF(K44=L44,K45*(1+$D$48),(K45*(1+$D$48))+((K45*(1+$D$48)/K44)*(L44-K44))) -> 0 | M45: =IF(L44=M44,L45*(1+$D$48),(L45*(1+$D$48))+((L45*(1+$D$48)/L44)*(M44-L44))) -> 0 | T45: =IF(E45="error",1,0) -> 1
D46: 0 | F46: UAMS Incentives: | I46: =J40 -> 0 | J46: =K40 -> 0 | K46: =L40 -> 0 | L46: =M40 -> 0 | M46: =N40 -> 0
B47: Fringe Rate: | D47: 0.2 | E47: =IF(D47<0.15,"review","") ->  | F47: UAMS Subtotal: | I47: =SUM(I45:I46) -> 0 | J47: =SUM(J45:J46) -> 0 | K47: =SUM(K45:K46) -> 0 | L47: =SUM(L45:L46) -> 0 | M47: =SUM(M45:M46) -> 0
B48: COLA: | E48: =IF(D48>0,"review","") -> 
F49: VA Compensation
B50: Existing Dean's Cmmt? | D50: [select] | E50: =IF(OR(D50="[enter]",D50="[select]",D50=0)=TRUE,"error","") -> error | F50: VA FTE by Year: | I50: =D44 -> 0 | J50: =I50 -> 0 | K50: =J50 -> 0 | L50: =K50 -> 0 | M50: =L50 -> 0 | T50: =IF(E50="error",1,0) -> 1
B51: If yes, specify Name/Title: | E51: =IF(D50="Yes",IF(D51=0,"error",""),"") ->  | F51: VA Salary: | I51: =D37 -> 0 | J51: =IF(I50=J50,I51*(1+$D$48),(I51*(1+$D$48))+((I51*(1+$D$48)/I50)*(J50-I50))) -> 0 | K51: =IF(J50=K50,J51*(1+$D$48),(J51*(1+$D$48))+((J51*(1+$D$48)/J50)*(K50-J50))) -> 0 | L51: =IF(K50=L50,K51*(1+$D$48),(K51*(1+$D$48))+((K51*(1+$D$48)/K50)*(L50-K50))) -> 0 | M51: =IF(L50=M50,L51*(1+$D$48),(L51*(1+$D$48))+((L51*(1+$D$48)/L50)*(M50-L50))) -> 0
T52: =IF(E53="error",1,0) -> 1 | U52: =IF(F57="error",1,0) -> 1
B53: New Dean's Cmmt Request? | D53: [select] | E53: =IF(OR(D53="[enter]",D53="[select]",D53=0)=TRUE,"error","") -> error
B54: If yes, attached request form? | D54: N/A | E54: =IF(OR(D54="[enter]",D54="[select]",D54=0)=TRUE,"error","") ->  | T54: =IF(I58="error",1,0) -> 1 | U54: =IF(I58="error",1,0) -> 1
B55: (Include completed form in JFR system submittal)
B57: Does this position have an ACH/ACRI Recruitment Package? | E57: [select] | F57: =IF(OR(E57="[enter]",E57="[select]",E57=0)=TRUE,"error","") -> error
B58: If Yes, was a signed and approved copy of the Package documentation included with this request? | H58: [select] | I58: =IF(OR(H58="[enter]",H58="[select]",H58=0)=TRUE,"error","") -> error
B62: Is this Position Budgeted: | D62: [select] | E62: =IF(OR(D62="[enter]",D62="[select]",D62=0)=TRUE,"error","") -> error | F62: Total Compensation | T62: =IF(E62="error",1,0) -> 1
B63: Year? | D63: [select] | E63: =IF(OR(D63="[enter]",D63="[select]",D63=0)=TRUE,"error","") -> error | F63: Total FTE: | I63: =I44+I50 -> 0 | J63: =J44+J50 -> 0 | K63: =K44+K50 -> 0 | L63: =L44+L50 -> 0 | M63: =M44+M50 -> 0 | T63: =IF(E63="error",1,0) -> 1
B64: Budgeted Dept: | D64: [select] | E64: =IF(OR(D64="[enter]",D64="[select]",D64=0)=TRUE,"error","") -> error | F64: Total Comp: | I64: =I47+I51 -> 0 | J64: =J47+J51 -> 0 | K64: =K47+K51 -> 0 | L64: =L47+L51 -> 0 | M64: =M47+M51 -> 0 | T64: =IF(E64="error",1,0) -> 1
B65: Adaptive budget Position #:
B66: (What name or position number is this under in Adaptive?)
B68: Salary Justification:
F69: Summary w/o Fringe
F70: UAMS 1.0 Normalized Total Salary: | I70: =IF(I$44=0,0,(I45/I$44)) -> 0 | J70: =IF(J$44=0,0,(J45/J$44)) -> 0 | K70: =IF(K$44=0,0,(K45/K$44)) -> 0 | L70: =IF(L$44=0,0,(L45/L$44)) -> 0 | M70: =IF(M$44=0,0,(M45/M$44)) -> 0
F71: UAMS 1.0 Normalized Total Comp: | I71: =IF(I$44=0,0,(I45/I$44)+I46) -> 0 | J71: =IF(J$44=0,0,(J45/J$44)+J46) -> 0 | K71: =IF(K$44=0,0,(K45/K$44)+K46) -> 0 | L71: =IF(L$44=0,0,(L45/L$44)+L46) -> 0 | M71: =IF(M$44=0,0,(M45/M$44)+M46) -> 0
F72: UAMS & VA 1.0 Norm Total Comp: | I72: =IF(I$63=0,0,((I45+I51)/I$63)+I46) -> 0 | J72: =IF(J$63=0,0,((J45+J51)/J$63)+J46) -> 0 | K72: =IF(K$63=0,0,((K45+K51)/K$63)+K46) -> 0 | L72: =IF(L$63=0,0,((L45+L51)/L$63)+L46) -> 0 | M72: =IF(M$63=0,0,((M45+M51)/M$63)+M46) -> 0
F74: Fringe Summary
F75: UAMS Salary Fringe | I75: =I$45*$D$47 -> 0 | J75: =J$45*$D$47 -> 0 | K75: =K$45*$D$47 -> 0 | L75: =L$45*$D$47 -> 0 | M75: =M$45*$D$47 -> 0
F76: UAMS 1.0 Normalized Salary Fringe | I76: =IF(I$44=0,0,(I$45*$D$47)/I$44) -> 0 | J76: =IF(J$44=0,0,(J$45*$D$47)/J$44) -> 0 | K76: 0 | L76: 0 | M76: 0
F77: UAMS Incentive Fringe | I77: =O40 -> 0 | J77: =P40 -> 0 | K77: =Q40 -> 0 | L77: =R40 -> 0 | M77: =S40 -> 0
F78: Total Fringe | I78: =SUM(I76:I77) -> 0 | J78: =SUM(J76:J77) -> 0 | K78: 0 | L78: 0 | M78: 0
B81: BENCHMARKS | N81: =SUM(T83:W98) -> 4
B83: AAMC Specialty: | D83: [select] | G83: =IF(OR(D83="[enter]",D83="[select]",D83=0)=TRUE,"error","") -> error
B84: AAMC Degree: | D84: [select] | G84: error | H84: Salary Benchmarks | J84: Data Year | K84: 25%ile | L84: Median | M84: 75%ile | N84: 90%ile
B85: FPSC Specialty: | D85: [select] | G85: error | H85: AAMC Public Schools: | J85: 2022 | K85: =IFERROR(VLOOKUP("AAMCAcademicPublic"&$J$19&$D$84&$D$83&"L",AAMC!$A$2:$W$4000,10,FALSE),"no data") -> no data | L85: =IFERROR(VLOOKUP("AAMCAcademicPublic"&$J$19&$D$84&$D$83&"L",AAMC!$A$2:$W$4000,15,FALSE),"no data") -> no data | M85: =IFERROR(VLOOKUP("AAMCAcademicPublic"&$J$19&$D$84&$D$83&"L",AAMC!$A$2:$W$4000,20,FALSE),"no data") -> no data | N85: =IFERROR(VLOOKUP("AAMCAcademicPublic"&$J$19&$D$84&$D$83&"L",AAMC!$A$2:$W$4000,23,FALSE),"no data") -> no data
B86: MGMA Specialty: | D86: [select] | G86: error | H86: AAMC All Schools: | J86: 2022 | K86: =IFERROR(VLOOKUP("AAMCAcademicAll"&$J$19&$D$84&$D$83&"L",AAMC!$A$2:$W$4000,10,FALSE),"no data") -> no data | L86: =IFERROR(VLOOKUP("AAMCAcademicAll"&$J$19&$D$84&$D$83&"L",AAMC!$A$2:$W$4000,15,FALSE),"no data") -> no data | M86: =IFERROR(VLOOKUP("AAMCAcademicAll"&$J$19&$D$84&$D$83&"L",AAMC!$A$2:$W$4000,20,FALSE),"no data") -> no data | N86: =IFERROR(VLOOKUP("AAMCAcademicAll"&$J$19&$D$84&$D$83&"L",AAMC!$A$2:$W$4000,23,FALSE),"no data") -> no data
B87: Malpractice Specialty: | D87: [select] | G87: error | H87: MGMA Academic: | J87: 2022 | K87: =IFERROR(VLOOKUP("MGMAAcademicAll"&$J$19&"MD"&$D$86&"L",MGMAC!$A$2:$W$4000,10,FALSE),"no data") -> no data | L87: =IFERROR(VLOOKUP("MGMAAcademicAll"&$J$19&"MD"&$D$86&"L",MGMAC!$A$2:$W$4000,15,FALSE),"no data") -> no data | M87: =IFERROR(VLOOKUP("MGMAAcademicAll"&$J$19&"MD"&$D$86&"L",MGMAC!$A$2:$W$4000,20,FALSE),"no data") -> no data | N87: =IFERROR(VLOOKUP("MGMAAcademicAll"&$J$19&"MD"&$D$86&"L",MGMAC!$A$2:$W$4000,23,FALSE),"no data") -> no data | AH87: `
B88: AAAP Comp Specialty: | D88: [select] | G88: error | H88: MGMA Private Practice: | J88: 2022 | K88: =IFERROR(VLOOKUP("MGMAPrivate PracticeAll"&"Private Practice"&"MD"&$D$86&"L",MGMACP!$A$2:$W$4000,10,FALSE),"no data") -> no data | L88: =IFERROR(VLOOKUP("MGMAPrivate PracticeAll"&"Private Practice"&"MD"&$D$86&"L",MGMACP!$A$2:$W$4000,15,FALSE),"no data") -> no data | M88: =IFERROR(VLOOKUP("MGMAPrivate PracticeAll"&"Private Practice"&"MD"&$D$86&"L",MGMACP!$A$2:$W$4000,20,FALSE),"no data") -> no data | N88: =IFERROR(VLOOKUP("MGMAPrivate PracticeAll"&"Private Practice"&"MD"&$D$86&"L",MGMACP!$A$2:$W$4000,23,FALSE),"no data") -> no data
B89: AAAP RVU Specialty | D89: [select] | G89: error | H89: AAAP Pediatrics | J89: 2022 | K89: =IFERROR(VLOOKUP("AAAP"&$D$88&$J$19,AAAPComp!$A$2:$Z$3000,12,FALSE),"no data") -> no data | L89: =IFERROR(VLOOKUP("AAAP"&$D$88&$J$19,AAAPComp!$A$3:$Z$3000,17,FALSE),"no data") -> no data | M89: =IFERROR(VLOOKUP("AAAP"&$D$88&$J$19,AAAPComp!$A$3:$Z$3000,22,FALSE),"no data") -> no data | N89: =IFERROR(VLOOKUP("AAAP"&$D$88&$J$19,AAAPComp!$A$3:$Z$3000,25,FALSE),"no data") -> no data | T89: =IF(G83="error",1,0) -> 1
H90: Specialty Assoc Salary Bchmks: | T90: =IF(G84="error",1,0) -> 1
H91: Specialty AssociationYear/Name: | T91: =IF(G85="error",1,0) -> 1
H92: Compensation Plan Salary Bchmks:
H93: Comp Plan Bchmks Year/Source: | T93: =IF(G87="error",1,0) -> 1
H97: RVU Benchmarks | J97: Data Year | K97: 25%ile | L97: Median | M97: 75%ile | N97: 90%ile
H98: FPSC Academic: | J98: 2022 | K98: =IFERROR(VLOOKUP("FPSCAcademicAll"&$D$85&"L",FPSC!$A$3:$U$3000,8,FALSE),"no data") -> no data | L98: =IFERROR(VLOOKUP("FPSCAcademicAll"&$D$85&"L",FPSC!$A$3:$U$3000,13,FALSE),"no data") -> no data | M98: =IFERROR(VLOOKUP("FPSCAcademicAll"&$D$85&"L",FPSC!$A$3:$U$3000,18,FALSE),"no data") -> no data | N98: =IFERROR(VLOOKUP("FPSCAcademicAll"&$D$85&"L",FPSC!$A$3:$U$3000,21,FALSE),"no data") -> no data
H99: MGMA Academic: | J99: 2022 | K99: =IFERROR(VLOOKUP("MGMAAcademicAll"&$D$86&"L",MGMAR!$A$2:$U$4000,8,FALSE),"no data") -> no data | L99: =IFERROR(VLOOKUP("MGMAAcademicAll"&$D$86&"L",MGMAR!$A$2:$U$4000,13,FALSE),"no data") -> no data | M99: =IFERROR(VLOOKUP("MGMAAcademicAll"&$D$86&"L",MGMAR!$A$2:$U$4000,18,FALSE),"no data") -> no data | N99: =IFERROR(VLOOKUP("MGMAAcademicAll"&$D$86&"L",MGMAR!$A$2:$U$4000,21,FALSE),"no data") -> no data
H100: MGMA Private Practice: | J100: 2022 | K100: =IFERROR(VLOOKUP("MGMAPrivate PracticeAll"&$D$86&"L",MGMARP!$A$2:$U$4000,8,FALSE),"no data") -> no data | L100: =IFERROR(VLOOKUP("MGMAPrivate PracticeAll"&$D$86&"L",MGMARP!$A$2:$U$4000,13,FALSE),"no data") -> no data | M100: =IFERROR(VLOOKUP("MGMAPrivate PracticeAll"&$D$86&"L",MGMARP!$A$2:$U$4000,18,FALSE),"no data") -> no data | N100: =IFERROR(VLOOKUP("MGMAPrivate PracticeAll"&$D$86&"L",MGMARP!$A$2:$U$4000,21,FALSE),"no data") -> no data
H101: AAAP Pediatrics | J101: 2022 | K101: =IFERROR(VLOOKUP("AAAP"&$D$89,AAAPRVU!$A$2:$AA$3000,11,FALSE),"no data") -> no data | L101: =IFERROR(VLOOKUP("AAAP"&$D$89,AAAPRVU!$A$2:$AA$3000,16,FALSE),"no data") -> no data | M101: =IFERROR(VLOOKUP("AAAP"&$D$89,AAAPRVU!$A$2:$AA$3000,21,FALSE),"no data") -> no data | N101: =IFERROR(VLOOKUP("AAAP"&$D$89,AAAPRVU!$A$2:$AA$3000,24,FALSE),"no data") -> no data
H102: Specialty Assoc Salary Bchmks:
H103: Specialty Association Year/Name:
H104: Compensation Plan RVU Bchmks:
H105: Comp Plan Bchmks Year/Source:

Sheet ASSIGN
A1: HIDE | B1: =COMP!B1 -> 0; [select]; [select] [select]; | Q1: =COMP!N1 -> JFR FBP V24.5 | R1: HIDE | S1: HIDE | T1: HIDE | U1: HIDE | V1: HIDE | W1: HIDE
B7: EFFORT
I8: Funding Details | M8: Yr1 | N8: Yr2 | O8: Yr3 | P8: Yr4 | Q8: Yr5
A9: Unique | B9: Assignment | C9: Description | D9: Mission | E9: Metric | I9: P&L | J9: Rev Type | K9: Description | M9: FTE | N9: FTE | O9: FTE | P9: FTE | Q9: FTE
B10: ADMINISTRATION | C10: =SUM(R11:U15) -> 0 | K10: If contract/institute funded, indicate if this is on-going or time-limited
A11: =I11&J11 ->  | D11: =IFERROR(VLOOKUP($B11,LOOKUPS!$A$146:$D$167,4,FALSE),"") ->  | E11: =IFERROR(VLOOKUP($B11,LOOKUPS!$A$146:$D$167,3,FALSE),"") ->  | M11: 0 | N11: =M11 -> 0 | O11: =N11 -> 0 | P11: =O11 -> 0 | Q11: =P11 -> 0 | R11: =IF(SUM($M11:$Q11)<>0,IF(B11=0,1,0),0) -> 0 | S11: =IF(SUM($M11:$Q11)<>0,IF(I11=0,1,0),0) -> 0 | T11: 0 | U11: 0 | W11: =IF(B11="ACH Academic",1,0) -> 0
A12: =I12&J12 ->  | D12: =IFERROR(VLOOKUP($B12,LOOKUPS!$A$146:$D$167,4,FALSE),"") ->  | E12: =IFERROR(VLOOKUP($B12,LOOKUPS!$A$146:$D$167,3,FALSE),"") ->  | M12: 0 | N12: =M12 -> 0 | O12: 0 | P12: 0 | Q12: 0 | R12: =IF(SUM($M12:$Q12)<>0,IF(B12=0,1,0),0) -> 0 | S12: 0 | T12: 0 | U12: 0 | W12: =IF(B12="ACH Academic",1,0) -> 0
A13: =I13&J13 ->  | D13: =IFERROR(VLOOKUP($B13,LOOKUPS!$A$146:$D$167,4,FALSE),"") ->  | E13: =IFERROR(VLOOKUP($B13,LOOKUPS!$A$146:$D$167,3,FALSE),"") ->  | M13: 0 | N13: =M13 -> 0 | O13: 0 | P13: 0 | Q13: 0 | R13: =IF(SUM($M13:$Q13)<>0,IF(B13=0,1,0),0) -> 0 | S13: 0 | T13: 0 | U13: 0 | W13: =IF(B13="ACH Academic",1,0) -> 0
A14: =I14&J14 ->  | D14: =IFERROR(VLOOKUP($B14,LOOKUPS!$A$146:$D$167,4,FALSE),"") ->  | E14: =IFERROR(VLOOKUP($B14,LOOKUPS!$A$146:$D$167,3,FALSE),"") ->  | M14: 0 | N14: =M14 -> 0 | O14: 0 | P14: 0 | Q14: 0 | R14: =IF(SUM($M14:$Q14)<>0,IF(B14=0,1,0),0) -> 0 | S14: 0 | T14: 0 | U14: 0 | W14: 0
A15: =I15&J15 ->  | D15: =IFERROR(VLOOKUP($B15,LOOKUPS!$A$146:$D$167,4,FALSE),"") ->  | E15: =IFERROR(VLOOKUP($B15,LOOKUPS!$A$146:$D$167,3,FALSE),"") ->  | M15: 0 | N15: =M15 -> 0 | O15: 0 | P15: 0 | Q15: 0 | R15: =IF(SUM($M15:$Q15)<>0,IF(B15=0,1,0),0) -> 0 | S15: 0 | T15: 0 | U15: 0 | W15: 0
M16: =SUM(M11:M15) -> 0 | N16: 0 | O16: 0 | P16: 0 | Q16: 0
B17: RESEARCH | C17: =SUM(R18:U22) -> 0
A18: =I18&J18 ->  | D18: =IFERROR(VLOOKUP($B18,LOOKUPS!$A$170:$D$179,4,FALSE),"") ->  | E18: =IFERROR(VLOOKUP($B18,LOOKUPS!$A$170:$D$179,3,FALSE),"") ->  | M18: 0 | N18: =M18 -> 0 | O18: 0 | P18: 0 | Q18: 0 | R18: =IF(SUM($M18:$Q18)<>0,IF(B18=0,1,0),0) -> 0 | S18: =IF(SUM($M18:$Q18)<>0,IF(I18=0,1,0),0) -> 0 | T18: 0 | U18: 0 | W18: =IF(B18="ACH Academic",1,0) -> 0
A19: =I19&J19 ->  | D19: =IFERROR(VLOOKUP($B19,LOOKUPS!$A$170:$D$179,4,FALSE),"") ->  | E19: =IFERROR(VLOOKUP($B19,LOOKUPS!$A$170:$D$179,3,FALSE),"") ->  | M19: 0 | N19: 0 | O19: 0 | P19: 0 | Q19: 0 | R19: =IF(SUM($M19:$Q19)<>0,IF(B19=0,1,0),0) -> 0 | S19: 0 | T19: 0 | U19: 0 | W19: =IF(B19="ACH Academic",1,0) -> 0
A20: =I20&J20 ->  | D20: =IFERROR(VLOOKUP($B20,LOOKUPS!$A$170:$D$179,4,FALSE),"") ->  | E20: =IFERROR(VLOOKUP($B20,LOOKUPS!$A$170:$D$179,3,FALSE),"") ->  | M20: 0 | N20: 0 | O20: 0 | P20: 0 | Q20: 0 | R20: =IF(SUM($M20:$Q20)<>0,IF(B20=0,1,0),0) -> 0 | S20: 0 | T20: 0 | U20: 0 | W20: 0
A21: =I21&J21 ->  | D21: =IFERROR(VLOOKUP($B21,LOOKUPS!$A$170:$D$179,4,FALSE),"") ->  | E21: =IFERROR(VLOOKUP($B21,LOOKUPS!$A$170:$D$179,3,FALSE),"") ->  | M21: 0 | N21: 0 | O21: 0 | P21: 0 | Q21: 0 | R21: =IF(SUM($M21:$Q21)<>0,IF(B21=0,1,0),0) -> 0 | S21: 0 | T21: 0 | U21: 0 | W21: 0
A22: =I22&J22 ->  | D22: =IFERROR(VLOOKUP($B22,LOOKUPS!$A$170:$D$179,4,FALSE),"") ->  | E22: =IFERROR(VLOOKUP($B22,LOOKUPS!$A$170:$D$179,3,FALSE),"") ->  | M22: 0 | N22: 0 | O22: 0 | P22: 0 | Q22: 0 | R22: =IF(SUM($M22:$Q22)<>0,IF(B22=0,1,0),0) -> 0 | S22: 0 | T22: 0 | U22: 0 | W22: 0
M23: =SUM(M18:M22) -> 0 | N23: 0 | O23: 0 | P23: 0 | Q23: 0
B24: EDUCATION | C24: =SUM(R25:U29) -> 0
A25: =I25&J25 ->  | M25: 0 | N25: =M25 -> 0 | O25: 0 | P25: 0 | Q25: 0 | R25: =IF(SUM($M25:$Q25)<>0,IF(B25=0,1,0),0) -> 0 | S25: =IF(SUM($M25:$Q25)<>0,IF(I25=0,1,0),0) -> 0 | T25: 0 | U25: 0 | W25: =IF(B25="ACH Academic",1,0) -> 0
A26: =I26&J26 ->  | D26: =IFERROR(VLOOKUP($B26,LOOKUPS!$A$182:$D$190,4,FALSE),"") ->  | E26: =IFERROR(VLOOKUP($B26,LOOKUPS!$A$182:$D$190,3,FALSE),"") ->  | M26: 0 | N26: 0 | O26: 0 | P26: 0 | Q26: 0 | R26: =IF(SUM($M26:$Q26)<>0,IF(B26=0,1,0),0) -> 0 | S26: 0 | T26: 0 | U26: 0 | W26: 0
A27: =I27&J27 ->  | D27: =IFERROR(VLOOKUP($B27,LOOKUPS!$A$182:$D$190,4,FALSE),"") ->  | E27: =IFERROR(VLOOKUP($B27,LOOKUPS!$A$182:$D$190,3,FALSE),"") ->  | M27: 0 | N27: 0 | O27: 0 | P27: 0 | Q27: 0 | R27: =IF(SUM($M27:$Q27)<>0,IF(B27=0,1,0),0) -> 0 | S27: 0 | T27: 0 | U27: 0 | W27: 0
A28: =I28&J28 ->  | D28: =IFERROR(VLOOKUP($B28,LOOKUPS!$A$182:$D$190,4,FALSE),"") ->  | E28: =IFERROR(VLOOKUP($B28,LOOKUPS!$A$182:$D$190,3,FALSE),"") ->  | M28: 0 | N28: 0 | O28: 0 | P28: 0 | Q28: 0 | R28: =IF(SUM($M28:$Q28)<>0,IF(B28=0,1,0),0) -> 0 | S28: 0 | T28: 0 | U28: 0 | W28: 0
A29: =I29&J29 ->  | D29: =IFERROR(VLOOKUP($B29,LOOKUPS!$A$182:$D$190,4,FALSE),"") ->  | E29: =IFERROR(VLOOKUP($B29,LOOKUPS!$A$182:$D$190,3,FALSE),"") ->  | M29: 0 | N29: 0 | O29: 0 | P29: 0 | Q29: 0 | R29: =IF(SUM($M29:$Q29)<>0,IF(B29=0,1,0),0) -> 0 | S29: 0 | T29: 0 | U29: 0 | W29: 0
F30: Production After Ramp-up | M30: =SUM(M24:M29) -> 0 | N30: =SUM(N24:N29) -> 0 | O30: =SUM(O24:O29) -> 0 | P30: =SUM(P24:P29) -> 0 | Q30: =SUM(Q24:Q29) -> 0
B31: CLINICAL | C31: =SUM(R32:W40) -> 0 | F31: wRVUs | G31: Cases/Visits | H31: Comments
A32: =I32&J32 ->  | D32: =IFERROR(VLOOKUP($B32,LOOKUPS!$A$193:$D$209,4,FALSE),"") ->  | E32: =IFERROR(VLOOKUP($B32,LOOKUPS!$A$193:$D$209,3,FALSE),"") ->  | M32: 0 | N32: =M32 -> 0 | O32: 0 | P32: 0 | Q32: 0 | R32: =IF(SUM($M32:$Q32)<>0,IF(B32=0,1,0),0) -> 0 | S32: =IF(SUM($M32:$Q32)<>0,IF(I32=0,1,0),0) -> 0 | T32: =IF(SUM($M32:$Q32)<>0,IF(J32=0,1,0),0) -> 0 | U32: =IF(SUM($M32:$Q32)<>0,IF(K32=0,1,0),0) -> 0 | V32: =IF(E32="wRVUs",IF(F32=0,1,0),0) -> 0 | W32: =IF(E32="wRVUs",IF(G32=0,1,0),0) -> 0
D33: =IFERROR(VLOOKUP($B33,LOOKUPS!$A$193:$D$209,4,FALSE),"") ->  | E33: =IFERROR(VLOOKUP($B33,LOOKUPS!$A$193:$D$209,3,FALSE),"") ->  | F33: 0 | G33: 0 | M33: 0 | N33: 0 | O33: 0 | P33: 0 | Q33: 0 | R33: 0 | S33: 0 | T33: 0 | U33: 0 | V33: =IF(E33="wRVUs",IF(F33=0,1,0),0) -> 0 | W33: =IF(E33="wRVUs",IF(G33=0,1,0),0) -> 0
D34: =IFERROR(VLOOKUP($B34,LOOKUPS!$A$193:$D$209,4,FALSE),"") ->  | E34: =IFERROR(VLOOKUP($B34,LOOKUPS!$A$193:$D$209,3,FALSE),"") ->  | M34: 0 | N34: =M34 -> 0 | O34: =N34 -> 0 | P34: =O34 -> 0 | Q34: =P34 -> 0 | R34: 0 | S34: 0 | T34: 0 | U34: 0 | V34: 0 | W34: 0
D35: =IFERROR(VLOOKUP($B35,LOOKUPS!$A$193:$D$209,4,FALSE),"") ->  | E35: =IFERROR(VLOOKUP($B35,LOOKUPS!$A$193:$D$209,3,FALSE),"") ->  | M35: 0 | N35: 0 | O35: 0 | P35: 0 | Q35: 0 | R35: 0 | S35: 0 | T35: 0 | U35: 0 | V35: 0 | W35: 0
D36: =IFERROR(VLOOKUP($B36,LOOKUPS!$A$193:$D$209,4,FALSE),"") ->  | E36: =IFERROR(VLOOKUP($B36,LOOKUPS!$A$193:$D$209,3,FALSE),"") ->  | M36: 0 | N36: =M36 -> 0 | O36: =N36 -> 0 | P36: =O36 -> 0 | Q36: =P36 -> 0 | R36: 0 | S36: 0 | T36: 0 | U36: 0 | V36: 0 | W36: 0
D37: =IFERROR(VLOOKUP($B37,LOOKUPS!$A$193:$D$209,4,FALSE),"") ->  | E37: =IFERROR(VLOOKUP($B37,LOOKUPS!$A$193:$D$209,3,FALSE),"") ->  | M37: 0 | N37: 0 | O37: 0 | P37: 0 | Q37: 0 | R37: 0 | S37: 0 | T37: 0 | U37: 0 | V37: 0 | W37: 0
D38: =IFERROR(VLOOKUP($B38,LOOKUPS!$A$193:$D$209,4,FALSE),"") ->  | E38: =IFERROR(VLOOKUP($B38,LOOKUPS!$A$193:$D$209,3,FALSE),"") ->  | M38: 0 | N38: 0 | O38: 0 | P38: 0 | Q38: 0 | R38: 0 | S38: 0 | T38: 0 | U38: 0 | V38: 0 | W38: 0
D39: =IFERROR(VLOOKUP($B39,LOOKUPS!$A$193:$D$209,4,FALSE),"") ->  | E39: =IFERROR(VLOOKUP($B39,LOOKUPS!$A$193:$D$209,3,FALSE),"") ->  | M39: 0 | N39: 0 | O39: 0 | P39: 0 | Q39: 0 | R39: 0 | S39: 0 | T39: 0 | U39: 0 | V39: 0 | W39: 0
D40: =IFERROR(VLOOKUP($B40,LOOKUPS!$A$193:$D$209,4,FALSE),"") ->  | E40: =IFERROR(VLOOKUP($B40,LOOKUPS!$A$193:$D$209,3,FALSE),"") ->  | M40: 0 | N40: 0 | O40: 0 | P40: 0 | Q40: 0 | R40: 0 | S40: 0 | T40: 0 | U40: 0 | V40: 0 | W40: 0
F41: =SUM(F32:F40) -> 0 | G41: =SUM(G32:G40) -> 0 | M41: =SUM(M32:M40) -> 0 | N41: =SUM(N32:N40) -> 0 | O41: =SUM(O32:O40) -> 0 | P41: =SUM(P32:P40) -> 0 | Q41: =SUM(Q32:Q40) -> 0
B42: Will this position have any clinical time at:? (Must choose an answer for each of the six below)
C43: ACH Ambulatory | D43: [select] | E43: =IF(OR(D43="[enter]",D43="[select]",D43=0)=TRUE,"error","") -> error | F43: ACH Inpatient | G43: [select] | H43: =IF(OR(G43="[enter]",G43="[select]",G43=0)=TRUE,"error","") -> error | I43: ACH Operating Room | K43: [select] | L43: =IF(OR(K43="[enter]",K43="[select]",K43=0)=TRUE,"error","") -> error | R43: =IF(E43="error",1,0) -> 1 | S43: =IF(H43="error",1,0) -> 1 | T43: =IF(L43="error",1,0) -> 1
C44: UAMS Ambulatory | D44: [select] | E44: =IF(OR(D44="[enter]",D44="[select]",D44=0)=TRUE,"error","") -> error | F44: UAMS Inpatient | G44: [select] | H44: =IF(OR(G44="[enter]",G44="[select]",G44=0)=TRUE,"error","") -> error | I44: UAMS Operating Room | K44: [select] | L44: =IF(OR(K44="[enter]",K44="[select]",K44=0)=TRUE,"error","") -> error | R44: =IF(E44="error",1,0) -> 1 | S44: =IF(H44="error",1,0) -> 1 | T44: =IF(L44="error",1,0) -> 1
B46: What % of the above FTE is also considered ACH Academic FTE? | E46: 0 | F46: =IF(OR(E46="[enter]",E46="[select]",E46=0)=TRUE,"error","") ->  | R46: =IF(F46="error",1,0) -> 0
B47: What % of the above FTE is NON ACH Contract funded? | E47: 0 | F47: =IF(OR(E47="[enter]",E47="[select]",E47=0)=TRUE,"error","") ->  | G47: Description if Other contract: | R47: =IF(F47="error",1,0) -> 0
B48: Of the contract NonACH contract funded fte, what is source? | E48: [Select] | F48: =IF(OR(E48="[enter]",E48="[select]",E48=0)=TRUE,"error","") -> error | M48: =M16+M23+M30+M41 -> 0 | N48: =N16+N23+N30+N41 -> 0 | O48: =O16+O23+O30+O41 -> 0 | P48: =P16+P23+P30+P41 -> 0 | Q48: =Q16+Q23+Q30+Q41 -> 0 | R48: =IF(F48="error",1,0) -> 1
M49: =IF(ROUND(COMP!I44-M16-M23-M30-M41,2)=0,"",1) ->  | N49: =IF(ROUND(COMP!J44-N16-N23-N30-N41,2)=0,"",1) ->  | O49: =IF(ROUND(COMP!K44-O16-O23-O30-O41,2)=0,"",1) ->  | P49: =IF(ROUND(COMP!L44-P16-P23-P30-P41,2)=0,"",1) ->  | Q49: =IF(ROUND(COMP!M44-Q16-Q23-Q30-Q41,2)=0,"",1) -> 
V50: Total ACH Academic | Y50: =SUM(W10:W40) -> 0
B51: FTE Assignment Summary
B52: Year 1 Effort | C52: COM | D52: ICE | E52: ACH | F52: Inst | G52: Other | H52: Total
B53: Administration | C53: =SUMIF($I$11:$I$15,C$52,$M$11:$M$15) -> 0 | D53: =SUMIF($I$11:$I$15,D$52,$M$11:$M$15) -> 0 | E53: =SUMIF($I$11:$I$15,E$52,$M$11:$M$15) -> 0 | F53: =SUMIF($I$11:$I$15,F$52,$M$11:$M$15) -> 0 | G53: =SUMIF($I$11:$I$15,G$52,$M$11:$M$15) -> 0 | H53: =SUM(C53:G53) -> 0
B54: Research | C54: =SUMIF($I$18:$I$22,C$52,$M$18:$M$22) -> 0 | D54: =SUMIF($I$18:$I$22,D$52,$M$18:$M$22) -> 0 | E54: =SUMIF($I$18:$I$22,E$52,$M$18:$M$22) -> 0 | F54: =SUMIF($I$18:$I$22,F$52,$M$18:$M$22) -> 0 | G54: =SUMIF($I$18:$I$22,G$52,$M$18:$M$22) -> 0 | H54: =SUM(C54:G54) -> 0
B55: Education | C55: =SUMIF($I$25:$I$29,C$52,$M$25:$M$29) -> 0 | D55: =SUMIF($I$25:$I$29,D$52,$M$25:$M$29) -> 0 | E55: =SUMIF($I$25:$I$29,E$52,$M$25:$M$29) -> 0 | F55: =SUMIF($I$25:$I$29,F$52,$M$25:$M$29) -> 0 | G55: =SUMIF($I$25:$I$29,G$52,$M$25:$M$29) -> 0 | H55: =SUM(C55:G55) -> 0
B56: Clinical | C56: =SUMIF($I$32:$I$40,C$52,$M$32:$M$40) -> 0 | D56: =SUMIF($I$32:$I$40,D$52,$M$32:$M$40) -> 0 | E56: =SUMIF($I$32:$I$40,E$52,$M$32:$M$40) -> 0 | F56: =SUMIF($I$32:$I$40,F$52,$M$32:$M$40) -> 0 | G56: =SUMIF($I$32:$I$40,G$52,$M$32:$M$40) -> 0 | H56: =SUM(C56:G56) -> 0
B57: VA | C57: 0 | D57: 0 | E57: 0 | F57: 0 | G57: =COMP!D44 -> 0 | H57: =SUM(C57:G57) -> 0
B58: Total | C58: =SUM(C53:C57) -> 0 | D58: 0 | E58: 0 | F58: 0 | G58: 0 | H58: 0

Sheet OTH EXP
A1: HIDE | B1: HIDE | C1: =COMP!B1 -> 0; [select]; [select] [select]; | K1: =COMP!N1 -> JFR FBP V24.5 | L1: HIDE | M1: HIDE | N1: HIDE | O1: HIDE | P1: HIDE | Q1: HIDE
C7: INCREMENTAL COMMON COSTS | K7: =SUM(L10:M14) -> 0
C9: Type | D9: Description | E9: P&L | F9: Rev Type | G9: Year 1 | H9: Year 2 | I9: Year 3 | J9: Year 4 | K9: Year 5
A10: =E10&F10 ->  | B10: =E10&C10 -> Computer | C10: Computer | D10: (new positions) | G10: 0 | H10: 0 | I10: 0 | J10: 0 | K10: 0 | L10: =IF(SUM($G10:$K10)<>0,IF(E10=0,1,0),0) -> 0 | M10: =IF(SUM($G10:$K10)<>0,IF(F10=0,1,0),0) -> 0
A11: =E11&F11 ->  | B11: =E11&C11 -> Educational Funds | C11: Educational Funds | D11: (faculty only) | G11: 0 | H11: =G11 -> 0 | I11: =G11 -> 0 | J11: =G11 -> 0 | K11: =G11 -> 0 | L11: =IF(SUM($G11:$K11)<>0,IF(E11=0,1,0),0) -> 0 | M11: =IF(SUM($G11:$K11)<>0,IF(F11=0,1,0),0) -> 0
B12: =E12&C12 -> Furniture | C12: Furniture | D12: (new faculty only) | G12: 0 | H12: 0 | I12: 0 | J12: 0 | K12: 0 | L12: 0 | M12: 0
B13: =E13&C13 -> Moving/Relocation | C13: Moving/Relocation | D13: (faculty only: Up to 7% of salary - Max of $15,000) | G13: 0 | H13: 0 | I13: 0 | J13: 0 | K13: 0 | L13: 0 | M13: 0
B14: =E14&C14 -> Malpractice | C14: Malpractice | D14: (clinical faculty only) | G14: 0 | H14: =G14 -> 0 | I14: =G14 -> 0 | J14: =G14 -> 0 | K14: =G14 -> 0 | L14: 0 | M14: 0
E15: Total: | G15: =SUM(G10:G14) -> 0 | H15: =SUM(H10:H14) -> 0 | I15: =SUM(I10:I14) -> 0 | J15: =SUM(J10:J14) -> 0 | K15: =SUM(K10:K14) -> 0
C17: INCREMENTAL OTHER COSTS (Includes new and existing - add if supporting candidate) | K17: =SUM(L20:O32) -> 0
C19: Type | D19: Description | E19: P&L | F19: Rev Type | G19: Year 1 | H19: Year 2 | I19: Year 3 | J19: Year 4 | K19: Year 5
A20: =E20&F20 ->  | B20: =E20&C20 -> Immigration | C20: Immigration | G20: 0 | H20: 0 | I20: =H20*1.02 -> 0 | J20: 0 | K20: 0 | L20: =IF(SUM($G20:$K20)<>0,IF(C20=0,1,0),0) -> 0 | M20: =IF(SUM($G20:$K20)<>0,IF(D20=0,1,0),0) -> 0 | N20: =IF(SUM($G20:$K20)<>0,IF(E20=0,1,0),0) -> 0 | O20: =IF(SUM($G20:$K20)<>0,IF(F20=0,1,0),0) -> 0
A21: =E21&F21 ->  | G21: 0 | H21: =G21*1.02 -> 0 | I21: =H21*1.02 -> 0 | J21: =I21*1.02 -> 0 | K21: =J21*1.02 -> 0 | L21: 0 | M21: 0 | N21: 0 | O21: 0
G22: 0 | H22: 0 | I22: 0 | J22: 0 | K22: 0 | L22: 0 | M22: 0 | N22: 0 | O22: 0
G23: 0 | H23: 0 | I23: 0 | J23: 0 | K23: 0 | L23: 0 | M23: 0 | N23: 0 | O23: 0
G24: 0 | H24: 0 | I24: 0 | J24: 0 | K24: 0 | L24: 0 | M24: 0 | N24: 0 | O24: 0
A25: =E25&F25 ->  | G25: 0 | H25: 0 | I25: 0 | J25: 0 | K25: 0 | L25: 0 | M25: 0 | N25: 0 | O25: 0
G26: 0 | H26: 0 | I26: 0 | J26: 0 | K26: 0 | L26: 0 | M26: 0 | N26: 0 | O26: 0
G27: 0 | H27: 0 | I27: 0 | J27: 0 | K27: 0 | L27: 0 | M27: 0 | N27: 0 | O27: 0
A28: =E28&F28 ->  | G28: 0 | H28: 0 | I28: 0 | J28: 0 | K28: 0 | L28: 0 | M28: 0 | N28: 0 | O28: 0
G29: 0 | H29: 0 | I29: 0 | J29: 0 | K29: 0 | L29: 0 | M29: 0 | N29: 0 | O29: 0
G30: 0 | H30: 0 | I30: 0 | J30: 0 | K30: 0 | L30: 0 | M30: 0 | N30: 0 | O30: 0
G31: 0 | H31: 0 | I31: 0 | J31: 0 | K31: 0 | L31: 0 | M31: 0 | N31: 0 | O31: 0
G32: 0 | H32: =+G32 -> 0 | I32: =+H32 -> 0 | J32: =+I32 -> 0 | K32: =+J32 -> 0 | L32: 0 | M32: 0 | N32: 0 | O32: 0
E33: Total: | G33: =SUM(G20:G32) -> 0 | H33: =SUM(H20:H32) -> 0 | I33: =SUM(I20:I32) -> 0 | J33: =SUM(J20:J32) -> 0 | K33: =SUM(K20:K32) -> 0

Sheet OTH REV
A1: HIDE | O1: HIDE | P1: HIDE | Q1: HIDE
B8: INCREMENTAL OTHER REVENUES
B9: Type | D9: Description | H9: P&L | I9: Year 1 | J9: Year 2 | K9: Year 3 | L9: Year 4 | M9: Year 5
A10: =H10&B10 -> COMGrant | B10: Grant | D10: Direct Expense Support | H10: COM | I10: =(SUMIF(ASSIGN!$A$9:$A$40,$A10,ASSIGN!M$9:M$40)*(COMP!I$70+COMP!I$76)+SUMIF(COMP!$A$35:$A$38,$A10,COMP!J$36:J$39)+SUMIF(COMP!$A$35:$A$38,$A10,COMP!O$36:O$39)+SUMIF('OTH EXP'!$A$10:$A$32,$A10,'OTH EXP'!G$10:G$32)) -> 0 | J10: =(SUMIF(ASSIGN!$A$9:$A$40,$A10,ASSIGN!N$9:N$40)*(COMP!J$70+COMP!J$76)+SUMIF(COMP!$A$35:$A$38,$A10,COMP!K$36:K$39)+SUMIF(COMP!$A$35:$A$38,$A10,COMP!P$36:P$39)+SUMIF('OTH EXP'!$A$10:$A$32,$A10,'OTH EXP'!H$10:H$32)) -> 0 | K10: =(SUMIF(ASSIGN!$A$9:$A$40,$A10,ASSIGN!O$9:O$40)*(COMP!K$70+COMP!K$76)+SUMIF(COMP!$A$35:$A$38,$A10,COMP!L$36:L$39)+SUMIF(COMP!$A$35:$A$38,$A10,COMP!Q$36:Q$39)+SUMIF('OTH EXP'!$A$10:$A$32,$A10,'OTH EXP'!I$10:I$32)) -> 0 | L10: =(SUMIF(ASSIGN!$A$9:$A$40,$A10,ASSIGN!P$9:P$40)*(COMP!L$70+COMP!L$76)+SUMIF(COMP!$A$35:$A$38,$A10,COMP!M$36:M$39)+SUMIF(COMP!$A$35:$A$38,$A10,COMP!R$36:R$39)+SUMIF('OTH EXP'!$A$10:$A$32,$A10,'OTH EXP'!J$10:J$32)) -> 0 | M10: =(SUMIF(ASSIGN!$A$9:$A$40,$A10,ASSIGN!Q$9:Q$40)*(COMP!M$70+COMP!M$76)+SUMIF(COMP!$A$35:$A$38,$A10,COMP!N$36:N$39)+SUMIF(COMP!$A$35:$A$38,$A10,COMP!S$36:S$39)+SUMIF('OTH EXP'!$A$10:$A$32,$A10,'OTH EXP'!K$10:K$32)) -> 0
A11: =H11&B11 -> COMContract | B11: Contract | D11: Direct Expense Support | H11: COM | I11: =(SUMIF(ASSIGN!$A$9:$A$40,$A11,ASSIGN!M$9:M$40)*(COMP!I$70+COMP!I$76)+SUMIF(COMP!$A$35:$A$38,$A11,COMP!J$36:J$39)+SUMIF(COMP!$A$35:$A$38,$A11,COMP!O$36:O$39)+SUMIF('OTH EXP'!$A$10:$A$32,$A11,'OTH EXP'!G$10:G$32)) -> 0 | J11: =(SUMIF(ASSIGN!$A$9:$A$40,$A11,ASSIGN!N$9:N$40)*(COMP!J$70+COMP!J$76)+SUMIF(COMP!$A$35:$A$38,$A11,COMP!K$36:K$39)+SUMIF(COMP!$A$35:$A$38,$A11,COMP!P$36:P$39)+SUMIF('OTH EXP'!$A$10:$A$32,$A11,'OTH EXP'!H$10:H$32)) -> 0 | K11: =(SUMIF(ASSIGN!$A$9:$A$40,$A11,ASSIGN!O$9:O$40)*(COMP!K$70+COMP!K$76)+SUMIF(COMP!$A$35:$A$38,$A11,COMP!L$36:L$39)+SUMIF(COMP!$A$35:$A$38,$A11,COMP!Q$36:Q$39)+SUMIF('OTH EXP'!$A$10:$A$32,$A11,'OTH EXP'!I$10:I$32)) -> 0 | L11: =(SUMIF(ASSIGN!$A$9:$A$40,$A11,ASSIGN!P$9:P$40)*(COMP!L$70+COMP!L$76)+SUMIF(COMP!$A$35:$A$38,$A11,COMP!M$36:M$39)+SUMIF(COMP!$A$35:$A$38,$A11,COMP!R$36:R$39)+SUMIF('OTH EXP'!$A$10:$A$32,$A11,'OTH EXP'!J$10:J$32)) -> 0 | M11: =(SUMIF(ASSIGN!$A$9:$A$40,$A11,ASSIGN!Q$9:Q$40)*(COMP!M$70+COMP!M$76)+SUMIF(COMP!$A$35:$A$38,$A11,COMP!N$36:N$39)+SUMIF(COMP!$A$35:$A$38,$A11,COMP!S$36:S$39)+SUMIF('OTH EXP'!$A$10:$A$32,$A11,'OTH EXP'!K$10:K$32)) -> 0
A12: COMFoundation | B12: Foundation | D12: Direct Expense Support | H12: COM | I12: =(SUMIF(ASSIGN!$A$9:$A$40,$A12,ASSIGN!M$9:M$40)*(COMP!I$70+COMP!I$76)+SUMIF(COMP!$A$35:$A$38,$A12,COMP!J$36:J$39)+SUMIF(COMP!$A$35:$A$38,$A12,COMP!O$36:O$39)+SUMIF('OTH EXP'!$A$10:$A$32,$A12,'OTH EXP'!G$10:G$32)) -> 0 | J12: =(SUMIF(ASSIGN!$A$9:$A$40,$A12,ASSIGN!N$9:N$40)*(COMP!J$70+COMP!J$76)+SUMIF(COMP!$A$35:$A$38,$A12,COMP!K$36:K$39)+SUMIF(COMP!$A$35:$A$38,$A12,COMP!P$36:P$39)+SUMIF('OTH EXP'!$A$10:$A$32,$A12,'OTH EXP'!H$10:H$32)) -> 0 | K12: =(SUMIF(ASSIGN!$A$9:$A$40,$A12,ASSIGN!O$9:O$40)*(COMP!K$70+COMP!K$76)+SUMIF(COMP!$A$35:$A$38,$A12,COMP!L$36:L$39)+SUMIF(COMP!$A$35:$A$38,$A12,COMP!Q$36:Q$39)+SUMIF('OTH EXP'!$A$10:$A$32,$A12,'OTH EXP'!I$10:I$32)) -> 0 | L12: =(SUMIF(ASSIGN!$A$9:$A$40,$A12,ASSIGN!P$9:P$40)*(COMP!L$70+COMP!L$76)+SUMIF(COMP!$A$35:$A$38,$A12,COMP!M$36:M$39)+SUMIF(COMP!$A$35:$A$38,$A12,COMP!R$36:R$39)+SUMIF('OTH EXP'!$A$10:$A$32,$A12,'OTH EXP'!J$10:J$32)) -> 0 | M12: =(SUMIF(ASSIGN!$A$9:$A$40,$A12,ASSIGN!Q$9:Q$40)*(COMP!M$70+COMP!M$76)+SUMIF(COMP!$A$35:$A$38,$A12,COMP!N$36:N$39)+SUMIF(COMP!$A$35:$A$38,$A12,COMP!S$36:S$39)+SUMIF('OTH EXP'!$A$10:$A$32,$A12,'OTH EXP'!K$10:K$32)) -> 0
A13: COMGift | B13: Gift | D13: Direct Expense Support | H13: COM | I13: =(SUMIF(ASSIGN!$A$9:$A$40,$A13,ASSIGN!M$9:M$40)*(COMP!I$70+COMP!I$76)+SUMIF(COMP!$A$35:$A$38,$A13,COMP!J$36:J$39)+SUMIF(COMP!$A$35:$A$38,$A13,COMP!O$36:O$39)+SUMIF('OTH EXP'!$A$10:$A$32,$A13,'OTH EXP'!G$10:G$32)) -> 0 | J13: =(SUMIF(ASSIGN!$A$9:$A$40,$A13,ASSIGN!N$9:N$40)*(COMP!J$70+COMP!J$76)+SUMIF(COMP!$A$35:$A$38,$A13,COMP!K$36:K$39)+SUMIF(COMP!$A$35:$A$38,$A13,COMP!P$36:P$39)+SUMIF('OTH EXP'!$A$10:$A$32,$A13,'OTH EXP'!H$10:H$32)) -> 0 | K13: =(SUMIF(ASSIGN!$A$9:$A$40,$A13,ASSIGN!O$9:O$40)*(COMP!K$70+COMP!K$76)+SUMIF(COMP!$A$35:$A$38,$A13,COMP!L$36:L$39)+SUMIF(COMP!$A$35:$A$38,$A13,COMP!Q$36:Q$39)+SUMIF('OTH EXP'!$A$10:$A$32,$A13,'OTH EXP'!I$10:I$32)) -> 0 | L13: =(SUMIF(ASSIGN!$A$9:$A$40,$A13,ASSIGN!P$9:P$40)*(COMP!L$70+COMP!L$76)+SUMIF(COMP!$A$35:$A$38,$A13,COMP!M$36:M$39)+SUMIF(COMP!$A$35:$A$38,$A13,COMP!R$36:R$39)+SUMIF('OTH EXP'!$A$10:$A$32,$A13,'OTH EXP'!J$10:J$32)) -> 0 | M13: =(SUMIF(ASSIGN!$A$9:$A$40,$A13,ASSIGN!Q$9:Q$40)*(COMP!M$70+COMP!M$76)+SUMIF(COMP!$A$35:$A$38,$A13,COMP!N$36:N$39)+SUMIF(COMP!$A$35:$A$38,$A13,COMP!S$36:S$39)+SUMIF('OTH EXP'!$A$10:$A$32,$A13,'OTH EXP'!K$10:K$32)) -> 0
A14: COMDean's Commitment | B14: Dean's Commitment | D14: Direct Expense Support | H14: COM | I14: =(SUMIF(ASSIGN!$A$9:$A$40,$A14,ASSIGN!M$9:M$40)*(COMP!I$70+COMP!I$76)+SUMIF(COMP!$A$35:$A$38,$A14,COMP!J$36:J$39)+SUMIF(COMP!$A$35:$A$38,$A14,COMP!O$36:O$39)+SUMIF('OTH EXP'!$A$10:$A$32,$A14,'OTH EXP'!G$10:G$32)) -> 0 | J14: =(SUMIF(ASSIGN!$A$9:$A$40,$A14,ASSIGN!N$9:N$40)*(COMP!J$70+COMP!J$76)+SUMIF(COMP!$A$35:$A$38,$A14,COMP!K$36:K$39)+SUMIF(COMP!$A$35:$A$38,$A14,COMP!P$36:P$39)+SUMIF('OTH EXP'!$A$10:$A$32,$A14,'OTH EXP'!H$10:H$32)) -> 0 | K14: =(SUMIF(ASSIGN!$A$9:$A$40,$A14,ASSIGN!O$9:O$40)*(COMP!K$70+COMP!K$76)+SUMIF(COMP!$A$35:$A$38,$A14,COMP!L$36:L$39)+SUMIF(COMP!$A$35:$A$38,$A14,COMP!Q$36:Q$39)+SUMIF('OTH EXP'!$A$10:$A$32,$A14,'OTH EXP'!I$10:I$32)) -> 0 | L14: =(SUMIF(ASSIGN!$A$9:$A$40,$A14,ASSIGN!P$9:P$40)*(COMP!L$70+COMP!L$76)+SUMIF(COMP!$A$35:$A$38,$A14,COMP!M$36:M$39)+SUMIF(COMP!$A$35:$A$38,$A14,COMP!R$36:R$39)+SUMIF('OTH EXP'!$A$10:$A$32,$A14,'OTH EXP'!J$10:J$32)) -> 0 | M14: =(SUMIF(ASSIGN!$A$9:$A$40,$A14,ASSIGN!Q$9:Q$40)*(COMP!M$70+COMP!M$76)+SUMIF(COMP!$A$35:$A$38,$A14,COMP!N$36:N$39)+SUMIF(COMP!$A$35:$A$38,$A14,COMP!S$36:S$39)+SUMIF('OTH EXP'!$A$10:$A$32,$A14,'OTH EXP'!K$10:K$32)) -> 0
A15: COMBudget | B15: Budget | D15: Direct Expense Support | H15: COM | I15: =(SUMIF(ASSIGN!$A$9:$A$40,$A15,ASSIGN!M$9:M$40)*(COMP!I$70+COMP!I$76)+SUMIF(COMP!$A$35:$A$38,$A15,COMP!J$36:J$39)+SUMIF(COMP!$A$35:$A$38,$A15,COMP!O$36:O$39)+SUMIF('OTH EXP'!$A$10:$A$32,$A15,'OTH EXP'!G$10:G$32)) -> 0 | J15: =(SUMIF(ASSIGN!$A$9:$A$40,$A15,ASSIGN!N$9:N$40)*(COMP!J$70+COMP!J$76)+SUMIF(COMP!$A$35:$A$38,$A15,COMP!K$36:K$39)+SUMIF(COMP!$A$35:$A$38,$A15,COMP!P$36:P$39)+SUMIF('OTH EXP'!$A$10:$A$32,$A15,'OTH EXP'!H$10:H$32)) -> 0 | K15: =(SUMIF(ASSIGN!$A$9:$A$40,$A15,ASSIGN!O$9:O$40)*(COMP!K$70+COMP!K$76)+SUMIF(COMP!$A$35:$A$38,$A15,COMP!L$36:L$39)+SUMIF(COMP!$A$35:$A$38,$A15,COMP!Q$36:Q$39)+SUMIF('OTH EXP'!$A$10:$A$32,$A15,'OTH EXP'!I$10:I$32)) -> 0 | L15: =(SUMIF(ASSIGN!$A$9:$A$40,$A15,ASSIGN!P$9:P$40)*(COMP!L$70+COMP!L$76)+SUMIF(COMP!$A$35:$A$38,$A15,COMP!M$36:M$39)+SUMIF(COMP!$A$35:$A$38,$A15,COMP!R$36:R$39)+SUMIF('OTH EXP'!$A$10:$A$32,$A15,'OTH EXP'!J$10:J$32)) -> 0 | M15: =(SUMIF(ASSIGN!$A$9:$A$40,$A15,ASSIGN!Q$9:Q$40)*(COMP!M$70+COMP!M$76)+SUMIF(COMP!$A$35:$A$38,$A15,COMP!N$36:N$39)+SUMIF(COMP!$A$35:$A$38,$A15,COMP!S$36:S$39)+SUMIF('OTH EXP'!$A$10:$A$32,$A15,'OTH EXP'!K$10:K$32)) -> 0
A16: COMOther | B16: Other | D16: Direct Expense Support | H16: COM | I16: =(SUMIF(ASSIGN!$A$9:$A$40,$A16,ASSIGN!M$9:M$40)*(COMP!I$70+COMP!I$76)+SUMIF(COMP!$A$35:$A$38,$A16,COMP!J$36:J$39)+SUMIF(COMP!$A$35:$A$38,$A16,COMP!O$36:O$39)+SUMIF('OTH EXP'!$A$10:$A$32,$A16,'OTH EXP'!G$10:G$32)) -> 0 | J16: =(SUMIF(ASSIGN!$A$9:$A$40,$A16,ASSIGN!N$9:N$40)*(COMP!J$70+COMP!J$76)+SUMIF(COMP!$A$35:$A$38,$A16,COMP!K$36:K$39)+SUMIF(COMP!$A$35:$A$38,$A16,COMP!P$36:P$39)+SUMIF('OTH EXP'!$A$10:$A$32,$A16,'OTH EXP'!H$10:H$32)) -> 0 | K16: =(SUMIF(ASSIGN!$A$9:$A$40,$A16,ASSIGN!O$9:O$40)*(COMP!K$70+COMP!K$76)+SUMIF(COMP!$A$35:$A$38,$A16,COMP!L$36:L$39)+SUMIF(COMP!$A$35:$A$38,$A16,COMP!Q$36:Q$39)+SUMIF('OTH EXP'!$A$10:$A$32,$A16,'OTH EXP'!I$10:I$32)) -> 0 | L16: =(SUMIF(ASSIGN!$A$9:$A$40,$A16,ASSIGN!P$9:P$40)*(COMP!L$70+COMP!L$76)+SUMIF(COMP!$A$35:$A$38,$A16,COMP!M$36:M$39)+SUMIF(COMP!$A$35:$A$38,$A16,COMP!R$36:R$39)+SUMIF('OTH EXP'!$A$10:$A$32,$A16,'OTH EXP'!J$10:J$32)) -> 0 | M16: =(SUMIF(ASSIGN!$A$9:$A$40,$A16,ASSIGN!Q$9:Q$40)*(COMP!M$70+COMP!M$76)+SUMIF(COMP!$A$35:$A$38,$A16,COMP!N$36:N$39)+SUMIF(COMP!$A$35:$A$38,$A16,COMP!S$36:S$39)+SUMIF('OTH EXP'!$A$10:$A$32,$A16,'OTH EXP'!K$10:K$32)) -> 0
A17: ICEGrant | B17: Grant | D17: Direct Expense Support | H17: ICE | I17: =(SUMIF(ASSIGN!$A$9:$A$40,$A17,ASSIGN!M$9:M$40)*(COMP!I$70+COMP!I$76)+SUMIF(COMP!$A$35:$A$38,$A17,COMP!J$36:J$39)+SUMIF(COMP!$A$35:$A$38,$A17,COMP!O$36:O$39)+SUMIF('OTH EXP'!$A$10:$A$32,$A17,'OTH EXP'!G$10:G$32)) -> 0 | J17: =(SUMIF(ASSIGN!$A$9:$A$40,$A17,ASSIGN!N$9:N$40)*(COMP!J$70+COMP!J$76)+SUMIF(COMP!$A$35:$A$38,$A17,COMP!K$36:K$39)+SUMIF(COMP!$A$35:$A$38,$A17,COMP!P$36:P$39)+SUMIF('OTH EXP'!$A$10:$A$32,$A17,'OTH EXP'!H$10:H$32)) -> 0 | K17: =(SUMIF(ASSIGN!$A$9:$A$40,$A17,ASSIGN!O$9:O$40)*(COMP!K$70+COMP!K$76)+SUMIF(COMP!$A$35:$A$38,$A17,COMP!L$36:L$39)+SUMIF(COMP!$A$35:$A$38,$A17,COMP!Q$36:Q$39)+SUMIF('OTH EXP'!$A$10:$A$32,$A17,'OTH EXP'!I$10:I$32)) -> 0 | L17: =(SUMIF(ASSIGN!$A$9:$A$40,$A17,ASSIGN!P$9:P$40)*(COMP!L$70+COMP!L$76)+SUMIF(COMP!$A$35:$A$38,$A17,COMP!M$36:M$39)+SUMIF(COMP!$A$35:$A$38,$A17,COMP!R$36:R$39)+SUMIF('OTH EXP'!$A$10:$A$32,$A17,'OTH EXP'!J$10:J$32)) -> 0 | M17: =(SUMIF(ASSIGN!$A$9:$A$40,$A17,ASSIGN!Q$9:Q$40)*(COMP!M$70+COMP!M$76)+SUMIF(COMP!$A$35:$A$38,$A17,COMP!N$36:N$39)+SUMIF(COMP!$A$35:$A$38,$A17,COMP!S$36:S$39)+SUMIF('OTH EXP'!$A$10:$A$32,$A17,'OTH EXP'!K$10:K$32)) -> 0
A18: ICEContract | B18: Contract | D18: Direct Expense Support | H18: ICE | I18: =(SUMIF(ASSIGN!$A$9:$A$40,$A18,ASSIGN!M$9:M$40)*(COMP!I$70+COMP!I$76)+SUMIF(COMP!$A$35:$A$38,$A18,COMP!J$36:J$39)+SUMIF(COMP!$A$35:$A$38,$A18,COMP!O$36:O$39)+SUMIF('OTH EXP'!$A$10:$A$32,$A18,'OTH EXP'!G$10:G$32)) -> 0 | J18: =(SUMIF(ASSIGN!$A$9:$A$40,$A18,ASSIGN!N$9:N$40)*(COMP!J$70+COMP!J$76)+SUMIF(COMP!$A$35:$A$38,$A18,COMP!K$36:K$39)+SUMIF(COMP!$A$35:$A$38,$A18,COMP!P$36:P$39)+SUMIF('OTH EXP'!$A$10:$A$32,$A18,'OTH EXP'!H$10:H$32)) -> 0 | K18: =(SUMIF(ASSIGN!$A$9:$A$40,$A18,ASSIGN!O$9:O$40)*(COMP!K$70+COMP!K$76)+SUMIF(COMP!$A$35:$A$38,$A18,COMP!L$36:L$39)+SUMIF(COMP!$A$35:$A$38,$A18,COMP!Q$36:Q$39)+SUMIF('OTH EXP'!$A$10:$A$32,$A18,'OTH EXP'!I$10:I$32)) -> 0 | L18: =(SUMIF(ASSIGN!$A$9:$A$40,$A18,ASSIGN!P$9:P$40)*(COMP!L$70+COMP!L$76)+SUMIF(COMP!$A$35:$A$38,$A18,COMP!M$36:M$39)+SUMIF(COMP!$A$35:$A$38,$A18,COMP!R$36:R$39)+SUMIF('OTH EXP'!$A$10:$A$32,$A18,'OTH EXP'!J$10:J$32)) -> 0 | M18: =(SUMIF(ASSIGN!$A$9:$A$40,$A18,ASSIGN!Q$9:Q$40)*(COMP!M$70+COMP!M$76)+SUMIF(COMP!$A$35:$A$38,$A18,COMP!N$36:N$39)+SUMIF(COMP!$A$35:$A$38,$A18,COMP!S$36:S$39)+SUMIF('OTH EXP'!$A$10:$A$32,$A18,'OTH EXP'!K$10:K$32)) -> 0
A19: ICEOther | B19: Other | D19: Direct Expense Support | H19: ICE | I19: =(SUMIF(ASSIGN!$A$9:$A$40,$A19,ASSIGN!M$9:M$40)*(COMP!I$70+COMP!I$76)+SUMIF(COMP!$A$35:$A$38,$A19,COMP!J$36:J$39)+SUMIF(COMP!$A$35:$A$38,$A19,COMP!O$36:O$39)+SUMIF('OTH EXP'!$A$10:$A$32,$A19,'OTH EXP'!G$10:G$32)) -> 0 | J19: =(SUMIF(ASSIGN!$A$9:$A$40,$A19,ASSIGN!N$9:N$40)*(COMP!J$70+COMP!J$76)+SUMIF(COMP!$A$35:$A$38,$A19,COMP!K$36:K$39)+SUMIF(COMP!$A$35:$A$38,$A19,COMP!P$36:P$39)+SUMIF('OTH EXP'!$A$10:$A$32,$A19,'OTH EXP'!H$10:H$32)) -> 0 | K19: =(SUMIF(ASSIGN!$A$9:$A$40,$A19,ASSIGN!O$9:O$40)*(COMP!K$70+COMP!K$76)+SUMIF(COMP!$A$35:$A$38,$A19,COMP!L$36:L$39)+SUMIF(COMP!$A$35:$A$38,$A19,COMP!Q$36:Q$39)+SUMIF('OTH EXP'!$A$10:$A$32,$A19,'OTH EXP'!I$10:I$32)) -> 0 | L19: =(SUMIF(ASSIGN!$A$9:$A$40,$A19,ASSIGN!P$9:P$40)*(COMP!L$70+COMP!L$76)+SUMIF(COMP!$A$35:$A$38,$A19,COMP!M$36:M$39)+SUMIF(COMP!$A$35:$A$38,$A19,COMP!R$36:R$39)+SUMIF('OTH EXP'!$A$10:$A$32,$A19,'OTH EXP'!J$10:J$32)) -> 0 | M19: =(SUMIF(ASSIGN!$A$9:$A$40,$A19,ASSIGN!Q$9:Q$40)*(COMP!M$70+COMP!M$76)+SUMIF(COMP!$A$35:$A$38,$A19,COMP!N$36:N$39)+SUMIF(COMP!$A$35:$A$38,$A19,COMP!S$36:S$39)+SUMIF('OTH EXP'!$A$10:$A$32,$A19,'OTH EXP'!K$10:K$32)) -> 0
A20: ACHGrant | B20: Grant | D20: Direct Expense Support | H20: ACH | I20: =(SUMIF(ASSIGN!$A$9:$A$40,$A20,ASSIGN!M$9:M$40)*(COMP!I$70+COMP!I$76)+SUMIF(COMP!$A$35:$A$38,$A20,COMP!J$36:J$39)+SUMIF(COMP!$A$35:$A$38,$A20,COMP!O$36:O$39)+SUMIF('OTH EXP'!$A$10:$A$32,$A20,'OTH EXP'!G$10:G$32)) -> 0 | J20: =(SUMIF(ASSIGN!$A$9:$A$40,$A20,ASSIGN!N$9:N$40)*(COMP!J$70+COMP!J$76)+SUMIF(COMP!$A$35:$A$38,$A20,COMP!K$36:K$39)+SUMIF(COMP!$A$35:$A$38,$A20,COMP!P$36:P$39)+SUMIF('OTH EXP'!$A$10:$A$32,$A20,'OTH EXP'!H$10:H$32)) -> 0 | K20: =(SUMIF(ASSIGN!$A$9:$A$40,$A20,ASSIGN!O$9:O$40)*(COMP!K$70+COMP!K$76)+SUMIF(COMP!$A$35:$A$38,$A20,COMP!L$36:L$39)+SUMIF(COMP!$A$35:$A$38,$A20,COMP!Q$36:Q$39)+SUMIF('OTH EXP'!$A$10:$A$32,$A20,'OTH EXP'!I$10:I$32)) -> 0 | L20: =(SUMIF(ASSIGN!$A$9:$A$40,$A20,ASSIGN!P$9:P$40)*(COMP!L$70+COMP!L$76)+SUMIF(COMP!$A$35:$A$38,$A20,COMP!M$36:M$39)+SUMIF(COMP!$A$35:$A$38,$A20,COMP!R$36:R$39)+SUMIF('OTH EXP'!$A$10:$A$32,$A20,'OTH EXP'!J$10:J$32)) -> 0 | M20: =(SUMIF(ASSIGN!$A$9:$A$40,$A20,ASSIGN!Q$9:Q$40)*(COMP!M$70+COMP!M$76)+SUMIF(COMP!$A$35:$A$38,$A20,COMP!N$36:N$39)+SUMIF(COMP!$A$35:$A$38,$A20,COMP!S$36:S$39)+SUMIF('OTH EXP'!$A$10:$A$32,$A20,'OTH EXP'!K$10:K$32)) -> 0
A21: =H21&B21 -> ACHContract | B21: Contract | D21: Direct Expense Support | H21: ACH | I21: =(SUMIF(ASSIGN!$A$9:$A$40,$A21,ASSIGN!M$9:M$40)*(COMP!I$70+COMP!I$76)+SUMIF(COMP!$A$35:$A$38,$A21,COMP!J$36:J$39)+SUMIF(COMP!$A$35:$A$38,$A21,COMP!O$36:O$39)+SUMIF('OTH EXP'!$A$10:$A$32,$A21,'OTH EXP'!G$10:G$32)) -> 0 | J21: =(SUMIF(ASSIGN!$A$9:$A$40,$A21,ASSIGN!N$9:N$40)*(COMP!J$70+COMP!J$76)+SUMIF(COMP!$A$35:$A$38,$A21,COMP!K$36:K$39)+SUMIF(COMP!$A$35:$A$38,$A21,COMP!P$36:P$39)+SUMIF('OTH EXP'!$A$10:$A$32,$A21,'OTH EXP'!H$10:H$32)) -> 0 | K21: =(SUMIF(ASSIGN!$A$9:$A$40,$A21,ASSIGN!O$9:O$40)*(COMP!K$70+COMP!K$76)+SUMIF(COMP!$A$35:$A$38,$A21,COMP!L$36:L$39)+SUMIF(COMP!$A$35:$A$38,$A21,COMP!Q$36:Q$39)+SUMIF('OTH EXP'!$A$10:$A$32,$A21,'OTH EXP'!I$10:I$32)) -> 0 | L21: =(SUMIF(ASSIGN!$A$9:$A$40,$A21,ASSIGN!P$9:P$40)*(COMP!L$70+COMP!L$76)+SUMIF(COMP!$A$35:$A$38,$A21,COMP!M$36:M$39)+SUMIF(COMP!$A$35:$A$38,$A21,COMP!R$36:R$39)+SUMIF('OTH EXP'!$A$10:$A$32,$A21,'OTH EXP'!J$10:J$32)) -> 0 | M21: =(SUMIF(ASSIGN!$A$9:$A$40,$A21,ASSIGN!Q$9:Q$40)*(COMP!M$70+COMP!M$76)+SUMIF(COMP!$A$35:$A$38,$A21,COMP!N$36:N$39)+SUMIF(COMP!$A$35:$A$38,$A21,COMP!S$36:S$39)+SUMIF('OTH EXP'!$A$10:$A$32,$A21,'OTH EXP'!K$10:K$32)) -> 0
A22: ACHFoundation | B22: Foundation | D22: Direct Expense Support | H22: ACH | I22: =(SUMIF(ASSIGN!$A$9:$A$40,$A22,ASSIGN!M$9:M$40)*(COMP!I$70+COMP!I$76)+SUMIF(COMP!$A$35:$A$38,$A22,COMP!J$36:J$39)+SUMIF(COMP!$A$35:$A$38,$A22,COMP!O$36:O$39)+SUMIF('OTH EXP'!$A$10:$A$32,$A22,'OTH EXP'!G$10:G$32)) -> 0 | J22: =(SUMIF(ASSIGN!$A$9:$A$40,$A22,ASSIGN!N$9:N$40)*(COMP!J$70+COMP!J$76)+SUMIF(COMP!$A$35:$A$38,$A22,COMP!K$36:K$39)+SUMIF(COMP!$A$35:$A$38,$A22,COMP!P$36:P$39)+SUMIF('OTH EXP'!$A$10:$A$32,$A22,'OTH EXP'!H$10:H$32)) -> 0 | K22: =(SUMIF(ASSIGN!$A$9:$A$40,$A22,ASSIGN!O$9:O$40)*(COMP!K$70+COMP!K$76)+SUMIF(COMP!$A$35:$A$38,$A22,COMP!L$36:L$39)+SUMIF(COMP!$A$35:$A$38,$A22,COMP!Q$36:Q$39)+SUMIF('OTH EXP'!$A$10:$A$32,$A22,'OTH EXP'!I$10:I$32)) -> 0 | L22: =(SUMIF(ASSIGN!$A$9:$A$40,$A22,ASSIGN!P$9:P$40)*(COMP!L$70+COMP!L$76)+SUMIF(COMP!$A$35:$A$38,$A22,COMP!M$36:M$39)+SUMIF(COMP!$A$35:$A$38,$A22,COMP!R$36:R$39)+SUMIF('OTH EXP'!$A$10:$A$32,$A22,'OTH EXP'!J$10:J$32)) -> 0 | M22: =(SUMIF(ASSIGN!$A$9:$A$40,$A22,ASSIGN!Q$9:Q$40)*(COMP!M$70+COMP!M$76)+SUMIF(COMP!$A$35:$A$38,$A22,COMP!N$36:N$39)+SUMIF(COMP!$A$35:$A$38,$A22,COMP!S$36:S$39)+SUMIF('OTH EXP'!$A$10:$A$32,$A22,'OTH EXP'!K$10:K$32)) -> 0
A23: ACHGift | B23: Gift | D23: Direct Expense Support | H23: ACH | I23: =(SUMIF(ASSIGN!$A$9:$A$40,$A23,ASSIGN!M$9:M$40)*(COMP!I$70+COMP!I$76)+SUMIF(COMP!$A$35:$A$38,$A23,COMP!J$36:J$39)+SUMIF(COMP!$A$35:$A$38,$A23,COMP!O$36:O$39)+SUMIF('OTH EXP'!$A$10:$A$32,$A23,'OTH EXP'!G$10:G$32)) -> 0 | J23: =(SUMIF(ASSIGN!$A$9:$A$40,$A23,ASSIGN!N$9:N$40)*(COMP!J$70+COMP!J$76)+SUMIF(COMP!$A$35:$A$38,$A23,COMP!K$36:K$39)+SUMIF(COMP!$A$35:$A$38,$A23,COMP!P$36:P$39)+SUMIF('OTH EXP'!$A$10:$A$32,$A23,'OTH EXP'!H$10:H$32)) -> 0 | K23: =(SUMIF(ASSIGN!$A$9:$A$40,$A23,ASSIGN!O$9:O$40)*(COMP!K$70+COMP!K$76)+SUMIF(COMP!$A$35:$A$38,$A23,COMP!L$36:L$39)+SUMIF(COMP!$A$35:$A$38,$A23,COMP!Q$36:Q$39)+SUMIF('OTH EXP'!$A$10:$A$32,$A23,'OTH EXP'!I$10:I$32)) -> 0 | L23: =(SUMIF(ASSIGN!$A$9:$A$40,$A23,ASSIGN!P$9:P$40)*(COMP!L$70+COMP!L$76)+SUMIF(COMP!$A$35:$A$38,$A23,COMP!M$36:M$39)+SUMIF(COMP!$A$35:$A$38,$A23,COMP!R$36:R$39)+SUMIF('OTH EXP'!$A$10:$A$32,$A23,'OTH EXP'!J$10:J$32)) -> 0 | M23: =(SUMIF(ASSIGN!$A$9:$A$40,$A23,ASSIGN!Q$9:Q$40)*(COMP!M$70+COMP!M$76)+SUMIF(COMP!$A$35:$A$38,$A23,COMP!N$36:N$39)+SUMIF(COMP!$A$35:$A$38,$A23,COMP!S$36:S$39)+SUMIF('OTH EXP'!$A$10:$A$32,$A23,'OTH EXP'!K$10:K$32)) -> 0
A24: ACHOther | B24: Other | D24: Direct Expense Support | H24: ACH | I24: =(SUMIF(ASSIGN!$A$9:$A$40,$A24,ASSIGN!M$9:M$40)*(COMP!I$70+COMP!I$76)+SUMIF(COMP!$A$35:$A$38,$A24,COMP!J$36:J$39)+SUMIF(COMP!$A$35:$A$38,$A24,COMP!O$36:O$39)+SUMIF('OTH EXP'!$A$10:$A$32,$A24,'OTH EXP'!G$10:G$32)) -> 0 | J24: =(SUMIF(ASSIGN!$A$9:$A$40,$A24,ASSIGN!N$9:N$40)*(COMP!J$70+COMP!J$76)+SUMIF(COMP!$A$35:$A$38,$A24,COMP!K$36:K$39)+SUMIF(COMP!$A$35:$A$38,$A24,COMP!P$36:P$39)+SUMIF('OTH EXP'!$A$10:$A$32,$A24,'OTH EXP'!H$10:H$32)) -> 0 | K24: =(SUMIF(ASSIGN!$A$9:$A$40,$A24,ASSIGN!O$9:O$40)*(COMP!K$70+COMP!K$76)+SUMIF(COMP!$A$35:$A$38,$A24,COMP!L$36:L$39)+SUMIF(COMP!$A$35:$A$38,$A24,COMP!Q$36:Q$39)+SUMIF('OTH EXP'!$A$10:$A$32,$A24,'OTH EXP'!I$10:I$32)) -> 0 | L24: =(SUMIF(ASSIGN!$A$9:$A$40,$A24,ASSIGN!P$9:P$40)*(COMP!L$70+COMP!L$76)+SUMIF(COMP!$A$35:$A$38,$A24,COMP!M$36:M$39)+SUMIF(COMP!$A$35:$A$38,$A24,COMP!R$36:R$39)+SUMIF('OTH EXP'!$A$10:$A$32,$A24,'OTH EXP'!J$10:J$32)) -> 0 | M24: =(SUMIF(ASSIGN!$A$9:$A$40,$A24,ASSIGN!Q$9:Q$40)*(COMP!M$70+COMP!M$76)+SUMIF(COMP!$A$35:$A$38,$A24,COMP!N$36:N$39)+SUMIF(COMP!$A$35:$A$38,$A24,COMP!S$36:S$39)+SUMIF('OTH EXP'!$A$10:$A$32,$A24,'OTH EXP'!K$10:K$32)) -> 0
A25: INSTGrant | B25: Grant | D25: Direct Expense Support | H25: INST | I25: =(SUMIF(ASSIGN!$A$9:$A$40,$A25,ASSIGN!M$9:M$40)*(COMP!I$70+COMP!I$76)+SUMIF(COMP!$A$35:$A$38,$A25,COMP!J$36:J$39)+SUMIF(COMP!$A$35:$A$38,$A25,COMP!O$36:O$39)+SUMIF('OTH EXP'!$A$10:$A$32,$A25,'OTH EXP'!G$10:G$32)) -> 0 | J25: =(SUMIF(ASSIGN!$A$9:$A$40,$A25,ASSIGN!N$9:N$40)*(COMP!J$70+COMP!J$76)+SUMIF(COMP!$A$35:$A$38,$A25,COMP!K$36:K$39)+SUMIF(COMP!$A$35:$A$38,$A25,COMP!P$36:P$39)+SUMIF('OTH EXP'!$A$10:$A$32,$A25,'OTH EXP'!H$10:H$32)) -> 0 | K25: =(SUMIF(ASSIGN!$A$9:$A$40,$A25,ASSIGN!O$9:O$40)*(COMP!K$70+COMP!K$76)+SUMIF(COMP!$A$35:$A$38,$A25,COMP!L$36:L$39)+SUMIF(COMP!$A$35:$A$38,$A25,COMP!Q$36:Q$39)+SUMIF('OTH EXP'!$A$10:$A$32,$A25,'OTH EXP'!I$10:I$32)) -> 0 | L25: =(SUMIF(ASSIGN!$A$9:$A$40,$A25,ASSIGN!P$9:P$40)*(COMP!L$70+COMP!L$76)+SUMIF(COMP!$A$35:$A$38,$A25,COMP!M$36:M$39)+SUMIF(COMP!$A$35:$A$38,$A25,COMP!R$36:R$39)+SUMIF('OTH EXP'!$A$10:$A$32,$A25,'OTH EXP'!J$10:J$32)) -> 0 | M25: =(SUMIF(ASSIGN!$A$9:$A$40,$A25,ASSIGN!Q$9:Q$40)*(COMP!M$70+COMP!M$76)+SUMIF(COMP!$A$35:$A$38,$A25,COMP!N$36:N$39)+SUMIF(COMP!$A$35:$A$38,$A25,COMP!S$36:S$39)+SUMIF('OTH EXP'!$A$10:$A$32,$A25,'OTH EXP'!K$10:K$32)) -> 0
A26: INSTContract | B26: Contract | D26: Direct Expense Support | H26: INST | I26: =(SUMIF(ASSIGN!$A$9:$A$40,$A26,ASSIGN!M$9:M$40)*(COMP!I$70+COMP!I$76)+SUMIF(COMP!$A$35:$A$38,$A26,COMP!J$36:J$39)+SUMIF(COMP!$A$35:$A$38,$A26,COMP!O$36:O$39)+SUMIF('OTH EXP'!$A$10:$A$32,$A26,'OTH EXP'!G$10:G$32)) -> 0 | J26: =(SUMIF(ASSIGN!$A$9:$A$40,$A26,ASSIGN!N$9:N$40)*(COMP!J$70+COMP!J$76)+SUMIF(COMP!$A$35:$A$38,$A26,COMP!K$36:K$39)+SUMIF(COMP!$A$35:$A$38,$A26,COMP!P$36:P$39)+SUMIF('OTH EXP'!$A$10:$A$32,$A26,'OTH EXP'!H$10:H$32)) -> 0 | K26: =(SUMIF(ASSIGN!$A$9:$A$40,$A26,ASSIGN!O$9:O$40)*(COMP!K$70+COMP!K$76)+SUMIF(COMP!$A$35:$A$38,$A26,COMP!L$36:L$39)+SUMIF(COMP!$A$35:$A$38,$A26,COMP!Q$36:Q$39)+SUMIF('OTH EXP'!$A$10:$A$32,$A26,'OTH EXP'!I$10:I$32)) -> 0 | L26: =(SUMIF(ASSIGN!$A$9:$A$40,$A26,ASSIGN!P$9:P$40)*(COMP!L$70+COMP!L$76)+SUMIF(COMP!$A$35:$A$38,$A26,COMP!M$36:M$39)+SUMIF(COMP!$A$35:$A$38,$A26,COMP!R$36:R$39)+SUMIF('OTH EXP'!$A$10:$A$32,$A26,'OTH EXP'!J$10:J$32)) -> 0 | M26: =(SUMIF(ASSIGN!$A$9:$A$40,$A26,ASSIGN!Q$9:Q$40)*(COMP!M$70+COMP!M$76)+SUMIF(COMP!$A$35:$A$38,$A26,COMP!N$36:N$39)+SUMIF(COMP!$A$35:$A$38,$A26,COMP!S$36:S$39)+SUMIF('OTH EXP'!$A$10:$A$32,$A26,'OTH EXP'!K$10:K$32)) -> 0
A27: INSTFoundation | B27: Foundation | D27: Direct Expense Support | H27: INST | I27: =(SUMIF(ASSIGN!$A$9:$A$40,$A27,ASSIGN!M$9:M$40)*(COMP!I$70+COMP!I$76)+SUMIF(COMP!$A$35:$A$38,$A27,COMP!J$36:J$39)+SUMIF(COMP!$A$35:$A$38,$A27,COMP!O$36:O$39)+SUMIF('OTH EXP'!$A$10:$A$32,$A27,'OTH EXP'!G$10:G$32)) -> 0 | J27: =(SUMIF(ASSIGN!$A$9:$A$40,$A27,ASSIGN!N$9:N$40)*(COMP!J$70+COMP!J$76)+SUMIF(COMP!$A$35:$A$38,$A27,COMP!K$36:K$39)+SUMIF(COMP!$A$35:$A$38,$A27,COMP!P$36:P$39)+SUMIF('OTH EXP'!$A$10:$A$32,$A27,'OTH EXP'!H$10:H$32)) -> 0 | K27: =(SUMIF(ASSIGN!$A$9:$A$40,$A27,ASSIGN!O$9:O$40)*(COMP!K$70+COMP!K$76)+SUMIF(COMP!$A$35:$A$38,$A27,COMP!L$36:L$39)+SUMIF(COMP!$A$35:$A$38,$A27,COMP!Q$36:Q$39)+SUMIF('OTH EXP'!$A$10:$A$32,$A27,'OTH EXP'!I$10:I$32)) -> 0 | L27: =(SUMIF(ASSIGN!$A$9:$A$40,$A27,ASSIGN!P$9:P$40)*(COMP!L$70+COMP!L$76)+SUMIF(COMP!$A$35:$A$38,$A27,COMP!M$36:M$39)+SUMIF(COMP!$A$35:$A$38,$A27,COMP!R$36:R$39)+SUMIF('OTH EXP'!$A$10:$A$32,$A27,'OTH EXP'!J$10:J$32)) -> 0 | M27: =(SUMIF(ASSIGN!$A$9:$A$40,$A27,ASSIGN!Q$9:Q$40)*(COMP!M$70+COMP!M$76)+SUMIF(COMP!$A$35:$A$38,$A27,COMP!N$36:N$39)+SUMIF(COMP!$A$35:$A$38,$A27,COMP!S$36:S$39)+SUMIF('OTH EXP'!$A$10:$A$32,$A27,'OTH EXP'!K$10:K$32)) -> 0
A28: INSTGift | B28: Gift | D28: Direct Expense Support | H28: INST | I28: =(SUMIF(ASSIGN!$A$9:$A$40,$A28,ASSIGN!M$9:M$40)*(COMP!I$70+COMP!I$76)+SUMIF(COMP!$A$35:$A$38,$A28,COMP!J$36:J$39)+SUMIF(COMP!$A$35:$A$38,$A28,COMP!O$36:O$39)+SUMIF('OTH EXP'!$A$10:$A$32,$A28,'OTH EXP'!G$10:G$32)) -> 0 | J28: =(SUMIF(ASSIGN!$A$9:$A$40,$A28,ASSIGN!N$9:N$40)*(COMP!J$70+COMP!J$76)+SUMIF(COMP!$A$35:$A$38,$A28,COMP!K$36:K$39)+SUMIF(COMP!$A$35:$A$38,$A28,COMP!P$36:P$39)+SUMIF('OTH EXP'!$A$10:$A$32,$A28,'OTH EXP'!H$10:H$32)) -> 0 | K28: =(SUMIF(ASSIGN!$A$9:$A$40,$A28,ASSIGN!O$9:O$40)*(COMP!K$70+COMP!K$76)+SUMIF(COMP!$A$35:$A$38,$A28,COMP!L$36:L$39)+SUMIF(COMP!$A$35:$A$38,$A28,COMP!Q$36:Q$39)+SUMIF('OTH EXP'!$A$10:$A$32,$A28,'OTH EXP'!I$10:I$32)) -> 0 | L28: =(SUMIF(ASSIGN!$A$9:$A$40,$A28,ASSIGN!P$9:P$40)*(COMP!L$70+COMP!L$76)+SUMIF(COMP!$A$35:$A$38,$A28,COMP!M$36:M$39)+SUMIF(COMP!$A$35:$A$38,$A28,COMP!R$36:R$39)+SUMIF('OTH EXP'!$A$10:$A$32,$A28,'OTH EXP'!J$10:J$32)) -> 0 | M28: =(SUMIF(ASSIGN!$A$9:$A$40,$A28,ASSIGN!Q$9:Q$40)*(COMP!M$70+COMP!M$76)+SUMIF(COMP!$A$35:$A$38,$A28,COMP!N$36:N$39)+SUMIF(COMP!$A$35:$A$38,$A28,COMP!S$36:S$39)+SUMIF('OTH EXP'!$A$10:$A$32,$A28,'OTH EXP'!K$10:K$32)) -> 0
A29: INSTBudget | B29: Budget | D29: Direct Expense Support | H29: INST | I29: =(SUMIF(ASSIGN!$A$9:$A$40,$A29,ASSIGN!M$9:M$40)*(COMP!I$70+COMP!I$76)+SUMIF(COMP!$A$35:$A$38,$A29,COMP!J$36:J$39)+SUMIF(COMP!$A$35:$A$38,$A29,COMP!O$36:O$39)+SUMIF('OTH EXP'!$A$10:$A$32,$A29,'OTH EXP'!G$10:G$32)) -> 0 | J29: =(SUMIF(ASSIGN!$A$9:$A$40,$A29,ASSIGN!N$9:N$40)*(COMP!J$70+COMP!J$76)+SUMIF(COMP!$A$35:$A$38,$A29,COMP!K$36:K$39)+SUMIF(COMP!$A$35:$A$38,$A29,COMP!P$36:P$39)+SUMIF('OTH EXP'!$A$10:$A$32,$A29,'OTH EXP'!H$10:H$32)) -> 0 | K29: =(SUMIF(ASSIGN!$A$9:$A$40,$A29,ASSIGN!O$9:O$40)*(COMP!K$70+COMP!K$76)+SUMIF(COMP!$A$35:$A$38,$A29,COMP!L$36:L$39)+SUMIF(COMP!$A$35:$A$38,$A29,COMP!Q$36:Q$39)+SUMIF('OTH EXP'!$A$10:$A$32,$A29,'OTH EXP'!I$10:I$32)) -> 0 | L29: =(SUMIF(ASSIGN!$A$9:$A$40,$A29,ASSIGN!P$9:P$40)*(COMP!L$70+COMP!L$76)+SUMIF(COMP!$A$35:$A$38,$A29,COMP!M$36:M$39)+SUMIF(COMP!$A$35:$A$38,$A29,COMP!R$36:R$39)+SUMIF('OTH EXP'!$A$10:$A$32,$A29,'OTH EXP'!J$10:J$32)) -> 0 | M29: =(SUMIF(ASSIGN!$A$9:$A$40,$A29,ASSIGN!Q$9:Q$40)*(COMP!M$70+COMP!M$76)+SUMIF(COMP!$A$35:$A$38,$A29,COMP!N$36:N$39)+SUMIF(COMP!$A$35:$A$38,$A29,COMP!S$36:S$39)+SUMIF('OTH EXP'!$A$10:$A$32,$A29,'OTH EXP'!K$10:K$32)) -> 0
A30: INSTOther | B30: Other | D30: Direct Expense Support | H30: INST | I30: =(SUMIF(ASSIGN!$A$9:$A$40,$A30,ASSIGN!M$9:M$40)*(COMP!I$70+COMP!I$76)+SUMIF(COMP!$A$35:$A$38,$A30,COMP!J$36:J$39)+SUMIF(COMP!$A$35:$A$38,$A30,COMP!O$36:O$39)+SUMIF('OTH EXP'!$A$10:$A$32,$A30,'OTH EXP'!G$10:G$32)) -> 0 | J30: =(SUMIF(ASSIGN!$A$9:$A$40,$A30,ASSIGN!N$9:N$40)*(COMP!J$70+COMP!J$76)+SUMIF(COMP!$A$35:$A$38,$A30,COMP!K$36:K$39)+SUMIF(COMP!$A$35:$A$38,$A30,COMP!P$36:P$39)+SUMIF('OTH EXP'!$A$10:$A$32,$A30,'OTH EXP'!H$10:H$32)) -> 0 | K30: =(SUMIF(ASSIGN!$A$9:$A$40,$A30,ASSIGN!O$9:O$40)*(COMP!K$70+COMP!K$76)+SUMIF(COMP!$A$35:$A$38,$A30,COMP!L$36:L$39)+SUMIF(COMP!$A$35:$A$38,$A30,COMP!Q$36:Q$39)+SUMIF('OTH EXP'!$A$10:$A$32,$A30,'OTH EXP'!I$10:I$32)) -> 0 | L30: =(SUMIF(ASSIGN!$A$9:$A$40,$A30,ASSIGN!P$9:P$40)*(COMP!L$70+COMP!L$76)+SUMIF(COMP!$A$35:$A$38,$A30,COMP!M$36:M$39)+SUMIF(COMP!$A$35:$A$38,$A30,COMP!R$36:R$39)+SUMIF('OTH EXP'!$A$10:$A$32,$A30,'OTH EXP'!J$10:J$32)) -> 0 | M30: =(SUMIF(ASSIGN!$A$9:$A$40,$A30,ASSIGN!Q$9:Q$40)*(COMP!M$70+COMP!M$76)+SUMIF(COMP!$A$35:$A$38,$A30,COMP!N$36:N$39)+SUMIF(COMP!$A$35:$A$38,$A30,COMP!S$36:S$39)+SUMIF('OTH EXP'!$A$10:$A$32,$A30,'OTH EXP'!K$10:K$32)) -> 0
A31: OTHERGrant | B31: Grant | D31: Direct Expense Support | H31: OTHER | I31: =(SUMIF(ASSIGN!$A$9:$A$40,$A31,ASSIGN!M$9:M$40)*(COMP!I$70+COMP!I$76)+SUMIF(COMP!$A$35:$A$38,$A31,COMP!J$36:J$39)+SUMIF(COMP!$A$35:$A$38,$A31,COMP!O$36:O$39)+SUMIF('OTH EXP'!$A$10:$A$32,$A31,'OTH EXP'!G$10:G$32)) -> 0 | J31: =(SUMIF(ASSIGN!$A$9:$A$40,$A31,ASSIGN!N$9:N$40)*(COMP!J$70+COMP!J$76)+SUMIF(COMP!$A$35:$A$38,$A31,COMP!K$36:K$39)+SUMIF(COMP!$A$35:$A$38,$A31,COMP!P$36:P$39)+SUMIF('OTH EXP'!$A$10:$A$32,$A31,'OTH EXP'!H$10:H$32)) -> 0 | K31: =(SUMIF(ASSIGN!$A$9:$A$40,$A31,ASSIGN!O$9:O$40)*(COMP!K$70+COMP!K$76)+SUMIF(COMP!$A$35:$A$38,$A31,COMP!L$36:L$39)+SUMIF(COMP!$A$35:$A$38,$A31,COMP!Q$36:Q$39)+SUMIF('OTH EXP'!$A$10:$A$32,$A31,'OTH EXP'!I$10:I$32)) -> 0 | L31: =(SUMIF(ASSIGN!$A$9:$A$40,$A31,ASSIGN!P$9:P$40)*(COMP!L$70+COMP!L$76)+SUMIF(COMP!$A$35:$A$38,$A31,COMP!M$36:M$39)+SUMIF(COMP!$A$35:$A$38,$A31,COMP!R$36:R$39)+SUMIF('OTH EXP'!$A$10:$A$32,$A31,'OTH EXP'!J$10:J$32)) -> 0 | M31: =(SUMIF(ASSIGN!$A$9:$A$40,$A31,ASSIGN!Q$9:Q$40)*(COMP!M$70+COMP!M$76)+SUMIF(COMP!$A$35:$A$38,$A31,COMP!N$36:N$39)+SUMIF(COMP!$A$35:$A$38,$A31,COMP!S$36:S$39)+SUMIF('OTH EXP'!$A$10:$A$32,$A31,'OTH EXP'!K$10:K$32)) -> 0
A32: OTHERContract | B32: Contract | D32: Direct Expense Support | H32: OTHER | I32: =(SUMIF(ASSIGN!$A$9:$A$40,$A32,ASSIGN!M$9:M$40)*(COMP!I$70+COMP!I$76)+SUMIF(COMP!$A$35:$A$38,$A32,COMP!J$36:J$39)+SUMIF(COMP!$A$35:$A$38,$A32,COMP!O$36:O$39)+SUMIF('OTH EXP'!$A$10:$A$32,$A32,'OTH EXP'!G$10:G$32)) -> 0 | J32: =(SUMIF(ASSIGN!$A$9:$A$40,$A32,ASSIGN!N$9:N$40)*(COMP!J$70+COMP!J$76)+SUMIF(COMP!$A$35:$A$38,$A32,COMP!K$36:K$39)+SUMIF(COMP!$A$35:$A$38,$A32,COMP!P$36:P$39)+SUMIF('OTH EXP'!$A$10:$A$32,$A32,'OTH EXP'!H$10:H$32)) -> 0 | K32: =(SUMIF(ASSIGN!$A$9:$A$40,$A32,ASSIGN!O$9:O$40)*(COMP!K$70+COMP!K$76)+SUMIF(COMP!$A$35:$A$38,$A32,COMP!L$36:L$39)+SUMIF(COMP!$A$35:$A$38,$A32,COMP!Q$36:Q$39)+SUMIF('OTH EXP'!$A$10:$A$32,$A32,'OTH EXP'!I$10:I$32)) -> 0 | L32: =(SUMIF(ASSIGN!$A$9:$A$40,$A32,ASSIGN!P$9:P$40)*(COMP!L$70+COMP!L$76)+SUMIF(COMP!$A$35:$A$38,$A32,COMP!M$36:M$39)+SUMIF(COMP!$A$35:$A$38,$A32,COMP!R$36:R$39)+SUMIF('OTH EXP'!$A$10:$A$32,$A32,'OTH EXP'!J$10:J$32)) -> 0 | M32: =(SUMIF(ASSIGN!$A$9:$A$40,$A32,ASSIGN!Q$9:Q$40)*(COMP!M$70+COMP!M$76)+SUMIF(COMP!$A$35:$A$38,$A32,COMP!N$36:N$39)+SUMIF(COMP!$A$35:$A$38,$A32,COMP!S$36:S$39)+SUMIF('OTH EXP'!$A$10:$A$32,$A32,'OTH EXP'!K$10:K$32)) -> 0
A33: OTHERFoundation | B33: Foundation | D33: Direct Expense Support | H33: OTHER | I33: =(SUMIF(ASSIGN!$A$9:$A$40,$A33,ASSIGN!M$9:M$40)*(COMP!I$70+COMP!I$76)+SUMIF(COMP!$A$35:$A$38,$A33,COMP!J$36:J$39)+SUMIF(COMP!$A$35:$A$38,$A33,COMP!O$36:O$39)+SUMIF('OTH EXP'!$A$10:$A$32,$A33,'OTH EXP'!G$10:G$32)) -> 0 | J33: =(SUMIF(ASSIGN!$A$9:$A$40,$A33,ASSIGN!N$9:N$40)*(COMP!J$70+COMP!J$76)+SUMIF(COMP!$A$35:$A$38,$A33,COMP!K$36:K$39)+SUMIF(COMP!$A$35:$A$38,$A33,COMP!P$36:P$39)+SUMIF('OTH EXP'!$A$10:$A$32,$A33,'OTH EXP'!H$10:H$32)) -> 0 | K33: =(SUMIF(ASSIGN!$A$9:$A$40,$A33,ASSIGN!O$9:O$40)*(COMP!K$70+COMP!K$76)+SUMIF(COMP!$A$35:$A$38,$A33,COMP!L$36:L$39)+SUMIF(COMP!$A$35:$A$38,$A33,COMP!Q$36:Q$39)+SUMIF('OTH EXP'!$A$10:$A$32,$A33,'OTH EXP'!I$10:I$32)) -> 0 | L33: =(SUMIF(ASSIGN!$A$9:$A$40,$A33,ASSIGN!P$9:P$40)*(COMP!L$70+COMP!L$76)+SUMIF(COMP!$A$35:$A$38,$A33,COMP!M$36:M$39)+SUMIF(COMP!$A$35:$A$38,$A33,COMP!R$36:R$39)+SUMIF('OTH EXP'!$A$10:$A$32,$A33,'OTH EXP'!J$10:J$32)) -> 0 | M33: =(SUMIF(ASSIGN!$A$9:$A$40,$A33,ASSIGN!Q$9:Q$40)*(COMP!M$70+COMP!M$76)+SUMIF(COMP!$A$35:$A$38,$A33,COMP!N$36:N$39)+SUMIF(COMP!$A$35:$A$38,$A33,COMP!S$36:S$39)+SUMIF('OTH EXP'!$A$10:$A$32,$A33,'OTH EXP'!K$10:K$32)) -> 0
A34: OTHERGift | B34: Gift | D34: Direct Expense Support | H34: OTHER | I34: =(SUMIF(ASSIGN!$A$9:$A$40,$A34,ASSIGN!M$9:M$40)*(COMP!I$70+COMP!I$76)+SUMIF(COMP!$A$35:$A$38,$A34,COMP!J$36:J$39)+SUMIF(COMP!$A$35:$A$38,$A34,COMP!O$36:O$39)+SUMIF('OTH EXP'!$A$10:$A$32,$A34,'OTH EXP'!G$10:G$32)) -> 0 | J34: =(SUMIF(ASSIGN!$A$9:$A$40,$A34,ASSIGN!N$9:N$40)*(COMP!J$70+COMP!J$76)+SUMIF(COMP!$A$35:$A$38,$A34,COMP!K$36:K$39)+SUMIF(COMP!$A$35:$A$38,$A34,COMP!P$36:P$39)+SUMIF('OTH EXP'!$A$10:$A$32,$A34,'OTH EXP'!H$10:H$32)) -> 0 | K34: =(SUMIF(ASSIGN!$A$9:$A$40,$A34,ASSIGN!O$9:O$40)*(COMP!K$70+COMP!K$76)+SUMIF(COMP!$A$35:$A$38,$A34,COMP!L$36:L$39)+SUMIF(COMP!$A$35:$A$38,$A34,COMP!Q$36:Q$39)+SUMIF('OTH EXP'!$A$10:$A$32,$A34,'OTH EXP'!I$10:I$32)) -> 0 | L34: =(SUMIF(ASSIGN!$A$9:$A$40,$A34,ASSIGN!P$9:P$40)*(COMP!L$70+COMP!L$76)+SUMIF(COMP!$A$35:$A$38,$A34,COMP!M$36:M$39)+SUMIF(COMP!$A$35:$A$38,$A34,COMP!R$36:R$39)+SUMIF('OTH EXP'!$A$10:$A$32,$A34,'OTH EXP'!J$10:J$32)) -> 0 | M34: =(SUMIF(ASSIGN!$A$9:$A$40,$A34,ASSIGN!Q$9:Q$40)*(COMP!M$70+COMP!M$76)+SUMIF(COMP!$A$35:$A$38,$A34,COMP!N$36:N$39)+SUMIF(COMP!$A$35:$A$38,$A34,COMP!S$36:S$39)+SUMIF('OTH EXP'!$A$10:$A$32,$A34,'OTH EXP'!K$10:K$32)) -> 0
A35: OTHERBudget | B35: Budget | D35: Direct Expense Support | H35: OTHER | I35: =(SUMIF(ASSIGN!$A$9:$A$40,$A35,ASSIGN!M$9:M$40)*(COMP!I$70+COMP!I$76)+SUMIF(COMP!$A$35:$A$38,$A35,COMP!J$36:J$39)+SUMIF(COMP!$A$35:$A$38,$A35,COMP!O$36:O$39)+SUMIF('OTH EXP'!$A$10:$A$32,$A35,'OTH EXP'!G$10:G$32)) -> 0 | J35: =(SUMIF(ASSIGN!$A$9:$A$40,$A35,ASSIGN!N$9:N$40)*(COMP!J$70+COMP!J$76)+SUMIF(COMP!$A$35:$A$38,$A35,COMP!K$36:K$39)+SUMIF(COMP!$A$35:$A$38,$A35,COMP!P$36:P$39)+SUMIF('OTH EXP'!$A$10:$A$32,$A35,'OTH EXP'!H$10:H$32)) -> 0 | K35: =(SUMIF(ASSIGN!$A$9:$A$40,$A35,ASSIGN!O$9:O$40)*(COMP!K$70+COMP!K$76)+SUMIF(COMP!$A$35:$A$38,$A35,COMP!L$36:L$39)+SUMIF(COMP!$A$35:$A$38,$A35,COMP!Q$36:Q$39)+SUMIF('OTH EXP'!$A$10:$A$32,$A35,'OTH EXP'!I$10:I$32)) -> 0 | L35: =(SUMIF(ASSIGN!$A$9:$A$40,$A35,ASSIGN!P$9:P$40)*(COMP!L$70+COMP!L$76)+SUMIF(COMP!$A$35:$A$38,$A35,COMP!M$36:M$39)+SUMIF(COMP!$A$35:$A$38,$A35,COMP!R$36:R$39)+SUMIF('OTH EXP'!$A$10:$A$32,$A35,'OTH EXP'!J$10:J$32)) -> 0 | M35: =(SUMIF(ASSIGN!$A$9:$A$40,$A35,ASSIGN!Q$9:Q$40)*(COMP!M$70+COMP!M$76)+SUMIF(COMP!$A$35:$A$38,$A35,COMP!N$36:N$39)+SUMIF(COMP!$A$35:$A$38,$A35,COMP!S$36:S$39)+SUMIF('OTH EXP'!$A$10:$A$32,$A35,'OTH EXP'!K$10:K$32)) -> 0
A36: OTHEROther | B36: Other | D36: Direct Expense Support | H36: OTHER | I36: =(SUMIF(ASSIGN!$A$9:$A$40,$A36,ASSIGN!M$9:M$40)*(COMP!I$70+COMP!I$76)+SUMIF(COMP!$A$35:$A$38,$A36,COMP!J$36:J$39)+SUMIF(COMP!$A$35:$A$38,$A36,COMP!O$36:O$39)+SUMIF('OTH EXP'!$A$10:$A$32,$A36,'OTH EXP'!G$10:G$32)) -> 0 | J36: =(SUMIF(ASSIGN!$A$9:$A$40,$A36,ASSIGN!N$9:N$40)*(COMP!J$70+COMP!J$76)+SUMIF(COMP!$A$35:$A$38,$A36,COMP!K$36:K$39)+SUMIF(COMP!$A$35:$A$38,$A36,COMP!P$36:P$39)+SUMIF('OTH EXP'!$A$10:$A$32,$A36,'OTH EXP'!H$10:H$32)) -> 0 | K36: =(SUMIF(ASSIGN!$A$9:$A$40,$A36,ASSIGN!O$9:O$40)*(COMP!K$70+COMP!K$76)+SUMIF(COMP!$A$35:$A$38,$A36,COMP!L$36:L$39)+SUMIF(COMP!$A$35:$A$38,$A36,COMP!Q$36:Q$39)+SUMIF('OTH EXP'!$A$10:$A$32,$A36,'OTH EXP'!I$10:I$32)) -> 0 | L36: =(SUMIF(ASSIGN!$A$9:$A$40,$A36,ASSIGN!P$9:P$40)*(COMP!L$70+COMP!L$76)+SUMIF(COMP!$A$35:$A$38,$A36,COMP!M$36:M$39)+SUMIF(COMP!$A$35:$A$38,$A36,COMP!R$36:R$39)+SUMIF('OTH EXP'!$A$10:$A$32,$A36,'OTH EXP'!J$10:J$32)) -> 0 | M36: =(SUMIF(ASSIGN!$A$9:$A$40,$A36,ASSIGN!Q$9:Q$40)*(COMP!M$70+COMP!M$76)+SUMIF(COMP!$A$35:$A$38,$A36,COMP!N$36:N$39)+SUMIF(COMP!$A$35:$A$38,$A36,COMP!S$36:S$39)+SUMIF('OTH EXP'!$A$10:$A$32,$A36,'OTH EXP'!K$10:K$32)) -> 0
B37: =SUM(O38:Q43) -> 0
I38: 0 | J38: =+I38 -> 0 | K38: =+I38 -> 0 | L38: =+I38 -> 0 | M38: =+I38 -> 0 | O38: =IF(SUM($I38:$M38)<>0,IF(B38=0,1,0),0) -> 0 | P38: =IF(SUM($I38:$M38)<>0,IF(D38=0,1,0),0) -> 0 | Q38: =IF(SUM($I38:$M38)<>0,IF(H38=0,1,0),0) -> 0
O39: 0 | P39: =IF(SUM($I39:$M39)<>0,IF(D39=0,1,0),0) -> 0 | Q39: 0
O40: 0 | P40: 0 | Q40: 0
O41: 0 | P41: 0 | Q41: 0
O42: 0 | P42: 0 | Q42: 0
O43: 0 | P43: 0 | Q43: 0
H44: Total: | I44: =SUM(I10:I43) -> 0 | J44: =SUM(J10:J43) -> 0 | K44: =SUM(K10:K43) -> 0 | L44: =SUM(L10:L43) -> 0 | M44: =SUM(M10:M43) -> 0

Sheet CLIN REV
A1: HIDE | B1: =COMP!B1 -> 0; [select]; [select] [select]; | O1: HIDE | P1: HIDE
O9: =SUM(O10:O209) -> 
B10: ICE PROFESSIONAL FEE REVENUE
B11: Profile Data | L11: JFR Proforma
B12: CPT | C12: Description | D12: Volume | E12: Charge | F12: Collections | G12: wRVUs | H12: Coll/wRVU | I12: Coll Rate | J12: wRVU/Count | L12: Dist | M12: wRVUs | N12: Collections
B13: To add rows, copy one or more rows in the middle of the section, and "insert copied cells"
D14: 0 | E14: 0 | F14: 0 | G14: 0 | H14: =IF(G14=0,0,F14/G14) -> 0 | I14: =IF(E14=0,0,F14/E14) -> 0 | J14: =IF(D14=0,0,G14/D14) -> 0 | L14: =G14/$G$39 ->  | M14: =$M$39*L14 ->  | N14: =M14*H14 -> 
H15: 0 | I15: =IF(E15=0,0,F15/E15) -> 0 | J15: =IF(D15=0,0,G15/D15) -> 0 | L15: =G15/$G$39 ->  | M15: =$M$39*L15 ->  | N15: =M15*H15 -> 
H16: 0 | I16: 0 | J16: 0
H17: 0 | I17: 0 | J17: 0
H18: 0 | I18: 0 | J18: 0
H19: 0 | I19: 0 | J19: 0
H20: 0 | I20: 0 | J20: 0
H21: 0 | I21: 0 | J21: 0
H22: 0 | I22: 0 | J22: 0
H23: 0 | I23: 0 | J23: 0
H24: =IF(G24=0,0,F24/G24) -> 0 | I24: =IF(E24=0,0,F24/E24) -> 0 | J24: =IF(D24=0,0,G24/D24) -> 0 | N24: =M24*H24 -> 
H25: 0 | I25: 0 | J25: 0
H26: 0 | I26: 0 | J26: 0
H27: 0 | I27: 0 | J27: 0
H28: 0 | I28: 0 | J28: 0
H29: 0 | I29: 0 | J29: 0
H30: 0 | I30: 0 | J30: 0
H31: 0 | I31: 0 | J31: 0
H32: 0 | I32: 0 | J32: 0
H33: 0 | I33: 0 | J33: 0 | N33: =M33*H33 -> 
H34: 0 | I34: =IF(E34=0,0,F34/E34) -> 0 | J34: =IF(D34=0,0,G34/D34) -> 0 | N34: =M34*H34 -> 
H35: 0 | I35: 0 | J35: 0
H36: 0 | I36: 0 | J36: 0
H37: 0 | I37: 0 | J37: 0
H38: =IF(G38=0,0,F38/G38) -> 0 | I38: 0 | J38: 0
B39: Total | D39: =SUM(D14:D38) -> 0 | E39: =SUM(E14:E38) -> 0 | F39: =SUM(F14:F38) -> 0 | G39: =SUM(G14:G38) -> 0 | H39: =IF(G39=0,0,F39/G39) -> 0 | I39: 0 | J39: 0 | L39: =SUM(L14:L38) ->  | M39: =SUM(G14:G38) -> 0 | N39: 0
D41: Year 1 | E41: Year 2 | F41: Year 3 | G41: Year 4 | H41: Year 5 | I41: P&L | J41: Incremental Revenue Explanation
C42: Faculty Productivity | D42: 0.7 | E42: 0.95 | F42: 1 | G42: 1 | H42: 1
C43: Incremental Revenue | D43: 1 | E43: 1 | F43: 1 | G43: 1 | H43: 1
C44: Production wRVUs | D44: =D42*$M$39 -> 0 | E44: =E42*$M$39 -> 0 | F44: 0 | G44: 0 | H44: 0
A45: =I46 -> ICE | C45: Incremental wRVUs | D45: =D43*D44 -> 0 | E45: =E43*E44 -> 0 | F45: 0 | G45: 0 | H45: 0
A46: =I46&"Clinical Pro Fees" -> ICEClinical Pro Fees | C46: Incremental Collections | D46: =D42*D43*$N$39 -> 0 | E46: =E42*E43*$N$39 -> 0 | F46: =F42*F43*$N$39 -> 0 | G46: =G42*G43*$N$39 -> 0 | H46: =H42*H43*$N$39 -> 0 | I46: ICE | O46: =IF(SUM(D46:H46)>0,IF(I46=0,1,0),0) -> 0
C47: Pro Fees per RVU Ratio | D47: =D46/D45 ->  | E47: =E46/E45 ->  | F47: =F46/F45 ->  | G47: =G46/G45 ->  | H47: =H46/H45 ->  | O47: =H47-H39 ->  | P47: =IF(O47>0,1,0) -> 
B49: Click on "+" to open ICE TECHNICAL CONTRIBUTION MARGIN section
B50: ICE TECHNICAL CONTRIBUTION MARGIN - FROM DECISION SUPPORT REPORTS
C51: Profile Data | L51: JFR Proforma
C52: Description | D52: Volume | E52: Charge | F52: Contr. Margin | H52: CM/Unit | L52: Volume | N52: =+F52 -> Contr. Margin
C53: To add rows, copy one or more rows in the middle of the section, and "insert copied cells"
D54: 0 | E54: 0 | F54: 0 | H54: =IF(D54=0,0,F54/D54) -> 0 | L54: =D54 -> 0 | N54: =L54*H54 -> 0
H55: =IF(D55=0,0,F55/D55) -> 0 | N55: =L55*H55 -> 0
H56: 0 | N56: 0
H57: 0 | N57: 0
H58: 0 | N58: 0
H59: 0 | N59: 0
H60: 0 | N60: 0
H61: 0 | N61: 0
H62: 0 | N62: 0
H63: 0 | N63: 0
H64: 0 | N64: 0
H65: 0 | N65: 0
H66: 0 | N66: 0
H67: 0 | N67: 0
H68: 0 | N68: 0
H69: 0 | N69: 0
H70: 0 | N70: 0
H71: 0 | N71: 0
H72: 0 | N72: 0
H73: 0 | N73: 0
H74: 0 | N74: 0
H75: 0 | N75: 0
H76: 0 | N76: 0
H77: 0 | N77: 0
H78: 0 | N78: 0
B79: Total | D79: =SUM(D54:D78) -> 0 | E79: =SUM(E54:E78) -> 0 | F79: =SUM(F54:F78) -> 0 | H79: =IF(G79=0,0,F79/G79) -> 0 | L79: =SUM(L54:L78) -> 0 | N79: =SUM(N54:N78) -> 0
D81: Year 1 | E81: Year 2 | F81: Year 3 | G81: Year 4 | H81: Year 5 | I81: P&L | J81: Incremental Revenue Explanation
C82: Faculty Productivity | D82: 0.7 | E82: 0.95 | F82: 1 | G82: 1 | H82: 1
C83: Incremental Revenue | D83: 1 | E83: 1 | F83: 1 | G83: 1 | H83: 1
C84: Production Units | D84: =D82*$L$79 -> 0 | E84: =E82*$L$79 -> 0 | F84: 0 | G84: 0 | H84: 0
C85: Incremental Units | D85: =D83*D84 -> 0 | E85: =E83*E84 -> 0 | F85: =F83*F84 -> 0 | G85: =G83*G84 -> 0 | H85: =H83*H84 -> 0
A86: =I86&"Clinical Tech Fees" -> ICEClinical Tech Fees | C86: Incremental Revenue | D86: =D82*D83*$N$79 -> 0 | E86: =E82*E83*$N$79 -> 0 | F86: 0 | G86: 0 | H86: 0 | I86: ICE | O86: =IF(SUM(D86:H86)>0,IF(I86=0,1,0),0) -> 0
B90: ICE DOWN STREAM CLINICAL REVENUE
C91: Profile Data | L91: JFR Proforma
C92: Description | D92: Volume | E92: Charge | F92: Collections | H92: Coll/Unit | I92: Coll Rate | L92: Volume | N92: Collections
C93: To add rows, copy one or more rows in the middle of the section, and "insert copied cells"
H94: =IF(D94=0,0,F94/D94) -> 0 | I94: =IF(E94=0,0,F94/E94) -> 0 | N94: =L94*H94 -> 0
H95: =IF(D95=0,0,F95/D95) -> 0 | I95: =IF(E95=0,0,F95/E95) -> 0 | N95: =L95*H95 -> 0
H96: 0 | I96: 0 | N96: 0
H97: 0 | I97: 0 | N97: 0
H98: 0 | I98: 0 | N98: 0
H99: 0 | I99: 0 | N99: 0
H100: 0 | I100: 0 | N100: 0
H101: 0 | I101: 0 | N101: 0
H102: 0 | I102: 0 | N102: 0
H103: 0 | I103: 0 | N103: 0
H104: 0 | I104: 0 | N104: 0
H105: 0 | I105: 0 | N105: 0
H106: 0 | I106: 0 | N106: 0
H107: 0 | I107: 0 | N107: 0
H108: 0 | I108: 0 | N108: 0
H109: 0 | I109: 0 | N109: 0
H110: 0 | I110: 0 | N110: 0
H111: 0 | I111: 0 | N111: 0
H112: 0 | I112: 0 | N112: 0
H113: 0 | I113: 0 | N113: 0
H114: 0 | I114: 0 | N114: 0
H115: 0 | I115: 0 | N115: 0
H116: 0 | I116: 0 | N116: 0
H117: 0 | I117: 0 | N117: 0
H118: 0 | I118: 0 | N118: 0
B119: Total | D119: =SUM(D94:D118) -> 0 | E119: =SUM(E94:E118) -> 0 | F119: =SUM(F94:F118) -> 0 | H119: =IF(G119=0,0,F119/G119) -> 0 | I119: 0 | L119: =SUM(L94:L118) -> 0 | N119: =SUM(N94:N118) -> 0
D121: Year 1 | E121: Year 2 | F121: Year 3 | G121: Year 4 | H121: Year 5 | I121: P&L | J121: Incremental Revenue Explanation
C122: Faculty Productivity | D122: 1 | E122: 1 | F122: 1 | G122: 1 | H122: 1
C123: Incremental Revenue | D123: 1 | E123: 1 | F123: 1 | G123: 1 | H123: 1
C124: Production Units | D124: =D122*$L$119 -> 0 | E124: =E122*$L$119 -> 0 | F124: 0 | G124: 0 | H124: 0
C125: Incremental Units | D125: =D123*D124 -> 0 | E125: =E123*E124 -> 0 | F125: 0 | G125: 0 | H125: 0
A126: =I126&"Down Stream Clinical Revenue" -> ICEDown Stream Clinical Revenue | C126: Incremental Collections | D126: =D122*D123*$N$79 -> 0 | E126: =E122*E123*$N$79 -> 0 | F126: 0 | G126: 0 | H126: 0 | I126: ICE | O126: =IF(SUM(D126:H126)>0,IF(I126=0,1,0),0) -> 0
B127: Click on "+" to open ICE Clinical Down Stream Revenue section
B128: ACH PROFESSIONAL FEE REVENUE
B129: Profile Data | L129: JFR Proforma
B130: CPT | C130: Description | D130: Volume | E130: Charge | F130: Collections | G130: wRVUs | H130: Coll/wRVU | I130: Coll Rate | J130: wRVU/Count | L130: Dist | M130: wRVUs | N130: Collections
B131: To add rows, copy one or more rows in the middle of the section, and "insert copied cells"
H132: =IF(G132=0,0,F132/G132) -> 0 | I132: =IF(E132=0,0,F132/E132) -> 0 | J132: =IF(D132=0,0,G132/D132) -> 0 | L132: =G132/$G$157 ->  | M132: =$M$157*L132 ->  | N132: =M132*H132 -> 
H133: 0 | I133: =IF(E133=0,0,F133/E133) -> 0 | J133: =IF(D133=0,0,G133/D133) -> 0 | L133: =G133/$G$157 ->  | M133: =$M$157*L133 ->  | N133: =M133*H133 -> 
H134: 0 | I134: 0 | J134: 0
H135: 0 | I135: 0 | J135: 0
H136: 0 | I136: 0 | J136: 0
H137: 0 | I137: 0 | J137: 0
H138: 0 | I138: 0 | J138: 0
H139: 0 | I139: 0 | J139: 0
H140: 0 | I140: 0 | J140: 0
H141: 0 | I141: 0 | J141: 0
H142: 0 | I142: 0 | J142: 0
H143: 0 | I143: 0 | J143: 0
H144: 0 | I144: 0 | J144: 0
H145: 0 | I145: 0 | J145: 0
H146: 0 | I146: 0 | J146: 0
H147: 0 | I147: 0 | J147: 0
H148: 0 | I148: 0 | J148: 0
H149: 0 | I149: 0 | J149: 0
H150: 0 | I150: 0 | J150: 0
H151: 0 | I151: 0 | J151: 0
H152: 0 | I152: 0 | J152: 0
H153: 0 | I153: 0 | J153: 0
H154: 0 | I154: 0 | J154: 0
H155: 0 | I155: 0 | J155: 0
H156: 0 | I156: 0 | J156: 0
B157: Total | D157: =SUM(D132:D156) -> 0 | E157: =SUM(E132:E156) -> 0 | F157: =SUM(F132:F156) -> 0 | G157: =SUM(G132:G156) -> 0 | H157: 0 | I157: 0 | J157: 0 | L157: =SUM(L132:L156) ->  | M157: =G132 -> 0 | N157: 0
D159: Year 1 | E159: Year 2 | F159: Year 3 | G159: Year 4 | H159: Year 5 | I159: P&L
C160: Faculty Productivity | D160: 0.7 | E160: 1 | F160: 1 | G160: 1 | H160: 1
C161: Incremental Revenue | D161: 1 | E161: 1 | F161: 1 | G161: 1 | H161: 1
C162: Production wRVUs | D162: =D160*$M$157 -> 0 | E162: =E160*$M$157 -> 0 | F162: 0 | G162: 0 | H162: 0
A163: =I164 -> ACH | C163: Incremental wRVUs | D163: =D161*D162 -> 0 | E163: =E161*E162 -> 0 | F163: 0 | G163: 0 | H163: 0
A164: =I164&"Clinical Pro Fees" -> ACHClinical Pro Fees | C164: Incremental Collections | D164: =D160*D161*$N$157 -> 0 | E164: =E160*E161*$N$157 -> 0 | F164: 0 | G164: 0 | H164: 0 | I164: ACH | O164: =IF(SUM(D164:H164)>0,IF(I164=0,1,0),0) -> 0
C167: Pro Fees per RVU Ratio | D167: =D164/D163 ->  | E167: =E164/E163 -> 
B171: Click on "+" to open ACH Professional Fee Revenue section
B172: COM PROFESSIONAL FEE REVENUE
B173: Profile Data | L173: JFR Proforma
B174: CPT | C174: Description | D174: Volume | E174: Charge | F174: Collections | G174: wRVUs | H174: Coll/wRVU | I174: Coll Rate | J174: wRVU/Count | L174: Dist | M174: wRVUs | N174: Collections
B175: To add rows, copy one or more rows in the middle of the section, and "insert copied cells"
H176: =IF(G176=0,0,F176/G176) -> 0 | I176: =IF(E176=0,0,F176/E176) -> 0 | J176: =IF(D176=0,0,G176/D176) -> 0 | L176: =G176/$G$39 ->  | M176: =$M$201*L176 ->  | N176: =M176*H176 -> 
H177: 0 | I177: =IF(E177=0,0,F177/E177) -> 0 | J177: =IF(D177=0,0,G177/D177) -> 0 | L177: =G177/$G$39 ->  | M177: =$M$201*L177 ->  | N177: =M177*H177 -> 
H178: 0 | I178: 0 | J178: 0
H179: 0 | I179: 0 | J179: 0
H180: 0 | I180: 0 | J180: 0
H181: 0 | I181: 0 | J181: 0
H182: 0 | I182: 0 | J182: 0
H183: 0 | I183: 0 | J183: 0
H184: 0 | I184: 0 | J184: 0
H185: 0 | I185: 0 | J185: 0
H186: 0 | I186: 0 | J186: 0
H187: 0 | I187: 0 | J187: 0
H188: 0 | I188: 0 | J188: 0
H189: 0 | I189: 0 | J189: 0
H190: 0 | I190: 0 | J190: 0
H191: 0 | I191: 0 | J191: 0
H192: 0 | I192: 0 | J192: 0
H193: 0 | I193: 0 | J193: 0
H194: 0 | I194: 0 | J194: 0
H195: 0 | I195: 0 | J195: 0
H196: 0 | I196: 0 | J196: 0
H197: 0 | I197: 0 | J197: 0
H198: 0 | I198: 0 | J198: 0
H199: 0 | I199: 0 | J199: 0
H200: 0 | I200: 0 | J200: 0
B201: Total | D201: =SUM(D176:D200) -> 0 | E201: =SUM(E176:E200) -> 0 | F201: =SUM(F176:F200) -> 0 | G201: =SUM(G176:G200) -> 0 | H201: 0 | I201: 0 | J201: 0 | L201: =SUM(L176:L200) ->  | N201: 0
D203: Year 1 | E203: Year 2 | F203: Year 3 | G203: Year 4 | H203: Year 5 | I203: P&L | J203: Incremental Revenue Explanation
C204: Faculty Productivity | D204: 0.7 | E204: 1 | F204: 1 | G204: 1 | H204: 1
C205: Incremental Revenue | D205: 1 | E205: 1 | F205: 1 | G205: 1 | H205: 1
C206: Production wRVUs | D206: =D204*$M$201 -> 0 | E206: =E204*$M$201 -> 0 | F206: 0 | G206: 0 | H206: 0
A207: =I208 -> COM | C207: Incremental wRVUs | D207: =D205*D206 -> 0 | E207: =E205*E206 -> 0 | F207: 0 | G207: 0 | H207: 0
A208: =I208&"Clinical Pro Fees" -> COMClinical Pro Fees | C208: Incremental Collections | D208: =D204*D205*$N$201 -> 0 | E208: =E204*E205*$N$201 -> 0 | F208: 0 | G208: 0 | H208: 0 | I208: COM | O208: =IF(SUM(D208:H208)>0,IF(I208=0,1,0),0) -> 0
B209: Click on "+" to open COM Professional Fee Revenue section
B212: TOTAL INCREMENTAL SUMMARY:
D214: Year 1 | E214: Year 2 | F214: Year 3 | G214: Year 4 | H214: Year 5
C215: RVUs | D215: =D207+D163+D45 -> 0 | E215: =E207+E163+E45 -> 0 | F215: 0 | G215: 0 | H215: =H207+H163+H45 -> 0
C217: Collections | D217: =D208+D164+D46 -> 0 | E217: =E208+E164+E46 -> 0 | F217: 0 | G217: 0 | H217: =H208+H164+H46 -> 0
C219: Tech/Down Stream Rev | D219: =D126+D86 -> 0 | E219: =E126+E86 -> 0 | F219: 0 | G219: 0 | H219: 0
C221: Total All Revenue | D221: =+D219+D217 -> 0 | E221: =+E219+E217 -> 0 | F221: 0 | G221: 0 | H221: 0

Sheet DIV
A1: HIDE | B1: HIDE | C1: HIDE | D1: HIDE | E1: HIDE | F1: HIDE | G1: HIDE | H1: HIDE | I1: HIDE | J1: FACULTY RECRUITMENT BUSINESS PLAN | Q1: SPECIALTY ANALYSIS | AO1: HIDE | AT1: =COMP!N1 -> JFR FBP V24.5 | AU1: HIDE | AV1: HIDE | AW1: HIDE | AX1: HIDE | AY1: HIDE | AZ1: HIDE | BA1: HIDE
AT2: =COMP!B1 -> 0; [select]; [select] [select];
V5: =SUM(AX9:AX99) -> 0 | AC5: HOME DEPT SALARY | AG5: =SUM(AY9:AY99) -> 0 | AN5: 2017-06-30 | AP5: YTD Months | AS5: Curr
P6: FTE ANALYSIS | X6: SALARY ANALYSIS (in thousands) | AK6: wRVU HISTORY | AP6: 1 | AQ6: CLINICAL PRODUCTIVITY ANALYSIS
A7: Include | B7: wRVU Bchmk | C7: Type | D7: Category | E7: wRVU Speciatly | F7: Comp Bchmk | G7: Type | H7: Category | I7: Comp Specialty | J7: Faculty | K7: SAP ID | L7: Specialty | M7: Rank | N7: Notes: if new hire indicate start date | P7: Admin FTE | Q7: Teach FTE | R7: Resch FTE | S7: Clin Non-wRVU FTE | T7: Clinical FTE | U7: VA FTE | V7: Total UAMS FTE | X7: Curr Year Salary | Y7: Comp percantile % per table | Z7: Current clinical fte comp | AA7: Cur Yr Proj Incentive | AB7: VA Comp | AC7: Curr Total | AD7: Norm. Comp | AE7: 25%ile Comp Bmark | AF7: 50%ile Comp Bmark | AG7: 75%ile Comp Bmark | AI7: FY2021 wRVUs | AJ7: FY2022 wRVUs | AK7: FY2023 wRVUs | AL7: Annual Revenue Proj | AM7: YTD FY2024 wRVUs | AN7: Start Date | AO7: # of Months Here | AP7: Ann'lized Current FY wRVUs | AQ7: Median wRVU Bmark | AR7: CFTE Adjusted Expectation | AS7: =IF($AS$5="Prior",AK7,AP7) -> Ann'lized Current FY wRVUs | AT7: Variance | BC7: RVU Performance Percentile %
A8: 1 | J8: =SUM(AU9:AW226) -> 4 | X8: Requested Faculty Salary
A9: 1 | B9: FPSC | C9: Academic | D9: All | E9: =IF($B9="MGMA",COMP!$D$86,IF($B9="FPSC",COMP!$D$85,IF($B9="SPEC",COMP!$K$103,"no data"))) -> [select] | F9: AAMC | G9: Academic | H9: All | I9: =IF($F9="AAMC",COMP!$D$83,IF($F9="MGMA",COMP!$D$86,IF($F9="SPEC",COMP!$K$91,"no data"))) -> [select] | J9: =COMP!D16 -> 0 | L9: =COMP!J11 -> 0 | M9: =COMP!D17 -> [select] | P9: =ASSIGN!M16 -> 0 | Q9: =ASSIGN!M30 -> 0 | R9: =ASSIGN!M23 -> 0 | S9: =ASSIGN!L41 -> 0 | T9: =ASSIGN!M41 -> 0 | U9: =ASSIGN!H57 -> 0 | V9: =SUM(P9:U9) -> 0 | X9: =COMP!D36/1000 -> 0 | Y9: 0 | Z9: =X9*T9 -> 0 | AA9: =COMP!J40/1000 -> 0 | AB9: =COMP!D37/1000 -> 0 | AC9: =+AB9+AA9+X9 -> 0 | AD9: =IF(V9=0,0,AC9/V9) -> 0 | AE9: =IF($F9="SPEC",COMP!K$90/1000,IFERROR(VLOOKUP($F9&$G9&$H9&$M9&COMP!$D$84&$I9&"L",AAMC!$A$2:$W$4000,10,FALSE)/1000,IFERROR(VLOOKUP($F9&$G9&$H9&$M9&COMP!$D$84&$I9&"L",MGMAC!$A$2:$W$4000,10,FALSE)/1000,IFERROR(VLOOKUP($F9&$G9&$H9&$M9&COMP!$D$84&$I9&"L",MGMACP!$A$2:$W$4000,10,FALSE)/1000,"no data")))) -> no data | AF9: =IF($F9="SPEC",COMP!L$90/1000,IFERROR(VLOOKUP($F9&$G9&$H9&$M9&COMP!$D$84&$I9&"L",AAMC!$A$2:$W$4000,15,FALSE)/1000,IFERROR(VLOOKUP($F9&$G9&$H9&$M9&COMP!$D$84&$I9&"L",MGMAC!$A$2:$W$4000,15,FALSE)/1000,IFERROR(VLOOKUP($F9&$G9&$H9&$M9&COMP!$D$84&$I9&"L",MGMACP!$A$2:$W$4000,15,FALSE)/1000,"no data")))) -> no data | AG9: =IF($F9="SPEC",COMP!M$90/1000,IFERROR(VLOOKUP($F9&$G9&$H9&$M9&COMP!$D$84&$I9&"L",AAMC!$A$2:$W$4000,20,FALSE)/1000,IFERROR(VLOOKUP($F9&$G9&$H9&$M9&COMP!$D$84&$I9&"L",MGMAC!$A$2:$W$4000,20,FALSE)/1000,IFERROR(VLOOKUP($F9&$G9&$H9&$M9&COMP!$D$84&$I9&"L",MGMACP!$A$2:$W$4000,20,FALSE)/1000,"no data")))) -> no data | AL9: ='CLIN REV'!D217 -> 0 | AQ9: =IF($J9=0,0,IF($B9="SPEC",COMP!$L$102,IF($B9="FPSC",IFERROR(VLOOKUP($B9&$C9&$D9&$E9&"L",FPSC!$A$2:$W$4000,13,FALSE),"no data"),IF(B9&C9="MGMAAcademic",IFERROR(VLOOKUP($B9&$C9&$D9&$E9&"L",MGMAR!$A$2:$W$4000,13,FALSE),"no data"),IFERROR(VLOOKUP($B9&$C9&$D9&$E9&"L",MGMARP!$A$2:$W$4000,13,FALSE),"no data"))))) -> 0 | AR9: =IF(AQ9="no data",0,AQ9*T9) -> 0 | AS9: =+'CLIN REV'!D215 -> 0 | AT9: =IFERROR(AS9-AR9,0) -> 0 | BC9: 0
A10: 1
A11: 1 | J11: Enter ALL faculty (assitant thru professor) of the same SPECIALTY, sorted by Rank
A12: 1 | B12: =$B$9 -> FPSC | C12: =$C$9 -> Academic | D12: =$D$9 -> All | E12: =IF($B12="MGMA",COMP!$D$86,IF($B12="FPSC",COMP!$D$85,IF($B12="SPEC",COMP!$K$103,"no data"))) -> [select] | F12: =$F$9 -> AAMC | G12: =$G$9 -> Academic | H12: =$H$9 -> All | I12: =IF($F12="AAMC",COMP!$D$83,IF($F12="MGMA",COMP!$D$86,IF($F12="SPEC",COMP!$K$91,"no data"))) -> [select] | P12: 0 | Q12: 0 | R12: 0 | S12: 0 | T12: 0 | U12: 0 | V12: =SUM(P12:U12) -> 0 | X12: 0 | Y12: 0 | Z12: =X12*T12 -> 0 | AA12: 0 | AB12: 0 | AC12: =+AB12+AA12+X12 -> 0 | AD12: =IF(V12=0,0,AC12/V12) -> 0 | AE12: =IF($F12="SPEC",COMP!K$90/1000,IFERROR(VLOOKUP($F12&$G12&$H12&$M12&COMP!$D$84&$I12&"L",AAMC!$A$2:$W$4000,10,FALSE)/1000,IFERROR(VLOOKUP($F12&$G12&$H12&$M12&COMP!$D$84&$I12&"L",MGMAC!$A$2:$W$4000,10,FALSE)/1000,IFERROR(VLOOKUP($F12&$G12&$H12&$M12&COMP!$D$84&$I12&"L",MGMACP!$A$2:$W$4000,10,FALSE)/1000,"no data")))) -> no data | AF12: =IF($F12="SPEC",COMP!L$90/1000,IFERROR(VLOOKUP($F12&$G12&$H12&$M12&COMP!$D$84&$I12&"L",AAMC!$A$2:$W$4000,15,FALSE)/1000,IFERROR(VLOOKUP($F12&$G12&$H12&$M12&COMP!$D$84&$I12&"L",MGMAC!$A$2:$W$4000,15,FALSE)/1000,IFERROR(VLOOKUP($F12&$G12&$H12&$M12&COMP!$D$84&$I12&"L",MGMACP!$A$2:$W$4000,15,FALSE)/1000,"no data")))) -> no data | AG12: =IF($F12="SPEC",COMP!M$90/1000,IFERROR(VLOOKUP($F12&$G12&$H12&$M12&COMP!$D$84&$I12&"L",AAMC!$A$2:$W$4000,20,FALSE)/1000,IFERROR(VLOOKUP($F12&$G12&$H12&$M12&COMP!$D$84&$I12&"L",MGMAC!$A$2:$W$4000,20,FALSE)/1000,IFERROR(VLOOKUP($F12&$G12&$H12&$M12&COMP!$D$84&$I12&"L",MGMACP!$A$2:$W$4000,20,FALSE)/1000,"no data")))) -> no data | AI12: 0 | AJ12: 0 | AK12: 0 | AL12: 0 | AM12: 0 | AO12: =$AP$6 -> 1 | AP12: =((AM12/AO12)*$AP$6)/$AP$6*12 -> 0 | AQ12: =IF($J12=0,0,IF($B12="SPEC",COMP!$L$102,IF($B12="FPSC",IFERROR(VLOOKUP($B12&$C12&$D12&$E12&"L",FPSC!$A$2:$W$4000,13,FALSE),"no data"),IF(B12&C12="MGMAAcademic",IFERROR(VLOOKUP($B12&$C12&$D12&$E12&"L",MGMAR!$A$2:$W$4000,13,FALSE),"no data"),IFERROR(VLOOKUP($B12&$C12&$D12&$E12&"L",MGMARP!$A$2:$W$4000,13,FALSE),"no data"))))) -> 0 | AR12: =IF(AQ12="no data",0,AQ12*T12) -> 0 | AS12: =AP12 -> 0 | AT12: =IFERROR(AS12-AR12,0) -> 0 | AU12: =IF(J12>0,IF(K12=0,1,0),0) -> 0 | AV12: =IF(J12>0,IF(L12=0,1,0),0) -> 0 | AW12: =IF(J12>0,IF(M12=0,1,0),0) -> 0 | AX12: =IF(J12>0,IF(V12=0,1,0),0) -> 0 | AY12: =IF(J12>0,IF(AC12=0,1,0),0) -> 0 | AZ12: =IF($M$9=M12,1,0) -> 0 | BA12: =IF(AO12<>$AP$6,1,0) -> 0 | BC12: 0
A13: =IF(J13>0,1,0) -> 0 | B13: FPSC | C13: =$C$9 -> Academic | D13: =$D$9 -> All | E13: =IF($B13="MGMA",COMP!$D$86,IF($B13="FPSC",COMP!$D$85,IF($B13="SPEC",COMP!$K$103,"no data"))) -> [select] | F13: =$F$9 -> AAMC | G13: =$G$9 -> Academic | H13: =$H$9 -> All | I13: =IF($F13="AAMC",COMP!$D$83,IF($F13="MGMA",COMP!$D$86,IF($F13="SPEC",COMP!$K$91,"no data"))) -> [select] | P13: 0 | Q13: 0 | R13: 0 | S13: 0 | T13: 0 | U13: 0 | V13: 0 | X13: 0 | Y13: 0 | Z13: =X13*T13 -> 0 | AA13: 0 | AB13: 0 | AC13: =+AB13+AA13+X13 -> 0 | AD13: =IF(V13=0,0,AC13/V13) -> 0 | AE13: =IF($F13="SPEC",COMP!K$90/1000,IFERROR(VLOOKUP($F13&$G13&$H13&$M13&COMP!$D$84&$I13&"L",AAMC!$A$2:$W$4000,10,FALSE)/1000,IFERROR(VLOOKUP($F13&$G13&$H13&$M13&COMP!$D$84&$I13&"L",MGMAC!$A$2:$W$4000,10,FALSE)/1000,IFERROR(VLOOKUP($F13&$G13&$H13&$M13&COMP!$D$84&$I13&"L",MGMACP!$A$2:$W$4000,10,FALSE)/1000,"no data")))) -> no data | AF13: =IF($F13="SPEC",COMP!L$90/1000,IFERROR(VLOOKUP($F13&$G13&$H13&$M13&COMP!$D$84&$I13&"L",AAMC!$A$2:$W$4000,15,FALSE)/1000,IFERROR(VLOOKUP($F13&$G13&$H13&$M13&COMP!$D$84&$I13&"L",MGMAC!$A$2:$W$4000,15,FALSE)/1000,IFERROR(VLOOKUP($F13&$G13&$H13&$M13&COMP!$D$84&$I13&"L",MGMACP!$A$2:$W$4000,15,FALSE)/1000,"no data")))) -> no data | AG13: =IF($F13="SPEC",COMP!M$90/1000,IFERROR(VLOOKUP($F13&$G13&$H13&$M13&COMP!$D$84&$I13&"L",AAMC!$A$2:$W$4000,20,FALSE)/1000,IFERROR(VLOOKUP($F13&$G13&$H13&$M13&COMP!$D$84&$I13&"L",MGMAC!$A$2:$W$4000,20,FALSE)/1000,IFERROR(VLOOKUP($F13&$G13&$H13&$M13&COMP!$D$84&$I13&"L",MGMACP!$A$2:$W$4000,20,FALSE)/1000,"no data")))) -> no data | AI13: 0 | AJ13: 0 | AK13: 0 | AL13: 0 | AM13: 0 | AO13: 1 | AP13: =((AM13/AO13)*$AP$6)/$AP$6*12 -> 0 | AQ13: =IF($J13=0,0,IF($B13="SPEC",COMP!$L$102,IF($B13="FPSC",IFERROR(VLOOKUP($B13&$C13&$D13&$E13&"L",FPSC!$A$2:$W$4000,13,FALSE),"no data"),IF(B13&C13="MGMAAcademic",IFERROR(VLOOKUP($B13&$C13&$D13&$E13&"L",MGMAR!$A$2:$W$4000,13,FALSE),"no data"),IFERROR(VLOOKUP($B13&$C13&$D13&$E13&"L",MGMARP!$A$2:$W$4000,13,FALSE),"no data"))))) -> 0 | AR13: =IF(AQ13="no data",0,AQ13*T13) -> 0 | AS13: =AP13 -> 0 | AT13: =IFERROR(AS13-AR13,0) -> 0 | AU13: 0 | AV13: 0 | AW13: 0 | AX13: 0 | AY13: 0 | AZ13: 0 | BA13: =IF(AO13<>$AP$6,1,0) -> 0 | BC13: 0
A14: 0 | B14: FPSC | C14: Academic | D14: All | E14: =IF($B14="MGMA",COMP!$D$86,IF($B14="FPSC",COMP!$D$85,IF($B14="SPEC",COMP!$K$103,"no data"))) -> [select] | F14: AAMC | G14: Academic | H14: All | I14: =IF($F14="AAMC",COMP!$D$83,IF($F14="MGMA",COMP!$D$86,IF($F14="SPEC",COMP!$K$91,"no data"))) -> [select] | P14: 0 | Q14: 0 | R14: 0 | S14: 0 | T14: 0 | U14: 0 | V14: =SUM(P14:U14) -> 0 | X14: 0 | Y14: 0 | Z14: =X14*T14 -> 0 | AA14: 0 | AB14: 0 | AC14: 0 | AD14: 0 | AE14: =IF($F14="SPEC",COMP!K$90/1000,IFERROR(VLOOKUP($F14&$G14&$H14&$M14&COMP!$D$84&$I14&"L",AAMC!$A$2:$W$4000,10,FALSE)/1000,IFERROR(VLOOKUP($F14&$G14&$H14&$M14&COMP!$D$84&$I14&"L",MGMAC!$A$2:$W$4000,10,FALSE)/1000,IFERROR(VLOOKUP($F14&$G14&$H14&$M14&COMP!$D$84&$I14&"L",MGMACP!$A$2:$W$4000,10,FALSE)/1000,"no data")))) -> no data | AF14: =IF($F14="SPEC",COMP!L$90/1000,IFERROR(VLOOKUP($F14&$G14&$H14&$M14&COMP!$D$84&$I14&"L",AAMC!$A$2:$W$4000,15,FALSE)/1000,IFERROR(VLOOKUP($F14&$G14&$H14&$M14&COMP!$D$84&$I14&"L",MGMAC!$A$2:$W$4000,15,FALSE)/1000,IFERROR(VLOOKUP($F14&$G14&$H14&$M14&COMP!$D$84&$I14&"L",MGMACP!$A$2:$W$4000,15,FALSE)/1000,"no data")))) -> no data | AG14: =IF($F14="SPEC",COMP!M$90/1000,IFERROR(VLOOKUP($F14&$G14&$H14&$M14&COMP!$D$84&$I14&"L",AAMC!$A$2:$W$4000,20,FALSE)/1000,IFERROR(VLOOKUP($F14&$G14&$H14&$M14&COMP!$D$84&$I14&"L",MGMAC!$A$2:$W$4000,20,FALSE)/1000,IFERROR(VLOOKUP($F14&$G14&$H14&$M14&COMP!$D$84&$I14&"L",MGMACP!$A$2:$W$4000,20,FALSE)/1000,"no data")))) -> no data | AI14: 0 | AJ14: 0 | AK14: 0 | AL14: 0 | AM14: 0 | AO14: 1 | AP14: 0 | AQ14: =IF($J14=0,0,IF($B14="SPEC",COMP!$L$102,IF($B14="FPSC",IFERROR(VLOOKUP($B14&$C14&$D14&$E14&"L",FPSC!$A$2:$W$4000,13,FALSE),"no data"),IF(B14&C14="MGMAAcademic",IFERROR(VLOOKUP($B14&$C14&$D14&$E14&"L",MGMAR!$A$2:$W$4000,13,FALSE),"no data"),IFERROR(VLOOKUP($B14&$C14&$D14&$E14&"L",MGMARP!$A$2:$W$4000,13,FALSE),"no data"))))) -> 0 | AR14: 0 | AS14: 0 | AT14: 0 | AU14: 0 | AV14: 0 | AW14: 0 | AX14: 0 | AY14: 0 | AZ14: 0 | BA14: 0 | BC14: 0
A15: 0 | B15: FPSC | C15: Academic | D15: All | E15: =IF($B15="MGMA",COMP!$D$86,IF($B15="FPSC",COMP!$D$85,IF($B15="SPEC",COMP!$K$103,"no data"))) -> [select] | F15: AAMC | G15: Academic | H15: All | I15: =IF($F15="AAMC",COMP!$D$83,IF($F15="MGMA",COMP!$D$86,IF($F15="SPEC",COMP!$K$91,"no data"))) -> [select] | P15: 0 | Q15: 0 | R15: 0 | S15: 0 | T15: 0 | U15: 0 | V15: 0 | X15: 0 | Y15: 0 | Z15: 0 | AA15: 0 | AB15: 0 | AC15: 0 | AD15: 0 | AE15: =IF($F15="SPEC",COMP!K$90/1000,IFERROR(VLOOKUP($F15&$G15&$H15&$M15&COMP!$D$84&$I15&"L",AAMC!$A$2:$W$4000,10,FALSE)/1000,IFERROR(VLOOKUP($F15&$G15&$H15&$M15&COMP!$D$84&$I15&"L",MGMAC!$A$2:$W$4000,10,FALSE)/1000,IFERROR(VLOOKUP($F15&$G15&$H15&$M15&COMP!$D$84&$I15&"L",MGMACP!$A$2:$W$4000,10,FALSE)/1000,"no data")))) -> no data | AF15: =IF($F15="SPEC",COMP!L$90/1000,IFERROR(VLOOKUP($F15&$G15&$H15&$M15&COMP!$D$84&$I15&"L",AAMC!$A$2:$W$4000,15,FALSE)/1000,IFERROR(VLOOKUP($F15&$G15&$H15&$M15&COMP!$D$84&$I15&"L",MGMAC!$A$2:$W$4000,15,FALSE)/1000,IFERROR(VLOOKUP($F15&$G15&$H15&$M15&COMP!$D$84&$I15&"L",MGMACP!$A$2:$W$4000,15,FALSE)/1000,"no data")))) -> no data | AG15: =IF($F15="SPEC",COMP!M$90/1000,IFERROR(VLOOKUP($F15&$G15&$H15&$M15&COMP!$D$84&$I15&"L",AAMC!$A$2:$W$4000,20,FALSE)/1000,IFERROR(VLOOKUP($F15&$G15&$H15&$M15&COMP!$D$84&$I15&"L",MGMAC!$A$2:$W$4000,20,FALSE)/1000,IFERROR(VLOOKUP($F15&$G15&$H15&$M15&COMP!$D$84&$I15&"L",MGMACP!$A$2:$W$4000,20,FALSE)/1000,"no data")))) -> no data | AI15: 0 | AJ15: 0 | AK15: 0 | AL15: 0 | AM15: 0 | AO15: 1 | AP15: 0 | AQ15: =IF($J15=0,0,IF($B15="SPEC",COMP!$L$102,IF($B15="FPSC",IFERROR(VLOOKUP($B15&$C15&$D15&$E15&"L",FPSC!$A$2:$W$4000,13,FALSE),"no data"),IF(B15&C15="MGMAAcademic",IFERROR(VLOOKUP($B15&$C15&$D15&$E15&"L",MGMAR!$A$2:$W$4000,13,FALSE),"no data"),IFERROR(VLOOKUP($B15&$C15&$D15&$E15&"L",MGMARP!$A$2:$W$4000,13,FALSE),"no data"))))) -> 0 | AR15: 0 | AS15: 0 | AT15: 0 | AU15: 0 | AV15: 0 | AW15: 0 | AX15: 0 | AY15: 0 | AZ15: =IF($M$9=M15,1,0) -> 0 | BA15: 0 | BC15: 0
A16: 0 | B16: FPSC | C16: Academic | D16: All | E16: =IF($B16="MGMA",COMP!$D$86,IF($B16="FPSC",COMP!$D$85,IF($B16="SPEC",COMP!$K$103,"no data"))) -> [select] | F16: AAMC | G16: Academic | H16: All | I16: =IF($F16="AAMC",COMP!$D$83,IF($F16="MGMA",COMP!$D$86,IF($F16="SPEC",COMP!$K$91,"no data"))) -> [select] | P16: 0 | Q16: 0 | R16: 0 | S16: 0 | T16: 0 | U16: 0 | V16: 0 | X16: 0 | Y16: 0 | Z16: =X16*T16 -> 0 | AA16: 0 | AB16: 0 | AC16: 0 | AD16: 0 | AE16: =IF($F16="SPEC",COMP!K$90/1000,IFERROR(VLOOKUP($F16&$G16&$H16&$M16&COMP!$D$84&$I16&"L",AAMC!$A$2:$W$4000,10,FALSE)/1000,IFERROR(VLOOKUP($F16&$G16&$H16&$M16&COMP!$D$84&$I16&"L",MGMAC!$A$2:$W$4000,10,FALSE)/1000,IFERROR(VLOOKUP($F16&$G16&$H16&$M16&COMP!$D$84&$I16&"L",MGMACP!$A$2:$W$4000,10,FALSE)/1000,"no data")))) -> no data | AF16: =IF($F16="SPEC",COMP!L$90/1000,IFERROR(VLOOKUP($F16&$G16&$H16&$M16&COMP!$D$84&$I16&"L",AAMC!$A$2:$W$4000,15,FALSE)/1000,IFERROR(VLOOKUP($F16&$G16&$H16&$M16&COMP!$D$84&$I16&"L",MGMAC!$A$2:$W$4000,15,FALSE)/1000,IFERROR(VLOOKUP($F16&$G16&$H16&$M16&COMP!$D$84&$I16&"L",MGMACP!$A$2:$W$4000,15,FALSE)/1000,"no data")))) -> no data | AG16: =IF($F16="SPEC",COMP!M$90/1000,IFERROR(VLOOKUP($F16&$G16&$H16&$M16&COMP!$D$84&$I16&"L",AAMC!$A$2:$W$4000,20,FALSE)/1000,IFERROR(VLOOKUP($F16&$G16&$H16&$M16&COMP!$D$84&$I16&"L",MGMAC!$A$2:$W$4000,20,FALSE)/1000,IFERROR(VLOOKUP($F16&$G16&$H16&$M16&COMP!$D$84&$I16&"L",MGMACP!$A$2:$W$4000,20,FALSE)/1000,"no data")))) -> no data | AI16: 0 | AJ16: 0 | AK16: 0 | AL16: 0 | AM16: 0 | AO16: =$AP$6 -> 1 | AP16: 0 | AQ16: =IF($J16=0,0,IF($B16="SPEC",COMP!$L$102,IF($B16="FPSC",IFERROR(VLOOKUP($B16&$C16&$D16&$E16&"L",FPSC!$A$2:$W$4000,13,FALSE),"no data"),IF(B16&C16="MGMAAcademic",IFERROR(VLOOKUP($B16&$C16&$D16&$E16&"L",MGMAR!$A$2:$W$4000,13,FALSE),"no data"),IFERROR(VLOOKUP($B16&$C16&$D16&$E16&"L",MGMARP!$A$2:$W$4000,13,FALSE),"no data"))))) -> 0 | AR16: 0 | AS16: 0 | AT16: 0 | AU16: 0 | AV16: 0 | AW16: 0 | AX16: 0 | AY16: =IF(J16>0,IF(AC16=0,1,0),0) -> 0 | AZ16: =IF($M$9=M16,1,0) -> 0 | BA16: 0 | BC16: 0
A17: 0 | B17: FPSC | C17: Academic | D17: All | E17: =IF($B17="MGMA",COMP!$D$86,IF($B17="FPSC",COMP!$D$85,IF($B17="SPEC",COMP!$K$103,"no data"))) -> [select] | F17: AAMC | G17: Academic | H17: All | I17: =IF($F17="AAMC",COMP!$D$83,IF($F17="MGMA",COMP!$D$86,IF($F17="SPEC",COMP!$K$91,"no data"))) -> [select] | P17: 0 | Q17: 0 | R17: 0 | S17: 0 | T17: 0 | U17: 0 | V17: 0 | X17: 0 | Y17: 0 | Z17: 0 | AA17: 0 | AB17: 0 | AC17: 0 | AD17: 0 | AE17: =IF($F17="SPEC",COMP!K$90/1000,IFERROR(VLOOKUP($F17&$G17&$H17&$M17&COMP!$D$84&$I17&"L",AAMC!$A$2:$W$4000,10,FALSE)/1000,IFERROR(VLOOKUP($F17&$G17&$H17&$M17&COMP!$D$84&$I17&"L",MGMAC!$A$2:$W$4000,10,FALSE)/1000,IFERROR(VLOOKUP($F17&$G17&$H17&$M17&COMP!$D$84&$I17&"L",MGMACP!$A$2:$W$4000,10,FALSE)/1000,"no data")))) -> no data | AF17: =IF($F17="SPEC",COMP!L$90/1000,IFERROR(VLOOKUP($F17&$G17&$H17&$M17&COMP!$D$84&$I17&"L",AAMC!$A$2:$W$4000,15,FALSE)/1000,IFERROR(VLOOKUP($F17&$G17&$H17&$M17&COMP!$D$84&$I17&"L",MGMAC!$A$2:$W$4000,15,FALSE)/1000,IFERROR(VLOOKUP($F17&$G17&$H17&$M17&COMP!$D$84&$I17&"L",MGMACP!$A$2:$W$4000,15,FALSE)/1000,"no data")))) -> no data | AG17: =IF($F17="SPEC",COMP!M$90/1000,IFERROR(VLOOKUP($F17&$G17&$H17&$M17&COMP!$D$84&$I17&"L",AAMC!$A$2:$W$4000,20,FALSE)/1000,IFERROR(VLOOKUP($F17&$G17&$H17&$M17&COMP!$D$84&$I17&"L",MGMAC!$A$2:$W$4000,20,FALSE)/1000,IFERROR(VLOOKUP($F17&$G17&$H17&$M17&COMP!$D$84&$I17&"L",MGMACP!$A$2:$W$4000,20,FALSE)/1000,"no data")))) -> no data | AI17: 0 | AJ17: 0 | AK17: 0 | AL17: 0 | AM17: 0 | AO17: 1 | AP17: 0 | AQ17: =IF($J17=0,0,IF($B17="SPEC",COMP!$L$102,IF($B17="FPSC",IFERROR(VLOOKUP($B17&$C17&$D17&$E17&"L",FPSC!$A$2:$W$4000,13,FALSE),"no data"),IF(B17&C17="MGMAAcademic",IFERROR(VLOOKUP($B17&$C17&$D17&$E17&"L",MGMAR!$A$2:$W$4000,13,FALSE),"no data"),IFERROR(VLOOKUP($B17&$C17&$D17&$E17&"L",MGMARP!$A$2:$W$4000,13,FALSE),"no data"))))) -> 0 | AR17: 0 | AS17: 0 | AT17: 0 | AU17: 0 | AV17: 0 | AW17: 0 | AX17: 0 | AY17: 0 | AZ17: 0 | BA17: 0 | BC17: 0
A18: 0 | B18: =$B$9 -> FPSC | C18: Academic | D18: All | E18: =IF($B18="MGMA",COMP!$D$86,IF($B18="FPSC",COMP!$D$85,IF($B18="SPEC",COMP!$K$103,"no data"))) -> [select] | F18: AAMC | G18: Academic | H18: All | I18: =IF($F18="AAMC",COMP!$D$83,IF($F18="MGMA",COMP!$D$86,IF($F18="SPEC",COMP!$K$91,"no data"))) -> [select] | P18: 0 | Q18: 0 | R18: 0 | S18: 0 | T18: 0 | U18: 0 | V18: 0 | X18: 0 | Y18: 0 | Z18: 0 | AA18: 0 | AB18: 0 | AC18: 0 | AD18: 0 | AE18: =IF($F18="SPEC",COMP!K$90/1000,IFERROR(VLOOKUP($F18&$G18&$H18&$M18&COMP!$D$84&$I18&"L",AAMC!$A$2:$W$4000,10,FALSE)/1000,IFERROR(VLOOKUP($F18&$G18&$H18&$M18&COMP!$D$84&$I18&"L",MGMAC!$A$2:$W$4000,10,FALSE)/1000,IFERROR(VLOOKUP($F18&$G18&$H18&$M18&COMP!$D$84&$I18&"L",MGMACP!$A$2:$W$4000,10,FALSE)/1000,"no data")))) -> no data | AF18: =IF($F18="SPEC",COMP!L$90/1000,IFERROR(VLOOKUP($F18&$G18&$H18&$M18&COMP!$D$84&$I18&"L",AAMC!$A$2:$W$4000,15,FALSE)/1000,IFERROR(VLOOKUP($F18&$G18&$H18&$M18&COMP!$D$84&$I18&"L",MGMAC!$A$2:$W$4000,15,FALSE)/1000,IFERROR(VLOOKUP($F18&$G18&$H18&$M18&COMP!$D$84&$I18&"L",MGMACP!$A$2:$W$4000,15,FALSE)/1000,"no data")))) -> no data | AG18: =IF($F18="SPEC",COMP!M$90/1000,IFERROR(VLOOKUP($F18&$G18&$H18&$M18&COMP!$D$84&$I18&"L",AAMC!$A$2:$W$4000,20,FALSE)/1000,IFERROR(VLOOKUP($F18&$G18&$H18&$M18&COMP!$D$84&$I18&"L",MGMAC!$A$2:$W$4000,20,FALSE)/1000,IFERROR(VLOOKUP($F18&$G18&$H18&$M18&COMP!$D$84&$I18&"L",MGMACP!$A$2:$W$4000,20,FALSE)/1000,"no data")))) -> no data | AI18: 0 | AJ18: 0 | AK18: 0 | AL18: 0 | AM18: 0 | AO18: 1 | AP18: 0 | AQ18: =IF($J18=0,0,IF($B18="SPEC",COMP!$L$102,IF($B18="FPSC",IFERROR(VLOOKUP($B18&$C18&$D18&$E18&"L",FPSC!$A$2:$W$4000,13,FALSE),"no data"),IF(B18&C18="MGMAAcademic",IFERROR(VLOOKUP($B18&$C18&$D18&$E18&"L",MGMAR!$A$2:$W$4000,13,FALSE),"no data"),IFERROR(VLOOKUP($B18&$C18&$D18&$E18&"L",MGMARP!$A$2:$W$4000,13,FALSE),"no data"))))) -> 0 | AR18: 0 | AS18: 0 | AT18: 0 | AU18: 0 | AV18: 0 | AW18: 0 | AX18: 0 | AY18: 0 | AZ18: 0 | BA18: 0 | BC18: 0
A19: 0 | B19: FPSC | C19: Academic | D19: All | E19: =IF($B19="MGMA",COMP!$D$86,IF($B19="FPSC",COMP!$D$85,IF($B19="SPEC",COMP!$K$103,"no data"))) -> [select] | F19: AAMC | G19: Academic | H19: All | I19: =IF($F19="AAMC",COMP!$D$83,IF($F19="MGMA",COMP!$D$86,IF($F19="SPEC",COMP!$K$91,"no data"))) -> [select] | P19: 0 | Q19: 0 | R19: 0 | S19: 0 | T19: 0 | U19: 0 | V19: 0 | X19: 0 | Y19: 0 | Z19: 0 | AA19: 0 | AB19: 0 | AC19: 0 | AD19: 0 | AE19: =IF($F19="SPEC",COMP!K$90/1000,IFERROR(VLOOKUP($F19&$G19&$H19&$M19&COMP!$D$84&$I19&"L",AAMC!$A$2:$W$4000,10,FALSE)/1000,IFERROR(VLOOKUP($F19&$G19&$H19&$M19&COMP!$D$84&$I19&"L",MGMAC!$A$2:$W$4000,10,FALSE)/1000,IFERROR(VLOOKUP($F19&$G19&$H19&$M19&COMP!$D$84&$I19&"L",MGMACP!$A$2:$W$4000,10,FALSE)/1000,"no data")))) -> no data | AF19: =IF($F19="SPEC",COMP!L$90/1000,IFERROR(VLOOKUP($F19&$G19&$H19&$M19&COMP!$D$84&$I19&"L",AAMC!$A$2:$W$4000,15,FALSE)/1000,IFERROR(VLOOKUP($F19&$G19&$H19&$M19&COMP!$D$84&$I19&"L",MGMAC!$A$2:$W$4000,15,FALSE)/1000,IFERROR(VLOOKUP($F19&$G19&$H19&$M19&COMP!$D$84&$I19&"L",MGMACP!$A$2:$W$4000,15,FALSE)/1000,"no data")))) -> no data | AG19: =IF($F19="SPEC",COMP!M$90/1000,IFERROR(VLOOKUP($F19&$G19&$H19&$M19&COMP!$D$84&$I19&"L",AAMC!$A$2:$W$4000,20,FALSE)/1000,IFERROR(VLOOKUP($F19&$G19&$H19&$M19&COMP!$D$84&$I19&"L",MGMAC!$A$2:$W$4000,20,FALSE)/1000,IFERROR(VLOOKUP($F19&$G19&$H19&$M19&COMP!$D$84&$I19&"L",MGMACP!$A$2:$W$4000,20,FALSE)/1000,"no data")))) -> no data | AI19: 0 | AJ19: 0 | AK19: 0 | AL19: 0 | AM19: 0 | AO19: 1 | AP19: 0 | AQ19: =IF($J19=0,0,IF($B19="SPEC",COMP!$L$102,IF($B19="FPSC",IFERROR(VLOOKUP($B19&$C19&$D19&$E19&"L",FPSC!$A$2:$W$4000,13,FALSE),"no data"),IF(B19&C19="MGMAAcademic",IFERROR(VLOOKUP($B19&$C19&$D19&$E19&"L",MGMAR!$A$2:$W$4000,13,FALSE),"no data"),IFERROR(VLOOKUP($B19&$C19&$D19&$E19&"L",MGMARP!$A$2:$W$4000,13,FALSE),"no data"))))) -> 0 | AR19: 0 | AS19: 0 | AT19: 0 | AU19: 0 | AV19: 0 | AW19: 0 | AX19: 0 | AY19: 0 | AZ19: 0 | BA19: 0 | BC19: 0
A20: 0 | B20: FPSC | C20: Academic | D20: All | E20: =IF($B20="MGMA",COMP!$D$86,IF($B20="FPSC",COMP!$D$85,IF($B20="SPEC",COMP!$K$103,"no data"))) -> [select] | F20: AAMC | G20: Academic | H20: All | I20: =IF($F20="AAMC",COMP!$D$83,IF($F20="MGMA",COMP!$D$86,IF($F20="SPEC",COMP!$K$91,"no data"))) -> [select] | P20: 0 | Q20: 0 | R20: 0 | S20: 0 | T20: 0 | U20: 0 | V20: 0 | X20: 0 | Y20: 0 | Z20: 0 | AA20: 0 | AB20: 0 | AC20: 0 | AD20: 0 | AE20: =IF($F20="SPEC",COMP!K$90/1000,IFERROR(VLOOKUP($F20&$G20&$H20&$M20&COMP!$D$84&$I20&"L",AAMC!$A$2:$W$4000,10,FALSE)/1000,IFERROR(VLOOKUP($F20&$G20&$H20&$M20&COMP!$D$84&$I20&"L",MGMAC!$A$2:$W$4000,10,FALSE)/1000,IFERROR(VLOOKUP($F20&$G20&$H20&$M20&COMP!$D$84&$I20&"L",MGMACP!$A$2:$W$4000,10,FALSE)/1000,"no data")))) -> no data | AF20: =IF($F20="SPEC",COMP!L$90/1000,IFERROR(VLOOKUP($F20&$G20&$H20&$M20&COMP!$D$84&$I20&"L",AAMC!$A$2:$W$4000,15,FALSE)/1000,IFERROR(VLOOKUP($F20&$G20&$H20&$M20&COMP!$D$84&$I20&"L",MGMAC!$A$2:$W$4000,15,FALSE)/1000,IFERROR(VLOOKUP($F20&$G20&$H20&$M20&COMP!$D$84&$I20&"L",MGMACP!$A$2:$W$4000,15,FALSE)/1000,"no data")))) -> no data | AG20: =IF($F20="SPEC",COMP!M$90/1000,IFERROR(VLOOKUP($F20&$G20&$H20&$M20&COMP!$D$84&$I20&"L",AAMC!$A$2:$W$4000,20,FALSE)/1000,IFERROR(VLOOKUP($F20&$G20&$H20&$M20&COMP!$D$84&$I20&"L",MGMAC!$A$2:$W$4000,20,FALSE)/1000,IFERROR(VLOOKUP($F20&$G20&$H20&$M20&COMP!$D$84&$I20&"L",MGMACP!$A$2:$W$4000,20,FALSE)/1000,"no data")))) -> no data | AI20: 0 | AJ20: 0 | AK20: 0 | AL20: 0 | AM20: 0 | AO20: 1 | AP20: 0 | AQ20: =IF($J20=0,0,IF($B20="SPEC",COMP!$L$102,IF($B20="FPSC",IFERROR(VLOOKUP($B20&$C20&$D20&$E20&"L",FPSC!$A$2:$W$4000,13,FALSE),"no data"),IF(B20&C20="MGMAAcademic",IFERROR(VLOOKUP($B20&$C20&$D20&$E20&"L",MGMAR!$A$2:$W$4000,13,FALSE),"no data"),IFERROR(VLOOKUP($B20&$C20&$D20&$E20&"L",MGMARP!$A$2:$W$4000,13,FALSE),"no data"))))) -> 0 | AR20: 0 | AS20: 0 | AT20: 0 | AU20: 0 | AV20: 0 | AW20: 0 | AX20: 0 | AY20: 0 | AZ20: =IF($M$9=M20,1,0) -> 0 | BA20: 0 | BC20: 0
A21: =IF(J21>0,1,0) -> 0 | B21: FPSC | C21: Academic | D21: All | E21: =IF($B21="MGMA",COMP!$D$86,IF($B21="FPSC",COMP!$D$85,IF($B21="SPEC",COMP!$K$103,"no data"))) -> [select] | F21: AAMC | G21: Academic | H21: All | I21: =IF($F21="AAMC",COMP!$D$83,IF($F21="MGMA",COMP!$D$86,IF($F21="SPEC",COMP!$K$91,"no data"))) -> [select] | P21: 0 | Q21: 0 | R21: 0 | S21: 0 | T21: 0 | U21: 0 | V21: 0 | X21: 0 | Y21: 0 | Z21: 0 | AA21: 0 | AB21: 0 | AC21: 0 | AD21: 0 | AE21: =IF($F21="SPEC",COMP!K$90/1000,IFERROR(VLOOKUP($F21&$G21&$H21&$M21&COMP!$D$84&$I21&"L",AAMC!$A$2:$W$4000,10,FALSE)/1000,IFERROR(VLOOKUP($F21&$G21&$H21&$M21&COMP!$D$84&$I21&"L",MGMAC!$A$2:$W$4000,10,FALSE)/1000,IFERROR(VLOOKUP($F21&$G21&$H21&$M21&COMP!$D$84&$I21&"L",MGMACP!$A$2:$W$4000,10,FALSE)/1000,"no data")))) -> no data | AF21: =IF($F21="SPEC",COMP!L$90/1000,IFERROR(VLOOKUP($F21&$G21&$H21&$M21&COMP!$D$84&$I21&"L",AAMC!$A$2:$W$4000,15,FALSE)/1000,IFERROR(VLOOKUP($F21&$G21&$H21&$M21&COMP!$D$84&$I21&"L",MGMAC!$A$2:$W$4000,15,FALSE)/1000,IFERROR(VLOOKUP($F21&$G21&$H21&$M21&COMP!$D$84&$I21&"L",MGMACP!$A$2:$W$4000,15,FALSE)/1000,"no data")))) -> no data | AG21: =IF($F21="SPEC",COMP!M$90/1000,IFERROR(VLOOKUP($F21&$G21&$H21&$M21&COMP!$D$84&$I21&"L",AAMC!$A$2:$W$4000,20,FALSE)/1000,IFERROR(VLOOKUP($F21&$G21&$H21&$M21&COMP!$D$84&$I21&"L",MGMAC!$A$2:$W$4000,20,FALSE)/1000,IFERROR(VLOOKUP($F21&$G21&$H21&$M21&COMP!$D$84&$I21&"L",MGMACP!$A$2:$W$4000,20,FALSE)/1000,"no data")))) -> no data | AI21: 0 | AJ21: 0 | AK21: 0 | AL21: 0 | AM21: 0 | AO21: 1 | AP21: 0 | AQ21: =IF($J21=0,0,IF($B21="SPEC",COMP!$L$102,IF($B21="FPSC",IFERROR(VLOOKUP($B21&$C21&$D21&$E21&"L",FPSC!$A$2:$W$4000,13,FALSE),"no data"),IF(B21&C21="MGMAAcademic",IFERROR(VLOOKUP($B21&$C21&$D21&$E21&"L",MGMAR!$A$2:$W$4000,13,FALSE),"no data"),IFERROR(VLOOKUP($B21&$C21&$D21&$E21&"L",MGMARP!$A$2:$W$4000,13,FALSE),"no data"))))) -> 0 | AR21: 0 | AS21: 0 | AT21: 0 | AU21: =IF(J21>0,IF(K21=0,1,0),0) -> 0 | AV21: =IF(J21>0,IF(L21=0,1,0),0) -> 0 | AW21: =IF(J21>0,IF(M21=0,1,0),0) -> 0 | AX21: =IF(J21>0,IF(V21=0,1,0),0) -> 0 | AY21: =IF(J21>0,IF(AC21=0,1,0),0) -> 0 | AZ21: 0 | BA21: 0 | BC21: 0
A22: 0 | B22: FPSC | C22: Academic | D22: All | E22: =IF($B22="MGMA",COMP!$D$86,IF($B22="FPSC",COMP!$D$85,IF($B22="SPEC",COMP!$K$103,"no data"))) -> [select] | F22: AAMC | G22: Academic | H22: All | I22: =IF($F22="AAMC",COMP!$D$83,IF($F22="MGMA",COMP!$D$86,IF($F22="SPEC",COMP!$K$91,"no data"))) -> [select] | P22: 0 | Q22: 0 | R22: 0 | S22: 0 | T22: 0 | U22: 0 | V22: 0 | X22: 0 | Y22: 0 | Z22: 0 | AA22: 0 | AB22: 0 | AC22: =+AB22+AA22+X22 -> 0 | AD22: 0 | AE22: =IF($F22="SPEC",COMP!K$90/1000,IFERROR(VLOOKUP($F22&$G22&$H22&$M22&COMP!$D$84&$I22&"L",AAMC!$A$2:$W$4000,10,FALSE)/1000,IFERROR(VLOOKUP($F22&$G22&$H22&$M22&COMP!$D$84&$I22&"L",MGMAC!$A$2:$W$4000,10,FALSE)/1000,IFERROR(VLOOKUP($F22&$G22&$H22&$M22&COMP!$D$84&$I22&"L",MGMACP!$A$2:$W$4000,10,FALSE)/1000,"no data")))) -> no data | AF22: =IF($F22="SPEC",COMP!L$90/1000,IFERROR(VLOOKUP($F22&$G22&$H22&$M22&COMP!$D$84&$I22&"L",AAMC!$A$2:$W$4000,15,FALSE)/1000,IFERROR(VLOOKUP($F22&$G22&$H22&$M22&COMP!$D$84&$I22&"L",MGMAC!$A$2:$W$4000,15,FALSE)/1000,IFERROR(VLOOKUP($F22&$G22&$H22&$M22&COMP!$D$84&$I22&"L",MGMACP!$A$2:$W$4000,15,FALSE)/1000,"no data")))) -> no data | AG22: =IF($F22="SPEC",COMP!M$90/1000,IFERROR(VLOOKUP($F22&$G22&$H22&$M22&COMP!$D$84&$I22&"L",AAMC!$A$2:$W$4000,20,FALSE)/1000,IFERROR(VLOOKUP($F22&$G22&$H22&$M22&COMP!$D$84&$I22&"L",MGMAC!$A$2:$W$4000,20,FALSE)/1000,IFERROR(VLOOKUP($F22&$G22&$H22&$M22&COMP!$D$84&$I22&"L",MGMACP!$A$2:$W$4000,20,FALSE)/1000,"no data")))) -> no data | AI22: 0 | AJ22: 0 | AK22: 0 | AL22: 0 | AM22: 0 | AO22: 1 | AP22: 0 | AQ22: =IF($J22=0,0,IF($B22="SPEC",COMP!$L$102,IF($B22="FPSC",IFERROR(VLOOKUP($B22&$C22&$D22&$E22&"L",FPSC!$A$2:$W$4000,13,FALSE),"no data"),IF(B22&C22="MGMAAcademic",IFERROR(VLOOKUP($B22&$C22&$D22&$E22&"L",MGMAR!$A$2:$W$4000,13,FALSE),"no data"),IFERROR(VLOOKUP($B22&$C22&$D22&$E22&"L",MGMARP!$A$2:$W$4000,13,FALSE),"no data"))))) -> 0 | AR22: 0 | AS22: 0 | AT22: 0 | AU22: 0 | AV22: 0 | AW22: 0 | AX22: 0 | AY22: 0 | AZ22: 0 | BA22: 0 | BC22: 0
A23: 0 | B23: FPSC | C23: Academic | D23: All | E23: =IF($B23="MGMA",COMP!$D$86,IF($B23="FPSC",COMP!$D$85,IF($B23="SPEC",COMP!$K$103,"no data"))) -> [select] | F23: AAMC | G23: Academic | H23: All | I23: =IF($F23="AAMC",COMP!$D$83,IF($F23="MGMA",COMP!$D$86,IF($F23="SPEC",COMP!$K$91,"no data"))) -> [select] | P23: 0 | Q23: 0 | R23: 0 | S23: 0 | T23: 0 | U23: 0 | V23: 0 | X23: 0 | Y23: 0 | Z23: 0 | AA23: 0 | AB23: 0 | AC23: 0 | AD23: 0 | AE23: =IF($F23="SPEC",COMP!K$90/1000,IFERROR(VLOOKUP($F23&$G23&$H23&$M23&COMP!$D$84&$I23&"L",AAMC!$A$2:$W$4000,10,FALSE)/1000,IFERROR(VLOOKUP($F23&$G23&$H23&$M23&COMP!$D$84&$I23&"L",MGMAC!$A$2:$W$4000,10,FALSE)/1000,IFERROR(VLOOKUP($F23&$G23&$H23&$M23&COMP!$D$84&$I23&"L",MGMACP!$A$2:$W$4000,10,FALSE)/1000,"no data")))) -> no data | AF23: =IF($F23="SPEC",COMP!L$90/1000,IFERROR(VLOOKUP($F23&$G23&$H23&$M23&COMP!$D$84&$I23&"L",AAMC!$A$2:$W$4000,15,FALSE)/1000,IFERROR(VLOOKUP($F23&$G23&$H23&$M23&COMP!$D$84&$I23&"L",MGMAC!$A$2:$W$4000,15,FALSE)/1000,IFERROR(VLOOKUP($F23&$G23&$H23&$M23&COMP!$D$84&$I23&"L",MGMACP!$A$2:$W$4000,15,FALSE)/1000,"no data")))) -> no data | AG23: =IF($F23="SPEC",COMP!M$90/1000,IFERROR(VLOOKUP($F23&$G23&$H23&$M23&COMP!$D$84&$I23&"L",AAMC!$A$2:$W$4000,20,FALSE)/1000,IFERROR(VLOOKUP($F23&$G23&$H23&$M23&COMP!$D$84&$I23&"L",MGMAC!$A$2:$W$4000,20,FALSE)/1000,IFERROR(VLOOKUP($F23&$G23&$H23&$M23&COMP!$D$84&$I23&"L",MGMACP!$A$2:$W$4000,20,FALSE)/1000,"no data")))) -> no data | AI23: 0 | AJ23: 0 | AK23: 0 | AL23: 0 | AM23: 0 | AO23: 1 | AP23: 0 | AQ23: =IF($J23=0,0,IF($B23="SPEC",COMP!$L$102,IF($B23="FPSC",IFERROR(VLOOKUP($B23&$C23&$D23&$E23&"L",FPSC!$A$2:$W$4000,13,FALSE),"no data"),IF(B23&C23="MGMAAcademic",IFERROR(VLOOKUP($B23&$C23&$D23&$E23&"L",MGMAR!$A$2:$W$4000,13,FALSE),"no data"),IFERROR(VLOOKUP($B23&$C23&$D23&$E23&"L",MGMARP!$A$2:$W$4000,13,FALSE),"no data"))))) -> 0 | AR23: 0 | AS23: 0 | AT23: 0 | AU23: 0 | AV23: 0 | AW23: 0 | AX23: 0 | AY23: 0 | AZ23: 0 | BA23: 0 | BC23: 0
A24: 0 | B24: FPSC | C24: Academic | D24: All | E24: =IF($B24="MGMA",COMP!$D$86,IF($B24="FPSC",COMP!$D$85,IF($B24="SPEC",COMP!$K$103,"no data"))) -> [select] | F24: AAMC | G24: Academic | H24: All | I24: =IF($F24="AAMC",COMP!$D$83,IF($F24="MGMA",COMP!$D$86,IF($F24="SPEC",COMP!$K$91,"no data"))) -> [select] | P24: 0 | Q24: 0 | R24: 0 | S24: 0 | T24: 0 | U24: 0 | V24: 0 | X24: 0 | Y24: 0 | Z24: 0 | AA24: 0 | AB24: 0 | AC24: 0 | AD24: 0 | AE24: =IF($F24="SPEC",COMP!K$90/1000,IFERROR(VLOOKUP($F24&$G24&$H24&$M24&COMP!$D$84&$I24&"L",AAMC!$A$2:$W$4000,10,FALSE)/1000,IFERROR(VLOOKUP($F24&$G24&$H24&$M24&COMP!$D$84&$I24&"L",MGMAC!$A$2:$W$4000,10,FALSE)/1000,IFERROR(VLOOKUP($F24&$G24&$H24&$M24&COMP!$D$84&$I24&"L",MGMACP!$A$2:$W$4000,10,FALSE)/1000,"no data")))) -> no data | AF24: =IF($F24="SPEC",COMP!L$90/1000,IFERROR(VLOOKUP($F24&$G24&$H24&$M24&COMP!$D$84&$I24&"L",AAMC!$A$2:$W$4000,15,FALSE)/1000,IFERROR(VLOOKUP($F24&$G24&$H24&$M24&COMP!$D$84&$I24&"L",MGMAC!$A$2:$W$4000,15,FALSE)/1000,IFERROR(VLOOKUP($F24&$G24&$H24&$M24&COMP!$D$84&$I24&"L",MGMACP!$A$2:$W$4000,15,FALSE)/1000,"no data")))) -> no data | AG24: =IF($F24="SPEC",COMP!M$90/1000,IFERROR(VLOOKUP($F24&$G24&$H24&$M24&COMP!$D$84&$I24&"L",AAMC!$A$2:$W$4000,20,FALSE)/1000,IFERROR(VLOOKUP($F24&$G24&$H24&$M24&COMP!$D$84&$I24&"L",MGMAC!$A$2:$W$4000,20,FALSE)/1000,IFERROR(VLOOKUP($F24&$G24&$H24&$M24&COMP!$D$84&$I24&"L",MGMACP!$A$2:$W$4000,20,FALSE)/1000,"no data")))) -> no data | AI24: 0 | AJ24: 0 | AK24: 0 | AL24: 0 | AM24: 0 | AO24: 1 | AP24: 0 | AQ24: =IF($J24=0,0,IF($B24="SPEC",COMP!$L$102,IF($B24="FPSC",IFERROR(VLOOKUP($B24&$C24&$D24&$E24&"L",FPSC!$A$2:$W$4000,13,FALSE),"no data"),IF(B24&C24="MGMAAcademic",IFERROR(VLOOKUP($B24&$C24&$D24&$E24&"L",MGMAR!$A$2:$W$4000,13,FALSE),"no data"),IFERROR(VLOOKUP($B24&$C24&$D24&$E24&"L",MGMARP!$A$2:$W$4000,13,FALSE),"no data"))))) -> 0 | AR24: 0 | AS24: 0 | AT24: 0 | AU24: 0 | AV24: 0 | AW24: 0 | AX24: 0 | AY24: 0 | AZ24: 0 | BA24: 0 | BC24: 0
A25: 0 | B25: FPSC | C25: Academic | D25: All | E25: =IF($B25="MGMA",COMP!$D$86,IF($B25="FPSC",COMP!$D$85,IF($B25="SPEC",COMP!$K$103,"no data"))) -> [select] | F25: AAMC | G25: Academic | H25: All | I25: =IF($F25="AAMC",COMP!$D$83,IF($F25="MGMA",COMP!$D$86,IF($F25="SPEC",COMP!$K$91,"no data"))) -> [select] | P25: 0 | Q25: 0 | R25: 0 | S25: 0 | T25: 0 | U25: 0 | V25: 0 | X25: 0 | Y25: 0 | Z25: 0 | AA25: 0 | AB25: 0 | AC25: 0 | AD25: 0 | AE25: =IF($F25="SPEC",COMP!K$90/1000,IFERROR(VLOOKUP($F25&$G25&$H25&$M25&COMP!$D$84&$I25&"L",AAMC!$A$2:$W$4000,10,FALSE)/1000,IFERROR(VLOOKUP($F25&$G25&$H25&$M25&COMP!$D$84&$I25&"L",MGMAC!$A$2:$W$4000,10,FALSE)/1000,IFERROR(VLOOKUP($F25&$G25&$H25&$M25&COMP!$D$84&$I25&"L",MGMACP!$A$2:$W$4000,10,FALSE)/1000,"no data")))) -> no data | AF25: =IF($F25="SPEC",COMP!L$90/1000,IFERROR(VLOOKUP($F25&$G25&$H25&$M25&COMP!$D$84&$I25&"L",AAMC!$A$2:$W$4000,15,FALSE)/1000,IFERROR(VLOOKUP($F25&$G25&$H25&$M25&COMP!$D$84&$I25&"L",MGMAC!$A$2:$W$4000,15,FALSE)/1000,IFERROR(VLOOKUP($F25&$G25&$H25&$M25&COMP!$D$84&$I25&"L",MGMACP!$A$2:$W$4000,15,FALSE)/1000,"no data")))) -> no data | AG25: =IF($F25="SPEC",COMP!M$90/1000,IFERROR(VLOOKUP($F25&$G25&$H25&$M25&COMP!$D$84&$I25&"L",AAMC!$A$2:$W$4000,20,FALSE)/1000,IFERROR(VLOOKUP($F25&$G25&$H25&$M25&COMP!$D$84&$I25&"L",MGMAC!$A$2:$W$4000,20,FALSE)/1000,IFERROR(VLOOKUP($F25&$G25&$H25&$M25&COMP!$D$84&$I25&"L",MGMACP!$A$2:$W$4000,20,FALSE)/1000,"no data")))) -> no data | AI25: 0 | AJ25: 0 | AK25: 0 | AL25: 0 | AM25: 0 | AO25: 1 | AP25: 0 | AQ25: =IF($J25=0,0,IF($B25="SPEC",COMP!$L$102,IF($B25="FPSC",IFERROR(VLOOKUP($B25&$C25&$D25&$E25&"L",FPSC!$A$2:$W$4000,13,FALSE),"no data"),IF(B25&C25="MGMAAcademic",IFERROR(VLOOKUP($B25&$C25&$D25&$E25&"L",MGMAR!$A$2:$W$4000,13,FALSE),"no data"),IFERROR(VLOOKUP($B25&$C25&$D25&$E25&"L",MGMARP!$A$2:$W$4000,13,FALSE),"no data"))))) -> 0 | AR25: 0 | AS25: 0 | AT25: 0 | AU25: 0 | AV25: 0 | AW25: 0 | AX25: 0 | AY25: 0 | AZ25: 0 | BA25: 0 | BC25: 0
A26: 0 | B26: FPSC | C26: Academic | D26: All | E26: =IF($B26="MGMA",COMP!$D$86,IF($B26="FPSC",COMP!$D$85,IF($B26="SPEC",COMP!$K$103,"no data"))) -> [select] | F26: AAMC | G26: Academic | H26: All | I26: =IF($F26="AAMC",COMP!$D$83,IF($F26="MGMA",COMP!$D$86,IF($F26="SPEC",COMP!$K$91,"no data"))) -> [select] | P26: 0 | Q26: 0 | R26: 0 | S26: 0 | T26: 0 | U26: 0 | V26: 0 | X26: 0 | Y26: 0 | Z26: 0 | AA26: 0 | AB26: 0 | AC26: 0 | AD26: 0 | AE26: =IF($F26="SPEC",COMP!K$90/1000,IFERROR(VLOOKUP($F26&$G26&$H26&$M26&COMP!$D$84&$I26&"L",AAMC!$A$2:$W$4000,10,FALSE)/1000,IFERROR(VLOOKUP($F26&$G26&$H26&$M26&COMP!$D$84&$I26&"L",MGMAC!$A$2:$W$4000,10,FALSE)/1000,IFERROR(VLOOKUP($F26&$G26&$H26&$M26&COMP!$D$84&$I26&"L",MGMACP!$A$2:$W$4000,10,FALSE)/1000,"no data")))) -> no data | AF26: =IF($F26="SPEC",COMP!L$90/1000,IFERROR(VLOOKUP($F26&$G26&$H26&$M26&COMP!$D$84&$I26&"L",AAMC!$A$2:$W$4000,15,FALSE)/1000,IFERROR(VLOOKUP($F26&$G26&$H26&$M26&COMP!$D$84&$I26&"L",MGMAC!$A$2:$W$4000,15,FALSE)/1000,IFERROR(VLOOKUP($F26&$G26&$H26&$M26&COMP!$D$84&$I26&"L",MGMACP!$A$2:$W$4000,15,FALSE)/1000,"no data")))) -> no data | AG26: =IF($F26="SPEC",COMP!M$90/1000,IFERROR(VLOOKUP($F26&$G26&$H26&$M26&COMP!$D$84&$I26&"L",AAMC!$A$2:$W$4000,20,FALSE)/1000,IFERROR(VLOOKUP($F26&$G26&$H26&$M26&COMP!$D$84&$I26&"L",MGMAC!$A$2:$W$4000,20,FALSE)/1000,IFERROR(VLOOKUP($F26&$G26&$H26&$M26&COMP!$D$84&$I26&"L",MGMACP!$A$2:$W$4000,20,FALSE)/1000,"no data")))) -> no data | AI26: 0 | AJ26: 0 | AK26: 0 | AL26: 0 | AM26: 0 | AO26: 1 | AP26: 0 | AQ26: =IF($J26=0,0,IF($B26="SPEC",COMP!$L$102,IF($B26="FPSC",IFERROR(VLOOKUP($B26&$C26&$D26&$E26&"L",FPSC!$A$2:$W$4000,13,FALSE),"no data"),IF(B26&C26="MGMAAcademic",IFERROR(VLOOKUP($B26&$C26&$D26&$E26&"L",MGMAR!$A$2:$W$4000,13,FALSE),"no data"),IFERROR(VLOOKUP($B26&$C26&$D26&$E26&"L",MGMARP!$A$2:$W$4000,13,FALSE),"no data"))))) -> 0 | AR26: 0 | AS26: 0 | AT26: 0 | AU26: 0 | AV26: 0 | AW26: 0 | AX26: 0 | AY26: 0 | AZ26: 0 | BA26: 0 | BC26: 0
A27: 0 | B27: FPSC | C27: Academic | D27: All | E27: =IF($B27="MGMA",COMP!$D$86,IF($B27="FPSC",COMP!$D$85,IF($B27="SPEC",COMP!$K$103,"no data"))) -> [select] | F27: AAMC | G27: Academic | H27: All | I27: =IF($F27="AAMC",COMP!$D$83,IF($F27="MGMA",COMP!$D$86,IF($F27="SPEC",COMP!$K$91,"no data"))) -> [select] | P27: 0 | Q27: 0 | R27: 0 | S27: 0 | T27: 0 | U27: 0 | V27: 0 | X27: 0 | Y27: 0 | Z27: 0 | AA27: 0 | AB27: 0 | AC27: 0 | AD27: 0 | AE27: =IF($F27="SPEC",COMP!K$90/1000,IFERROR(VLOOKUP($F27&$G27&$H27&$M27&COMP!$D$84&$I27&"L",AAMC!$A$2:$W$4000,10,FALSE)/1000,IFERROR(VLOOKUP($F27&$G27&$H27&$M27&COMP!$D$84&$I27&"L",MGMAC!$A$2:$W$4000,10,FALSE)/1000,IFERROR(VLOOKUP($F27&$G27&$H27&$M27&COMP!$D$84&$I27&"L",MGMACP!$A$2:$W$4000,10,FALSE)/1000,"no data")))) -> no data | AF27: =IF($F27="SPEC",COMP!L$90/1000,IFERROR(VLOOKUP($F27&$G27&$H27&$M27&COMP!$D$84&$I27&"L",AAMC!$A$2:$W$4000,15,FALSE)/1000,IFERROR(VLOOKUP($F27&$G27&$H27&$M27&COMP!$D$84&$I27&"L",MGMAC!$A$2:$W$4000,15,FALSE)/1000,IFERROR(VLOOKUP($F27&$G27&$H27&$M27&COMP!$D$84&$I27&"L",MGMACP!$A$2:$W$4000,15,FALSE)/1000,"no data")))) -> no data | AG27: =IF($F27="SPEC",COMP!M$90/1000,IFERROR(VLOOKUP($F27&$G27&$H27&$M27&COMP!$D$84&$I27&"L",AAMC!$A$2:$W$4000,20,FALSE)/1000,IFERROR(VLOOKUP($F27&$G27&$H27&$M27&COMP!$D$84&$I27&"L",MGMAC!$A$2:$W$4000,20,FALSE)/1000,IFERROR(VLOOKUP($F27&$G27&$H27&$M27&COMP!$D$84&$I27&"L",MGMACP!$A$2:$W$4000,20,FALSE)/1000,"no data")))) -> no data | AI27: 0 | AJ27: 0 | AK27: 0 | AL27: 0 | AM27: 0 | AO27: 1 | AP27: 0 | AQ27: =IF($J27=0,0,IF($B27="SPEC",COMP!$L$102,IF($B27="FPSC",IFERROR(VLOOKUP($B27&$C27&$D27&$E27&"L",FPSC!$A$2:$W$4000,13,FALSE),"no data"),IF(B27&C27="MGMAAcademic",IFERROR(VLOOKUP($B27&$C27&$D27&$E27&"L",MGMAR!$A$2:$W$4000,13,FALSE),"no data"),IFERROR(VLOOKUP($B27&$C27&$D27&$E27&"L",MGMARP!$A$2:$W$4000,13,FALSE),"no data"))))) -> 0 | AR27: 0 | AS27: 0 | AT27: 0 | AU27: 0 | AV27: 0 | AW27: 0 | AX27: 0 | AY27: 0 | AZ27: 0 | BA27: 0 | BC27: 0
A28: 0 | B28: FPSC | C28: Academic | D28: All | E28: =IF($B28="MGMA",COMP!$D$86,IF($B28="FPSC",COMP!$D$85,IF($B28="SPEC",COMP!$K$103,"no data"))) -> [select] | F28: AAMC | G28: Academic | H28: All | I28: =IF($F28="AAMC",COMP!$D$83,IF($F28="MGMA",COMP!$D$86,IF($F28="SPEC",COMP!$K$91,"no data"))) -> [select] | P28: 0 | Q28: 0 | R28: 0 | S28: 0 | T28: 0 | U28: 0 | V28: 0 | X28: 0 | Y28: 0 | Z28: 0 | AA28: 0 | AB28: 0 | AC28: 0 | AD28: 0 | AE28: =IF($F28="SPEC",COMP!K$90/1000,IFERROR(VLOOKUP($F28&$G28&$H28&$M28&COMP!$D$84&$I28&"L",AAMC!$A$2:$W$4000,10,FALSE)/1000,IFERROR(VLOOKUP($F28&$G28&$H28&$M28&COMP!$D$84&$I28&"L",MGMAC!$A$2:$W$4000,10,FALSE)/1000,IFERROR(VLOOKUP($F28&$G28&$H28&$M28&COMP!$D$84&$I28&"L",MGMACP!$A$2:$W$4000,10,FALSE)/1000,"no data")))) -> no data | AF28: =IF($F28="SPEC",COMP!L$90/1000,IFERROR(VLOOKUP($F28&$G28&$H28&$M28&COMP!$D$84&$I28&"L",AAMC!$A$2:$W$4000,15,FALSE)/1000,IFERROR(VLOOKUP($F28&$G28&$H28&$M28&COMP!$D$84&$I28&"L",MGMAC!$A$2:$W$4000,15,FALSE)/1000,IFERROR(VLOOKUP($F28&$G28&$H28&$M28&COMP!$D$84&$I28&"L",MGMACP!$A$2:$W$4000,15,FALSE)/1000,"no data")))) -> no data | AG28: =IF($F28="SPEC",COMP!M$90/1000,IFERROR(VLOOKUP($F28&$G28&$H28&$M28&COMP!$D$84&$I28&"L",AAMC!$A$2:$W$4000,20,FALSE)/1000,IFERROR(VLOOKUP($F28&$G28&$H28&$M28&COMP!$D$84&$I28&"L",MGMAC!$A$2:$W$4000,20,FALSE)/1000,IFERROR(VLOOKUP($F28&$G28&$H28&$M28&COMP!$D$84&$I28&"L",MGMACP!$A$2:$W$4000,20,FALSE)/1000,"no data")))) -> no data | AI28: 0 | AJ28: 0 | AK28: 0 | AL28: 0 | AM28: 0 | AO28: 1 | AP28: 0 | AQ28: =IF($J28=0,0,IF($B28="SPEC",COMP!$L$102,IF($B28="FPSC",IFERROR(VLOOKUP($B28&$C28&$D28&$E28&"L",FPSC!$A$2:$W$4000,13,FALSE),"no data"),IF(B28&C28="MGMAAcademic",IFERROR(VLOOKUP($B28&$C28&$D28&$E28&"L",MGMAR!$A$2:$W$4000,13,FALSE),"no data"),IFERROR(VLOOKUP($B28&$C28&$D28&$E28&"L",MGMARP!$A$2:$W$4000,13,FALSE),"no data"))))) -> 0 | AR28: 0 | AS28: 0 | AT28: 0 | AU28: 0 | AV28: 0 | AW28: 0 | AX28: 0 | AY28: 0 | AZ28: 0 | BA28: 0 | BC28: 0
A29: 0 | B29: FPSC | C29: Academic | D29: All | E29: =IF($B29="MGMA",COMP!$D$86,IF($B29="FPSC",COMP!$D$85,IF($B29="SPEC",COMP!$K$103,"no data"))) -> [select] | F29: AAMC | G29: Academic | H29: All | I29: =IF($F29="AAMC",COMP!$D$83,IF($F29="MGMA",COMP!$D$86,IF($F29="SPEC",COMP!$K$91,"no data"))) -> [select] | P29: 0 | Q29: 0 | R29: 0 | S29: 0 | T29: 0 | U29: 0 | V29: 0 | X29: 0 | Y29: 0 | Z29: 0 | AA29: 0 | AB29: 0 | AC29: 0 | AD29: 0 | AE29: =IF($F29="SPEC",COMP!K$90/1000,IFERROR(VLOOKUP($F29&$G29&$H29&$M29&COMP!$D$84&$I29&"L",AAMC!$A$2:$W$4000,10,FALSE)/1000,IFERROR(VLOOKUP($F29&$G29&$H29&$M29&COMP!$D$84&$I29&"L",MGMAC!$A$2:$W$4000,10,FALSE)/1000,IFERROR(VLOOKUP($F29&$G29&$H29&$M29&COMP!$D$84&$I29&"L",MGMACP!$A$2:$W$4000,10,FALSE)/1000,"no data")))) -> no data | AF29: =IF($F29="SPEC",COMP!L$90/1000,IFERROR(VLOOKUP($F29&$G29&$H29&$M29&COMP!$D$84&$I29&"L",AAMC!$A$2:$W$4000,15,FALSE)/1000,IFERROR(VLOOKUP($F29&$G29&$H29&$M29&COMP!$D$84&$I29&"L",MGMAC!$A$2:$W$4000,15,FALSE)/1000,IFERROR(VLOOKUP($F29&$G29&$H29&$M29&COMP!$D$84&$I29&"L",MGMACP!$A$2:$W$4000,15,FALSE)/1000,"no data")))) -> no data | AG29: =IF($F29="SPEC",COMP!M$90/1000,IFERROR(VLOOKUP($F29&$G29&$H29&$M29&COMP!$D$84&$I29&"L",AAMC!$A$2:$W$4000,20,FALSE)/1000,IFERROR(VLOOKUP($F29&$G29&$H29&$M29&COMP!$D$84&$I29&"L",MGMAC!$A$2:$W$4000,20,FALSE)/1000,IFERROR(VLOOKUP($F29&$G29&$H29&$M29&COMP!$D$84&$I29&"L",MGMACP!$A$2:$W$4000,20,FALSE)/1000,"no data")))) -> no data | AI29: 0 | AJ29: 0 | AK29: 0 | AL29: 0 | AM29: 0 | AO29: 1 | AP29: 0 | AQ29: =IF($J29=0,0,IF($B29="SPEC",COMP!$L$102,IF($B29="FPSC",IFERROR(VLOOKUP($B29&$C29&$D29&$E29&"L",FPSC!$A$2:$W$4000,13,FALSE),"no data"),IF(B29&C29="MGMAAcademic",IFERROR(VLOOKUP($B29&$C29&$D29&$E29&"L",MGMAR!$A$2:$W$4000,13,FALSE),"no data"),IFERROR(VLOOKUP($B29&$C29&$D29&$E29&"L",MGMARP!$A$2:$W$4000,13,FALSE),"no data"))))) -> 0 | AR29: 0 | AS29: 0 | AT29: 0 | AU29: 0 | AV29: 0 | AW29: 0 | AX29: 0 | AY29: 0 | AZ29: 0 | BA29: 0 | BC29: 0
A30: 0 | B30: FPSC | C30: Academic | D30: All | E30: =IF($B30="MGMA",COMP!$D$86,IF($B30="FPSC",COMP!$D$85,IF($B30="SPEC",COMP!$K$103,"no data"))) -> [select] | F30: AAMC | G30: Academic | H30: All | I30: =IF($F30="AAMC",COMP!$D$83,IF($F30="MGMA",COMP!$D$86,IF($F30="SPEC",COMP!$K$91,"no data"))) -> [select] | P30: 0 | Q30: 0 | R30: 0 | S30: 0 | T30: 0 | U30: 0 | V30: 0 | X30: 0 | Y30: 0 | Z30: 0 | AA30: 0 | AB30: 0 | AC30: 0 | AD30: 0 | AE30: =IF($F30="SPEC",COMP!K$90/1000,IFERROR(VLOOKUP($F30&$G30&$H30&$M30&COMP!$D$84&$I30&"L",AAMC!$A$2:$W$4000,10,FALSE)/1000,IFERROR(VLOOKUP($F30&$G30&$H30&$M30&COMP!$D$84&$I30&"L",MGMAC!$A$2:$W$4000,10,FALSE)/1000,IFERROR(VLOOKUP($F30&$G30&$H30&$M30&COMP!$D$84&$I30&"L",MGMACP!$A$2:$W$4000,10,FALSE)/1000,"no data")))) -> no data | AF30: =IF($F30="SPEC",COMP!L$90/1000,IFERROR(VLOOKUP($F30&$G30&$H30&$M30&COMP!$D$84&$I30&"L",AAMC!$A$2:$W$4000,15,FALSE)/1000,IFERROR(VLOOKUP($F30&$G30&$H30&$M30&COMP!$D$84&$I30&"L",MGMAC!$A$2:$W$4000,15,FALSE)/1000,IFERROR(VLOOKUP($F30&$G30&$H30&$M30&COMP!$D$84&$I30&"L",MGMACP!$A$2:$W$4000,15,FALSE)/1000,"no data")))) -> no data | AG30: =IF($F30="SPEC",COMP!M$90/1000,IFERROR(VLOOKUP($F30&$G30&$H30&$M30&COMP!$D$84&$I30&"L",AAMC!$A$2:$W$4000,20,FALSE)/1000,IFERROR(VLOOKUP($F30&$G30&$H30&$M30&COMP!$D$84&$I30&"L",MGMAC!$A$2:$W$4000,20,FALSE)/1000,IFERROR(VLOOKUP($F30&$G30&$H30&$M30&COMP!$D$84&$I30&"L",MGMACP!$A$2:$W$4000,20,FALSE)/1000,"no data")))) -> no data | AI30: 0 | AJ30: 0 | AK30: 0 | AL30: 0 | AM30: 0 | AO30: 1 | AP30: 0 | AQ30: =IF($J30=0,0,IF($B30="SPEC",COMP!$L$102,IF($B30="FPSC",IFERROR(VLOOKUP($B30&$C30&$D30&$E30&"L",FPSC!$A$2:$W$4000,13,FALSE),"no data"),IF(B30&C30="MGMAAcademic",IFERROR(VLOOKUP($B30&$C30&$D30&$E30&"L",MGMAR!$A$2:$W$4000,13,FALSE),"no data"),IFERROR(VLOOKUP($B30&$C30&$D30&$E30&"L",MGMARP!$A$2:$W$4000,13,FALSE),"no data"))))) -> 0 | AR30: 0 | AS30: 0 | AT30: 0 | AU30: 0 | AV30: 0 | AW30: 0 | AX30: 0 | AY30: 0 | AZ30: 0 | BA30: 0 | BC30: 0
A31: 0 | B31: FPSC | C31: Academic | D31: All | E31: =IF($B31="MGMA",COMP!$D$86,IF($B31="FPSC",COMP!$D$85,IF($B31="SPEC",COMP!$K$103,"no data"))) -> [select] | F31: AAMC | G31: Academic | H31: All | I31: =IF($F31="AAMC",COMP!$D$83,IF($F31="MGMA",COMP!$D$86,IF($F31="SPEC",COMP!$K$91,"no data"))) -> [select] | P31: 0 | Q31: 0 | R31: 0 | S31: 0 | T31: 0 | U31: 0 | V31: 0 | X31: 0 | Y31: 0 | Z31: 0 | AA31: 0 | AB31: 0 | AC31: 0 | AD31: 0 | AE31: =IF($F31="SPEC",COMP!K$90/1000,IFERROR(VLOOKUP($F31&$G31&$H31&$M31&COMP!$D$84&$I31&"L",AAMC!$A$2:$W$4000,10,FALSE)/1000,IFERROR(VLOOKUP($F31&$G31&$H31&$M31&COMP!$D$84&$I31&"L",MGMAC!$A$2:$W$4000,10,FALSE)/1000,IFERROR(VLOOKUP($F31&$G31&$H31&$M31&COMP!$D$84&$I31&"L",MGMACP!$A$2:$W$4000,10,FALSE)/1000,"no data")))) -> no data | AF31: =IF($F31="SPEC",COMP!L$90/1000,IFERROR(VLOOKUP($F31&$G31&$H31&$M31&COMP!$D$84&$I31&"L",AAMC!$A$2:$W$4000,15,FALSE)/1000,IFERROR(VLOOKUP($F31&$G31&$H31&$M31&COMP!$D$84&$I31&"L",MGMAC!$A$2:$W$4000,15,FALSE)/1000,IFERROR(VLOOKUP($F31&$G31&$H31&$M31&COMP!$D$84&$I31&"L",MGMACP!$A$2:$W$4000,15,FALSE)/1000,"no data")))) -> no data | AG31: =IF($F31="SPEC",COMP!M$90/1000,IFERROR(VLOOKUP($F31&$G31&$H31&$M31&COMP!$D$84&$I31&"L",AAMC!$A$2:$W$4000,20,FALSE)/1000,IFERROR(VLOOKUP($F31&$G31&$H31&$M31&COMP!$D$84&$I31&"L",MGMAC!$A$2:$W$4000,20,FALSE)/1000,IFERROR(VLOOKUP($F31&$G31&$H31&$M31&COMP!$D$84&$I31&"L",MGMACP!$A$2:$W$4000,20,FALSE)/1000,"no data")))) -> no data | AI31: 0 | AJ31: 0 | AK31: 0 | AL31: 0 | AM31: 0 | AO31: 1 | AP31: 0 | AQ31: =IF($J31=0,0,IF($B31="SPEC",COMP!$L$102,IF($B31="FPSC",IFERROR(VLOOKUP($B31&$C31&$D31&$E31&"L",FPSC!$A$2:$W$4000,13,FALSE),"no data"),IF(B31&C31="MGMAAcademic",IFERROR(VLOOKUP($B31&$C31&$D31&$E31&"L",MGMAR!$A$2:$W$4000,13,FALSE),"no data"),IFERROR(VLOOKUP($B31&$C31&$D31&$E31&"L",MGMARP!$A$2:$W$4000,13,FALSE),"no data"))))) -> 0 | AR31: 0 | AS31: 0 | AT31: 0 | AU31: 0 | AV31: 0 | AW31: 0 | AX31: 0 | AY31: 0 | AZ31: 0 | BA31: 0 | BC31: 0
A32: 0 | B32: FPSC | C32: Academic | D32: All | E32: =IF($B32="MGMA",COMP!$D$86,IF($B32="FPSC",COMP!$D$85,IF($B32="SPEC",COMP!$K$103,"no data"))) -> [select] | F32: AAMC | G32: Academic | H32: All | I32: =IF($F32="AAMC",COMP!$D$83,IF($F32="MGMA",COMP!$D$86,IF($F32="SPEC",COMP!$K$91,"no data"))) -> [select] | P32: 0 | Q32: 0 | R32: 0 | S32: 0 | T32: 0 | U32: 0 | V32: 0 | X32: 0 | Y32: 0 | Z32: 0 | AA32: 0 | AB32: 0 | AC32: 0 | AD32: 0 | AE32: =IF($F32="SPEC",COMP!K$90/1000,IFERROR(VLOOKUP($F32&$G32&$H32&$M32&COMP!$D$84&$I32&"L",AAMC!$A$2:$W$4000,10,FALSE)/1000,IFERROR(VLOOKUP($F32&$G32&$H32&$M32&COMP!$D$84&$I32&"L",MGMAC!$A$2:$W$4000,10,FALSE)/1000,IFERROR(VLOOKUP($F32&$G32&$H32&$M32&COMP!$D$84&$I32&"L",MGMACP!$A$2:$W$4000,10,FALSE)/1000,"no data")))) -> no data | AF32: =IF($F32="SPEC",COMP!L$90/1000,IFERROR(VLOOKUP($F32&$G32&$H32&$M32&COMP!$D$84&$I32&"L",AAMC!$A$2:$W$4000,15,FALSE)/1000,IFERROR(VLOOKUP($F32&$G32&$H32&$M32&COMP!$D$84&$I32&"L",MGMAC!$A$2:$W$4000,15,FALSE)/1000,IFERROR(VLOOKUP($F32&$G32&$H32&$M32&COMP!$D$84&$I32&"L",MGMACP!$A$2:$W$4000,15,FALSE)/1000,"no data")))) -> no data | AG32: =IF($F32="SPEC",COMP!M$90/1000,IFERROR(VLOOKUP($F32&$G32&$H32&$M32&COMP!$D$84&$I32&"L",AAMC!$A$2:$W$4000,20,FALSE)/1000,IFERROR(VLOOKUP($F32&$G32&$H32&$M32&COMP!$D$84&$I32&"L",MGMAC!$A$2:$W$4000,20,FALSE)/1000,IFERROR(VLOOKUP($F32&$G32&$H32&$M32&COMP!$D$84&$I32&"L",MGMACP!$A$2:$W$4000,20,FALSE)/1000,"no data")))) -> no data | AI32: 0 | AJ32: 0 | AK32: 0 | AL32: 0 | AM32: 0 | AO32: 1 | AP32: 0 | AQ32: =IF($J32=0,0,IF($B32="SPEC",COMP!$L$102,IF($B32="FPSC",IFERROR(VLOOKUP($B32&$C32&$D32&$E32&"L",FPSC!$A$2:$W$4000,13,FALSE),"no data"),IF(B32&C32="MGMAAcademic",IFERROR(VLOOKUP($B32&$C32&$D32&$E32&"L",MGMAR!$A$2:$W$4000,13,FALSE),"no data"),IFERROR(VLOOKUP($B32&$C32&$D32&$E32&"L",MGMARP!$A$2:$W$4000,13,FALSE),"no data"))))) -> 0 | AR32: 0 | AS32: 0 | AT32: 0 | AU32: 0 | AV32: 0 | AW32: 0 | AX32: 0 | AY32: 0 | AZ32: 0 | BA32: 0 | BC32: 0
A33: 0 | B33: FPSC | C33: Academic | D33: All | E33: =IF($B33="MGMA",COMP!$D$86,IF($B33="FPSC",COMP!$D$85,IF($B33="SPEC",COMP!$K$103,"no data"))) -> [select] | F33: AAMC | G33: Academic | H33: All | I33: =IF($F33="AAMC",COMP!$D$83,IF($F33="MGMA",COMP!$D$86,IF($F33="SPEC",COMP!$K$91,"no data"))) -> [select] | P33: 0 | Q33: 0 | R33: 0 | S33: 0 | T33: 0 | U33: 0 | V33: 0 | X33: 0 | Y33: 0 | Z33: 0 | AA33: 0 | AB33: 0 | AC33: 0 | AD33: 0 | AE33: =IF($F33="SPEC",COMP!K$90/1000,IFERROR(VLOOKUP($F33&$G33&$H33&$M33&COMP!$D$84&$I33&"L",AAMC!$A$2:$W$4000,10,FALSE)/1000,IFERROR(VLOOKUP($F33&$G33&$H33&$M33&COMP!$D$84&$I33&"L",MGMAC!$A$2:$W$4000,10,FALSE)/1000,IFERROR(VLOOKUP($F33&$G33&$H33&$M33&COMP!$D$84&$I33&"L",MGMACP!$A$2:$W$4000,10,FALSE)/1000,"no data")))) -> no data | AF33: =IF($F33="SPEC",COMP!L$90/1000,IFERROR(VLOOKUP($F33&$G33&$H33&$M33&COMP!$D$84&$I33&"L",AAMC!$A$2:$W$4000,15,FALSE)/1000,IFERROR(VLOOKUP($F33&$G33&$H33&$M33&COMP!$D$84&$I33&"L",MGMAC!$A$2:$W$4000,15,FALSE)/1000,IFERROR(VLOOKUP($F33&$G33&$H33&$M33&COMP!$D$84&$I33&"L",MGMACP!$A$2:$W$4000,15,FALSE)/1000,"no data")))) -> no data | AG33: =IF($F33="SPEC",COMP!M$90/1000,IFERROR(VLOOKUP($F33&$G33&$H33&$M33&COMP!$D$84&$I33&"L",AAMC!$A$2:$W$4000,20,FALSE)/1000,IFERROR(VLOOKUP($F33&$G33&$H33&$M33&COMP!$D$84&$I33&"L",MGMAC!$A$2:$W$4000,20,FALSE)/1000,IFERROR(VLOOKUP($F33&$G33&$H33&$M33&COMP!$D$84&$I33&"L",MGMACP!$A$2:$W$4000,20,FALSE)/1000,"no data")))) -> no data | AI33: 0 | AJ33: 0 | AK33: 0 | AL33: 0 | AM33: 0 | AO33: 1 | AP33: 0 | AQ33: =IF($J33=0,0,IF($B33="SPEC",COMP!$L$102,IF($B33="FPSC",IFERROR(VLOOKUP($B33&$C33&$D33&$E33&"L",FPSC!$A$2:$W$4000,13,FALSE),"no data"),IF(B33&C33="MGMAAcademic",IFERROR(VLOOKUP($B33&$C33&$D33&$E33&"L",MGMAR!$A$2:$W$4000,13,FALSE),"no data"),IFERROR(VLOOKUP($B33&$C33&$D33&$E33&"L",MGMARP!$A$2:$W$4000,13,FALSE),"no data"))))) -> 0 | AR33: 0 | AS33: 0 | AT33: 0 | AU33: 0 | AV33: 0 | AW33: 0 | AX33: 0 | AY33: 0 | AZ33: 0 | BA33: 0 | BC33: 0
A34: 0 | B34: FPSC | C34: Academic | D34: All | E34: =IF($B34="MGMA",COMP!$D$86,IF($B34="FPSC",COMP!$D$85,IF($B34="SPEC",COMP!$K$103,"no data"))) -> [select] | F34: AAMC | G34: Academic | H34: All | I34: =IF($F34="AAMC",COMP!$D$83,IF($F34="MGMA",COMP!$D$86,IF($F34="SPEC",COMP!$K$91,"no data"))) -> [select] | P34: 0 | Q34: 0 | R34: 0 | S34: 0 | T34: 0 | U34: 0 | V34: 0 | X34: 0 | Y34: 0 | Z34: 0 | AA34: 0 | AB34: 0 | AC34: 0 | AD34: 0 | AE34: =IF($F34="SPEC",COMP!K$90/1000,IFERROR(VLOOKUP($F34&$G34&$H34&$M34&COMP!$D$84&$I34&"L",AAMC!$A$2:$W$4000,10,FALSE)/1000,IFERROR(VLOOKUP($F34&$G34&$H34&$M34&COMP!$D$84&$I34&"L",MGMAC!$A$2:$W$4000,10,FALSE)/1000,IFERROR(VLOOKUP($F34&$G34&$H34&$M34&COMP!$D$84&$I34&"L",MGMACP!$A$2:$W$4000,10,FALSE)/1000,"no data")))) -> no data | AF34: =IF($F34="SPEC",COMP!L$90/1000,IFERROR(VLOOKUP($F34&$G34&$H34&$M34&COMP!$D$84&$I34&"L",AAMC!$A$2:$W$4000,15,FALSE)/1000,IFERROR(VLOOKUP($F34&$G34&$H34&$M34&COMP!$D$84&$I34&"L",MGMAC!$A$2:$W$4000,15,FALSE)/1000,IFERROR(VLOOKUP($F34&$G34&$H34&$M34&COMP!$D$84&$I34&"L",MGMACP!$A$2:$W$4000,15,FALSE)/1000,"no data")))) -> no data | AG34: =IF($F34="SPEC",COMP!M$90/1000,IFERROR(VLOOKUP($F34&$G34&$H34&$M34&COMP!$D$84&$I34&"L",AAMC!$A$2:$W$4000,20,FALSE)/1000,IFERROR(VLOOKUP($F34&$G34&$H34&$M34&COMP!$D$84&$I34&"L",MGMAC!$A$2:$W$4000,20,FALSE)/1000,IFERROR(VLOOKUP($F34&$G34&$H34&$M34&COMP!$D$84&$I34&"L",MGMACP!$A$2:$W$4000,20,FALSE)/1000,"no data")))) -> no data | AI34: 0 | AJ34: 0 | AK34: 0 | AL34: 0 | AM34: 0 | AO34: 1 | AP34: 0 | AQ34: =IF($J34=0,0,IF($B34="SPEC",COMP!$L$102,IF($B34="FPSC",IFERROR(VLOOKUP($B34&$C34&$D34&$E34&"L",FPSC!$A$2:$W$4000,13,FALSE),"no data"),IF(B34&C34="MGMAAcademic",IFERROR(VLOOKUP($B34&$C34&$D34&$E34&"L",MGMAR!$A$2:$W$4000,13,FALSE),"no data"),IFERROR(VLOOKUP($B34&$C34&$D34&$E34&"L",MGMARP!$A$2:$W$4000,13,FALSE),"no data"))))) -> 0 | AR34: 0 | AS34: 0 | AT34: 0 | AU34: 0 | AV34: 0 | AW34: 0 | AX34: 0 | AY34: 0 | AZ34: 0 | BA34: 0 | BC34: 0
A35: 0 | B35: FPSC | C35: Academic | D35: All | E35: =IF($B35="MGMA",COMP!$D$86,IF($B35="FPSC",COMP!$D$85,IF($B35="SPEC",COMP!$K$103,"no data"))) -> [select] | F35: AAMC | G35: Academic | H35: All | I35: =IF($F35="AAMC",COMP!$D$83,IF($F35="MGMA",COMP!$D$86,IF($F35="SPEC",COMP!$K$91,"no data"))) -> [select] | P35: 0 | Q35: 0 | R35: 0 | S35: 0 | T35: 0 | U35: 0 | V35: 0 | X35: 0 | Y35: 0 | Z35: 0 | AA35: 0 | AB35: 0 | AC35: 0 | AD35: 0 | AE35: =IF($F35="SPEC",COMP!K$90/1000,IFERROR(VLOOKUP($F35&$G35&$H35&$M35&COMP!$D$84&$I35&"L",AAMC!$A$2:$W$4000,10,FALSE)/1000,IFERROR(VLOOKUP($F35&$G35&$H35&$M35&COMP!$D$84&$I35&"L",MGMAC!$A$2:$W$4000,10,FALSE)/1000,IFERROR(VLOOKUP($F35&$G35&$H35&$M35&COMP!$D$84&$I35&"L",MGMACP!$A$2:$W$4000,10,FALSE)/1000,"no data")))) -> no data | AF35: =IF($F35="SPEC",COMP!L$90/1000,IFERROR(VLOOKUP($F35&$G35&$H35&$M35&COMP!$D$84&$I35&"L",AAMC!$A$2:$W$4000,15,FALSE)/1000,IFERROR(VLOOKUP($F35&$G35&$H35&$M35&COMP!$D$84&$I35&"L",MGMAC!$A$2:$W$4000,15,FALSE)/1000,IFERROR(VLOOKUP($F35&$G35&$H35&$M35&COMP!$D$84&$I35&"L",MGMACP!$A$2:$W$4000,15,FALSE)/1000,"no data")))) -> no data | AG35: =IF($F35="SPEC",COMP!M$90/1000,IFERROR(VLOOKUP($F35&$G35&$H35&$M35&COMP!$D$84&$I35&"L",AAMC!$A$2:$W$4000,20,FALSE)/1000,IFERROR(VLOOKUP($F35&$G35&$H35&$M35&COMP!$D$84&$I35&"L",MGMAC!$A$2:$W$4000,20,FALSE)/1000,IFERROR(VLOOKUP($F35&$G35&$H35&$M35&COMP!$D$84&$I35&"L",MGMACP!$A$2:$W$4000,20,FALSE)/1000,"no data")))) -> no data | AI35: 0 | AJ35: 0 | AK35: 0 | AL35: 0 | AM35: 0 | AO35: 1 | AP35: 0 | AQ35: =IF($J35=0,0,IF($B35="SPEC",COMP!$L$102,IF($B35="FPSC",IFERROR(VLOOKUP($B35&$C35&$D35&$E35&"L",FPSC!$A$2:$W$4000,13,FALSE),"no data"),IF(B35&C35="MGMAAcademic",IFERROR(VLOOKUP($B35&$C35&$D35&$E35&"L",MGMAR!$A$2:$W$4000,13,FALSE),"no data"),IFERROR(VLOOKUP($B35&$C35&$D35&$E35&"L",MGMARP!$A$2:$W$4000,13,FALSE),"no data"))))) -> 0 | AR35: 0 | AS35: 0 | AT35: 0 | AU35: 0 | AV35: 0 | AW35: 0 | AX35: 0 | AY35: 0 | AZ35: 0 | BA35: 0 | BC35: 0
A36: 0 | B36: FPSC | C36: Academic | D36: All | E36: =IF($B36="MGMA",COMP!$D$86,IF($B36="FPSC",COMP!$D$85,IF($B36="SPEC",COMP!$K$103,"no data"))) -> [select] | F36: AAMC | G36: Academic | H36: All | I36: =IF($F36="AAMC",COMP!$D$83,IF($F36="MGMA",COMP!$D$86,IF($F36="SPEC",COMP!$K$91,"no data"))) -> [select] | P36: 0 | Q36: 0 | R36: 0 | S36: 0 | T36: 0 | U36: 0 | V36: 0 | X36: 0 | Y36: 0 | Z36: 0 | AA36: 0 | AB36: 0 | AC36: 0 | AD36: 0 | AE36: =IF($F36="SPEC",COMP!K$90/1000,IFERROR(VLOOKUP($F36&$G36&$H36&$M36&COMP!$D$84&$I36&"L",AAMC!$A$2:$W$4000,10,FALSE)/1000,IFERROR(VLOOKUP($F36&$G36&$H36&$M36&COMP!$D$84&$I36&"L",MGMAC!$A$2:$W$4000,10,FALSE)/1000,IFERROR(VLOOKUP($F36&$G36&$H36&$M36&COMP!$D$84&$I36&"L",MGMACP!$A$2:$W$4000,10,FALSE)/1000,"no data")))) -> no data | AF36: =IF($F36="SPEC",COMP!L$90/1000,IFERROR(VLOOKUP($F36&$G36&$H36&$M36&COMP!$D$84&$I36&"L",AAMC!$A$2:$W$4000,15,FALSE)/1000,IFERROR(VLOOKUP($F36&$G36&$H36&$M36&COMP!$D$84&$I36&"L",MGMAC!$A$2:$W$4000,15,FALSE)/1000,IFERROR(VLOOKUP($F36&$G36&$H36&$M36&COMP!$D$84&$I36&"L",MGMACP!$A$2:$W$4000,15,FALSE)/1000,"no data")))) -> no data | AG36: =IF($F36="SPEC",COMP!M$90/1000,IFERROR(VLOOKUP($F36&$G36&$H36&$M36&COMP!$D$84&$I36&"L",AAMC!$A$2:$W$4000,20,FALSE)/1000,IFERROR(VLOOKUP($F36&$G36&$H36&$M36&COMP!$D$84&$I36&"L",MGMAC!$A$2:$W$4000,20,FALSE)/1000,IFERROR(VLOOKUP($F36&$G36&$H36&$M36&COMP!$D$84&$I36&"L",MGMACP!$A$2:$W$4000,20,FALSE)/1000,"no data")))) -> no data | AI36: 0 | AJ36: 0 | AK36: 0 | AL36: 0 | AM36: 0 | AO36: 1 | AP36: 0 | AQ36: =IF($J36=0,0,IF($B36="SPEC",COMP!$L$102,IF($B36="FPSC",IFERROR(VLOOKUP($B36&$C36&$D36&$E36&"L",FPSC!$A$2:$W$4000,13,FALSE),"no data"),IF(B36&C36="MGMAAcademic",IFERROR(VLOOKUP($B36&$C36&$D36&$E36&"L",MGMAR!$A$2:$W$4000,13,FALSE),"no data"),IFERROR(VLOOKUP($B36&$C36&$D36&$E36&"L",MGMARP!$A$2:$W$4000,13,FALSE),"no data"))))) -> 0 | AR36: 0 | AS36: 0 | AT36: 0 | AU36: 0 | AV36: 0 | AW36: 0 | AX36: 0 | AY36: 0 | AZ36: 0 | BA36: 0 | BC36: 0
A37: 0 | B37: FPSC | C37: Academic | D37: All | E37: =IF($B37="MGMA",COMP!$D$86,IF($B37="FPSC",COMP!$D$85,IF($B37="SPEC",COMP!$K$103,"no data"))) -> [select] | F37: AAMC | G37: Academic | H37: All | I37: =IF($F37="AAMC",COMP!$D$83,IF($F37="MGMA",COMP!$D$86,IF($F37="SPEC",COMP!$K$91,"no data"))) -> [select] | P37: 0 | Q37: 0 | R37: 0 | S37: 0 | T37: 0 | U37: 0 | V37: 0 | X37: 0 | Y37: 0 | Z37: 0 | AA37: 0 | AB37: 0 | AC37: 0 | AD37: 0 | AE37: =IF($F37="SPEC",COMP!K$90/1000,IFERROR(VLOOKUP($F37&$G37&$H37&$M37&COMP!$D$84&$I37&"L",AAMC!$A$2:$W$4000,10,FALSE)/1000,IFERROR(VLOOKUP($F37&$G37&$H37&$M37&COMP!$D$84&$I37&"L",MGMAC!$A$2:$W$4000,10,FALSE)/1000,IFERROR(VLOOKUP($F37&$G37&$H37&$M37&COMP!$D$84&$I37&"L",MGMACP!$A$2:$W$4000,10,FALSE)/1000,"no data")))) -> no data | AF37: =IF($F37="SPEC",COMP!L$90/1000,IFERROR(VLOOKUP($F37&$G37&$H37&$M37&COMP!$D$84&$I37&"L",AAMC!$A$2:$W$4000,15,FALSE)/1000,IFERROR(VLOOKUP($F37&$G37&$H37&$M37&COMP!$D$84&$I37&"L",MGMAC!$A$2:$W$4000,15,FALSE)/1000,IFERROR(VLOOKUP($F37&$G37&$H37&$M37&COMP!$D$84&$I37&"L",MGMACP!$A$2:$W$4000,15,FALSE)/1000,"no data")))) -> no data | AG37: =IF($F37="SPEC",COMP!M$90/1000,IFERROR(VLOOKUP($F37&$G37&$H37&$M37&COMP!$D$84&$I37&"L",AAMC!$A$2:$W$4000,20,FALSE)/1000,IFERROR(VLOOKUP($F37&$G37&$H37&$M37&COMP!$D$84&$I37&"L",MGMAC!$A$2:$W$4000,20,FALSE)/1000,IFERROR(VLOOKUP($F37&$G37&$H37&$M37&COMP!$D$84&$I37&"L",MGMACP!$A$2:$W$4000,20,FALSE)/1000,"no data")))) -> no data | AI37: 0 | AJ37: 0 | AK37: 0 | AL37: 0 | AM37: 0 | AO37: 1 | AP37: 0 | AQ37: =IF($J37=0,0,IF($B37="SPEC",COMP!$L$102,IF($B37="FPSC",IFERROR(VLOOKUP($B37&$C37&$D37&$E37&"L",FPSC!$A$2:$W$4000,13,FALSE),"no data"),IF(B37&C37="MGMAAcademic",IFERROR(VLOOKUP($B37&$C37&$D37&$E37&"L",MGMAR!$A$2:$W$4000,13,FALSE),"no data"),IFERROR(VLOOKUP($B37&$C37&$D37&$E37&"L",MGMARP!$A$2:$W$4000,13,FALSE),"no data"))))) -> 0 | AR37: 0 | AS37: 0 | AT37: 0 | AU37: 0 | AV37: 0 | AW37: 0 | AX37: 0 | AY37: 0 | AZ37: 0 | BA37: 0 | BC37: 0
A38: 0 | B38: FPSC | C38: Academic | D38: All | E38: =IF($B38="MGMA",COMP!$D$86,IF($B38="FPSC",COMP!$D$85,IF($B38="SPEC",COMP!$K$103,"no data"))) -> [select] | F38: AAMC | G38: Academic | H38: All | I38: =IF($F38="AAMC",COMP!$D$83,IF($F38="MGMA",COMP!$D$86,IF($F38="SPEC",COMP!$K$91,"no data"))) -> [select] | P38: 0 | Q38: 0 | R38: 0 | S38: 0 | T38: 0 | U38: 0 | V38: 0 | X38: 0 | Y38: 0 | Z38: 0 | AA38: 0 | AB38: 0 | AC38: 0 | AD38: 0 | AE38: =IF($F38="SPEC",COMP!K$90/1000,IFERROR(VLOOKUP($F38&$G38&$H38&$M38&COMP!$D$84&$I38&"L",AAMC!$A$2:$W$4000,10,FALSE)/1000,IFERROR(VLOOKUP($F38&$G38&$H38&$M38&COMP!$D$84&$I38&"L",MGMAC!$A$2:$W$4000,10,FALSE)/1000,IFERROR(VLOOKUP($F38&$G38&$H38&$M38&COMP!$D$84&$I38&"L",MGMACP!$A$2:$W$4000,10,FALSE)/1000,"no data")))) -> no data | AF38: =IF($F38="SPEC",COMP!L$90/1000,IFERROR(VLOOKUP($F38&$G38&$H38&$M38&COMP!$D$84&$I38&"L",AAMC!$A$2:$W$4000,15,FALSE)/1000,IFERROR(VLOOKUP($F38&$G38&$H38&$M38&COMP!$D$84&$I38&"L",MGMAC!$A$2:$W$4000,15,FALSE)/1000,IFERROR(VLOOKUP($F38&$G38&$H38&$M38&COMP!$D$84&$I38&"L",MGMACP!$A$2:$W$4000,15,FALSE)/1000,"no data")))) -> no data | AG38: =IF($F38="SPEC",COMP!M$90/1000,IFERROR(VLOOKUP($F38&$G38&$H38&$M38&COMP!$D$84&$I38&"L",AAMC!$A$2:$W$4000,20,FALSE)/1000,IFERROR(VLOOKUP($F38&$G38&$H38&$M38&COMP!$D$84&$I38&"L",MGMAC!$A$2:$W$4000,20,FALSE)/1000,IFERROR(VLOOKUP($F38&$G38&$H38&$M38&COMP!$D$84&$I38&"L",MGMACP!$A$2:$W$4000,20,FALSE)/1000,"no data")))) -> no data | AI38: 0 | AJ38: 0 | AK38: 0 | AL38: 0 | AM38: 0 | AO38: 1 | AP38: 0 | AQ38: =IF($J38=0,0,IF($B38="SPEC",COMP!$L$102,IF($B38="FPSC",IFERROR(VLOOKUP($B38&$C38&$D38&$E38&"L",FPSC!$A$2:$W$4000,13,FALSE),"no data"),IF(B38&C38="MGMAAcademic",IFERROR(VLOOKUP($B38&$C38&$D38&$E38&"L",MGMAR!$A$2:$W$4000,13,FALSE),"no data"),IFERROR(VLOOKUP($B38&$C38&$D38&$E38&"L",MGMARP!$A$2:$W$4000,13,FALSE),"no data"))))) -> 0 | AR38: 0 | AS38: 0 | AT38: 0 | AU38: 0 | AV38: 0 | AW38: 0 | AX38: 0 | AY38: 0 | AZ38: 0 | BA38: 0 | BC38: 0
A39: 0 | B39: FPSC | C39: Academic | D39: All | E39: =IF($B39="MGMA",COMP!$D$86,IF($B39="FPSC",COMP!$D$85,IF($B39="SPEC",COMP!$K$103,"no data"))) -> [select] | F39: AAMC | G39: Academic | H39: All | I39: =IF($F39="AAMC",COMP!$D$83,IF($F39="MGMA",COMP!$D$86,IF($F39="SPEC",COMP!$K$91,"no data"))) -> [select] | P39: 0 | Q39: 0 | R39: 0 | S39: 0 | T39: 0 | U39: 0 | V39: 0 | X39: 0 | Y39: 0 | Z39: 0 | AA39: 0 | AB39: 0 | AC39: =+AB39+AA39+X39 -> 0 | AD39: 0 | AE39: =IF($F39="SPEC",COMP!K$90/1000,IFERROR(VLOOKUP($F39&$G39&$H39&$M39&COMP!$D$84&$I39&"L",AAMC!$A$2:$W$4000,10,FALSE)/1000,IFERROR(VLOOKUP($F39&$G39&$H39&$M39&COMP!$D$84&$I39&"L",MGMAC!$A$2:$W$4000,10,FALSE)/1000,IFERROR(VLOOKUP($F39&$G39&$H39&$M39&COMP!$D$84&$I39&"L",MGMACP!$A$2:$W$4000,10,FALSE)/1000,"no data")))) -> no data | AF39: =IF($F39="SPEC",COMP!L$90/1000,IFERROR(VLOOKUP($F39&$G39&$H39&$M39&COMP!$D$84&$I39&"L",AAMC!$A$2:$W$4000,15,FALSE)/1000,IFERROR(VLOOKUP($F39&$G39&$H39&$M39&COMP!$D$84&$I39&"L",MGMAC!$A$2:$W$4000,15,FALSE)/1000,IFERROR(VLOOKUP($F39&$G39&$H39&$M39&COMP!$D$84&$I39&"L",MGMACP!$A$2:$W$4000,15,FALSE)/1000,"no data")))) -> no data | AG39: =IF($F39="SPEC",COMP!M$90/1000,IFERROR(VLOOKUP($F39&$G39&$H39&$M39&COMP!$D$84&$I39&"L",AAMC!$A$2:$W$4000,20,FALSE)/1000,IFERROR(VLOOKUP($F39&$G39&$H39&$M39&COMP!$D$84&$I39&"L",MGMAC!$A$2:$W$4000,20,FALSE)/1000,IFERROR(VLOOKUP($F39&$G39&$H39&$M39&COMP!$D$84&$I39&"L",MGMACP!$A$2:$W$4000,20,FALSE)/1000,"no data")))) -> no data | AI39: 0 | AJ39: 0 | AK39: 0 | AL39: 0 | AM39: 0 | AO39: 1 | AP39: 0 | AQ39: =IF($J39=0,0,IF($B39="SPEC",COMP!$L$102,IF($B39="FPSC",IFERROR(VLOOKUP($B39&$C39&$D39&$E39&"L",FPSC!$A$2:$W$4000,13,FALSE),"no data"),IF(B39&C39="MGMAAcademic",IFERROR(VLOOKUP($B39&$C39&$D39&$E39&"L",MGMAR!$A$2:$W$4000,13,FALSE),"no data"),IFERROR(VLOOKUP($B39&$C39&$D39&$E39&"L",MGMARP!$A$2:$W$4000,13,FALSE),"no data"))))) -> 0 | AR39: 0 | AS39: 0 | AT39: 0 | AU39: 0 | AV39: 0 | AW39: 0 | AX39: 0 | AY39: 0 | AZ39: 0 | BA39: 0 | BC39: 0
A40: 0 | B40: FPSC | C40: Academic | D40: All | E40: =IF($B40="MGMA",COMP!$D$86,IF($B40="FPSC",COMP!$D$85,IF($B40="SPEC",COMP!$K$103,"no data"))) -> [select] | F40: AAMC | G40: Academic | H40: All | I40: =IF($F40="AAMC",COMP!$D$83,IF($F40="MGMA",COMP!$D$86,IF($F40="SPEC",COMP!$K$91,"no data"))) -> [select] | P40: 0 | Q40: 0 | R40: 0 | S40: 0 | T40: 0 | U40: 0 | V40: 0 | X40: 0 | Y40: 0 | Z40: 0 | AA40: 0 | AB40: 0 | AC40: 0 | AD40: 0 | AE40: =IF($F40="SPEC",COMP!K$90/1000,IFERROR(VLOOKUP($F40&$G40&$H40&$M40&COMP!$D$84&$I40&"L",AAMC!$A$2:$W$4000,10,FALSE)/1000,IFERROR(VLOOKUP($F40&$G40&$H40&$M40&COMP!$D$84&$I40&"L",MGMAC!$A$2:$W$4000,10,FALSE)/1000,IFERROR(VLOOKUP($F40&$G40&$H40&$M40&COMP!$D$84&$I40&"L",MGMACP!$A$2:$W$4000,10,FALSE)/1000,"no data")))) -> no data | AF40: =IF($F40="SPEC",COMP!L$90/1000,IFERROR(VLOOKUP($F40&$G40&$H40&$M40&COMP!$D$84&$I40&"L",AAMC!$A$2:$W$4000,15,FALSE)/1000,IFERROR(VLOOKUP($F40&$G40&$H40&$M40&COMP!$D$84&$I40&"L",MGMAC!$A$2:$W$4000,15,FALSE)/1000,IFERROR(VLOOKUP($F40&$G40&$H40&$M40&COMP!$D$84&$I40&"L",MGMACP!$A$2:$W$4000,15,FALSE)/1000,"no data")))) -> no data | AG40: =IF($F40="SPEC",COMP!M$90/1000,IFERROR(VLOOKUP($F40&$G40&$H40&$M40&COMP!$D$84&$I40&"L",AAMC!$A$2:$W$4000,20,FALSE)/1000,IFERROR(VLOOKUP($F40&$G40&$H40&$M40&COMP!$D$84&$I40&"L",MGMAC!$A$2:$W$4000,20,FALSE)/1000,IFERROR(VLOOKUP($F40&$G40&$H40&$M40&COMP!$D$84&$I40&"L",MGMACP!$A$2:$W$4000,20,FALSE)/1000,"no data")))) -> no data | AI40: 0 | AJ40: 0 | AK40: 0 | AL40: 0 | AM40: 0 | AO40: 1 | AP40: 0 | AQ40: =IF($J40=0,0,IF($B40="SPEC",COMP!$L$102,IF($B40="FPSC",IFERROR(VLOOKUP($B40&$C40&$D40&$E40&"L",FPSC!$A$2:$W$4000,13,FALSE),"no data"),IF(B40&C40="MGMAAcademic",IFERROR(VLOOKUP($B40&$C40&$D40&$E40&"L",MGMAR!$A$2:$W$4000,13,FALSE),"no data"),IFERROR(VLOOKUP($B40&$C40&$D40&$E40&"L",MGMARP!$A$2:$W$4000,13,FALSE),"no data"))))) -> 0 | AR40: 0 | AS40: 0 | AT40: 0 | AU40: 0 | AV40: 0 | AW40: 0 | AX40: 0 | AY40: 0 | AZ40: 0 | BA40: 0 | BC40: 0
A41: 0 | B41: FPSC | C41: Academic | D41: All | E41: =IF($B41="MGMA",COMP!$D$86,IF($B41="FPSC",COMP!$D$85,IF($B41="SPEC",COMP!$K$103,"no data"))) -> [select] | F41: AAMC | G41: Academic | H41: All | I41: =IF($F41="AAMC",COMP!$D$83,IF($F41="MGMA",COMP!$D$86,IF($F41="SPEC",COMP!$K$91,"no data"))) -> [select] | P41: 0 | Q41: 0 | R41: 0 | S41: 0 | T41: 0 | U41: 0 | V41: 0 | X41: 0 | Y41: 0 | Z41: 0 | AA41: 0 | AB41: 0 | AC41: 0 | AD41: 0 | AE41: =IF($F41="SPEC",COMP!K$90/1000,IFERROR(VLOOKUP($F41&$G41&$H41&$M41&COMP!$D$84&$I41&"L",AAMC!$A$2:$W$4000,10,FALSE)/1000,IFERROR(VLOOKUP($F41&$G41&$H41&$M41&COMP!$D$84&$I41&"L",MGMAC!$A$2:$W$4000,10,FALSE)/1000,IFERROR(VLOOKUP($F41&$G41&$H41&$M41&COMP!$D$84&$I41&"L",MGMACP!$A$2:$W$4000,10,FALSE)/1000,"no data")))) -> no data | AF41: =IF($F41="SPEC",COMP!L$90/1000,IFERROR(VLOOKUP($F41&$G41&$H41&$M41&COMP!$D$84&$I41&"L",AAMC!$A$2:$W$4000,15,FALSE)/1000,IFERROR(VLOOKUP($F41&$G41&$H41&$M41&COMP!$D$84&$I41&"L",MGMAC!$A$2:$W$4000,15,FALSE)/1000,IFERROR(VLOOKUP($F41&$G41&$H41&$M41&COMP!$D$84&$I41&"L",MGMACP!$A$2:$W$4000,15,FALSE)/1000,"no data")))) -> no data | AG41: =IF($F41="SPEC",COMP!M$90/1000,IFERROR(VLOOKUP($F41&$G41&$H41&$M41&COMP!$D$84&$I41&"L",AAMC!$A$2:$W$4000,20,FALSE)/1000,IFERROR(VLOOKUP($F41&$G41&$H41&$M41&COMP!$D$84&$I41&"L",MGMAC!$A$2:$W$4000,20,FALSE)/1000,IFERROR(VLOOKUP($F41&$G41&$H41&$M41&COMP!$D$84&$I41&"L",MGMACP!$A$2:$W$4000,20,FALSE)/1000,"no data")))) -> no data | AI41: 0 | AJ41: 0 | AK41: 0 | AL41: 0 | AM41: 0 | AO41: 1 | AP41: 0 | AQ41: =IF($J41=0,0,IF($B41="SPEC",COMP!$L$102,IF($B41="FPSC",IFERROR(VLOOKUP($B41&$C41&$D41&$E41&"L",FPSC!$A$2:$W$4000,13,FALSE),"no data"),IF(B41&C41="MGMAAcademic",IFERROR(VLOOKUP($B41&$C41&$D41&$E41&"L",MGMAR!$A$2:$W$4000,13,FALSE),"no data"),IFERROR(VLOOKUP($B41&$C41&$D41&$E41&"L",MGMARP!$A$2:$W$4000,13,FALSE),"no data"))))) -> 0 | AR41: 0 | AS41: 0 | AT41: 0 | AU41: 0 | AV41: 0 | AW41: 0 | AX41: 0 | AY41: 0 | AZ41: 0 | BA41: 0 | BC41: 0
A42: 0 | B42: FPSC | C42: Academic | D42: All | E42: =IF($B42="MGMA",COMP!$D$86,IF($B42="FPSC",COMP!$D$85,IF($B42="SPEC",COMP!$K$103,"no data"))) -> [select] | F42: AAMC | G42: Academic | H42: All | I42: =IF($F42="AAMC",COMP!$D$83,IF($F42="MGMA",COMP!$D$86,IF($F42="SPEC",COMP!$K$91,"no data"))) -> [select] | P42: 0 | Q42: 0 | R42: 0 | S42: 0 | T42: 0 | U42: 0 | V42: 0 | X42: 0 | Y42: 0 | Z42: 0 | AA42: 0 | AB42: 0 | AC42: 0 | AD42: 0 | AE42: =IF($F42="SPEC",COMP!K$90/1000,IFERROR(VLOOKUP($F42&$G42&$H42&$M42&COMP!$D$84&$I42&"L",AAMC!$A$2:$W$4000,10,FALSE)/1000,IFERROR(VLOOKUP($F42&$G42&$H42&$M42&COMP!$D$84&$I42&"L",MGMAC!$A$2:$W$4000,10,FALSE)/1000,IFERROR(VLOOKUP($F42&$G42&$H42&$M42&COMP!$D$84&$I42&"L",MGMACP!$A$2:$W$4000,10,FALSE)/1000,"no data")))) -> no data | AF42: =IF($F42="SPEC",COMP!L$90/1000,IFERROR(VLOOKUP($F42&$G42&$H42&$M42&COMP!$D$84&$I42&"L",AAMC!$A$2:$W$4000,15,FALSE)/1000,IFERROR(VLOOKUP($F42&$G42&$H42&$M42&COMP!$D$84&$I42&"L",MGMAC!$A$2:$W$4000,15,FALSE)/1000,IFERROR(VLOOKUP($F42&$G42&$H42&$M42&COMP!$D$84&$I42&"L",MGMACP!$A$2:$W$4000,15,FALSE)/1000,"no data")))) -> no data | AG42: =IF($F42="SPEC",COMP!M$90/1000,IFERROR(VLOOKUP($F42&$G42&$H42&$M42&COMP!$D$84&$I42&"L",AAMC!$A$2:$W$4000,20,FALSE)/1000,IFERROR(VLOOKUP($F42&$G42&$H42&$M42&COMP!$D$84&$I42&"L",MGMAC!$A$2:$W$4000,20,FALSE)/1000,IFERROR(VLOOKUP($F42&$G42&$H42&$M42&COMP!$D$84&$I42&"L",MGMACP!$A$2:$W$4000,20,FALSE)/1000,"no data")))) -> no data | AI42: 0 | AJ42: 0 | AK42: 0 | AL42: 0 | AM42: 0 | AO42: 1 | AP42: 0 | AQ42: =IF($J42=0,0,IF($B42="SPEC",COMP!$L$102,IF($B42="FPSC",IFERROR(VLOOKUP($B42&$C42&$D42&$E42&"L",FPSC!$A$2:$W$4000,13,FALSE),"no data"),IF(B42&C42="MGMAAcademic",IFERROR(VLOOKUP($B42&$C42&$D42&$E42&"L",MGMAR!$A$2:$W$4000,13,FALSE),"no data"),IFERROR(VLOOKUP($B42&$C42&$D42&$E42&"L",MGMARP!$A$2:$W$4000,13,FALSE),"no data"))))) -> 0 | AR42: 0 | AS42: 0 | AT42: 0 | AU42: 0 | AV42: 0 | AW42: 0 | AX42: 0 | AY42: 0 | AZ42: 0 | BA42: 0 | BC42: 0
A43: 0 | B43: FPSC | C43: Academic | D43: All | E43: =IF($B43="MGMA",COMP!$D$86,IF($B43="FPSC",COMP!$D$85,IF($B43="SPEC",COMP!$K$103,"no data"))) -> [select] | F43: AAMC | G43: Academic | H43: All | I43: =IF($F43="AAMC",COMP!$D$83,IF($F43="MGMA",COMP!$D$86,IF($F43="SPEC",COMP!$K$91,"no data"))) -> [select] | P43: 0 | Q43: 0 | R43: 0 | S43: 0 | T43: 0 | U43: 0 | V43: 0 | X43: 0 | Y43: 0 | Z43: 0 | AA43: 0 | AB43: 0 | AC43: 0 | AD43: 0 | AE43: =IF($F43="SPEC",COMP!K$90/1000,IFERROR(VLOOKUP($F43&$G43&$H43&$M43&COMP!$D$84&$I43&"L",AAMC!$A$2:$W$4000,10,FALSE)/1000,IFERROR(VLOOKUP($F43&$G43&$H43&$M43&COMP!$D$84&$I43&"L",MGMAC!$A$2:$W$4000,10,FALSE)/1000,IFERROR(VLOOKUP($F43&$G43&$H43&$M43&COMP!$D$84&$I43&"L",MGMACP!$A$2:$W$4000,10,FALSE)/1000,"no data")))) -> no data | AF43: =IF($F43="SPEC",COMP!L$90/1000,IFERROR(VLOOKUP($F43&$G43&$H43&$M43&COMP!$D$84&$I43&"L",AAMC!$A$2:$W$4000,15,FALSE)/1000,IFERROR(VLOOKUP($F43&$G43&$H43&$M43&COMP!$D$84&$I43&"L",MGMAC!$A$2:$W$4000,15,FALSE)/1000,IFERROR(VLOOKUP($F43&$G43&$H43&$M43&COMP!$D$84&$I43&"L",MGMACP!$A$2:$W$4000,15,FALSE)/1000,"no data")))) -> no data | AG43: =IF($F43="SPEC",COMP!M$90/1000,IFERROR(VLOOKUP($F43&$G43&$H43&$M43&COMP!$D$84&$I43&"L",AAMC!$A$2:$W$4000,20,FALSE)/1000,IFERROR(VLOOKUP($F43&$G43&$H43&$M43&COMP!$D$84&$I43&"L",MGMAC!$A$2:$W$4000,20,FALSE)/1000,IFERROR(VLOOKUP($F43&$G43&$H43&$M43&COMP!$D$84&$I43&"L",MGMACP!$A$2:$W$4000,20,FALSE)/1000,"no data")))) -> no data | AI43: 0 | AJ43: 0 | AK43: 0 | AL43: 0 | AM43: 0 | AO43: 1 | AP43: 0 | AQ43: =IF($J43=0,0,IF($B43="SPEC",COMP!$L$102,IF($B43="FPSC",IFERROR(VLOOKUP($B43&$C43&$D43&$E43&"L",FPSC!$A$2:$W$4000,13,FALSE),"no data"),IF(B43&C43="MGMAAcademic",IFERROR(VLOOKUP($B43&$C43&$D43&$E43&"L",MGMAR!$A$2:$W$4000,13,FALSE),"no data"),IFERROR(VLOOKUP($B43&$C43&$D43&$E43&"L",MGMARP!$A$2:$W$4000,13,FALSE),"no data"))))) -> 0 | AR43: 0 | AS43: 0 | AT43: 0 | AU43: 0 | AV43: 0 | AW43: 0 | AX43: 0 | AY43: 0 | AZ43: 0 | BA43: 0 | BC43: 0
A44: 0 | B44: FPSC | C44: Academic | D44: All | E44: =IF($B44="MGMA",COMP!$D$86,IF($B44="FPSC",COMP!$D$85,IF($B44="SPEC",COMP!$K$103,"no data"))) -> [select] | F44: AAMC | G44: Academic | H44: All | I44: =IF($F44="AAMC",COMP!$D$83,IF($F44="MGMA",COMP!$D$86,IF($F44="SPEC",COMP!$K$91,"no data"))) -> [select] | P44: 0 | Q44: 0 | R44: 0 | S44: 0 | T44: 0 | U44: 0 | V44: 0 | X44: 0 | Y44: 0 | Z44: 0 | AA44: 0 | AB44: 0 | AC44: 0 | AD44: 0 | AE44: =IF($F44="SPEC",COMP!K$90/1000,IFERROR(VLOOKUP($F44&$G44&$H44&$M44&COMP!$D$84&$I44&"L",AAMC!$A$2:$W$4000,10,FALSE)/1000,IFERROR(VLOOKUP($F44&$G44&$H44&$M44&COMP!$D$84&$I44&"L",MGMAC!$A$2:$W$4000,10,FALSE)/1000,IFERROR(VLOOKUP($F44&$G44&$H44&$M44&COMP!$D$84&$I44&"L",MGMACP!$A$2:$W$4000,10,FALSE)/1000,"no data")))) -> no data | AF44: =IF($F44="SPEC",COMP!L$90/1000,IFERROR(VLOOKUP($F44&$G44&$H44&$M44&COMP!$D$84&$I44&"L",AAMC!$A$2:$W$4000,15,FALSE)/1000,IFERROR(VLOOKUP($F44&$G44&$H44&$M44&COMP!$D$84&$I44&"L",MGMAC!$A$2:$W$4000,15,FALSE)/1000,IFERROR(VLOOKUP($F44&$G44&$H44&$M44&COMP!$D$84&$I44&"L",MGMACP!$A$2:$W$4000,15,FALSE)/1000,"no data")))) -> no data | AG44: =IF($F44="SPEC",COMP!M$90/1000,IFERROR(VLOOKUP($F44&$G44&$H44&$M44&COMP!$D$84&$I44&"L",AAMC!$A$2:$W$4000,20,FALSE)/1000,IFERROR(VLOOKUP($F44&$G44&$H44&$M44&COMP!$D$84&$I44&"L",MGMAC!$A$2:$W$4000,20,FALSE)/1000,IFERROR(VLOOKUP($F44&$G44&$H44&$M44&COMP!$D$84&$I44&"L",MGMACP!$A$2:$W$4000,20,FALSE)/1000,"no data")))) -> no data | AI44: 0 | AJ44: 0 | AK44: 0 | AL44: 0 | AM44: 0 | AO44: 1 | AP44: 0 | AQ44: =IF($J44=0,0,IF($B44="SPEC",COMP!$L$102,IF($B44="FPSC",IFERROR(VLOOKUP($B44&$C44&$D44&$E44&"L",FPSC!$A$2:$W$4000,13,FALSE),"no data"),IF(B44&C44="MGMAAcademic",IFERROR(VLOOKUP($B44&$C44&$D44&$E44&"L",MGMAR!$A$2:$W$4000,13,FALSE),"no data"),IFERROR(VLOOKUP($B44&$C44&$D44&$E44&"L",MGMARP!$A$2:$W$4000,13,FALSE),"no data"))))) -> 0 | AR44: 0 | AS44: 0 | AT44: 0 | AU44: 0 | AV44: 0 | AW44: 0 | AX44: 0 | AY44: 0 | AZ44: 0 | BA44: 0 | BC44: 0
A45: 0 | B45: FPSC | C45: Academic | D45: All | E45: =IF($B45="MGMA",COMP!$D$86,IF($B45="FPSC",COMP!$D$85,IF($B45="SPEC",COMP!$K$103,"no data"))) -> [select] | F45: AAMC | G45: Academic | H45: All | I45: =IF($F45="AAMC",COMP!$D$83,IF($F45="MGMA",COMP!$D$86,IF($F45="SPEC",COMP!$K$91,"no data"))) -> [select] | P45: 0 | Q45: 0 | R45: 0 | S45: 0 | T45: 0 | U45: 0 | V45: 0 | X45: 0 | Y45: 0 | Z45: 0 | AA45: 0 | AB45: 0 | AC45: 0 | AD45: 0 | AE45: =IF($F45="SPEC",COMP!K$90/1000,IFERROR(VLOOKUP($F45&$G45&$H45&$M45&COMP!$D$84&$I45&"L",AAMC!$A$2:$W$4000,10,FALSE)/1000,IFERROR(VLOOKUP($F45&$G45&$H45&$M45&COMP!$D$84&$I45&"L",MGMAC!$A$2:$W$4000,10,FALSE)/1000,IFERROR(VLOOKUP($F45&$G45&$H45&$M45&COMP!$D$84&$I45&"L",MGMACP!$A$2:$W$4000,10,FALSE)/1000,"no data")))) -> no data | AF45: =IF($F45="SPEC",COMP!L$90/1000,IFERROR(VLOOKUP($F45&$G45&$H45&$M45&COMP!$D$84&$I45&"L",AAMC!$A$2:$W$4000,15,FALSE)/1000,IFERROR(VLOOKUP($F45&$G45&$H45&$M45&COMP!$D$84&$I45&"L",MGMAC!$A$2:$W$4000,15,FALSE)/1000,IFERROR(VLOOKUP($F45&$G45&$H45&$M45&COMP!$D$84&$I45&"L",MGMACP!$A$2:$W$4000,15,FALSE)/1000,"no data")))) -> no data | AG45: =IF($F45="SPEC",COMP!M$90/1000,IFERROR(VLOOKUP($F45&$G45&$H45&$M45&COMP!$D$84&$I45&"L",AAMC!$A$2:$W$4000,20,FALSE)/1000,IFERROR(VLOOKUP($F45&$G45&$H45&$M45&COMP!$D$84&$I45&"L",MGMAC!$A$2:$W$4000,20,FALSE)/1000,IFERROR(VLOOKUP($F45&$G45&$H45&$M45&COMP!$D$84&$I45&"L",MGMACP!$A$2:$W$4000,20,FALSE)/1000,"no data")))) -> no data | AI45: 0 | AJ45: 0 | AK45: 0 | AL45: 0 | AM45: 0 | AO45: 1 | AP45: 0 | AQ45: =IF($J45=0,0,IF($B45="SPEC",COMP!$L$102,IF($B45="FPSC",IFERROR(VLOOKUP($B45&$C45&$D45&$E45&"L",FPSC!$A$2:$W$4000,13,FALSE),"no data"),IF(B45&C45="MGMAAcademic",IFERROR(VLOOKUP($B45&$C45&$D45&$E45&"L",MGMAR!$A$2:$W$4000,13,FALSE),"no data"),IFERROR(VLOOKUP($B45&$C45&$D45&$E45&"L",MGMARP!$A$2:$W$4000,13,FALSE),"no data"))))) -> 0 | AR45: 0 | AS45: 0 | AT45: 0 | AU45: 0 | AV45: 0 | AW45: 0 | AX45: 0 | AY45: 0 | AZ45: 0 | BA45: 0 | BC45: 0
A46: 0 | B46: FPSC | C46: Academic | D46: All | E46: =IF($B46="MGMA",COMP!$D$86,IF($B46="FPSC",COMP!$D$85,IF($B46="SPEC",COMP!$K$103,"no data"))) -> [select] | F46: AAMC | G46: Academic | H46: All | I46: =IF($F46="AAMC",COMP!$D$83,IF($F46="MGMA",COMP!$D$86,IF($F46="SPEC",COMP!$K$91,"no data"))) -> [select] | P46: 0 | Q46: 0 | R46: 0 | S46: 0 | T46: 0 | U46: 0 | V46: 0 | X46: 0 | Y46: 0 | Z46: 0 | AA46: 0 | AB46: 0 | AC46: 0 | AD46: 0 | AE46: =IF($F46="SPEC",COMP!K$90/1000,IFERROR(VLOOKUP($F46&$G46&$H46&$M46&COMP!$D$84&$I46&"L",AAMC!$A$2:$W$4000,10,FALSE)/1000,IFERROR(VLOOKUP($F46&$G46&$H46&$M46&COMP!$D$84&$I46&"L",MGMAC!$A$2:$W$4000,10,FALSE)/1000,IFERROR(VLOOKUP($F46&$G46&$H46&$M46&COMP!$D$84&$I46&"L",MGMACP!$A$2:$W$4000,10,FALSE)/1000,"no data")))) -> no data | AF46: =IF($F46="SPEC",COMP!L$90/1000,IFERROR(VLOOKUP($F46&$G46&$H46&$M46&COMP!$D$84&$I46&"L",AAMC!$A$2:$W$4000,15,FALSE)/1000,IFERROR(VLOOKUP($F46&$G46&$H46&$M46&COMP!$D$84&$I46&"L",MGMAC!$A$2:$W$4000,15,FALSE)/1000,IFERROR(VLOOKUP($F46&$G46&$H46&$M46&COMP!$D$84&$I46&"L",MGMACP!$A$2:$W$4000,15,FALSE)/1000,"no data")))) -> no data | AG46: =IF($F46="SPEC",COMP!M$90/1000,IFERROR(VLOOKUP($F46&$G46&$H46&$M46&COMP!$D$84&$I46&"L",AAMC!$A$2:$W$4000,20,FALSE)/1000,IFERROR(VLOOKUP($F46&$G46&$H46&$M46&COMP!$D$84&$I46&"L",MGMAC!$A$2:$W$4000,20,FALSE)/1000,IFERROR(VLOOKUP($F46&$G46&$H46&$M46&COMP!$D$84&$I46&"L",MGMACP!$A$2:$W$4000,20,FALSE)/1000,"no data")))) -> no data | AI46: 0 | AJ46: 0 | AK46: 0 | AL46: 0 | AM46: 0 | AO46: 1 | AP46: 0 | AQ46: =IF($J46=0,0,IF($B46="SPEC",COMP!$L$102,IF($B46="FPSC",IFERROR(VLOOKUP($B46&$C46&$D46&$E46&"L",FPSC!$A$2:$W$4000,13,FALSE),"no data"),IF(B46&C46="MGMAAcademic",IFERROR(VLOOKUP($B46&$C46&$D46&$E46&"L",MGMAR!$A$2:$W$4000,13,FALSE),"no data"),IFERROR(VLOOKUP($B46&$C46&$D46&$E46&"L",MGMARP!$A$2:$W$4000,13,FALSE),"no data"))))) -> 0 | AR46: 0 | AS46: 0 | AT46: 0 | AU46: 0 | AV46: 0 | AW46: 0 | AX46: 0 | AY46: 0 | AZ46: 0 | BA46: 0 | BC46: 0
A47: 0 | B47: FPSC | C47: Academic | D47: All | E47: =IF($B47="MGMA",COMP!$D$86,IF($B47="FPSC",COMP!$D$85,IF($B47="SPEC",COMP!$K$103,"no data"))) -> [select] | F47: AAMC | G47: Academic | H47: All | I47: =IF($F47="AAMC",COMP!$D$83,IF($F47="MGMA",COMP!$D$86,IF($F47="SPEC",COMP!$K$91,"no data"))) -> [select] | P47: 0 | Q47: 0 | R47: 0 | S47: 0 | T47: 0 | U47: 0 | V47: 0 | X47: 0 | Y47: 0 | Z47: 0 | AA47: 0 | AB47: 0 | AC47: 0 | AD47: 0 | AE47: =IF($F47="SPEC",COMP!K$90/1000,IFERROR(VLOOKUP($F47&$G47&$H47&$M47&COMP!$D$84&$I47&"L",AAMC!$A$2:$W$4000,10,FALSE)/1000,IFERROR(VLOOKUP($F47&$G47&$H47&$M47&COMP!$D$84&$I47&"L",MGMAC!$A$2:$W$4000,10,FALSE)/1000,IFERROR(VLOOKUP($F47&$G47&$H47&$M47&COMP!$D$84&$I47&"L",MGMACP!$A$2:$W$4000,10,FALSE)/1000,"no data")))) -> no data | AF47: =IF($F47="SPEC",COMP!L$90/1000,IFERROR(VLOOKUP($F47&$G47&$H47&$M47&COMP!$D$84&$I47&"L",AAMC!$A$2:$W$4000,15,FALSE)/1000,IFERROR(VLOOKUP($F47&$G47&$H47&$M47&COMP!$D$84&$I47&"L",MGMAC!$A$2:$W$4000,15,FALSE)/1000,IFERROR(VLOOKUP($F47&$G47&$H47&$M47&COMP!$D$84&$I47&"L",MGMACP!$A$2:$W$4000,15,FALSE)/1000,"no data")))) -> no data | AG47: =IF($F47="SPEC",COMP!M$90/1000,IFERROR(VLOOKUP($F47&$G47&$H47&$M47&COMP!$D$84&$I47&"L",AAMC!$A$2:$W$4000,20,FALSE)/1000,IFERROR(VLOOKUP($F47&$G47&$H47&$M47&COMP!$D$84&$I47&"L",MGMAC!$A$2:$W$4000,20,FALSE)/1000,IFERROR(VLOOKUP($F47&$G47&$H47&$M47&COMP!$D$84&$I47&"L",MGMACP!$A$2:$W$4000,20,FALSE)/1000,"no data")))) -> no data | AI47: 0 | AJ47: 0 | AK47: 0 | AL47: 0 | AM47: 0 | AO47: 1 | AP47: 0 | AQ47: =IF($J47=0,0,IF($B47="SPEC",COMP!$L$102,IF($B47="FPSC",IFERROR(VLOOKUP($B47&$C47&$D47&$E47&"L",FPSC!$A$2:$W$4000,13,FALSE),"no data"),IF(B47&C47="MGMAAcademic",IFERROR(VLOOKUP($B47&$C47&$D47&$E47&"L",MGMAR!$A$2:$W$4000,13,FALSE),"no data"),IFERROR(VLOOKUP($B47&$C47&$D47&$E47&"L",MGMARP!$A$2:$W$4000,13,FALSE),"no data"))))) -> 0 | AR47: 0 | AS47: 0 | AT47: 0 | AU47: 0 | AV47: 0 | AW47: 0 | AX47: 0 | AY47: 0 | AZ47: 0 | BA47: 0 | BC47: 0
A48: 0 | B48: FPSC | C48: Academic | D48: All | E48: =IF($B48="MGMA",COMP!$D$86,IF($B48="FPSC",COMP!$D$85,IF($B48="SPEC",COMP!$K$103,"no data"))) -> [select] | F48: AAMC | G48: Academic | H48: All | I48: =IF($F48="AAMC",COMP!$D$83,IF($F48="MGMA",COMP!$D$86,IF($F48="SPEC",COMP!$K$91,"no data"))) -> [select] | P48: 0 | Q48: 0 | R48: 0 | S48: 0 | T48: 0 | U48: 0 | V48: 0 | X48: 0 | Y48: 0 | Z48: 0 | AA48: 0 | AB48: 0 | AC48: 0 | AD48: 0 | AE48: =IF($F48="SPEC",COMP!K$90/1000,IFERROR(VLOOKUP($F48&$G48&$H48&$M48&COMP!$D$84&$I48&"L",AAMC!$A$2:$W$4000,10,FALSE)/1000,IFERROR(VLOOKUP($F48&$G48&$H48&$M48&COMP!$D$84&$I48&"L",MGMAC!$A$2:$W$4000,10,FALSE)/1000,IFERROR(VLOOKUP($F48&$G48&$H48&$M48&COMP!$D$84&$I48&"L",MGMACP!$A$2:$W$4000,10,FALSE)/1000,"no data")))) -> no data | AF48: =IF($F48="SPEC",COMP!L$90/1000,IFERROR(VLOOKUP($F48&$G48&$H48&$M48&COMP!$D$84&$I48&"L",AAMC!$A$2:$W$4000,15,FALSE)/1000,IFERROR(VLOOKUP($F48&$G48&$H48&$M48&COMP!$D$84&$I48&"L",MGMAC!$A$2:$W$4000,15,FALSE)/1000,IFERROR(VLOOKUP($F48&$G48&$H48&$M48&COMP!$D$84&$I48&"L",MGMACP!$A$2:$W$4000,15,FALSE)/1000,"no data")))) -> no data | AG48: =IF($F48="SPEC",COMP!M$90/1000,IFERROR(VLOOKUP($F48&$G48&$H48&$M48&COMP!$D$84&$I48&"L",AAMC!$A$2:$W$4000,20,FALSE)/1000,IFERROR(VLOOKUP($F48&$G48&$H48&$M48&COMP!$D$84&$I48&"L",MGMAC!$A$2:$W$4000,20,FALSE)/1000,IFERROR(VLOOKUP($F48&$G48&$H48&$M48&COMP!$D$84&$I48&"L",MGMACP!$A$2:$W$4000,20,FALSE)/1000,"no data")))) -> no data | AI48: 0 | AJ48: 0 | AK48: 0 | AL48: 0 | AM48: 0 | AO48: 1 | AP48: 0 | AQ48: =IF($J48=0,0,IF($B48="SPEC",COMP!$L$102,IF($B48="FPSC",IFERROR(VLOOKUP($B48&$C48&$D48&$E48&"L",FPSC!$A$2:$W$4000,13,FALSE),"no data"),IF(B48&C48="MGMAAcademic",IFERROR(VLOOKUP($B48&$C48&$D48&$E48&"L",MGMAR!$A$2:$W$4000,13,FALSE),"no data"),IFERROR(VLOOKUP($B48&$C48&$D48&$E48&"L",MGMARP!$A$2:$W$4000,13,FALSE),"no data"))))) -> 0 | AR48: 0 | AS48: 0 | AT48: 0 | AU48: 0 | AV48: 0 | AW48: 0 | AX48: 0 | AY48: 0 | AZ48: 0 | BA48: 0 | BC48: 0
A49: 0 | B49: FPSC | C49: Academic | D49: All | E49: =IF($B49="MGMA",COMP!$D$86,IF($B49="FPSC",COMP!$D$85,IF($B49="SPEC",COMP!$K$103,"no data"))) -> [select] | F49: AAMC | G49: Academic | H49: All | I49: =IF($F49="AAMC",COMP!$D$83,IF($F49="MGMA",COMP!$D$86,IF($F49="SPEC",COMP!$K$91,"no data"))) -> [select] | P49: 0 | Q49: 0 | R49: 0 | S49: 0 | T49: 0 | U49: 0 | V49: 0 | X49: 0 | Y49: 0 | Z49: 0 | AA49: 0 | AB49: 0 | AC49: 0 | AD49: 0 | AE49: =IF($F49="SPEC",COMP!K$90/1000,IFERROR(VLOOKUP($F49&$G49&$H49&$M49&COMP!$D$84&$I49&"L",AAMC!$A$2:$W$4000,10,FALSE)/1000,IFERROR(VLOOKUP($F49&$G49&$H49&$M49&COMP!$D$84&$I49&"L",MGMAC!$A$2:$W$4000,10,FALSE)/1000,IFERROR(VLOOKUP($F49&$G49&$H49&$M49&COMP!$D$84&$I49&"L",MGMACP!$A$2:$W$4000,10,FALSE)/1000,"no data")))) -> no data | AF49: =IF($F49="SPEC",COMP!L$90/1000,IFERROR(VLOOKUP($F49&$G49&$H49&$M49&COMP!$D$84&$I49&"L",AAMC!$A$2:$W$4000,15,FALSE)/1000,IFERROR(VLOOKUP($F49&$G49&$H49&$M49&COMP!$D$84&$I49&"L",MGMAC!$A$2:$W$4000,15,FALSE)/1000,IFERROR(VLOOKUP($F49&$G49&$H49&$M49&COMP!$D$84&$I49&"L",MGMACP!$A$2:$W$4000,15,FALSE)/1000,"no data")))) -> no data | AG49: =IF($F49="SPEC",COMP!M$90/1000,IFERROR(VLOOKUP($F49&$G49&$H49&$M49&COMP!$D$84&$I49&"L",AAMC!$A$2:$W$4000,20,FALSE)/1000,IFERROR(VLOOKUP($F49&$G49&$H49&$M49&COMP!$D$84&$I49&"L",MGMAC!$A$2:$W$4000,20,FALSE)/1000,IFERROR(VLOOKUP($F49&$G49&$H49&$M49&COMP!$D$84&$I49&"L",MGMACP!$A$2:$W$4000,20,FALSE)/1000,"no data")))) -> no data | AI49: 0 | AJ49: 0 | AK49: 0 | AL49: 0 | AM49: 0 | AO49: 1 | AP49: 0 | AQ49: =IF($J49=0,0,IF($B49="SPEC",COMP!$L$102,IF($B49="FPSC",IFERROR(VLOOKUP($B49&$C49&$D49&$E49&"L",FPSC!$A$2:$W$4000,13,FALSE),"no data"),IF(B49&C49="MGMAAcademic",IFERROR(VLOOKUP($B49&$C49&$D49&$E49&"L",MGMAR!$A$2:$W$4000,13,FALSE),"no data"),IFERROR(VLOOKUP($B49&$C49&$D49&$E49&"L",MGMARP!$A$2:$W$4000,13,FALSE),"no data"))))) -> 0 | AR49: 0 | AS49: 0 | AT49: 0 | AU49: 0 | AV49: 0 | AW49: 0 | AX49: 0 | AY49: 0 | AZ49: 0 | BA49: 0 | BC49: 0
A50: 0 | B50: FPSC | C50: Academic | D50: All | E50: =IF($B50="MGMA",COMP!$D$86,IF($B50="FPSC",COMP!$D$85,IF($B50="SPEC",COMP!$K$103,"no data"))) -> [select] | F50: AAMC | G50: Academic | H50: All | I50: =IF($F50="AAMC",COMP!$D$83,IF($F50="MGMA",COMP!$D$86,IF($F50="SPEC",COMP!$K$91,"no data"))) -> [select] | P50: 0 | Q50: 0 | R50: 0 | S50: 0 | T50: 0 | U50: 0 | V50: 0 | X50: 0 | Y50: 0 | Z50: 0 | AA50: 0 | AB50: 0 | AC50: 0 | AD50: 0 | AE50: =IF($F50="SPEC",COMP!K$90/1000,IFERROR(VLOOKUP($F50&$G50&$H50&$M50&COMP!$D$84&$I50&"L",AAMC!$A$2:$W$4000,10,FALSE)/1000,IFERROR(VLOOKUP($F50&$G50&$H50&$M50&COMP!$D$84&$I50&"L",MGMAC!$A$2:$W$4000,10,FALSE)/1000,IFERROR(VLOOKUP($F50&$G50&$H50&$M50&COMP!$D$84&$I50&"L",MGMACP!$A$2:$W$4000,10,FALSE)/1000,"no data")))) -> no data | AF50: =IF($F50="SPEC",COMP!L$90/1000,IFERROR(VLOOKUP($F50&$G50&$H50&$M50&COMP!$D$84&$I50&"L",AAMC!$A$2:$W$4000,15,FALSE)/1000,IFERROR(VLOOKUP($F50&$G50&$H50&$M50&COMP!$D$84&$I50&"L",MGMAC!$A$2:$W$4000,15,FALSE)/1000,IFERROR(VLOOKUP($F50&$G50&$H50&$M50&COMP!$D$84&$I50&"L",MGMACP!$A$2:$W$4000,15,FALSE)/1000,"no data")))) -> no data | AG50: =IF($F50="SPEC",COMP!M$90/1000,IFERROR(VLOOKUP($F50&$G50&$H50&$M50&COMP!$D$84&$I50&"L",AAMC!$A$2:$W$4000,20,FALSE)/1000,IFERROR(VLOOKUP($F50&$G50&$H50&$M50&COMP!$D$84&$I50&"L",MGMAC!$A$2:$W$4000,20,FALSE)/1000,IFERROR(VLOOKUP($F50&$G50&$H50&$M50&COMP!$D$84&$I50&"L",MGMACP!$A$2:$W$4000,20,FALSE)/1000,"no data")))) -> no data | AI50: 0 | AJ50: 0 | AK50: 0 | AL50: 0 | AM50: 0 | AO50: 1 | AP50: 0 | AQ50: =IF($J50=0,0,IF($B50="SPEC",COMP!$L$102,IF($B50="FPSC",IFERROR(VLOOKUP($B50&$C50&$D50&$E50&"L",FPSC!$A$2:$W$4000,13,FALSE),"no data"),IF(B50&C50="MGMAAcademic",IFERROR(VLOOKUP($B50&$C50&$D50&$E50&"L",MGMAR!$A$2:$W$4000,13,FALSE),"no data"),IFERROR(VLOOKUP($B50&$C50&$D50&$E50&"L",MGMARP!$A$2:$W$4000,13,FALSE),"no data"))))) -> 0 | AR50: 0 | AS50: 0 | AT50: 0 | AU50: 0 | AV50: 0 | AW50: 0 | AX50: 0 | AY50: 0 | AZ50: 0 | BA50: 0 | BC50: 0
A51: 0 | B51: FPSC | C51: Academic | D51: All | E51: =IF($B51="MGMA",COMP!$D$86,IF($B51="FPSC",COMP!$D$85,IF($B51="SPEC",COMP!$K$103,"no data"))) -> [select] | F51: AAMC | G51: Academic | H51: All | I51: =IF($F51="AAMC",COMP!$D$83,IF($F51="MGMA",COMP!$D$86,IF($F51="SPEC",COMP!$K$91,"no data"))) -> [select] | P51: 0 | Q51: 0 | R51: 0 | S51: 0 | T51: 0 | U51: 0 | V51: 0 | X51: 0 | Y51: 0 | Z51: 0 | AA51: 0 | AB51: 0 | AC51: =+AB51+AA51+X51 -> 0 | AD51: 0 | AE51: =IF($F51="SPEC",COMP!K$90/1000,IFERROR(VLOOKUP($F51&$G51&$H51&$M51&COMP!$D$84&$I51&"L",AAMC!$A$2:$W$4000,10,FALSE)/1000,IFERROR(VLOOKUP($F51&$G51&$H51&$M51&COMP!$D$84&$I51&"L",MGMAC!$A$2:$W$4000,10,FALSE)/1000,IFERROR(VLOOKUP($F51&$G51&$H51&$M51&COMP!$D$84&$I51&"L",MGMACP!$A$2:$W$4000,10,FALSE)/1000,"no data")))) -> no data | AF51: =IF($F51="SPEC",COMP!L$90/1000,IFERROR(VLOOKUP($F51&$G51&$H51&$M51&COMP!$D$84&$I51&"L",AAMC!$A$2:$W$4000,15,FALSE)/1000,IFERROR(VLOOKUP($F51&$G51&$H51&$M51&COMP!$D$84&$I51&"L",MGMAC!$A$2:$W$4000,15,FALSE)/1000,IFERROR(VLOOKUP($F51&$G51&$H51&$M51&COMP!$D$84&$I51&"L",MGMACP!$A$2:$W$4000,15,FALSE)/1000,"no data")))) -> no data | AG51: =IF($F51="SPEC",COMP!M$90/1000,IFERROR(VLOOKUP($F51&$G51&$H51&$M51&COMP!$D$84&$I51&"L",AAMC!$A$2:$W$4000,20,FALSE)/1000,IFERROR(VLOOKUP($F51&$G51&$H51&$M51&COMP!$D$84&$I51&"L",MGMAC!$A$2:$W$4000,20,FALSE)/1000,IFERROR(VLOOKUP($F51&$G51&$H51&$M51&COMP!$D$84&$I51&"L",MGMACP!$A$2:$W$4000,20,FALSE)/1000,"no data")))) -> no data | AI51: 0 | AJ51: 0 | AK51: 0 | AL51: 0 | AM51: 0 | AO51: 1 | AP51: 0 | AQ51: =IF($J51=0,0,IF($B51="SPEC",COMP!$L$102,IF($B51="FPSC",IFERROR(VLOOKUP($B51&$C51&$D51&$E51&"L",FPSC!$A$2:$W$4000,13,FALSE),"no data"),IF(B51&C51="MGMAAcademic",IFERROR(VLOOKUP($B51&$C51&$D51&$E51&"L",MGMAR!$A$2:$W$4000,13,FALSE),"no data"),IFERROR(VLOOKUP($B51&$C51&$D51&$E51&"L",MGMARP!$A$2:$W$4000,13,FALSE),"no data"))))) -> 0 | AR51: 0 | AS51: 0 | AT51: 0 | AU51: 0 | AV51: 0 | AW51: 0 | AX51: 0 | AY51: 0 | AZ51: 0 | BA51: 0 | BC51: 0
A52: 1 | AC52: 0
A53: 1 | B53: Grand Totals | E53: Grand Totals | J53: =COUNTA(J9:J51)-1 -> 1 | P53: =SUM(P9:P51) -> 0 | Q53: 0 | R53: 0 | S53: =SUM(S9:S51) -> 0 | T53: 0 | U53: 0 | V53: 0 | X53: =SUM(X9:X51) -> 0 | Y53: =SUM(Y9:Y51)/(COUNT(Y12:Y51)+1) -> 0 | Z53: =SUM(Z9:Z51) -> 0 | AA53: 0 | AB53: 0 | AC53: 0 | AD53: 0 | AE53: 0 | AF53: 0 | AG53: 0 | AI53: =SUM(AI12:AI51) -> 0 | AJ53: =SUM(AJ12:AJ51) -> 0 | AK53: =SUM(AK12:AK51) -> 0 | AL53: =SUBTOTAL(9,AL12:AL52)+AL9 -> 0 | AM53: =SUM(AM12:AM51) -> 0 | AP53: =SUM(AP12:AP51) -> 0 | AQ53: =SUM(AQ9:AQ51) -> 0 | AR53: =SUM(AR9:AR51) -> 0 | AS53: =SUM(AS9:AS51) -> 0 | AT53: =SUM(AT9:AT51) -> 0 | BC53: =BG53/BF53 ->  | BF53: =COUNTIF(BC9:BC51,">0") -> 0 | BG53: =SUM(BC9:BC51) -> 0
A54: 1 | Y54: Avg | BC54: Avg
A55: 1 | AD55: Div Over/(Under) Median Benchmark: | AE55: =$AD$53-AE53 -> 0 | AF55: =$AD$53-AF53 -> 0 | AG55: =$AD$53-AG53 -> 0 | AS55: CFTE Above/(Below) Expectation: | AT55: =IF(AQ53=0,0,AT53/(AQ53/J53)) -> 0
A56: =IF(J57>0,1,0) -> 0
A57: =IF(J57>0,1,0) -> 0 | B57: =$B$9 -> FPSC | C57: =$C$9 -> Academic | D57: =$D$9 -> All | E57: =IF($B57="MGMA",COMP!$D$86,IF($B57="FPSC",COMP!$D$85,IF($B57="SPEC",COMP!$K$103,"no data"))) -> [select] | F57: =$F$9 -> AAMC | G57: =$G$9 -> Academic | H57: =$H$9 -> All | I57: =IF($F57="AAMC",COMP!$D$83,IF($F57="MGMA",COMP!$D$86,IF($F57="SPEC",COMP!$K$91,"no data"))) -> [select] | J57: 0 | P57: 0 | V57: =SUM(P57:U57) -> 0 | X57: 0 | Z57: 0 | AA57: 0 | AC57: =+AB57+AA57+X57 -> 0 | AD57: =IF(V57=0,0,AC57/V57) -> 0 | AE57: =IF($F57="SPEC",COMP!K$90/1000,IFERROR(VLOOKUP($F57&$G57&$H57&$M57&COMP!$D$84&$I57&"L",AAMC!#REF!,10,FALSE)/1000,IFERROR(VLOOKUP($F57&$G57&$H57&$M57&COMP!$D$84&$I57&"L",MGMAC!#REF!,10,FALSE)/1000,IFERROR(VLOOKUP($F57&$G57&$H57&$M57&COMP!$D$84&$I57&"L",MGMACP!#REF!,10,FALSE)/1000,"no data")))) -> no data | AF57: =IF($F57="SPEC",COMP!L$90/1000,IFERROR(VLOOKUP($F57&$G57&$H57&$M57&COMP!$D$84&$I57&"L",AAMC!#REF!,15,FALSE)/1000,IFERROR(VLOOKUP($F57&$G57&$H57&$M57&COMP!$D$84&$I57&"L",MGMAC!#REF!,15,FALSE)/1000,IFERROR(VLOOKUP($F57&$G57&$H57&$M57&COMP!$D$84&$I57&"L",MGMACP!#REF!,15,FALSE)/1000,"no data")))) -> no data | AG57: =IF($F57="SPEC",COMP!M$90/1000,IFERROR(VLOOKUP($F57&$G57&$H57&$M57&COMP!$D$84&$I57&"L",AAMC!#REF!,20,FALSE)/1000,IFERROR(VLOOKUP($F57&$G57&$H57&$M57&COMP!$D$84&$I57&"L",MGMAC!#REF!,20,FALSE)/1000,IFERROR(VLOOKUP($F57&$G57&$H57&$M57&COMP!$D$84&$I57&"L",MGMACP!#REF!,20,FALSE)/1000,"no data")))) -> no data | AI57: 0 | AJ57: 0 | AK57: 0 | AL57: 0 | AM57: 0 | AO57: =$AP$6 -> 1 | AP57: =AM57/$AP$6*12 -> 0 | AQ57: =IF($J57=0,0,IF($B57="SPEC",COMP!$L$102,IF($B57="FPSC",IFERROR(VLOOKUP($B57&$C57&$D57&$E57&"L",FPSC!#REF!,13,FALSE),"no data"),IF(B57&C57="MGMAAcademic",IFERROR(VLOOKUP($B57&$C57&$D57&$E57&"L",MGMAR!#REF!,13,FALSE),"no data"),IFERROR(VLOOKUP($B57&$C57&$D57&$E57&"L",MGMARP!#REF!,13,FALSE),"no data"))))) -> 0 | AR57: =AQ57*T57 -> 0 | AS57: =IF($AS$5="Prior",AK57,AP57) -> 0 | AT57: =IFERROR(AS57-AR57,0) -> 0 | AU57: =IF(J57>0,IF(K57=0,1,0),0) -> 0 | AV57: =IF(J57>0,IF(L57=0,1,0),0) -> 0 | AW57: =IF(J57>0,IF(M57=0,1,0),0) -> 0 | AX57: =IF(J57>0,IF(V57=0,1,0),0) -> 0 | AY57: =IF(J57>0,IF(AC57=0,1,0),0) -> 0 | AZ57: =IF($M$9=M57,1,0) -> 0 | BA57: =IF(AO57<>$AP$6,1,0) -> 0
A58: =IF(J58>0,1,0) -> 0 | B58: =$B$9 -> FPSC | C58: =$C$9 -> Academic | D58: =$D$9 -> All | E58: =IF($B58="MGMA",COMP!$D$86,IF($B58="FPSC",COMP!$D$85,IF($B58="SPEC",COMP!$K$103,"no data"))) -> [select] | F58: =$F$9 -> AAMC | G58: =$G$9 -> Academic | H58: =$H$9 -> All | I58: =IF($F58="AAMC",COMP!$D$83,IF($F58="MGMA",COMP!$D$86,IF($F58="SPEC",COMP!$K$91,"no data"))) -> [select] | J58: 0 | V58: 0 | X58: 0 | Z58: 0 | AA58: 0 | AB58: 0 | AC58: =+AB58+AA58+X58 -> 0 | AD58: =IF(V58=0,0,AC58/V58) -> 0 | AE58: =IF($F58="SPEC",COMP!K$90/1000,IFERROR(VLOOKUP($F58&$G58&$H58&$M58&COMP!$D$84&$I58&"L",AAMC!#REF!,10,FALSE)/1000,IFERROR(VLOOKUP($F58&$G58&$H58&$M58&COMP!$D$84&$I58&"L",MGMAC!#REF!,10,FALSE)/1000,IFERROR(VLOOKUP($F58&$G58&$H58&$M58&COMP!$D$84&$I58&"L",MGMACP!#REF!,10,FALSE)/1000,"no data")))) -> no data | AF58: =IF($F58="SPEC",COMP!L$90/1000,IFERROR(VLOOKUP($F58&$G58&$H58&$M58&COMP!$D$84&$I58&"L",AAMC!#REF!,15,FALSE)/1000,IFERROR(VLOOKUP($F58&$G58&$H58&$M58&COMP!$D$84&$I58&"L",MGMAC!#REF!,15,FALSE)/1000,IFERROR(VLOOKUP($F58&$G58&$H58&$M58&COMP!$D$84&$I58&"L",MGMACP!#REF!,15,FALSE)/1000,"no data")))) -> no data | AG58: =IF($F58="SPEC",COMP!M$90/1000,IFERROR(VLOOKUP($F58&$G58&$H58&$M58&COMP!$D$84&$I58&"L",AAMC!#REF!,20,FALSE)/1000,IFERROR(VLOOKUP($F58&$G58&$H58&$M58&COMP!$D$84&$I58&"L",MGMAC!#REF!,20,FALSE)/1000,IFERROR(VLOOKUP($F58&$G58&$H58&$M58&COMP!$D$84&$I58&"L",MGMACP!#REF!,20,FALSE)/1000,"no data")))) -> no data | AI58: 0 | AJ58: 0 | AK58: 0 | AL58: 0 | AM58: 0 | AO58: 1 | AP58: =AM58/$AP$6*12 -> 0 | AQ58: =IF($J58=0,0,IF($B58="SPEC",COMP!$L$102,IF($B58="FPSC",IFERROR(VLOOKUP($B58&$C58&$D58&$E58&"L",FPSC!#REF!,13,FALSE),"no data"),IF(B58&C58="MGMAAcademic",IFERROR(VLOOKUP($B58&$C58&$D58&$E58&"L",MGMAR!#REF!,13,FALSE),"no data"),IFERROR(VLOOKUP($B58&$C58&$D58&$E58&"L",MGMARP!#REF!,13,FALSE),"no data"))))) -> 0 | AR58: 0 | AS58: =IF($AS$5="Prior",AK58,AP58) -> 0 | AT58: =IFERROR(AS58-AR58,0) -> 0 | AU58: =IF(J58>0,IF(K58=0,1,0),0) -> 0 | AV58: =IF(J58>0,IF(L58=0,1,0),0) -> 0 | AW58: =IF(J58>0,IF(M58=0,1,0),0) -> 0 | AX58: 0 | AY58: 0 | AZ58: 0 | BA58: 0
A59: =IF(J59>0,1,0) -> 0 | B59: FPSC | C59: Academic | D59: All | E59: =IF($B59="MGMA",COMP!$D$86,IF($B59="FPSC",COMP!$D$85,IF($B59="SPEC",COMP!$K$103,"no data"))) -> [select] | F59: AAMC | G59: Academic | H59: All | I59: =IF($F59="AAMC",COMP!$D$83,IF($F59="MGMA",COMP!$D$86,IF($F59="SPEC",COMP!$K$91,"no data"))) -> [select] | J59: 0 | P59: 0 | V59: 0 | X59: 0 | Z59: 0 | AA59: 0 | AC59: 0 | AD59: 0 | AE59: =IF($F59="SPEC",COMP!K$90/1000,IFERROR(VLOOKUP($F59&$G59&$H59&$M59&COMP!$D$84&$I59&"L",AAMC!#REF!,10,FALSE)/1000,IFERROR(VLOOKUP($F59&$G59&$H59&$M59&COMP!$D$84&$I59&"L",MGMAC!#REF!,10,FALSE)/1000,IFERROR(VLOOKUP($F59&$G59&$H59&$M59&COMP!$D$84&$I59&"L",MGMACP!#REF!,10,FALSE)/1000,"no data")))) -> no data | AF59: =IF($F59="SPEC",COMP!L$90/1000,IFERROR(VLOOKUP($F59&$G59&$H59&$M59&COMP!$D$84&$I59&"L",AAMC!#REF!,15,FALSE)/1000,IFERROR(VLOOKUP($F59&$G59&$H59&$M59&COMP!$D$84&$I59&"L",MGMAC!#REF!,15,FALSE)/1000,IFERROR(VLOOKUP($F59&$G59&$H59&$M59&COMP!$D$84&$I59&"L",MGMACP!#REF!,15,FALSE)/1000,"no data")))) -> no data | AG59: =IF($F59="SPEC",COMP!M$90/1000,IFERROR(VLOOKUP($F59&$G59&$H59&$M59&COMP!$D$84&$I59&"L",AAMC!#REF!,20,FALSE)/1000,IFERROR(VLOOKUP($F59&$G59&$H59&$M59&COMP!$D$84&$I59&"L",MGMAC!#REF!,20,FALSE)/1000,IFERROR(VLOOKUP($F59&$G59&$H59&$M59&COMP!$D$84&$I59&"L",MGMACP!#REF!,20,FALSE)/1000,"no data")))) -> no data | AI59: 0 | AJ59: 0 | AK59: 0 | AL59: 0 | AM59: 0 | AO59: 1 | AP59: 0 | AQ59: =IF($J59=0,0,IF($B59="SPEC",COMP!$L$102,IF($B59="FPSC",IFERROR(VLOOKUP($B59&$C59&$D59&$E59&"L",FPSC!#REF!,13,FALSE),"no data"),IF(B59&C59="MGMAAcademic",IFERROR(VLOOKUP($B59&$C59&$D59&$E59&"L",MGMAR!#REF!,13,FALSE),"no data"),IFERROR(VLOOKUP($B59&$C59&$D59&$E59&"L",MGMARP!#REF!,13,FALSE),"no data"))))) -> 0 | AR59: 0 | AS59: 0 | AT59: 0 | AU59: 0 | AV59: 0 | AW59: 0 | AX59: 0 | AY59: 0 | AZ59: 0 | BA59: 0
A60: 0 | B60: FPSC | C60: Academic | D60: All | E60: =IF($B60="MGMA",COMP!$D$86,IF($B60="FPSC",COMP!$D$85,IF($B60="SPEC",COMP!$K$103,"no data"))) -> [select] | F60: AAMC | G60: Academic | H60: All | I60: =IF($F60="AAMC",COMP!$D$83,IF($F60="MGMA",COMP!$D$86,IF($F60="SPEC",COMP!$K$91,"no data"))) -> [select] | J60: 0 | V60: 0 | X60: 0 | Z60: 0 | AA60: 0 | AC60: 0 | AD60: 0 | AE60: =IF($F60="SPEC",COMP!K$90/1000,IFERROR(VLOOKUP($F60&$G60&$H60&$M60&COMP!$D$84&$I60&"L",AAMC!#REF!,10,FALSE)/1000,IFERROR(VLOOKUP($F60&$G60&$H60&$M60&COMP!$D$84&$I60&"L",MGMAC!#REF!,10,FALSE)/1000,IFERROR(VLOOKUP($F60&$G60&$H60&$M60&COMP!$D$84&$I60&"L",MGMACP!#REF!,10,FALSE)/1000,"no data")))) -> no data | AF60: =IF($F60="SPEC",COMP!L$90/1000,IFERROR(VLOOKUP($F60&$G60&$H60&$M60&COMP!$D$84&$I60&"L",AAMC!#REF!,15,FALSE)/1000,IFERROR(VLOOKUP($F60&$G60&$H60&$M60&COMP!$D$84&$I60&"L",MGMAC!#REF!,15,FALSE)/1000,IFERROR(VLOOKUP($F60&$G60&$H60&$M60&COMP!$D$84&$I60&"L",MGMACP!#REF!,15,FALSE)/1000,"no data")))) -> no data | AG60: =IF($F60="SPEC",COMP!M$90/1000,IFERROR(VLOOKUP($F60&$G60&$H60&$M60&COMP!$D$84&$I60&"L",AAMC!#REF!,20,FALSE)/1000,IFERROR(VLOOKUP($F60&$G60&$H60&$M60&COMP!$D$84&$I60&"L",MGMAC!#REF!,20,FALSE)/1000,IFERROR(VLOOKUP($F60&$G60&$H60&$M60&COMP!$D$84&$I60&"L",MGMACP!#REF!,20,FALSE)/1000,"no data")))) -> no data | AI60: 0 | AJ60: 0 | AK60: 0 | AL60: 0 | AM60: 0 | AO60: 1 | AP60: 0 | AQ60: =IF($J60=0,0,IF($B60="SPEC",COMP!$L$102,IF($B60="FPSC",IFERROR(VLOOKUP($B60&$C60&$D60&$E60&"L",FPSC!#REF!,13,FALSE),"no data"),IF(B60&C60="MGMAAcademic",IFERROR(VLOOKUP($B60&$C60&$D60&$E60&"L",MGMAR!#REF!,13,FALSE),"no data"),IFERROR(VLOOKUP($B60&$C60&$D60&$E60&"L",MGMARP!#REF!,13,FALSE),"no data"))))) -> 0 | AR60: 0 | AS60: 0 | AT60: 0 | AU60: 0 | AV60: 0 | AW60: 0 | AX60: 0 | AY60: 0 | AZ60: 0 | BA60: 0
A61: 0 | B61: FPSC | C61: Academic | D61: All | E61: =IF($B61="MGMA",COMP!$D$86,IF($B61="FPSC",COMP!$D$85,IF($B61="SPEC",COMP!$K$103,"no data"))) -> [select] | F61: AAMC | G61: Academic | H61: All | I61: =IF($F61="AAMC",COMP!$D$83,IF($F61="MGMA",COMP!$D$86,IF($F61="SPEC",COMP!$K$91,"no data"))) -> [select] | J61: 0 | V61: 0 | X61: 0 | Z61: 0 | AA61: 0 | AC61: 0 | AD61: 0 | AE61: =IF($F61="SPEC",COMP!K$90/1000,IFERROR(VLOOKUP($F61&$G61&$H61&$M61&COMP!$D$84&$I61&"L",AAMC!#REF!,10,FALSE)/1000,IFERROR(VLOOKUP($F61&$G61&$H61&$M61&COMP!$D$84&$I61&"L",MGMAC!#REF!,10,FALSE)/1000,IFERROR(VLOOKUP($F61&$G61&$H61&$M61&COMP!$D$84&$I61&"L",MGMACP!#REF!,10,FALSE)/1000,"no data")))) -> no data | AF61: =IF($F61="SPEC",COMP!L$90/1000,IFERROR(VLOOKUP($F61&$G61&$H61&$M61&COMP!$D$84&$I61&"L",AAMC!#REF!,15,FALSE)/1000,IFERROR(VLOOKUP($F61&$G61&$H61&$M61&COMP!$D$84&$I61&"L",MGMAC!#REF!,15,FALSE)/1000,IFERROR(VLOOKUP($F61&$G61&$H61&$M61&COMP!$D$84&$I61&"L",MGMACP!#REF!,15,FALSE)/1000,"no data")))) -> no data | AG61: =IF($F61="SPEC",COMP!M$90/1000,IFERROR(VLOOKUP($F61&$G61&$H61&$M61&COMP!$D$84&$I61&"L",AAMC!#REF!,20,FALSE)/1000,IFERROR(VLOOKUP($F61&$G61&$H61&$M61&COMP!$D$84&$I61&"L",MGMAC!#REF!,20,FALSE)/1000,IFERROR(VLOOKUP($F61&$G61&$H61&$M61&COMP!$D$84&$I61&"L",MGMACP!#REF!,20,FALSE)/1000,"no data")))) -> no data | AL61: 0 | AO61: 1 | AP61: 0 | AQ61: =IF($J61=0,0,IF($B61="SPEC",COMP!$L$102,IF($B61="FPSC",IFERROR(VLOOKUP($B61&$C61&$D61&$E61&"L",FPSC!#REF!,13,FALSE),"no data"),IF(B61&C61="MGMAAcademic",IFERROR(VLOOKUP($B61&$C61&$D61&$E61&"L",MGMAR!#REF!,13,FALSE),"no data"),IFERROR(VLOOKUP($B61&$C61&$D61&$E61&"L",MGMARP!#REF!,13,FALSE),"no data"))))) -> 0 | AR61: 0 | AS61: 0 | AT61: 0 | AU61: 0 | AV61: 0 | AW61: 0 | AX61: 0 | AY61: 0 | AZ61: 0 | BA61: 0
A62: 0 | B62: FPSC | C62: Academic | D62: All | E62: =IF($B62="MGMA",COMP!$D$86,IF($B62="FPSC",COMP!$D$85,IF($B62="SPEC",COMP!$K$103,"no data"))) -> [select] | F62: AAMC | G62: Academic | H62: All | I62: =IF($F62="AAMC",COMP!$D$83,IF($F62="MGMA",COMP!$D$86,IF($F62="SPEC",COMP!$K$91,"no data"))) -> [select] | J62: 0 | V62: 0 | X62: 0 | Z62: 0 | AA62: 0 | AC62: 0 | AD62: 0 | AE62: =IF($F62="SPEC",COMP!K$90/1000,IFERROR(VLOOKUP($F62&$G62&$H62&$M62&COMP!$D$84&$I62&"L",AAMC!#REF!,10,FALSE)/1000,IFERROR(VLOOKUP($F62&$G62&$H62&$M62&COMP!$D$84&$I62&"L",MGMAC!#REF!,10,FALSE)/1000,IFERROR(VLOOKUP($F62&$G62&$H62&$M62&COMP!$D$84&$I62&"L",MGMACP!#REF!,10,FALSE)/1000,"no data")))) -> no data | AF62: =IF($F62="SPEC",COMP!L$90/1000,IFERROR(VLOOKUP($F62&$G62&$H62&$M62&COMP!$D$84&$I62&"L",AAMC!#REF!,15,FALSE)/1000,IFERROR(VLOOKUP($F62&$G62&$H62&$M62&COMP!$D$84&$I62&"L",MGMAC!#REF!,15,FALSE)/1000,IFERROR(VLOOKUP($F62&$G62&$H62&$M62&COMP!$D$84&$I62&"L",MGMACP!#REF!,15,FALSE)/1000,"no data")))) -> no data | AG62: =IF($F62="SPEC",COMP!M$90/1000,IFERROR(VLOOKUP($F62&$G62&$H62&$M62&COMP!$D$84&$I62&"L",AAMC!#REF!,20,FALSE)/1000,IFERROR(VLOOKUP($F62&$G62&$H62&$M62&COMP!$D$84&$I62&"L",MGMAC!#REF!,20,FALSE)/1000,IFERROR(VLOOKUP($F62&$G62&$H62&$M62&COMP!$D$84&$I62&"L",MGMACP!#REF!,20,FALSE)/1000,"no data")))) -> no data | AL62: 0 | AO62: 1 | AP62: 0 | AQ62: =IF($J62=0,0,IF($B62="SPEC",COMP!$L$102,IF($B62="FPSC",IFERROR(VLOOKUP($B62&$C62&$D62&$E62&"L",FPSC!#REF!,13,FALSE),"no data"),IF(B62&C62="MGMAAcademic",IFERROR(VLOOKUP($B62&$C62&$D62&$E62&"L",MGMAR!#REF!,13,FALSE),"no data"),IFERROR(VLOOKUP($B62&$C62&$D62&$E62&"L",MGMARP!#REF!,13,FALSE),"no data"))))) -> 0 | AR62: 0 | AS62: 0 | AT62: 0 | AU62: 0 | AV62: 0 | AW62: 0 | AX62: 0 | AY62: 0 | AZ62: 0 | BA62: 0
A63: 0 | B63: FPSC | C63: Academic | D63: All | E63: =IF($B63="MGMA",COMP!$D$86,IF($B63="FPSC",COMP!$D$85,IF($B63="SPEC",COMP!$K$103,"no data"))) -> [select] | F63: AAMC | G63: Academic | H63: All | I63: =IF($F63="AAMC",COMP!$D$83,IF($F63="MGMA",COMP!$D$86,IF($F63="SPEC",COMP!$K$91,"no data"))) -> [select] | J63: 0 | V63: 0 | X63: 0 | Z63: 0 | AA63: 0 | AC63: 0 | AD63: 0 | AE63: =IF($F63="SPEC",COMP!K$90/1000,IFERROR(VLOOKUP($F63&$G63&$H63&$M63&COMP!$D$84&$I63&"L",AAMC!#REF!,10,FALSE)/1000,IFERROR(VLOOKUP($F63&$G63&$H63&$M63&COMP!$D$84&$I63&"L",MGMAC!#REF!,10,FALSE)/1000,IFERROR(VLOOKUP($F63&$G63&$H63&$M63&COMP!$D$84&$I63&"L",MGMACP!#REF!,10,FALSE)/1000,"no data")))) -> no data | AF63: =IF($F63="SPEC",COMP!L$90/1000,IFERROR(VLOOKUP($F63&$G63&$H63&$M63&COMP!$D$84&$I63&"L",AAMC!#REF!,15,FALSE)/1000,IFERROR(VLOOKUP($F63&$G63&$H63&$M63&COMP!$D$84&$I63&"L",MGMAC!#REF!,15,FALSE)/1000,IFERROR(VLOOKUP($F63&$G63&$H63&$M63&COMP!$D$84&$I63&"L",MGMACP!#REF!,15,FALSE)/1000,"no data")))) -> no data | AG63: =IF($F63="SPEC",COMP!M$90/1000,IFERROR(VLOOKUP($F63&$G63&$H63&$M63&COMP!$D$84&$I63&"L",AAMC!#REF!,20,FALSE)/1000,IFERROR(VLOOKUP($F63&$G63&$H63&$M63&COMP!$D$84&$I63&"L",MGMAC!#REF!,20,FALSE)/1000,IFERROR(VLOOKUP($F63&$G63&$H63&$M63&COMP!$D$84&$I63&"L",MGMACP!#REF!,20,FALSE)/1000,"no data")))) -> no data | AL63: 0 | AO63: 1 | AP63: 0 | AQ63: =IF($J63=0,0,IF($B63="SPEC",COMP!$L$102,IF($B63="FPSC",IFERROR(VLOOKUP($B63&$C63&$D63&$E63&"L",FPSC!#REF!,13,FALSE),"no data"),IF(B63&C63="MGMAAcademic",IFERROR(VLOOKUP($B63&$C63&$D63&$E63&"L",MGMAR!#REF!,13,FALSE),"no data"),IFERROR(VLOOKUP($B63&$C63&$D63&$E63&"L",MGMARP!#REF!,13,FALSE),"no data"))))) -> 0 | AR63: 0 | AS63: 0 | AT63: 0 | AU63: 0 | AV63: 0 | AW63: 0 | AX63: 0 | AY63: 0 | AZ63: 0 | BA63: 0
A64: 0 | B64: FPSC | C64: Academic | D64: All | E64: =IF($B64="MGMA",COMP!$D$86,IF($B64="FPSC",COMP!$D$85,IF($B64="SPEC",COMP!$K$103,"no data"))) -> [select] | F64: AAMC | G64: Academic | H64: All | I64: =IF($F64="AAMC",COMP!$D$83,IF($F64="MGMA",COMP!$D$86,IF($F64="SPEC",COMP!$K$91,"no data"))) -> [select] | J64: 0 | V64: 0 | X64: 0 | Z64: 0 | AA64: 0 | AC64: 0 | AD64: 0 | AE64: =IF($F64="SPEC",COMP!K$90/1000,IFERROR(VLOOKUP($F64&$G64&$H64&$M64&COMP!$D$84&$I64&"L",AAMC!#REF!,10,FALSE)/1000,IFERROR(VLOOKUP($F64&$G64&$H64&$M64&COMP!$D$84&$I64&"L",MGMAC!#REF!,10,FALSE)/1000,IFERROR(VLOOKUP($F64&$G64&$H64&$M64&COMP!$D$84&$I64&"L",MGMACP!#REF!,10,FALSE)/1000,"no data")))) -> no data | AF64: =IF($F64="SPEC",COMP!L$90/1000,IFERROR(VLOOKUP($F64&$G64&$H64&$M64&COMP!$D$84&$I64&"L",AAMC!#REF!,15,FALSE)/1000,IFERROR(VLOOKUP($F64&$G64&$H64&$M64&COMP!$D$84&$I64&"L",MGMAC!#REF!,15,FALSE)/1000,IFERROR(VLOOKUP($F64&$G64&$H64&$M64&COMP!$D$84&$I64&"L",MGMACP!#REF!,15,FALSE)/1000,"no data")))) -> no data | AG64: =IF($F64="SPEC",COMP!M$90/1000,IFERROR(VLOOKUP($F64&$G64&$H64&$M64&COMP!$D$84&$I64&"L",AAMC!#REF!,20,FALSE)/1000,IFERROR(VLOOKUP($F64&$G64&$H64&$M64&COMP!$D$84&$I64&"L",MGMAC!#REF!,20,FALSE)/1000,IFERROR(VLOOKUP($F64&$G64&$H64&$M64&COMP!$D$84&$I64&"L",MGMACP!#REF!,20,FALSE)/1000,"no data")))) -> no data | AL64: 0 | AO64: 1 | AP64: 0 | AQ64: =IF($J64=0,0,IF($B64="SPEC",COMP!$L$102,IF($B64="FPSC",IFERROR(VLOOKUP($B64&$C64&$D64&$E64&"L",FPSC!#REF!,13,FALSE),"no data"),IF(B64&C64="MGMAAcademic",IFERROR(VLOOKUP($B64&$C64&$D64&$E64&"L",MGMAR!#REF!,13,FALSE),"no data"),IFERROR(VLOOKUP($B64&$C64&$D64&$E64&"L",MGMARP!#REF!,13,FALSE),"no data"))))) -> 0 | AR64: 0 | AS64: 0 | AT64: 0 | AU64: 0 | AV64: 0 | AW64: 0 | AX64: 0 | AY64: 0 | AZ64: 0 | BA64: 0
A65: 0 | B65: FPSC | C65: Academic | D65: All | E65: =IF($B65="MGMA",COMP!$D$86,IF($B65="FPSC",COMP!$D$85,IF($B65="SPEC",COMP!$K$103,"no data"))) -> [select] | F65: AAMC | G65: Academic | H65: All | I65: =IF($F65="AAMC",COMP!$D$83,IF($F65="MGMA",COMP!$D$86,IF($F65="SPEC",COMP!$K$91,"no data"))) -> [select] | V65: 0 | X65: 0 | Z65: 0 | AA65: 0 | AC65: 0 | AD65: 0 | AE65: =IF($F65="SPEC",COMP!K$90/1000,IFERROR(VLOOKUP($F65&$G65&$H65&$M65&COMP!$D$84&$I65&"L",AAMC!#REF!,10,FALSE)/1000,IFERROR(VLOOKUP($F65&$G65&$H65&$M65&COMP!$D$84&$I65&"L",MGMAC!#REF!,10,FALSE)/1000,IFERROR(VLOOKUP($F65&$G65&$H65&$M65&COMP!$D$84&$I65&"L",MGMACP!#REF!,10,FALSE)/1000,"no data")))) -> no data | AF65: =IF($F65="SPEC",COMP!L$90/1000,IFERROR(VLOOKUP($F65&$G65&$H65&$M65&COMP!$D$84&$I65&"L",AAMC!#REF!,15,FALSE)/1000,IFERROR(VLOOKUP($F65&$G65&$H65&$M65&COMP!$D$84&$I65&"L",MGMAC!#REF!,15,FALSE)/1000,IFERROR(VLOOKUP($F65&$G65&$H65&$M65&COMP!$D$84&$I65&"L",MGMACP!#REF!,15,FALSE)/1000,"no data")))) -> no data | AG65: =IF($F65="SPEC",COMP!M$90/1000,IFERROR(VLOOKUP($F65&$G65&$H65&$M65&COMP!$D$84&$I65&"L",AAMC!#REF!,20,FALSE)/1000,IFERROR(VLOOKUP($F65&$G65&$H65&$M65&COMP!$D$84&$I65&"L",MGMAC!#REF!,20,FALSE)/1000,IFERROR(VLOOKUP($F65&$G65&$H65&$M65&COMP!$D$84&$I65&"L",MGMACP!#REF!,20,FALSE)/1000,"no data")))) -> no data | AL65: 0 | AO65: 1 | AP65: 0 | AQ65: =IF($J65=0,0,IF($B65="SPEC",COMP!$L$102,IF($B65="FPSC",IFERROR(VLOOKUP($B65&$C65&$D65&$E65&"L",FPSC!#REF!,13,FALSE),"no data"),IF(B65&C65="MGMAAcademic",IFERROR(VLOOKUP($B65&$C65&$D65&$E65&"L",MGMAR!#REF!,13,FALSE),"no data"),IFERROR(VLOOKUP($B65&$C65&$D65&$E65&"L",MGMARP!#REF!,13,FALSE),"no data"))))) -> 0 | AR65: 0 | AS65: 0 | AT65: 0 | AU65: 0 | AV65: 0 | AW65: 0 | AX65: 0 | AY65: 0 | AZ65: 0 | BA65: 0
A66: 0 | B66: FPSC | C66: Academic | D66: All | E66: =IF($B66="MGMA",COMP!$D$86,IF($B66="FPSC",COMP!$D$85,IF($B66="SPEC",COMP!$K$103,"no data"))) -> [select] | F66: AAMC | G66: Academic | H66: All | I66: =IF($F66="AAMC",COMP!$D$83,IF($F66="MGMA",COMP!$D$86,IF($F66="SPEC",COMP!$K$91,"no data"))) -> [select] | V66: 0 | X66: 0 | Z66: 0 | AA66: 0 | AC66: 0 | AD66: 0 | AE66: =IF($F66="SPEC",COMP!K$90/1000,IFERROR(VLOOKUP($F66&$G66&$H66&$M66&COMP!$D$84&$I66&"L",AAMC!#REF!,10,FALSE)/1000,IFERROR(VLOOKUP($F66&$G66&$H66&$M66&COMP!$D$84&$I66&"L",MGMAC!#REF!,10,FALSE)/1000,IFERROR(VLOOKUP($F66&$G66&$H66&$M66&COMP!$D$84&$I66&"L",MGMACP!#REF!,10,FALSE)/1000,"no data")))) -> no data | AF66: =IF($F66="SPEC",COMP!L$90/1000,IFERROR(VLOOKUP($F66&$G66&$H66&$M66&COMP!$D$84&$I66&"L",AAMC!#REF!,15,FALSE)/1000,IFERROR(VLOOKUP($F66&$G66&$H66&$M66&COMP!$D$84&$I66&"L",MGMAC!#REF!,15,FALSE)/1000,IFERROR(VLOOKUP($F66&$G66&$H66&$M66&COMP!$D$84&$I66&"L",MGMACP!#REF!,15,FALSE)/1000,"no data")))) -> no data | AG66: =IF($F66="SPEC",COMP!M$90/1000,IFERROR(VLOOKUP($F66&$G66&$H66&$M66&COMP!$D$84&$I66&"L",AAMC!#REF!,20,FALSE)/1000,IFERROR(VLOOKUP($F66&$G66&$H66&$M66&COMP!$D$84&$I66&"L",MGMAC!#REF!,20,FALSE)/1000,IFERROR(VLOOKUP($F66&$G66&$H66&$M66&COMP!$D$84&$I66&"L",MGMACP!#REF!,20,FALSE)/1000,"no data")))) -> no data | AL66: 0 | AO66: 1 | AP66: 0 | AQ66: =IF($J66=0,0,IF($B66="SPEC",COMP!$L$102,IF($B66="FPSC",IFERROR(VLOOKUP($B66&$C66&$D66&$E66&"L",FPSC!#REF!,13,FALSE),"no data"),IF(B66&C66="MGMAAcademic",IFERROR(VLOOKUP($B66&$C66&$D66&$E66&"L",MGMAR!#REF!,13,FALSE),"no data"),IFERROR(VLOOKUP($B66&$C66&$D66&$E66&"L",MGMARP!#REF!,13,FALSE),"no data"))))) -> 0 | AR66: 0 | AS66: 0 | AT66: 0 | AU66: 0 | AV66: 0 | AW66: 0 | AX66: 0 | AY66: 0 | AZ66: 0 | BA66: 0
A67: 0 | B67: FPSC | C67: Academic | D67: All | E67: =IF($B67="MGMA",COMP!$D$86,IF($B67="FPSC",COMP!$D$85,IF($B67="SPEC",COMP!$K$103,"no data"))) -> [select] | F67: AAMC | G67: Academic | H67: All | I67: =IF($F67="AAMC",COMP!$D$83,IF($F67="MGMA",COMP!$D$86,IF($F67="SPEC",COMP!$K$91,"no data"))) -> [select] | V67: 0 | X67: 0 | Z67: 0 | AA67: 0 | AC67: 0 | AD67: 0 | AE67: =IF($F67="SPEC",COMP!K$90/1000,IFERROR(VLOOKUP($F67&$G67&$H67&$M67&COMP!$D$84&$I67&"L",AAMC!#REF!,10,FALSE)/1000,IFERROR(VLOOKUP($F67&$G67&$H67&$M67&COMP!$D$84&$I67&"L",MGMAC!#REF!,10,FALSE)/1000,IFERROR(VLOOKUP($F67&$G67&$H67&$M67&COMP!$D$84&$I67&"L",MGMACP!#REF!,10,FALSE)/1000,"no data")))) -> no data | AF67: =IF($F67="SPEC",COMP!L$90/1000,IFERROR(VLOOKUP($F67&$G67&$H67&$M67&COMP!$D$84&$I67&"L",AAMC!#REF!,15,FALSE)/1000,IFERROR(VLOOKUP($F67&$G67&$H67&$M67&COMP!$D$84&$I67&"L",MGMAC!#REF!,15,FALSE)/1000,IFERROR(VLOOKUP($F67&$G67&$H67&$M67&COMP!$D$84&$I67&"L",MGMACP!#REF!,15,FALSE)/1000,"no data")))) -> no data | AG67: =IF($F67="SPEC",COMP!M$90/1000,IFERROR(VLOOKUP($F67&$G67&$H67&$M67&COMP!$D$84&$I67&"L",AAMC!#REF!,20,FALSE)/1000,IFERROR(VLOOKUP($F67&$G67&$H67&$M67&COMP!$D$84&$I67&"L",MGMAC!#REF!,20,FALSE)/1000,IFERROR(VLOOKUP($F67&$G67&$H67&$M67&COMP!$D$84&$I67&"L",MGMACP!#REF!,20,FALSE)/1000,"no data")))) -> no data | AL67: 0 | AO67: 1 | AP67: 0 | AQ67: =IF($J67=0,0,IF($B67="SPEC",COMP!$L$102,IF($B67="FPSC",IFERROR(VLOOKUP($B67&$C67&$D67&$E67&"L",FPSC!#REF!,13,FALSE),"no data"),IF(B67&C67="MGMAAcademic",IFERROR(VLOOKUP($B67&$C67&$D67&$E67&"L",MGMAR!#REF!,13,FALSE),"no data"),IFERROR(VLOOKUP($B67&$C67&$D67&$E67&"L",MGMARP!#REF!,13,FALSE),"no data"))))) -> 0 | AR67: 0 | AS67: 0 | AT67: 0 | AU67: 0 | AV67: 0 | AW67: 0 | AX67: 0 | AY67: 0 | AZ67: 0 | BA67: 0
A68: 0 | B68: FPSC | C68: Academic | D68: All | E68: =IF($B68="MGMA",COMP!$D$86,IF($B68="FPSC",COMP!$D$85,IF($B68="SPEC",COMP!$K$103,"no data"))) -> [select] | F68: AAMC | G68: Academic | H68: All | I68: =IF($F68="AAMC",COMP!$D$83,IF($F68="MGMA",COMP!$D$86,IF($F68="SPEC",COMP!$K$91,"no data"))) -> [select] | V68: 0 | X68: 0 | Z68: 0 | AA68: 0 | AC68: 0 | AD68: 0 | AE68: =IF($F68="SPEC",COMP!K$90/1000,IFERROR(VLOOKUP($F68&$G68&$H68&$M68&COMP!$D$84&$I68&"L",AAMC!#REF!,10,FALSE)/1000,IFERROR(VLOOKUP($F68&$G68&$H68&$M68&COMP!$D$84&$I68&"L",MGMAC!#REF!,10,FALSE)/1000,IFERROR(VLOOKUP($F68&$G68&$H68&$M68&COMP!$D$84&$I68&"L",MGMACP!#REF!,10,FALSE)/1000,"no data")))) -> no data | AF68: =IF($F68="SPEC",COMP!L$90/1000,IFERROR(VLOOKUP($F68&$G68&$H68&$M68&COMP!$D$84&$I68&"L",AAMC!#REF!,15,FALSE)/1000,IFERROR(VLOOKUP($F68&$G68&$H68&$M68&COMP!$D$84&$I68&"L",MGMAC!#REF!,15,FALSE)/1000,IFERROR(VLOOKUP($F68&$G68&$H68&$M68&COMP!$D$84&$I68&"L",MGMACP!#REF!,15,FALSE)/1000,"no data")))) -> no data | AG68: =IF($F68="SPEC",COMP!M$90/1000,IFERROR(VLOOKUP($F68&$G68&$H68&$M68&COMP!$D$84&$I68&"L",AAMC!#REF!,20,FALSE)/1000,IFERROR(VLOOKUP($F68&$G68&$H68&$M68&COMP!$D$84&$I68&"L",MGMAC!#REF!,20,FALSE)/1000,IFERROR(VLOOKUP($F68&$G68&$H68&$M68&COMP!$D$84&$I68&"L",MGMACP!#REF!,20,FALSE)/1000,"no data")))) -> no data | AL68: 0 | AO68: 1 | AP68: 0 | AQ68: =IF($J68=0,0,IF($B68="SPEC",COMP!$L$102,IF($B68="FPSC",IFERROR(VLOOKUP($B68&$C68&$D68&$E68&"L",FPSC!#REF!,13,FALSE),"no data"),IF(B68&C68="MGMAAcademic",IFERROR(VLOOKUP($B68&$C68&$D68&$E68&"L",MGMAR!#REF!,13,FALSE),"no data"),IFERROR(VLOOKUP($B68&$C68&$D68&$E68&"L",MGMARP!#REF!,13,FALSE),"no data"))))) -> 0 | AR68: 0 | AS68: 0 | AT68: 0 | AU68: 0 | AV68: 0 | AW68: 0 | AX68: 0 | AY68: 0 | AZ68: 0 | BA68: 0
A69: 0 | B69: FPSC | C69: Academic | D69: All | E69: =IF($B69="MGMA",COMP!$D$86,IF($B69="FPSC",COMP!$D$85,IF($B69="SPEC",COMP!$K$103,"no data"))) -> [select] | F69: AAMC | G69: Academic | H69: All | I69: =IF($F69="AAMC",COMP!$D$83,IF($F69="MGMA",COMP!$D$86,IF($F69="SPEC",COMP!$K$91,"no data"))) -> [select] | V69: 0 | X69: 0 | Z69: 0 | AA69: 0 | AC69: 0 | AD69: 0 | AE69: =IF($F69="SPEC",COMP!K$90/1000,IFERROR(VLOOKUP($F69&$G69&$H69&$M69&COMP!$D$84&$I69&"L",AAMC!#REF!,10,FALSE)/1000,IFERROR(VLOOKUP($F69&$G69&$H69&$M69&COMP!$D$84&$I69&"L",MGMAC!#REF!,10,FALSE)/1000,IFERROR(VLOOKUP($F69&$G69&$H69&$M69&COMP!$D$84&$I69&"L",MGMACP!#REF!,10,FALSE)/1000,"no data")))) -> no data | AF69: =IF($F69="SPEC",COMP!L$90/1000,IFERROR(VLOOKUP($F69&$G69&$H69&$M69&COMP!$D$84&$I69&"L",AAMC!#REF!,15,FALSE)/1000,IFERROR(VLOOKUP($F69&$G69&$H69&$M69&COMP!$D$84&$I69&"L",MGMAC!#REF!,15,FALSE)/1000,IFERROR(VLOOKUP($F69&$G69&$H69&$M69&COMP!$D$84&$I69&"L",MGMACP!#REF!,15,FALSE)/1000,"no data")))) -> no data | AG69: =IF($F69="SPEC",COMP!M$90/1000,IFERROR(VLOOKUP($F69&$G69&$H69&$M69&COMP!$D$84&$I69&"L",AAMC!#REF!,20,FALSE)/1000,IFERROR(VLOOKUP($F69&$G69&$H69&$M69&COMP!$D$84&$I69&"L",MGMAC!#REF!,20,FALSE)/1000,IFERROR(VLOOKUP($F69&$G69&$H69&$M69&COMP!$D$84&$I69&"L",MGMACP!#REF!,20,FALSE)/1000,"no data")))) -> no data | AL69: 0 | AO69: 1 | AP69: 0 | AQ69: =IF($J69=0,0,IF($B69="SPEC",COMP!$L$102,IF($B69="FPSC",IFERROR(VLOOKUP($B69&$C69&$D69&$E69&"L",FPSC!#REF!,13,FALSE),"no data"),IF(B69&C69="MGMAAcademic",IFERROR(VLOOKUP($B69&$C69&$D69&$E69&"L",MGMAR!#REF!,13,FALSE),"no data"),IFERROR(VLOOKUP($B69&$C69&$D69&$E69&"L",MGMARP!#REF!,13,FALSE),"no data"))))) -> 0 | AR69: 0 | AS69: 0 | AT69: 0 | AU69: 0 | AV69: 0 | AW69: 0 | AX69: 0 | AY69: 0 | AZ69: 0 | BA69: 0
A70: 0 | B70: FPSC | C70: Academic | D70: All | E70: =IF($B70="MGMA",COMP!$D$86,IF($B70="FPSC",COMP!$D$85,IF($B70="SPEC",COMP!$K$103,"no data"))) -> [select] | F70: AAMC | G70: Academic | H70: All | I70: =IF($F70="AAMC",COMP!$D$83,IF($F70="MGMA",COMP!$D$86,IF($F70="SPEC",COMP!$K$91,"no data"))) -> [select] | V70: 0 | X70: 0 | Z70: 0 | AA70: 0 | AC70: 0 | AD70: 0 | AE70: =IF($F70="SPEC",COMP!K$90/1000,IFERROR(VLOOKUP($F70&$G70&$H70&$M70&COMP!$D$84&$I70&"L",AAMC!#REF!,10,FALSE)/1000,IFERROR(VLOOKUP($F70&$G70&$H70&$M70&COMP!$D$84&$I70&"L",MGMAC!#REF!,10,FALSE)/1000,IFERROR(VLOOKUP($F70&$G70&$H70&$M70&COMP!$D$84&$I70&"L",MGMACP!#REF!,10,FALSE)/1000,"no data")))) -> no data | AF70: =IF($F70="SPEC",COMP!L$90/1000,IFERROR(VLOOKUP($F70&$G70&$H70&$M70&COMP!$D$84&$I70&"L",AAMC!#REF!,15,FALSE)/1000,IFERROR(VLOOKUP($F70&$G70&$H70&$M70&COMP!$D$84&$I70&"L",MGMAC!#REF!,15,FALSE)/1000,IFERROR(VLOOKUP($F70&$G70&$H70&$M70&COMP!$D$84&$I70&"L",MGMACP!#REF!,15,FALSE)/1000,"no data")))) -> no data | AG70: =IF($F70="SPEC",COMP!M$90/1000,IFERROR(VLOOKUP($F70&$G70&$H70&$M70&COMP!$D$84&$I70&"L",AAMC!#REF!,20,FALSE)/1000,IFERROR(VLOOKUP($F70&$G70&$H70&$M70&COMP!$D$84&$I70&"L",MGMAC!#REF!,20,FALSE)/1000,IFERROR(VLOOKUP($F70&$G70&$H70&$M70&COMP!$D$84&$I70&"L",MGMACP!#REF!,20,FALSE)/1000,"no data")))) -> no data | AL70: 0 | AO70: 1 | AP70: 0 | AQ70: =IF($J70=0,0,IF($B70="SPEC",COMP!$L$102,IF($B70="FPSC",IFERROR(VLOOKUP($B70&$C70&$D70&$E70&"L",FPSC!#REF!,13,FALSE),"no data"),IF(B70&C70="MGMAAcademic",IFERROR(VLOOKUP($B70&$C70&$D70&$E70&"L",MGMAR!#REF!,13,FALSE),"no data"),IFERROR(VLOOKUP($B70&$C70&$D70&$E70&"L",MGMARP!#REF!,13,FALSE),"no data"))))) -> 0 | AR70: 0 | AS70: 0 | AT70: 0 | AU70: 0 | AV70: 0 | AW70: 0 | AX70: 0 | AY70: 0 | AZ70: 0 | BA70: 0
A71: 0 | B71: FPSC | C71: Academic | D71: All | E71: =IF($B71="MGMA",COMP!$D$86,IF($B71="FPSC",COMP!$D$85,IF($B71="SPEC",COMP!$K$103,"no data"))) -> [select] | F71: AAMC | G71: Academic | H71: All | I71: =IF($F71="AAMC",COMP!$D$83,IF($F71="MGMA",COMP!$D$86,IF($F71="SPEC",COMP!$K$91,"no data"))) -> [select] | V71: 0 | X71: 0 | Z71: 0 | AA71: 0 | AC71: 0 | AD71: 0 | AE71: =IF($F71="SPEC",COMP!K$90/1000,IFERROR(VLOOKUP($F71&$G71&$H71&$M71&COMP!$D$84&$I71&"L",AAMC!#REF!,10,FALSE)/1000,IFERROR(VLOOKUP($F71&$G71&$H71&$M71&COMP!$D$84&$I71&"L",MGMAC!#REF!,10,FALSE)/1000,IFERROR(VLOOKUP($F71&$G71&$H71&$M71&COMP!$D$84&$I71&"L",MGMACP!#REF!,10,FALSE)/1000,"no data")))) -> no data | AF71: =IF($F71="SPEC",COMP!L$90/1000,IFERROR(VLOOKUP($F71&$G71&$H71&$M71&COMP!$D$84&$I71&"L",AAMC!#REF!,15,FALSE)/1000,IFERROR(VLOOKUP($F71&$G71&$H71&$M71&COMP!$D$84&$I71&"L",MGMAC!#REF!,15,FALSE)/1000,IFERROR(VLOOKUP($F71&$G71&$H71&$M71&COMP!$D$84&$I71&"L",MGMACP!#REF!,15,FALSE)/1000,"no data")))) -> no data | AG71: =IF($F71="SPEC",COMP!M$90/1000,IFERROR(VLOOKUP($F71&$G71&$H71&$M71&COMP!$D$84&$I71&"L",AAMC!#REF!,20,FALSE)/1000,IFERROR(VLOOKUP($F71&$G71&$H71&$M71&COMP!$D$84&$I71&"L",MGMAC!#REF!,20,FALSE)/1000,IFERROR(VLOOKUP($F71&$G71&$H71&$M71&COMP!$D$84&$I71&"L",MGMACP!#REF!,20,FALSE)/1000,"no data")))) -> no data | AL71: 0 | AO71: 1 | AP71: 0 | AQ71: =IF($J71=0,0,IF($B71="SPEC",COMP!$L$102,IF($B71="FPSC",IFERROR(VLOOKUP($B71&$C71&$D71&$E71&"L",FPSC!#REF!,13,FALSE),"no data"),IF(B71&C71="MGMAAcademic",IFERROR(VLOOKUP($B71&$C71&$D71&$E71&"L",MGMAR!#REF!,13,FALSE),"no data"),IFERROR(VLOOKUP($B71&$C71&$D71&$E71&"L",MGMARP!#REF!,13,FALSE),"no data"))))) -> 0 | AR71: 0 | AS71: 0 | AT71: 0 | AU71: 0 | AV71: 0 | AW71: 0 | AX71: 0 | AY71: 0 | AZ71: 0 | BA71: 0
A72: 0 | B72: FPSC | C72: Academic | D72: All | E72: =IF($B72="MGMA",COMP!$D$86,IF($B72="FPSC",COMP!$D$85,IF($B72="SPEC",COMP!$K$103,"no data"))) -> [select] | F72: AAMC | G72: Academic | H72: All | I72: =IF($F72="AAMC",COMP!$D$83,IF($F72="MGMA",COMP!$D$86,IF($F72="SPEC",COMP!$K$91,"no data"))) -> [select] | V72: 0 | X72: 0 | Z72: 0 | AA72: 0 | AC72: 0 | AD72: 0 | AE72: =IF($F72="SPEC",COMP!K$90/1000,IFERROR(VLOOKUP($F72&$G72&$H72&$M72&COMP!$D$84&$I72&"L",AAMC!#REF!,10,FALSE)/1000,IFERROR(VLOOKUP($F72&$G72&$H72&$M72&COMP!$D$84&$I72&"L",MGMAC!#REF!,10,FALSE)/1000,IFERROR(VLOOKUP($F72&$G72&$H72&$M72&COMP!$D$84&$I72&"L",MGMACP!#REF!,10,FALSE)/1000,"no data")))) -> no data | AF72: =IF($F72="SPEC",COMP!L$90/1000,IFERROR(VLOOKUP($F72&$G72&$H72&$M72&COMP!$D$84&$I72&"L",AAMC!#REF!,15,FALSE)/1000,IFERROR(VLOOKUP($F72&$G72&$H72&$M72&COMP!$D$84&$I72&"L",MGMAC!#REF!,15,FALSE)/1000,IFERROR(VLOOKUP($F72&$G72&$H72&$M72&COMP!$D$84&$I72&"L",MGMACP!#REF!,15,FALSE)/1000,"no data")))) -> no data | AG72: =IF($F72="SPEC",COMP!M$90/1000,IFERROR(VLOOKUP($F72&$G72&$H72&$M72&COMP!$D$84&$I72&"L",AAMC!#REF!,20,FALSE)/1000,IFERROR(VLOOKUP($F72&$G72&$H72&$M72&COMP!$D$84&$I72&"L",MGMAC!#REF!,20,FALSE)/1000,IFERROR(VLOOKUP($F72&$G72&$H72&$M72&COMP!$D$84&$I72&"L",MGMACP!#REF!,20,FALSE)/1000,"no data")))) -> no data | AL72: 0 | AO72: 1 | AP72: 0 | AQ72: =IF($J72=0,0,IF($B72="SPEC",COMP!$L$102,IF($B72="FPSC",IFERROR(VLOOKUP($B72&$C72&$D72&$E72&"L",FPSC!#REF!,13,FALSE),"no data"),IF(B72&C72="MGMAAcademic",IFERROR(VLOOKUP($B72&$C72&$D72&$E72&"L",MGMAR!#REF!,13,FALSE),"no data"),IFERROR(VLOOKUP($B72&$C72&$D72&$E72&"L",MGMARP!#REF!,13,FALSE),"no data"))))) -> 0 | AR72: 0 | AS72: 0 | AT72: 0 | AU72: 0 | AV72: 0 | AW72: 0 | AX72: 0 | AY72: 0 | AZ72: 0 | BA72: 0
A73: 0 | B73: FPSC | C73: Academic | D73: All | E73: =IF($B73="MGMA",COMP!$D$86,IF($B73="FPSC",COMP!$D$85,IF($B73="SPEC",COMP!$K$103,"no data"))) -> [select] | F73: AAMC | G73: Academic | H73: All | I73: =IF($F73="AAMC",COMP!$D$83,IF($F73="MGMA",COMP!$D$86,IF($F73="SPEC",COMP!$K$91,"no data"))) -> [select] | V73: 0 | X73: 0 | Z73: 0 | AA73: 0 | AC73: 0 | AD73: 0 | AE73: =IF($F73="SPEC",COMP!K$90/1000,IFERROR(VLOOKUP($F73&$G73&$H73&$M73&COMP!$D$84&$I73&"L",AAMC!#REF!,10,FALSE)/1000,IFERROR(VLOOKUP($F73&$G73&$H73&$M73&COMP!$D$84&$I73&"L",MGMAC!#REF!,10,FALSE)/1000,IFERROR(VLOOKUP($F73&$G73&$H73&$M73&COMP!$D$84&$I73&"L",MGMACP!#REF!,10,FALSE)/1000,"no data")))) -> no data | AF73: =IF($F73="SPEC",COMP!L$90/1000,IFERROR(VLOOKUP($F73&$G73&$H73&$M73&COMP!$D$84&$I73&"L",AAMC!#REF!,15,FALSE)/1000,IFERROR(VLOOKUP($F73&$G73&$H73&$M73&COMP!$D$84&$I73&"L",MGMAC!#REF!,15,FALSE)/1000,IFERROR(VLOOKUP($F73&$G73&$H73&$M73&COMP!$D$84&$I73&"L",MGMACP!#REF!,15,FALSE)/1000,"no data")))) -> no data | AG73: =IF($F73="SPEC",COMP!M$90/1000,IFERROR(VLOOKUP($F73&$G73&$H73&$M73&COMP!$D$84&$I73&"L",AAMC!#REF!,20,FALSE)/1000,IFERROR(VLOOKUP($F73&$G73&$H73&$M73&COMP!$D$84&$I73&"L",MGMAC!#REF!,20,FALSE)/1000,IFERROR(VLOOKUP($F73&$G73&$H73&$M73&COMP!$D$84&$I73&"L",MGMACP!#REF!,20,FALSE)/1000,"no data")))) -> no data | AL73: 0 | AO73: 1 | AP73: 0 | AQ73: =IF($J73=0,0,IF($B73="SPEC",COMP!$L$102,IF($B73="FPSC",IFERROR(VLOOKUP($B73&$C73&$D73&$E73&"L",FPSC!#REF!,13,FALSE),"no data"),IF(B73&C73="MGMAAcademic",IFERROR(VLOOKUP($B73&$C73&$D73&$E73&"L",MGMAR!#REF!,13,FALSE),"no data"),IFERROR(VLOOKUP($B73&$C73&$D73&$E73&"L",MGMARP!#REF!,13,FALSE),"no data"))))) -> 0 | AR73: 0 | AS73: 0 | AT73: 0 | AU73: 0 | AV73: 0 | AW73: 0 | AX73: 0 | AY73: 0 | AZ73: 0 | BA73: 0
A74: 0 | B74: FPSC | C74: Academic | D74: All | E74: =IF($B74="MGMA",COMP!$D$86,IF($B74="FPSC",COMP!$D$85,IF($B74="SPEC",COMP!$K$103,"no data"))) -> [select] | F74: AAMC | G74: Academic | H74: All | I74: =IF($F74="AAMC",COMP!$D$83,IF($F74="MGMA",COMP!$D$86,IF($F74="SPEC",COMP!$K$91,"no data"))) -> [select] | V74: 0 | X74: 0 | Z74: 0 | AA74: 0 | AC74: 0 | AD74: 0 | AE74: =IF($F74="SPEC",COMP!K$90/1000,IFERROR(VLOOKUP($F74&$G74&$H74&$M74&COMP!$D$84&$I74&"L",AAMC!#REF!,10,FALSE)/1000,IFERROR(VLOOKUP($F74&$G74&$H74&$M74&COMP!$D$84&$I74&"L",MGMAC!#REF!,10,FALSE)/1000,IFERROR(VLOOKUP($F74&$G74&$H74&$M74&COMP!$D$84&$I74&"L",MGMACP!#REF!,10,FALSE)/1000,"no data")))) -> no data | AF74: =IF($F74="SPEC",COMP!L$90/1000,IFERROR(VLOOKUP($F74&$G74&$H74&$M74&COMP!$D$84&$I74&"L",AAMC!#REF!,15,FALSE)/1000,IFERROR(VLOOKUP($F74&$G74&$H74&$M74&COMP!$D$84&$I74&"L",MGMAC!#REF!,15,FALSE)/1000,IFERROR(VLOOKUP($F74&$G74&$H74&$M74&COMP!$D$84&$I74&"L",MGMACP!#REF!,15,FALSE)/1000,"no data")))) -> no data | AG74: =IF($F74="SPEC",COMP!M$90/1000,IFERROR(VLOOKUP($F74&$G74&$H74&$M74&COMP!$D$84&$I74&"L",AAMC!#REF!,20,FALSE)/1000,IFERROR(VLOOKUP($F74&$G74&$H74&$M74&COMP!$D$84&$I74&"L",MGMAC!#REF!,20,FALSE)/1000,IFERROR(VLOOKUP($F74&$G74&$H74&$M74&COMP!$D$84&$I74&"L",MGMACP!#REF!,20,FALSE)/1000,"no data")))) -> no data | AL74: 0 | AO74: 1 | AP74: 0 | AQ74: =IF($J74=0,0,IF($B74="SPEC",COMP!$L$102,IF($B74="FPSC",IFERROR(VLOOKUP($B74&$C74&$D74&$E74&"L",FPSC!#REF!,13,FALSE),"no data"),IF(B74&C74="MGMAAcademic",IFERROR(VLOOKUP($B74&$C74&$D74&$E74&"L",MGMAR!#REF!,13,FALSE),"no data"),IFERROR(VLOOKUP($B74&$C74&$D74&$E74&"L",MGMARP!#REF!,13,FALSE),"no data"))))) -> 0 | AR74: 0 | AS74: 0 | AT74: 0 | AU74: 0 | AV74: 0 | AW74: 0 | AX74: 0 | AY74: 0 | AZ74: 0 | BA74: 0
A75: 0 | B75: FPSC | C75: Academic | D75: All | E75: =IF($B75="MGMA",COMP!$D$86,IF($B75="FPSC",COMP!$D$85,IF($B75="SPEC",COMP!$K$103,"no data"))) -> [select] | F75: AAMC | G75: Academic | H75: All | I75: =IF($F75="AAMC",COMP!$D$83,IF($F75="MGMA",COMP!$D$86,IF($F75="SPEC",COMP!$K$91,"no data"))) -> [select] | V75: 0 | X75: 0 | Z75: 0 | AA75: 0 | AC75: 0 | AD75: 0 | AE75: =IF($F75="SPEC",COMP!K$90/1000,IFERROR(VLOOKUP($F75&$G75&$H75&$M75&COMP!$D$84&$I75&"L",AAMC!#REF!,10,FALSE)/1000,IFERROR(VLOOKUP($F75&$G75&$H75&$M75&COMP!$D$84&$I75&"L",MGMAC!#REF!,10,FALSE)/1000,IFERROR(VLOOKUP($F75&$G75&$H75&$M75&COMP!$D$84&$I75&"L",MGMACP!#REF!,10,FALSE)/1000,"no data")))) -> no data | AF75: =IF($F75="SPEC",COMP!L$90/1000,IFERROR(VLOOKUP($F75&$G75&$H75&$M75&COMP!$D$84&$I75&"L",AAMC!#REF!,15,FALSE)/1000,IFERROR(VLOOKUP($F75&$G75&$H75&$M75&COMP!$D$84&$I75&"L",MGMAC!#REF!,15,FALSE)/1000,IFERROR(VLOOKUP($F75&$G75&$H75&$M75&COMP!$D$84&$I75&"L",MGMACP!#REF!,15,FALSE)/1000,"no data")))) -> no data | AG75: =IF($F75="SPEC",COMP!M$90/1000,IFERROR(VLOOKUP($F75&$G75&$H75&$M75&COMP!$D$84&$I75&"L",AAMC!#REF!,20,FALSE)/1000,IFERROR(VLOOKUP($F75&$G75&$H75&$M75&COMP!$D$84&$I75&"L",MGMAC!#REF!,20,FALSE)/1000,IFERROR(VLOOKUP($F75&$G75&$H75&$M75&COMP!$D$84&$I75&"L",MGMACP!#REF!,20,FALSE)/1000,"no data")))) -> no data | AL75: 0 | AO75: 1 | AP75: 0 | AQ75: =IF($J75=0,0,IF($B75="SPEC",COMP!$L$102,IF($B75="FPSC",IFERROR(VLOOKUP($B75&$C75&$D75&$E75&"L",FPSC!#REF!,13,FALSE),"no data"),IF(B75&C75="MGMAAcademic",IFERROR(VLOOKUP($B75&$C75&$D75&$E75&"L",MGMAR!#REF!,13,FALSE),"no data"),IFERROR(VLOOKUP($B75&$C75&$D75&$E75&"L",MGMARP!#REF!,13,FALSE),"no data"))))) -> 0 | AR75: 0 | AS75: 0 | AT75: 0 | AU75: 0 | AV75: 0 | AW75: 0 | AX75: 0 | AY75: 0 | AZ75: 0 | BA75: 0
A76: 0 | B76: FPSC | C76: Academic | D76: All | E76: =IF($B76="MGMA",COMP!$D$86,IF($B76="FPSC",COMP!$D$85,IF($B76="SPEC",COMP!$K$103,"no data"))) -> [select] | F76: AAMC | G76: Academic | H76: All | I76: =IF($F76="AAMC",COMP!$D$83,IF($F76="MGMA",COMP!$D$86,IF($F76="SPEC",COMP!$K$91,"no data"))) -> [select] | V76: 0 | X76: 0 | Z76: 0 | AA76: 0 | AC76: 0 | AD76: 0 | AE76: =IF($F76="SPEC",COMP!K$90/1000,IFERROR(VLOOKUP($F76&$G76&$H76&$M76&COMP!$D$84&$I76&"L",AAMC!#REF!,10,FALSE)/1000,IFERROR(VLOOKUP($F76&$G76&$H76&$M76&COMP!$D$84&$I76&"L",MGMAC!#REF!,10,FALSE)/1000,IFERROR(VLOOKUP($F76&$G76&$H76&$M76&COMP!$D$84&$I76&"L",MGMACP!#REF!,10,FALSE)/1000,"no data")))) -> no data | AF76: =IF($F76="SPEC",COMP!L$90/1000,IFERROR(VLOOKUP($F76&$G76&$H76&$M76&COMP!$D$84&$I76&"L",AAMC!#REF!,15,FALSE)/1000,IFERROR(VLOOKUP($F76&$G76&$H76&$M76&COMP!$D$84&$I76&"L",MGMAC!#REF!,15,FALSE)/1000,IFERROR(VLOOKUP($F76&$G76&$H76&$M76&COMP!$D$84&$I76&"L",MGMACP!#REF!,15,FALSE)/1000,"no data")))) -> no data | AG76: =IF($F76="SPEC",COMP!M$90/1000,IFERROR(VLOOKUP($F76&$G76&$H76&$M76&COMP!$D$84&$I76&"L",AAMC!#REF!,20,FALSE)/1000,IFERROR(VLOOKUP($F76&$G76&$H76&$M76&COMP!$D$84&$I76&"L",MGMAC!#REF!,20,FALSE)/1000,IFERROR(VLOOKUP($F76&$G76&$H76&$M76&COMP!$D$84&$I76&"L",MGMACP!#REF!,20,FALSE)/1000,"no data")))) -> no data | AL76: 0 | AO76: 1 | AP76: 0 | AQ76: =IF($J76=0,0,IF($B76="SPEC",COMP!$L$102,IF($B76="FPSC",IFERROR(VLOOKUP($B76&$C76&$D76&$E76&"L",FPSC!#REF!,13,FALSE),"no data"),IF(B76&C76="MGMAAcademic",IFERROR(VLOOKUP($B76&$C76&$D76&$E76&"L",MGMAR!#REF!,13,FALSE),"no data"),IFERROR(VLOOKUP($B76&$C76&$D76&$E76&"L",MGMARP!#REF!,13,FALSE),"no data"))))) -> 0 | AR76: 0 | AS76: 0 | AT76: 0 | AU76: 0 | AV76: 0 | AW76: 0 | AX76: 0 | AY76: 0 | AZ76: 0 | BA76: 0
A77: 0 | B77: FPSC | C77: Academic | D77: All | E77: =IF($B77="MGMA",COMP!$D$86,IF($B77="FPSC",COMP!$D$85,IF($B77="SPEC",COMP!$K$103,"no data"))) -> [select] | F77: AAMC | G77: Academic | H77: All | I77: =IF($F77="AAMC",COMP!$D$83,IF($F77="MGMA",COMP!$D$86,IF($F77="SPEC",COMP!$K$91,"no data"))) -> [select] | V77: 0 | X77: 0 | Z77: 0 | AA77: 0 | AC77: 0 | AD77: 0 | AE77: =IF($F77="SPEC",COMP!K$90/1000,IFERROR(VLOOKUP($F77&$G77&$H77&$M77&COMP!$D$84&$I77&"L",AAMC!#REF!,10,FALSE)/1000,IFERROR(VLOOKUP($F77&$G77&$H77&$M77&COMP!$D$84&$I77&"L",MGMAC!#REF!,10,FALSE)/1000,IFERROR(VLOOKUP($F77&$G77&$H77&$M77&COMP!$D$84&$I77&"L",MGMACP!#REF!,10,FALSE)/1000,"no data")))) -> no data | AF77: =IF($F77="SPEC",COMP!L$90/1000,IFERROR(VLOOKUP($F77&$G77&$H77&$M77&COMP!$D$84&$I77&"L",AAMC!#REF!,15,FALSE)/1000,IFERROR(VLOOKUP($F77&$G77&$H77&$M77&COMP!$D$84&$I77&"L",MGMAC!#REF!,15,FALSE)/1000,IFERROR(VLOOKUP($F77&$G77&$H77&$M77&COMP!$D$84&$I77&"L",MGMACP!#REF!,15,FALSE)/1000,"no data")))) -> no data | AG77: =IF($F77="SPEC",COMP!M$90/1000,IFERROR(VLOOKUP($F77&$G77&$H77&$M77&COMP!$D$84&$I77&"L",AAMC!#REF!,20,FALSE)/1000,IFERROR(VLOOKUP($F77&$G77&$H77&$M77&COMP!$D$84&$I77&"L",MGMAC!#REF!,20,FALSE)/1000,IFERROR(VLOOKUP($F77&$G77&$H77&$M77&COMP!$D$84&$I77&"L",MGMACP!#REF!,20,FALSE)/1000,"no data")))) -> no data | AL77: 0 | AO77: 1 | AP77: 0 | AQ77: =IF($J77=0,0,IF($B77="SPEC",COMP!$L$102,IF($B77="FPSC",IFERROR(VLOOKUP($B77&$C77&$D77&$E77&"L",FPSC!#REF!,13,FALSE),"no data"),IF(B77&C77="MGMAAcademic",IFERROR(VLOOKUP($B77&$C77&$D77&$E77&"L",MGMAR!#REF!,13,FALSE),"no data"),IFERROR(VLOOKUP($B77&$C77&$D77&$E77&"L",MGMARP!#REF!,13,FALSE),"no data"))))) -> 0 | AR77: 0 | AS77: 0 | AT77: 0 | AU77: 0 | AV77: 0 | AW77: 0 | AX77: 0 | AY77: 0 | AZ77: 0 | BA77: 0
A78: 0 | B78: FPSC | C78: Academic | D78: All | E78: =IF($B78="MGMA",COMP!$D$86,IF($B78="FPSC",COMP!$D$85,IF($B78="SPEC",COMP!$K$103,"no data"))) -> [select] | F78: AAMC | G78: Academic | H78: All | I78: =IF($F78="AAMC",COMP!$D$83,IF($F78="MGMA",COMP!$D$86,IF($F78="SPEC",COMP!$K$91,"no data"))) -> [select] | V78: 0 | X78: 0 | Z78: 0 | AA78: 0 | AC78: 0 | AD78: 0 | AE78: =IF($F78="SPEC",COMP!K$90/1000,IFERROR(VLOOKUP($F78&$G78&$H78&$M78&COMP!$D$84&$I78&"L",AAMC!#REF!,10,FALSE)/1000,IFERROR(VLOOKUP($F78&$G78&$H78&$M78&COMP!$D$84&$I78&"L",MGMAC!#REF!,10,FALSE)/1000,IFERROR(VLOOKUP($F78&$G78&$H78&$M78&COMP!$D$84&$I78&"L",MGMACP!#REF!,10,FALSE)/1000,"no data")))) -> no data | AF78: =IF($F78="SPEC",COMP!L$90/1000,IFERROR(VLOOKUP($F78&$G78&$H78&$M78&COMP!$D$84&$I78&"L",AAMC!#REF!,15,FALSE)/1000,IFERROR(VLOOKUP($F78&$G78&$H78&$M78&COMP!$D$84&$I78&"L",MGMAC!#REF!,15,FALSE)/1000,IFERROR(VLOOKUP($F78&$G78&$H78&$M78&COMP!$D$84&$I78&"L",MGMACP!#REF!,15,FALSE)/1000,"no data")))) -> no data | AG78: =IF($F78="SPEC",COMP!M$90/1000,IFERROR(VLOOKUP($F78&$G78&$H78&$M78&COMP!$D$84&$I78&"L",AAMC!#REF!,20,FALSE)/1000,IFERROR(VLOOKUP($F78&$G78&$H78&$M78&COMP!$D$84&$I78&"L",MGMAC!#REF!,20,FALSE)/1000,IFERROR(VLOOKUP($F78&$G78&$H78&$M78&COMP!$D$84&$I78&"L",MGMACP!#REF!,20,FALSE)/1000,"no data")))) -> no data | AL78: 0 | AO78: 1 | AP78: 0 | AQ78: =IF($J78=0,0,IF($B78="SPEC",COMP!$L$102,IF($B78="FPSC",IFERROR(VLOOKUP($B78&$C78&$D78&$E78&"L",FPSC!#REF!,13,FALSE),"no data"),IF(B78&C78="MGMAAcademic",IFERROR(VLOOKUP($B78&$C78&$D78&$E78&"L",MGMAR!#REF!,13,FALSE),"no data"),IFERROR(VLOOKUP($B78&$C78&$D78&$E78&"L",MGMARP!#REF!,13,FALSE),"no data"))))) -> 0 | AR78: 0 | AS78: 0 | AT78: 0 | AU78: 0 | AV78: 0 | AW78: 0 | AX78: 0 | AY78: 0 | AZ78: 0 | BA78: 0
A79: 0 | B79: FPSC | C79: Academic | D79: All | E79: =IF($B79="MGMA",COMP!$D$86,IF($B79="FPSC",COMP!$D$85,IF($B79="SPEC",COMP!$K$103,"no data"))) -> [select] | F79: AAMC | G79: Academic | H79: All | I79: =IF($F79="AAMC",COMP!$D$83,IF($F79="MGMA",COMP!$D$86,IF($F79="SPEC",COMP!$K$91,"no data"))) -> [select] | V79: 0 | X79: 0 | Z79: 0 | AA79: 0 | AC79: 0 | AD79: 0 | AE79: =IF($F79="SPEC",COMP!K$90/1000,IFERROR(VLOOKUP($F79&$G79&$H79&$M79&COMP!$D$84&$I79&"L",AAMC!#REF!,10,FALSE)/1000,IFERROR(VLOOKUP($F79&$G79&$H79&$M79&COMP!$D$84&$I79&"L",MGMAC!#REF!,10,FALSE)/1000,IFERROR(VLOOKUP($F79&$G79&$H79&$M79&COMP!$D$84&$I79&"L",MGMACP!#REF!,10,FALSE)/1000,"no data")))) -> no data | AF79: =IF($F79="SPEC",COMP!L$90/1000,IFERROR(VLOOKUP($F79&$G79&$H79&$M79&COMP!$D$84&$I79&"L",AAMC!#REF!,15,FALSE)/1000,IFERROR(VLOOKUP($F79&$G79&$H79&$M79&COMP!$D$84&$I79&"L",MGMAC!#REF!,15,FALSE)/1000,IFERROR(VLOOKUP($F79&$G79&$H79&$M79&COMP!$D$84&$I79&"L",MGMACP!#REF!,15,FALSE)/1000,"no data")))) -> no data | AG79: =IF($F79="SPEC",COMP!M$90/1000,IFERROR(VLOOKUP($F79&$G79&$H79&$M79&COMP!$D$84&$I79&"L",AAMC!#REF!,20,FALSE)/1000,IFERROR(VLOOKUP($F79&$G79&$H79&$M79&COMP!$D$84&$I79&"L",MGMAC!#REF!,20,FALSE)/1000,IFERROR(VLOOKUP($F79&$G79&$H79&$M79&COMP!$D$84&$I79&"L",MGMACP!#REF!,20,FALSE)/1000,"no data")))) -> no data | AL79: 0 | AO79: 1 | AP79: 0 | AQ79: =IF($J79=0,0,IF($B79="SPEC",COMP!$L$102,IF($B79="FPSC",IFERROR(VLOOKUP($B79&$C79&$D79&$E79&"L",FPSC!#REF!,13,FALSE),"no data"),IF(B79&C79="MGMAAcademic",IFERROR(VLOOKUP($B79&$C79&$D79&$E79&"L",MGMAR!#REF!,13,FALSE),"no data"),IFERROR(VLOOKUP($B79&$C79&$D79&$E79&"L",MGMARP!#REF!,13,FALSE),"no data"))))) -> 0 | AR79: 0 | AS79: 0 | AT79: 0 | AU79: 0 | AV79: 0 | AW79: 0 | AX79: 0 | AY79: 0 | AZ79: 0 | BA79: 0
A80: 0 | B80: FPSC | C80: Academic | D80: All | E80: =IF($B80="MGMA",COMP!$D$86,IF($B80="FPSC",COMP!$D$85,IF($B80="SPEC",COMP!$K$103,"no data"))) -> [select] | F80: AAMC | G80: Academic | H80: All | I80: =IF($F80="AAMC",COMP!$D$83,IF($F80="MGMA",COMP!$D$86,IF($F80="SPEC",COMP!$K$91,"no data"))) -> [select] | V80: 0 | X80: 0 | Z80: 0 | AA80: 0 | AC80: 0 | AD80: 0 | AE80: =IF($F80="SPEC",COMP!K$90/1000,IFERROR(VLOOKUP($F80&$G80&$H80&$M80&COMP!$D$84&$I80&"L",AAMC!#REF!,10,FALSE)/1000,IFERROR(VLOOKUP($F80&$G80&$H80&$M80&COMP!$D$84&$I80&"L",MGMAC!#REF!,10,FALSE)/1000,IFERROR(VLOOKUP($F80&$G80&$H80&$M80&COMP!$D$84&$I80&"L",MGMACP!#REF!,10,FALSE)/1000,"no data")))) -> no data | AF80: =IF($F80="SPEC",COMP!L$90/1000,IFERROR(VLOOKUP($F80&$G80&$H80&$M80&COMP!$D$84&$I80&"L",AAMC!#REF!,15,FALSE)/1000,IFERROR(VLOOKUP($F80&$G80&$H80&$M80&COMP!$D$84&$I80&"L",MGMAC!#REF!,15,FALSE)/1000,IFERROR(VLOOKUP($F80&$G80&$H80&$M80&COMP!$D$84&$I80&"L",MGMACP!#REF!,15,FALSE)/1000,"no data")))) -> no data | AG80: =IF($F80="SPEC",COMP!M$90/1000,IFERROR(VLOOKUP($F80&$G80&$H80&$M80&COMP!$D$84&$I80&"L",AAMC!#REF!,20,FALSE)/1000,IFERROR(VLOOKUP($F80&$G80&$H80&$M80&COMP!$D$84&$I80&"L",MGMAC!#REF!,20,FALSE)/1000,IFERROR(VLOOKUP($F80&$G80&$H80&$M80&COMP!$D$84&$I80&"L",MGMACP!#REF!,20,FALSE)/1000,"no data")))) -> no data | AL80: 0 | AO80: 1 | AP80: 0 | AQ80: =IF($J80=0,0,IF($B80="SPEC",COMP!$L$102,IF($B80="FPSC",IFERROR(VLOOKUP($B80&$C80&$D80&$E80&"L",FPSC!#REF!,13,FALSE),"no data"),IF(B80&C80="MGMAAcademic",IFERROR(VLOOKUP($B80&$C80&$D80&$E80&"L",MGMAR!#REF!,13,FALSE),"no data"),IFERROR(VLOOKUP($B80&$C80&$D80&$E80&"L",MGMARP!#REF!,13,FALSE),"no data"))))) -> 0 | AR80: 0 | AS80: 0 | AT80: 0 | AU80: 0 | AV80: 0 | AW80: 0 | AX80: 0 | AY80: 0 | AZ80: 0 | BA80: 0
A81: 0 | B81: FPSC | C81: Academic | D81: All | E81: =IF($B81="MGMA",COMP!$D$86,IF($B81="FPSC",COMP!$D$85,IF($B81="SPEC",COMP!$K$103,"no data"))) -> [select] | F81: AAMC | G81: Academic | H81: All | I81: =IF($F81="AAMC",COMP!$D$83,IF($F81="MGMA",COMP!$D$86,IF($F81="SPEC",COMP!$K$91,"no data"))) -> [select] | V81: 0 | X81: 0 | Z81: 0 | AA81: 0 | AC81: 0 | AD81: 0 | AE81: =IF($F81="SPEC",COMP!K$90/1000,IFERROR(VLOOKUP($F81&$G81&$H81&$M81&COMP!$D$84&$I81&"L",AAMC!#REF!,10,FALSE)/1000,IFERROR(VLOOKUP($F81&$G81&$H81&$M81&COMP!$D$84&$I81&"L",MGMAC!#REF!,10,FALSE)/1000,IFERROR(VLOOKUP($F81&$G81&$H81&$M81&COMP!$D$84&$I81&"L",MGMACP!#REF!,10,FALSE)/1000,"no data")))) -> no data | AF81: =IF($F81="SPEC",COMP!L$90/1000,IFERROR(VLOOKUP($F81&$G81&$H81&$M81&COMP!$D$84&$I81&"L",AAMC!#REF!,15,FALSE)/1000,IFERROR(VLOOKUP($F81&$G81&$H81&$M81&COMP!$D$84&$I81&"L",MGMAC!#REF!,15,FALSE)/1000,IFERROR(VLOOKUP($F81&$G81&$H81&$M81&COMP!$D$84&$I81&"L",MGMACP!#REF!,15,FALSE)/1000,"no data")))) -> no data | AG81: =IF($F81="SPEC",COMP!M$90/1000,IFERROR(VLOOKUP($F81&$G81&$H81&$M81&COMP!$D$84&$I81&"L",AAMC!#REF!,20,FALSE)/1000,IFERROR(VLOOKUP($F81&$G81&$H81&$M81&COMP!$D$84&$I81&"L",MGMAC!#REF!,20,FALSE)/1000,IFERROR(VLOOKUP($F81&$G81&$H81&$M81&COMP!$D$84&$I81&"L",MGMACP!#REF!,20,FALSE)/1000,"no data")))) -> no data | AL81: 0 | AO81: 1 | AP81: 0 | AQ81: =IF($J81=0,0,IF($B81="SPEC",COMP!$L$102,IF($B81="FPSC",IFERROR(VLOOKUP($B81&$C81&$D81&$E81&"L",FPSC!#REF!,13,FALSE),"no data"),IF(B81&C81="MGMAAcademic",IFERROR(VLOOKUP($B81&$C81&$D81&$E81&"L",MGMAR!#REF!,13,FALSE),"no data"),IFERROR(VLOOKUP($B81&$C81&$D81&$E81&"L",MGMARP!#REF!,13,FALSE),"no data"))))) -> 0 | AR81: 0 | AS81: 0 | AT81: 0 | AU81: 0 | AV81: 0 | AW81: 0 | AX81: 0 | AY81: 0 | AZ81: 0 | BA81: 0
A82: 0 | B82: FPSC | C82: Academic | D82: All | E82: =IF($B82="MGMA",COMP!$D$86,IF($B82="FPSC",COMP!$D$85,IF($B82="SPEC",COMP!$K$103,"no data"))) -> [select] | F82: AAMC | G82: Academic | H82: All | I82: =IF($F82="AAMC",COMP!$D$83,IF($F82="MGMA",COMP!$D$86,IF($F82="SPEC",COMP!$K$91,"no data"))) -> [select] | V82: 0 | X82: 0 | Z82: 0 | AA82: 0 | AC82: 0 | AD82: 0 | AE82: =IF($F82="SPEC",COMP!K$90/1000,IFERROR(VLOOKUP($F82&$G82&$H82&$M82&COMP!$D$84&$I82&"L",AAMC!#REF!,10,FALSE)/1000,IFERROR(VLOOKUP($F82&$G82&$H82&$M82&COMP!$D$84&$I82&"L",MGMAC!#REF!,10,FALSE)/1000,IFERROR(VLOOKUP($F82&$G82&$H82&$M82&COMP!$D$84&$I82&"L",MGMACP!#REF!,10,FALSE)/1000,"no data")))) -> no data | AF82: =IF($F82="SPEC",COMP!L$90/1000,IFERROR(VLOOKUP($F82&$G82&$H82&$M82&COMP!$D$84&$I82&"L",AAMC!#REF!,15,FALSE)/1000,IFERROR(VLOOKUP($F82&$G82&$H82&$M82&COMP!$D$84&$I82&"L",MGMAC!#REF!,15,FALSE)/1000,IFERROR(VLOOKUP($F82&$G82&$H82&$M82&COMP!$D$84&$I82&"L",MGMACP!#REF!,15,FALSE)/1000,"no data")))) -> no data | AG82: =IF($F82="SPEC",COMP!M$90/1000,IFERROR(VLOOKUP($F82&$G82&$H82&$M82&COMP!$D$84&$I82&"L",AAMC!#REF!,20,FALSE)/1000,IFERROR(VLOOKUP($F82&$G82&$H82&$M82&COMP!$D$84&$I82&"L",MGMAC!#REF!,20,FALSE)/1000,IFERROR(VLOOKUP($F82&$G82&$H82&$M82&COMP!$D$84&$I82&"L",MGMACP!#REF!,20,FALSE)/1000,"no data")))) -> no data | AL82: 0 | AO82: 1 | AP82: 0 | AQ82: =IF($J82=0,0,IF($B82="SPEC",COMP!$L$102,IF($B82="FPSC",IFERROR(VLOOKUP($B82&$C82&$D82&$E82&"L",FPSC!#REF!,13,FALSE),"no data"),IF(B82&C82="MGMAAcademic",IFERROR(VLOOKUP($B82&$C82&$D82&$E82&"L",MGMAR!#REF!,13,FALSE),"no data"),IFERROR(VLOOKUP($B82&$C82&$D82&$E82&"L",MGMARP!#REF!,13,FALSE),"no data"))))) -> 0 | AR82: 0 | AS82: 0 | AT82: 0 | AU82: 0 | AV82: 0 | AW82: 0 | AX82: 0 | AY82: 0 | AZ82: 0 | BA82: 0
A83: 0 | B83: FPSC | C83: Academic | D83: All | E83: =IF($B83="MGMA",COMP!$D$86,IF($B83="FPSC",COMP!$D$85,IF($B83="SPEC",COMP!$K$103,"no data"))) -> [select] | F83: AAMC | G83: Academic | H83: All | I83: =IF($F83="AAMC",COMP!$D$83,IF($F83="MGMA",COMP!$D$86,IF($F83="SPEC",COMP!$K$91,"no data"))) -> [select] | V83: 0 | X83: 0 | Z83: 0 | AA83: 0 | AC83: 0 | AD83: 0 | AE83: =IF($F83="SPEC",COMP!K$90/1000,IFERROR(VLOOKUP($F83&$G83&$H83&$M83&COMP!$D$84&$I83&"L",AAMC!#REF!,10,FALSE)/1000,IFERROR(VLOOKUP($F83&$G83&$H83&$M83&COMP!$D$84&$I83&"L",MGMAC!#REF!,10,FALSE)/1000,IFERROR(VLOOKUP($F83&$G83&$H83&$M83&COMP!$D$84&$I83&"L",MGMACP!#REF!,10,FALSE)/1000,"no data")))) -> no data | AF83: =IF($F83="SPEC",COMP!L$90/1000,IFERROR(VLOOKUP($F83&$G83&$H83&$M83&COMP!$D$84&$I83&"L",AAMC!#REF!,15,FALSE)/1000,IFERROR(VLOOKUP($F83&$G83&$H83&$M83&COMP!$D$84&$I83&"L",MGMAC!#REF!,15,FALSE)/1000,IFERROR(VLOOKUP($F83&$G83&$H83&$M83&COMP!$D$84&$I83&"L",MGMACP!#REF!,15,FALSE)/1000,"no data")))) -> no data | AG83: =IF($F83="SPEC",COMP!M$90/1000,IFERROR(VLOOKUP($F83&$G83&$H83&$M83&COMP!$D$84&$I83&"L",AAMC!#REF!,20,FALSE)/1000,IFERROR(VLOOKUP($F83&$G83&$H83&$M83&COMP!$D$84&$I83&"L",MGMAC!#REF!,20,FALSE)/1000,IFERROR(VLOOKUP($F83&$G83&$H83&$M83&COMP!$D$84&$I83&"L",MGMACP!#REF!,20,FALSE)/1000,"no data")))) -> no data | AL83: 0 | AO83: 1 | AP83: 0 | AQ83: =IF($J83=0,0,IF($B83="SPEC",COMP!$L$102,IF($B83="FPSC",IFERROR(VLOOKUP($B83&$C83&$D83&$E83&"L",FPSC!#REF!,13,FALSE),"no data"),IF(B83&C83="MGMAAcademic",IFERROR(VLOOKUP($B83&$C83&$D83&$E83&"L",MGMAR!#REF!,13,FALSE),"no data"),IFERROR(VLOOKUP($B83&$C83&$D83&$E83&"L",MGMARP!#REF!,13,FALSE),"no data"))))) -> 0 | AR83: 0 | AS83: 0 | AT83: 0 | AU83: 0 | AV83: 0 | AW83: 0 | AX83: 0 | AY83: 0 | AZ83: 0 | BA83: 0
A84: 0 | B84: FPSC | C84: Academic | D84: All | E84: =IF($B84="MGMA",COMP!$D$86,IF($B84="FPSC",COMP!$D$85,IF($B84="SPEC",COMP!$K$103,"no data"))) -> [select] | F84: AAMC | G84: Academic | H84: All | I84: =IF($F84="AAMC",COMP!$D$83,IF($F84="MGMA",COMP!$D$86,IF($F84="SPEC",COMP!$K$91,"no data"))) -> [select] | V84: 0 | X84: 0 | Z84: 0 | AA84: 0 | AC84: 0 | AD84: 0 | AE84: =IF($F84="SPEC",COMP!K$90/1000,IFERROR(VLOOKUP($F84&$G84&$H84&$M84&COMP!$D$84&$I84&"L",AAMC!#REF!,10,FALSE)/1000,IFERROR(VLOOKUP($F84&$G84&$H84&$M84&COMP!$D$84&$I84&"L",MGMAC!#REF!,10,FALSE)/1000,IFERROR(VLOOKUP($F84&$G84&$H84&$M84&COMP!$D$84&$I84&"L",MGMACP!#REF!,10,FALSE)/1000,"no data")))) -> no data | AF84: =IF($F84="SPEC",COMP!L$90/1000,IFERROR(VLOOKUP($F84&$G84&$H84&$M84&COMP!$D$84&$I84&"L",AAMC!#REF!,15,FALSE)/1000,IFERROR(VLOOKUP($F84&$G84&$H84&$M84&COMP!$D$84&$I84&"L",MGMAC!#REF!,15,FALSE)/1000,IFERROR(VLOOKUP($F84&$G84&$H84&$M84&COMP!$D$84&$I84&"L",MGMACP!#REF!,15,FALSE)/1000,"no data")))) -> no data | AG84: =IF($F84="SPEC",COMP!M$90/1000,IFERROR(VLOOKUP($F84&$G84&$H84&$M84&COMP!$D$84&$I84&"L",AAMC!#REF!,20,FALSE)/1000,IFERROR(VLOOKUP($F84&$G84&$H84&$M84&COMP!$D$84&$I84&"L",MGMAC!#REF!,20,FALSE)/1000,IFERROR(VLOOKUP($F84&$G84&$H84&$M84&COMP!$D$84&$I84&"L",MGMACP!#REF!,20,FALSE)/1000,"no data")))) -> no data | AL84: 0 | AO84: 1 | AP84: 0 | AQ84: =IF($J84=0,0,IF($B84="SPEC",COMP!$L$102,IF($B84="FPSC",IFERROR(VLOOKUP($B84&$C84&$D84&$E84&"L",FPSC!#REF!,13,FALSE),"no data"),IF(B84&C84="MGMAAcademic",IFERROR(VLOOKUP($B84&$C84&$D84&$E84&"L",MGMAR!#REF!,13,FALSE),"no data"),IFERROR(VLOOKUP($B84&$C84&$D84&$E84&"L",MGMARP!#REF!,13,FALSE),"no data"))))) -> 0 | AR84: 0 | AS84: 0 | AT84: 0 | AU84: 0 | AV84: 0 | AW84: 0 | AX84: 0 | AY84: 0 | AZ84: 0 | BA84: 0
A85: 0 | B85: FPSC | C85: Academic | D85: All | E85: =IF($B85="MGMA",COMP!$D$86,IF($B85="FPSC",COMP!$D$85,IF($B85="SPEC",COMP!$K$103,"no data"))) -> [select] | F85: AAMC | G85: Academic | H85: All | I85: =IF($F85="AAMC",COMP!$D$83,IF($F85="MGMA",COMP!$D$86,IF($F85="SPEC",COMP!$K$91,"no data"))) -> [select] | V85: 0 | X85: 0 | Z85: 0 | AA85: 0 | AC85: 0 | AD85: 0 | AE85: =IF($F85="SPEC",COMP!K$90/1000,IFERROR(VLOOKUP($F85&$G85&$H85&$M85&COMP!$D$84&$I85&"L",AAMC!#REF!,10,FALSE)/1000,IFERROR(VLOOKUP($F85&$G85&$H85&$M85&COMP!$D$84&$I85&"L",MGMAC!#REF!,10,FALSE)/1000,IFERROR(VLOOKUP($F85&$G85&$H85&$M85&COMP!$D$84&$I85&"L",MGMACP!#REF!,10,FALSE)/1000,"no data")))) -> no data | AF85: =IF($F85="SPEC",COMP!L$90/1000,IFERROR(VLOOKUP($F85&$G85&$H85&$M85&COMP!$D$84&$I85&"L",AAMC!#REF!,15,FALSE)/1000,IFERROR(VLOOKUP($F85&$G85&$H85&$M85&COMP!$D$84&$I85&"L",MGMAC!#REF!,15,FALSE)/1000,IFERROR(VLOOKUP($F85&$G85&$H85&$M85&COMP!$D$84&$I85&"L",MGMACP!#REF!,15,FALSE)/1000,"no data")))) -> no data | AG85: =IF($F85="SPEC",COMP!M$90/1000,IFERROR(VLOOKUP($F85&$G85&$H85&$M85&COMP!$D$84&$I85&"L",AAMC!#REF!,20,FALSE)/1000,IFERROR(VLOOKUP($F85&$G85&$H85&$M85&COMP!$D$84&$I85&"L",MGMAC!#REF!,20,FALSE)/1000,IFERROR(VLOOKUP($F85&$G85&$H85&$M85&COMP!$D$84&$I85&"L",MGMACP!#REF!,20,FALSE)/1000,"no data")))) -> no data | AL85: 0 | AO85: 1 | AP85: 0 | AQ85: =IF($J85=0,0,IF($B85="SPEC",COMP!$L$102,IF($B85="FPSC",IFERROR(VLOOKUP($B85&$C85&$D85&$E85&"L",FPSC!#REF!,13,FALSE),"no data"),IF(B85&C85="MGMAAcademic",IFERROR(VLOOKUP($B85&$C85&$D85&$E85&"L",MGMAR!#REF!,13,FALSE),"no data"),IFERROR(VLOOKUP($B85&$C85&$D85&$E85&"L",MGMARP!#REF!,13,FALSE),"no data"))))) -> 0 | AR85: 0 | AS85: 0 | AT85: 0 | AU85: 0 | AV85: 0 | AW85: 0 | AX85: 0 | AY85: 0 | AZ85: 0 | BA85: 0
A86: 0 | B86: FPSC | C86: Academic | D86: All | E86: =IF($B86="MGMA",COMP!$D$86,IF($B86="FPSC",COMP!$D$85,IF($B86="SPEC",COMP!$K$103,"no data"))) -> [select] | F86: AAMC | G86: Academic | H86: All | I86: =IF($F86="AAMC",COMP!$D$83,IF($F86="MGMA",COMP!$D$86,IF($F86="SPEC",COMP!$K$91,"no data"))) -> [select] | V86: 0 | X86: 0 | Z86: 0 | AA86: 0 | AC86: 0 | AD86: 0 | AE86: =IF($F86="SPEC",COMP!K$90/1000,IFERROR(VLOOKUP($F86&$G86&$H86&$M86&COMP!$D$84&$I86&"L",AAMC!#REF!,10,FALSE)/1000,IFERROR(VLOOKUP($F86&$G86&$H86&$M86&COMP!$D$84&$I86&"L",MGMAC!#REF!,10,FALSE)/1000,IFERROR(VLOOKUP($F86&$G86&$H86&$M86&COMP!$D$84&$I86&"L",MGMACP!#REF!,10,FALSE)/1000,"no data")))) -> no data | AF86: =IF($F86="SPEC",COMP!L$90/1000,IFERROR(VLOOKUP($F86&$G86&$H86&$M86&COMP!$D$84&$I86&"L",AAMC!#REF!,15,FALSE)/1000,IFERROR(VLOOKUP($F86&$G86&$H86&$M86&COMP!$D$84&$I86&"L",MGMAC!#REF!,15,FALSE)/1000,IFERROR(VLOOKUP($F86&$G86&$H86&$M86&COMP!$D$84&$I86&"L",MGMACP!#REF!,15,FALSE)/1000,"no data")))) -> no data | AG86: =IF($F86="SPEC",COMP!M$90/1000,IFERROR(VLOOKUP($F86&$G86&$H86&$M86&COMP!$D$84&$I86&"L",AAMC!#REF!,20,FALSE)/1000,IFERROR(VLOOKUP($F86&$G86&$H86&$M86&COMP!$D$84&$I86&"L",MGMAC!#REF!,20,FALSE)/1000,IFERROR(VLOOKUP($F86&$G86&$H86&$M86&COMP!$D$84&$I86&"L",MGMACP!#REF!,20,FALSE)/1000,"no data")))) -> no data | AL86: 0 | AO86: 1 | AP86: 0 | AQ86: =IF($J86=0,0,IF($B86="SPEC",COMP!$L$102,IF($B86="FPSC",IFERROR(VLOOKUP($B86&$C86&$D86&$E86&"L",FPSC!#REF!,13,FALSE),"no data"),IF(B86&C86="MGMAAcademic",IFERROR(VLOOKUP($B86&$C86&$D86&$E86&"L",MGMAR!#REF!,13,FALSE),"no data"),IFERROR(VLOOKUP($B86&$C86&$D86&$E86&"L",MGMARP!#REF!,13,FALSE),"no data"))))) -> 0 | AR86: 0 | AS86: 0 | AT86: 0 | AU86: 0 | AV86: 0 | AW86: 0 | AX86: 0 | AY86: 0 | AZ86: 0 | BA86: 0
A87: 0 | B87: FPSC | C87: Academic | D87: All | E87: =IF($B87="MGMA",COMP!$D$86,IF($B87="FPSC",COMP!$D$85,IF($B87="SPEC",COMP!$K$103,"no data"))) -> [select] | F87: AAMC | G87: Academic | H87: All | I87: =IF($F87="AAMC",COMP!$D$83,IF($F87="MGMA",COMP!$D$86,IF($F87="SPEC",COMP!$K$91,"no data"))) -> [select] | V87: 0 | X87: 0 | Z87: 0 | AA87: 0 | AC87: 0 | AD87: 0 | AE87: =IF($F87="SPEC",COMP!K$90/1000,IFERROR(VLOOKUP($F87&$G87&$H87&$M87&COMP!$D$84&$I87&"L",AAMC!#REF!,10,FALSE)/1000,IFERROR(VLOOKUP($F87&$G87&$H87&$M87&COMP!$D$84&$I87&"L",MGMAC!#REF!,10,FALSE)/1000,IFERROR(VLOOKUP($F87&$G87&$H87&$M87&COMP!$D$84&$I87&"L",MGMACP!#REF!,10,FALSE)/1000,"no data")))) -> no data | AF87: =IF($F87="SPEC",COMP!L$90/1000,IFERROR(VLOOKUP($F87&$G87&$H87&$M87&COMP!$D$84&$I87&"L",AAMC!#REF!,15,FALSE)/1000,IFERROR(VLOOKUP($F87&$G87&$H87&$M87&COMP!$D$84&$I87&"L",MGMAC!#REF!,15,FALSE)/1000,IFERROR(VLOOKUP($F87&$G87&$H87&$M87&COMP!$D$84&$I87&"L",MGMACP!#REF!,15,FALSE)/1000,"no data")))) -> no data | AG87: =IF($F87="SPEC",COMP!M$90/1000,IFERROR(VLOOKUP($F87&$G87&$H87&$M87&COMP!$D$84&$I87&"L",AAMC!#REF!,20,FALSE)/1000,IFERROR(VLOOKUP($F87&$G87&$H87&$M87&COMP!$D$84&$I87&"L",MGMAC!#REF!,20,FALSE)/1000,IFERROR(VLOOKUP($F87&$G87&$H87&$M87&COMP!$D$84&$I87&"L",MGMACP!#REF!,20,FALSE)/1000,"no data")))) -> no data | AL87: 0 | AO87: 1 | AP87: 0 | AQ87: =IF($J87=0,0,IF($B87="SPEC",COMP!$L$102,IF($B87="FPSC",IFERROR(VLOOKUP($B87&$C87&$D87&$E87&"L",FPSC!#REF!,13,FALSE),"no data"),IF(B87&C87="MGMAAcademic",IFERROR(VLOOKUP($B87&$C87&$D87&$E87&"L",MGMAR!#REF!,13,FALSE),"no data"),IFERROR(VLOOKUP($B87&$C87&$D87&$E87&"L",MGMARP!#REF!,13,FALSE),"no data"))))) -> 0 | AR87: 0 | AS87: 0 | AT87: 0 | AU87: 0 | AV87: 0 | AW87: 0 | AX87: 0 | AY87: 0 | AZ87: 0 | BA87: 0
A88: 0 | B88: FPSC | C88: Academic | D88: All | E88: =IF($B88="MGMA",COMP!$D$86,IF($B88="FPSC",COMP!$D$85,IF($B88="SPEC",COMP!$K$103,"no data"))) -> [select] | F88: AAMC | G88: Academic | H88: All | I88: =IF($F88="AAMC",COMP!$D$83,IF($F88="MGMA",COMP!$D$86,IF($F88="SPEC",COMP!$K$91,"no data"))) -> [select] | V88: 0 | X88: 0 | Z88: 0 | AA88: 0 | AC88: 0 | AD88: 0 | AE88: =IF($F88="SPEC",COMP!K$90/1000,IFERROR(VLOOKUP($F88&$G88&$H88&$M88&COMP!$D$84&$I88&"L",AAMC!#REF!,10,FALSE)/1000,IFERROR(VLOOKUP($F88&$G88&$H88&$M88&COMP!$D$84&$I88&"L",MGMAC!#REF!,10,FALSE)/1000,IFERROR(VLOOKUP($F88&$G88&$H88&$M88&COMP!$D$84&$I88&"L",MGMACP!#REF!,10,FALSE)/1000,"no data")))) -> no data | AF88: =IF($F88="SPEC",COMP!L$90/1000,IFERROR(VLOOKUP($F88&$G88&$H88&$M88&COMP!$D$84&$I88&"L",AAMC!#REF!,15,FALSE)/1000,IFERROR(VLOOKUP($F88&$G88&$H88&$M88&COMP!$D$84&$I88&"L",MGMAC!#REF!,15,FALSE)/1000,IFERROR(VLOOKUP($F88&$G88&$H88&$M88&COMP!$D$84&$I88&"L",MGMACP!#REF!,15,FALSE)/1000,"no data")))) -> no data | AG88: =IF($F88="SPEC",COMP!M$90/1000,IFERROR(VLOOKUP($F88&$G88&$H88&$M88&COMP!$D$84&$I88&"L",AAMC!#REF!,20,FALSE)/1000,IFERROR(VLOOKUP($F88&$G88&$H88&$M88&COMP!$D$84&$I88&"L",MGMAC!#REF!,20,FALSE)/1000,IFERROR(VLOOKUP($F88&$G88&$H88&$M88&COMP!$D$84&$I88&"L",MGMACP!#REF!,20,FALSE)/1000,"no data")))) -> no data | AL88: 0 | AO88: 1 | AP88: 0 | AQ88: =IF($J88=0,0,IF($B88="SPEC",COMP!$L$102,IF($B88="FPSC",IFERROR(VLOOKUP($B88&$C88&$D88&$E88&"L",FPSC!#REF!,13,FALSE),"no data"),IF(B88&C88="MGMAAcademic",IFERROR(VLOOKUP($B88&$C88&$D88&$E88&"L",MGMAR!#REF!,13,FALSE),"no data"),IFERROR(VLOOKUP($B88&$C88&$D88&$E88&"L",MGMARP!#REF!,13,FALSE),"no data"))))) -> 0 | AR88: 0 | AS88: 0 | AT88: 0 | AU88: 0 | AV88: 0 | AW88: 0 | AX88: 0 | AY88: 0 | AZ88: 0 | BA88: 0
A89: 0 | B89: FPSC | C89: Academic | D89: All | E89: =IF($B89="MGMA",COMP!$D$86,IF($B89="FPSC",COMP!$D$85,IF($B89="SPEC",COMP!$K$103,"no data"))) -> [select] | F89: AAMC | G89: Academic | H89: All | I89: =IF($F89="AAMC",COMP!$D$83,IF($F89="MGMA",COMP!$D$86,IF($F89="SPEC",COMP!$K$91,"no data"))) -> [select] | V89: 0 | X89: 0 | Z89: 0 | AA89: 0 | AC89: 0 | AD89: 0 | AE89: =IF($F89="SPEC",COMP!K$90/1000,IFERROR(VLOOKUP($F89&$G89&$H89&$M89&COMP!$D$84&$I89&"L",AAMC!#REF!,10,FALSE)/1000,IFERROR(VLOOKUP($F89&$G89&$H89&$M89&COMP!$D$84&$I89&"L",MGMAC!#REF!,10,FALSE)/1000,IFERROR(VLOOKUP($F89&$G89&$H89&$M89&COMP!$D$84&$I89&"L",MGMACP!#REF!,10,FALSE)/1000,"no data")))) -> no data | AF89: =IF($F89="SPEC",COMP!L$90/1000,IFERROR(VLOOKUP($F89&$G89&$H89&$M89&COMP!$D$84&$I89&"L",AAMC!#REF!,15,FALSE)/1000,IFERROR(VLOOKUP($F89&$G89&$H89&$M89&COMP!$D$84&$I89&"L",MGMAC!#REF!,15,FALSE)/1000,IFERROR(VLOOKUP($F89&$G89&$H89&$M89&COMP!$D$84&$I89&"L",MGMACP!#REF!,15,FALSE)/1000,"no data")))) -> no data | AG89: =IF($F89="SPEC",COMP!M$90/1000,IFERROR(VLOOKUP($F89&$G89&$H89&$M89&COMP!$D$84&$I89&"L",AAMC!#REF!,20,FALSE)/1000,IFERROR(VLOOKUP($F89&$G89&$H89&$M89&COMP!$D$84&$I89&"L",MGMAC!#REF!,20,FALSE)/1000,IFERROR(VLOOKUP($F89&$G89&$H89&$M89&COMP!$D$84&$I89&"L",MGMACP!#REF!,20,FALSE)/1000,"no data")))) -> no data | AL89: 0 | AO89: 1 | AP89: 0 | AQ89: =IF($J89=0,0,IF($B89="SPEC",COMP!$L$102,IF($B89="FPSC",IFERROR(VLOOKUP($B89&$C89&$D89&$E89&"L",FPSC!#REF!,13,FALSE),"no data"),IF(B89&C89="MGMAAcademic",IFERROR(VLOOKUP($B89&$C89&$D89&$E89&"L",MGMAR!#REF!,13,FALSE),"no data"),IFERROR(VLOOKUP($B89&$C89&$D89&$E89&"L",MGMARP!#REF!,13,FALSE),"no data"))))) -> 0 | AR89: 0 | AS89: 0 | AT89: 0 | AU89: 0 | AV89: 0 | AW89: 0 | AX89: 0 | AY89: 0 | AZ89: 0 | BA89: 0
A90: 0 | B90: FPSC | C90: Academic | D90: All | E90: =IF($B90="MGMA",COMP!$D$86,IF($B90="FPSC",COMP!$D$85,IF($B90="SPEC",COMP!$K$103,"no data"))) -> [select] | F90: AAMC | G90: Academic | H90: All | I90: =IF($F90="AAMC",COMP!$D$83,IF($F90="MGMA",COMP!$D$86,IF($F90="SPEC",COMP!$K$91,"no data"))) -> [select] | V90: 0 | X90: 0 | Z90: 0 | AA90: 0 | AC90: 0 | AD90: 0 | AE90: =IF($F90="SPEC",COMP!K$90/1000,IFERROR(VLOOKUP($F90&$G90&$H90&$M90&COMP!$D$84&$I90&"L",AAMC!#REF!,10,FALSE)/1000,IFERROR(VLOOKUP($F90&$G90&$H90&$M90&COMP!$D$84&$I90&"L",MGMAC!#REF!,10,FALSE)/1000,IFERROR(VLOOKUP($F90&$G90&$H90&$M90&COMP!$D$84&$I90&"L",MGMACP!#REF!,10,FALSE)/1000,"no data")))) -> no data | AF90: =IF($F90="SPEC",COMP!L$90/1000,IFERROR(VLOOKUP($F90&$G90&$H90&$M90&COMP!$D$84&$I90&"L",AAMC!#REF!,15,FALSE)/1000,IFERROR(VLOOKUP($F90&$G90&$H90&$M90&COMP!$D$84&$I90&"L",MGMAC!#REF!,15,FALSE)/1000,IFERROR(VLOOKUP($F90&$G90&$H90&$M90&COMP!$D$84&$I90&"L",MGMACP!#REF!,15,FALSE)/1000,"no data")))) -> no data | AG90: =IF($F90="SPEC",COMP!M$90/1000,IFERROR(VLOOKUP($F90&$G90&$H90&$M90&COMP!$D$84&$I90&"L",AAMC!#REF!,20,FALSE)/1000,IFERROR(VLOOKUP($F90&$G90&$H90&$M90&COMP!$D$84&$I90&"L",MGMAC!#REF!,20,FALSE)/1000,IFERROR(VLOOKUP($F90&$G90&$H90&$M90&COMP!$D$84&$I90&"L",MGMACP!#REF!,20,FALSE)/1000,"no data")))) -> no data | AL90: 0 | AO90: 1 | AP90: 0 | AQ90: =IF($J90=0,0,IF($B90="SPEC",COMP!$L$102,IF($B90="FPSC",IFERROR(VLOOKUP($B90&$C90&$D90&$E90&"L",FPSC!#REF!,13,FALSE),"no data"),IF(B90&C90="MGMAAcademic",IFERROR(VLOOKUP($B90&$C90&$D90&$E90&"L",MGMAR!#REF!,13,FALSE),"no data"),IFERROR(VLOOKUP($B90&$C90&$D90&$E90&"L",MGMARP!#REF!,13,FALSE),"no data"))))) -> 0 | AR90: 0 | AS90: 0 | AT90: 0 | AU90: 0 | AV90: 0 | AW90: 0 | AX90: 0 | AY90: 0 | AZ90: 0 | BA90: 0
A91: 0 | B91: FPSC | C91: Academic | D91: All | E91: =IF($B91="MGMA",COMP!$D$86,IF($B91="FPSC",COMP!$D$85,IF($B91="SPEC",COMP!$K$103,"no data"))) -> [select] | F91: AAMC | G91: Academic | H91: All | I91: =IF($F91="AAMC",COMP!$D$83,IF($F91="MGMA",COMP!$D$86,IF($F91="SPEC",COMP!$K$91,"no data"))) -> [select] | V91: 0 | X91: 0 | Z91: 0 | AA91: 0 | AC91: =+AB91+AA91+X91 -> 0 | AD91: 0 | AE91: =IF($F91="SPEC",COMP!K$90/1000,IFERROR(VLOOKUP($F91&$G91&$H91&$M91&COMP!$D$84&$I91&"L",AAMC!#REF!,10,FALSE)/1000,IFERROR(VLOOKUP($F91&$G91&$H91&$M91&COMP!$D$84&$I91&"L",MGMAC!#REF!,10,FALSE)/1000,IFERROR(VLOOKUP($F91&$G91&$H91&$M91&COMP!$D$84&$I91&"L",MGMACP!#REF!,10,FALSE)/1000,"no data")))) -> no data | AF91: =IF($F91="SPEC",COMP!L$90/1000,IFERROR(VLOOKUP($F91&$G91&$H91&$M91&COMP!$D$84&$I91&"L",AAMC!#REF!,15,FALSE)/1000,IFERROR(VLOOKUP($F91&$G91&$H91&$M91&COMP!$D$84&$I91&"L",MGMAC!#REF!,15,FALSE)/1000,IFERROR(VLOOKUP($F91&$G91&$H91&$M91&COMP!$D$84&$I91&"L",MGMACP!#REF!,15,FALSE)/1000,"no data")))) -> no data | AG91: =IF($F91="SPEC",COMP!M$90/1000,IFERROR(VLOOKUP($F91&$G91&$H91&$M91&COMP!$D$84&$I91&"L",AAMC!#REF!,20,FALSE)/1000,IFERROR(VLOOKUP($F91&$G91&$H91&$M91&COMP!$D$84&$I91&"L",MGMAC!#REF!,20,FALSE)/1000,IFERROR(VLOOKUP($F91&$G91&$H91&$M91&COMP!$D$84&$I91&"L",MGMACP!#REF!,20,FALSE)/1000,"no data")))) -> no data | AL91: 0 | AO91: 1 | AP91: 0 | AQ91: =IF($J91=0,0,IF($B91="SPEC",COMP!$L$102,IF($B91="FPSC",IFERROR(VLOOKUP($B91&$C91&$D91&$E91&"L",FPSC!#REF!,13,FALSE),"no data"),IF(B91&C91="MGMAAcademic",IFERROR(VLOOKUP($B91&$C91&$D91&$E91&"L",MGMAR!#REF!,13,FALSE),"no data"),IFERROR(VLOOKUP($B91&$C91&$D91&$E91&"L",MGMARP!#REF!,13,FALSE),"no data"))))) -> 0 | AR91: 0 | AS91: 0 | AT91: 0 | AU91: 0 | AV91: 0 | AW91: 0 | AX91: 0 | AY91: 0 | AZ91: 0 | BA91: 0
A92: 0 | B92: FPSC | C92: Academic | D92: All | E92: =IF($B92="MGMA",COMP!$D$86,IF($B92="FPSC",COMP!$D$85,IF($B92="SPEC",COMP!$K$103,"no data"))) -> [select] | F92: AAMC | G92: Academic | H92: All | I92: =IF($F92="AAMC",COMP!$D$83,IF($F92="MGMA",COMP!$D$86,IF($F92="SPEC",COMP!$K$91,"no data"))) -> [select] | V92: 0 | X92: 0 | Z92: 0 | AA92: 0 | AC92: 0 | AD92: 0 | AE92: =IF($F92="SPEC",COMP!K$90/1000,IFERROR(VLOOKUP($F92&$G92&$H92&$M92&COMP!$D$84&$I92&"L",AAMC!#REF!,10,FALSE)/1000,IFERROR(VLOOKUP($F92&$G92&$H92&$M92&COMP!$D$84&$I92&"L",MGMAC!#REF!,10,FALSE)/1000,IFERROR(VLOOKUP($F92&$G92&$H92&$M92&COMP!$D$84&$I92&"L",MGMACP!#REF!,10,FALSE)/1000,"no data")))) -> no data | AF92: =IF($F92="SPEC",COMP!L$90/1000,IFERROR(VLOOKUP($F92&$G92&$H92&$M92&COMP!$D$84&$I92&"L",AAMC!#REF!,15,FALSE)/1000,IFERROR(VLOOKUP($F92&$G92&$H92&$M92&COMP!$D$84&$I92&"L",MGMAC!#REF!,15,FALSE)/1000,IFERROR(VLOOKUP($F92&$G92&$H92&$M92&COMP!$D$84&$I92&"L",MGMACP!#REF!,15,FALSE)/1000,"no data")))) -> no data | AG92: =IF($F92="SPEC",COMP!M$90/1000,IFERROR(VLOOKUP($F92&$G92&$H92&$M92&COMP!$D$84&$I92&"L",AAMC!#REF!,20,FALSE)/1000,IFERROR(VLOOKUP($F92&$G92&$H92&$M92&COMP!$D$84&$I92&"L",MGMAC!#REF!,20,FALSE)/1000,IFERROR(VLOOKUP($F92&$G92&$H92&$M92&COMP!$D$84&$I92&"L",MGMACP!#REF!,20,FALSE)/1000,"no data")))) -> no data | AL92: 0 | AO92: 1 | AP92: 0 | AQ92: =IF($J92=0,0,IF($B92="SPEC",COMP!$L$102,IF($B92="FPSC",IFERROR(VLOOKUP($B92&$C92&$D92&$E92&"L",FPSC!#REF!,13,FALSE),"no data"),IF(B92&C92="MGMAAcademic",IFERROR(VLOOKUP($B92&$C92&$D92&$E92&"L",MGMAR!#REF!,13,FALSE),"no data"),IFERROR(VLOOKUP($B92&$C92&$D92&$E92&"L",MGMARP!#REF!,13,FALSE),"no data"))))) -> 0 | AR92: 0 | AS92: 0 | AT92: 0 | AU92: 0 | AV92: 0 | AW92: 0 | AX92: 0 | AY92: 0 | AZ92: 0 | BA92: 0
A93: 0 | B93: FPSC | C93: Academic | D93: All | E93: =IF($B93="MGMA",COMP!$D$86,IF($B93="FPSC",COMP!$D$85,IF($B93="SPEC",COMP!$K$103,"no data"))) -> [select] | F93: AAMC | G93: Academic | H93: All | I93: =IF($F93="AAMC",COMP!$D$83,IF($F93="MGMA",COMP!$D$86,IF($F93="SPEC",COMP!$K$91,"no data"))) -> [select] | V93: 0 | X93: 0 | Z93: 0 | AA93: 0 | AC93: 0 | AD93: 0 | AE93: =IF($F93="SPEC",COMP!K$90/1000,IFERROR(VLOOKUP($F93&$G93&$H93&$M93&COMP!$D$84&$I93&"L",AAMC!#REF!,10,FALSE)/1000,IFERROR(VLOOKUP($F93&$G93&$H93&$M93&COMP!$D$84&$I93&"L",MGMAC!#REF!,10,FALSE)/1000,IFERROR(VLOOKUP($F93&$G93&$H93&$M93&COMP!$D$84&$I93&"L",MGMACP!#REF!,10,FALSE)/1000,"no data")))) -> no data | AF93: =IF($F93="SPEC",COMP!L$90/1000,IFERROR(VLOOKUP($F93&$G93&$H93&$M93&COMP!$D$84&$I93&"L",AAMC!#REF!,15,FALSE)/1000,IFERROR(VLOOKUP($F93&$G93&$H93&$M93&COMP!$D$84&$I93&"L",MGMAC!#REF!,15,FALSE)/1000,IFERROR(VLOOKUP($F93&$G93&$H93&$M93&COMP!$D$84&$I93&"L",MGMACP!#REF!,15,FALSE)/1000,"no data")))) -> no data | AG93: =IF($F93="SPEC",COMP!M$90/1000,IFERROR(VLOOKUP($F93&$G93&$H93&$M93&COMP!$D$84&$I93&"L",AAMC!#REF!,20,FALSE)/1000,IFERROR(VLOOKUP($F93&$G93&$H93&$M93&COMP!$D$84&$I93&"L",MGMAC!#REF!,20,FALSE)/1000,IFERROR(VLOOKUP($F93&$G93&$H93&$M93&COMP!$D$84&$I93&"L",MGMACP!#REF!,20,FALSE)/1000,"no data")))) -> no data | AL93: 0 | AO93: 1 | AP93: 0 | AQ93: =IF($J93=0,0,IF($B93="SPEC",COMP!$L$102,IF($B93="FPSC",IFERROR(VLOOKUP($B93&$C93&$D93&$E93&"L",FPSC!#REF!,13,FALSE),"no data"),IF(B93&C93="MGMAAcademic",IFERROR(VLOOKUP($B93&$C93&$D93&$E93&"L",MGMAR!#REF!,13,FALSE),"no data"),IFERROR(VLOOKUP($B93&$C93&$D93&$E93&"L",MGMARP!#REF!,13,FALSE),"no data"))))) -> 0 | AR93: 0 | AS93: 0 | AT93: 0 | AU93: 0 | AV93: 0 | AW93: 0 | AX93: 0 | AY93: 0 | AZ93: 0 | BA93: 0
A94: 0 | B94: FPSC | C94: Academic | D94: All | E94: =IF($B94="MGMA",COMP!$D$86,IF($B94="FPSC",COMP!$D$85,IF($B94="SPEC",COMP!$K$103,"no data"))) -> [select] | F94: AAMC | G94: Academic | H94: All | I94: =IF($F94="AAMC",COMP!$D$83,IF($F94="MGMA",COMP!$D$86,IF($F94="SPEC",COMP!$K$91,"no data"))) -> [select] | V94: 0 | X94: 0 | Z94: 0 | AA94: 0 | AC94: 0 | AD94: 0 | AE94: =IF($F94="SPEC",COMP!K$90/1000,IFERROR(VLOOKUP($F94&$G94&$H94&$M94&COMP!$D$84&$I94&"L",AAMC!#REF!,10,FALSE)/1000,IFERROR(VLOOKUP($F94&$G94&$H94&$M94&COMP!$D$84&$I94&"L",MGMAC!#REF!,10,FALSE)/1000,IFERROR(VLOOKUP($F94&$G94&$H94&$M94&COMP!$D$84&$I94&"L",MGMACP!#REF!,10,FALSE)/1000,"no data")))) -> no data | AF94: =IF($F94="SPEC",COMP!L$90/1000,IFERROR(VLOOKUP($F94&$G94&$H94&$M94&COMP!$D$84&$I94&"L",AAMC!#REF!,15,FALSE)/1000,IFERROR(VLOOKUP($F94&$G94&$H94&$M94&COMP!$D$84&$I94&"L",MGMAC!#REF!,15,FALSE)/1000,IFERROR(VLOOKUP($F94&$G94&$H94&$M94&COMP!$D$84&$I94&"L",MGMACP!#REF!,15,FALSE)/1000,"no data")))) -> no data | AG94: =IF($F94="SPEC",COMP!M$90/1000,IFERROR(VLOOKUP($F94&$G94&$H94&$M94&COMP!$D$84&$I94&"L",AAMC!#REF!,20,FALSE)/1000,IFERROR(VLOOKUP($F94&$G94&$H94&$M94&COMP!$D$84&$I94&"L",MGMAC!#REF!,20,FALSE)/1000,IFERROR(VLOOKUP($F94&$G94&$H94&$M94&COMP!$D$84&$I94&"L",MGMACP!#REF!,20,FALSE)/1000,"no data")))) -> no data | AL94: 0 | AO94: 1 | AP94: 0 | AQ94: =IF($J94=0,0,IF($B94="SPEC",COMP!$L$102,IF($B94="FPSC",IFERROR(VLOOKUP($B94&$C94&$D94&$E94&"L",FPSC!#REF!,13,FALSE),"no data"),IF(B94&C94="MGMAAcademic",IFERROR(VLOOKUP($B94&$C94&$D94&$E94&"L",MGMAR!#REF!,13,FALSE),"no data"),IFERROR(VLOOKUP($B94&$C94&$D94&$E94&"L",MGMARP!#REF!,13,FALSE),"no data"))))) -> 0 | AR94: 0 | AS94: 0 | AT94: 0 | AU94: 0 | AV94: 0 | AW94: 0 | AX94: 0 | AY94: 0 | AZ94: 0 | BA94: 0
A95: 0 | B95: FPSC | C95: Academic | D95: All | E95: =IF($B95="MGMA",COMP!$D$86,IF($B95="FPSC",COMP!$D$85,IF($B95="SPEC",COMP!$K$103,"no data"))) -> [select] | F95: AAMC | G95: Academic | H95: All | I95: =IF($F95="AAMC",COMP!$D$83,IF($F95="MGMA",COMP!$D$86,IF($F95="SPEC",COMP!$K$91,"no data"))) -> [select] | V95: 0 | X95: 0 | Z95: 0 | AA95: 0 | AC95: 0 | AD95: 0 | AE95: =IF($F95="SPEC",COMP!K$90/1000,IFERROR(VLOOKUP($F95&$G95&$H95&$M95&COMP!$D$84&$I95&"L",AAMC!#REF!,10,FALSE)/1000,IFERROR(VLOOKUP($F95&$G95&$H95&$M95&COMP!$D$84&$I95&"L",MGMAC!#REF!,10,FALSE)/1000,IFERROR(VLOOKUP($F95&$G95&$H95&$M95&COMP!$D$84&$I95&"L",MGMACP!#REF!,10,FALSE)/1000,"no data")))) -> no data | AF95: =IF($F95="SPEC",COMP!L$90/1000,IFERROR(VLOOKUP($F95&$G95&$H95&$M95&COMP!$D$84&$I95&"L",AAMC!#REF!,15,FALSE)/1000,IFERROR(VLOOKUP($F95&$G95&$H95&$M95&COMP!$D$84&$I95&"L",MGMAC!#REF!,15,FALSE)/1000,IFERROR(VLOOKUP($F95&$G95&$H95&$M95&COMP!$D$84&$I95&"L",MGMACP!#REF!,15,FALSE)/1000,"no data")))) -> no data | AG95: =IF($F95="SPEC",COMP!M$90/1000,IFERROR(VLOOKUP($F95&$G95&$H95&$M95&COMP!$D$84&$I95&"L",AAMC!#REF!,20,FALSE)/1000,IFERROR(VLOOKUP($F95&$G95&$H95&$M95&COMP!$D$84&$I95&"L",MGMAC!#REF!,20,FALSE)/1000,IFERROR(VLOOKUP($F95&$G95&$H95&$M95&COMP!$D$84&$I95&"L",MGMACP!#REF!,20,FALSE)/1000,"no data")))) -> no data | AL95: 0 | AO95: 1 | AP95: 0 | AQ95: =IF($J95=0,0,IF($B95="SPEC",COMP!$L$102,IF($B95="FPSC",IFERROR(VLOOKUP($B95&$C95&$D95&$E95&"L",FPSC!#REF!,13,FALSE),"no data"),IF(B95&C95="MGMAAcademic",IFERROR(VLOOKUP($B95&$C95&$D95&$E95&"L",MGMAR!#REF!,13,FALSE),"no data"),IFERROR(VLOOKUP($B95&$C95&$D95&$E95&"L",MGMARP!#REF!,13,FALSE),"no data"))))) -> 0 | AR95: 0 | AS95: 0 | AT95: 0 | AU95: 0 | AV95: 0 | AW95: 0 | AX95: 0 | AY95: 0 | AZ95: 0 | BA95: 0
A96: 0 | B96: FPSC | C96: Academic | D96: All | E96: =IF($B96="MGMA",COMP!$D$86,IF($B96="FPSC",COMP!$D$85,IF($B96="SPEC",COMP!$K$103,"no data"))) -> [select] | F96: AAMC | G96: Academic | H96: All | I96: =IF($F96="AAMC",COMP!$D$83,IF($F96="MGMA",COMP!$D$86,IF($F96="SPEC",COMP!$K$91,"no data"))) -> [select] | V96: 0 | X96: 0 | Z96: 0 | AA96: 0 | AC96: 0 | AD96: 0 | AE96: =IF($F96="SPEC",COMP!K$90/1000,IFERROR(VLOOKUP($F96&$G96&$H96&$M96&COMP!$D$84&$I96&"L",AAMC!#REF!,10,FALSE)/1000,IFERROR(VLOOKUP($F96&$G96&$H96&$M96&COMP!$D$84&$I96&"L",MGMAC!#REF!,10,FALSE)/1000,IFERROR(VLOOKUP($F96&$G96&$H96&$M96&COMP!$D$84&$I96&"L",MGMACP!#REF!,10,FALSE)/1000,"no data")))) -> no data | AF96: =IF($F96="SPEC",COMP!L$90/1000,IFERROR(VLOOKUP($F96&$G96&$H96&$M96&COMP!$D$84&$I96&"L",AAMC!#REF!,15,FALSE)/1000,IFERROR(VLOOKUP($F96&$G96&$H96&$M96&COMP!$D$84&$I96&"L",MGMAC!#REF!,15,FALSE)/1000,IFERROR(VLOOKUP($F96&$G96&$H96&$M96&COMP!$D$84&$I96&"L",MGMACP!#REF!,15,FALSE)/1000,"no data")))) -> no data | AG96: =IF($F96="SPEC",COMP!M$90/1000,IFERROR(VLOOKUP($F96&$G96&$H96&$M96&COMP!$D$84&$I96&"L",AAMC!#REF!,20,FALSE)/1000,IFERROR(VLOOKUP($F96&$G96&$H96&$M96&COMP!$D$84&$I96&"L",MGMAC!#REF!,20,FALSE)/1000,IFERROR(VLOOKUP($F96&$G96&$H96&$M96&COMP!$D$84&$I96&"L",MGMACP!#REF!,20,FALSE)/1000,"no data")))) -> no data | AL96: 0 | AO96: 1 | AP96: 0 | AQ96: =IF($J96=0,0,IF($B96="SPEC",COMP!$L$102,IF($B96="FPSC",IFERROR(VLOOKUP($B96&$C96&$D96&$E96&"L",FPSC!#REF!,13,FALSE),"no data"),IF(B96&C96="MGMAAcademic",IFERROR(VLOOKUP($B96&$C96&$D96&$E96&"L",MGMAR!#REF!,13,FALSE),"no data"),IFERROR(VLOOKUP($B96&$C96&$D96&$E96&"L",MGMARP!#REF!,13,FALSE),"no data"))))) -> 0 | AR96: 0 | AS96: 0 | AT96: 0 | AU96: 0 | AV96: 0 | AW96: 0 | AX96: 0 | AY96: 0 | AZ96: 0 | BA96: 0
AR97: 110% of Expectation | AT97: =110%*AR53 -> 0
J98: Group Financial Summary Year 1 - Clinical RVW generating activities only | S98: Clinic Need and Patient Appointment Data: ACH Positions | AF98: Clinic Need and Patient Appointment Data: All Positions | AR98: Over/(Under) 110% Expect | AT98: =AS53-AT97 -> 0
S99: Note: If a provider practices in both locations, complete both sets of data.
J100: Total Specialty Professional Fees | L100: =AL53 -> 0 | M100: =IF(OR(L100="[enter]",L100="[select]",L100=0)=TRUE,"error","") -> error | S100: ACH Practice Positions Only: | AF100: All Practice Positions:
J101: Total Specialty Clinical Salary Expense | L101: =-SUM(Z53)*1000 -> 0 | M101: =IF(OR(L101="[enter]",L101="[select]",L101=0)=TRUE,"error","") -> error | V101: 3rd Next Available Patient Appointment: | AG101: Clinical Availability: | AJ101: [Select] | AK101: =IF(OR(AJ101="[enter]",AJ101="[select]",AJ101=0)=TRUE,"error","") -> error
J102: Total Fringe Benefits (on clinical fte) | L102: =COMP!D47*L101 -> 0 | M102: =IF(OR(L102="[enter]",L102="[select]",L102=0)=TRUE,"error","") -> error | V102: Weekly Deficit in New Patient Appts: | AG102: Comments on Clinic Availability:
J104: Specialty Profit(Loss) Year 1 | L104: =SUBTOTAL(9,L100:L103) -> 0 | M104: =IF(OR(L104="[enter]",L104="[select]",L104=0)=TRUE,"error","") -> error
J105: Revenue Notes | V105: Position Challenges:
AG109: O/R Availability: | AJ109: [Select] | AK109: =IF(OR(AJ109="[enter]",AJ109="[select]",AJ109=0)=TRUE,"error","") -> error
V110: Other Position Factors not otherwise outlined: | AG110: Comments on O/R Availability:
J111: RVU Data Note: Use data from a closed period only. | AU111: =IF(M113="error",1,0) -> 1 | AV111: =IF(P113="error",1,0) -> 1
L112: Start Date | N112: End Date
J113: The RVWs in Column AR are from Period: | L113: [select] | M113: =IF(OR(L113="[enter]",L113="[select]",L113=0)=TRUE,"error","") -> error | N113: [select] | P113: =IF(OR(N113="[enter]",N113="[select]",N113=0)=TRUE,"error","") -> error
J115: Fiscal Year: | L115: [select] | M115: =IF(OR(L115="[enter]",L115="[select]",L115=0)=TRUE,"error","") -> error | AU115: =IF(M115="error",1,0) -> 1
J117: If Other time period please list dates/details:
J119: Service Staffing Plan - Clinical FTE
J121: Does this service utilize mid-level providers in any capacity? | M121: [select] | N121: =IF(OR(M121="[enter]",M121="[select]",M121=0)=TRUE,"error","") -> error | AU121: =IF(N121="error",1,0) -> 1
J123: Service current provider staffing plan - Clinical FTE Total | M123: 0 | N123: =IF(OR(M123="[enter]",M123="[select]",M123=0)=TRUE,"error","") -> error
M124: (Including Mid-Level Providers)
J126: Clinical FTE Total: | K126: New Full Staff Total | L126: Current Staffing ( clinical fte on payroll)
J127: Physicians FTE Total | K127: 0 | L127: 0
J128: Midlevel FTE Total | K128: 0 | L128: 0
J129: Total Service FTE | K129: =+K128+K127 -> 0 | L129: =+L128+L127 -> 0
J131: Over (Under) Current Staffing plan (clinical fte) | M131: =K129-L129 -> 0
J132: Staffing Plan Notes
J137: Terminology key:
J138: Service current provider staffing plan - FTE Total - The total provider clinical FTE required to run the service
J139: Current Providers = on the payroll now (do not include TBH)
J141: Additional Information:

Sheet REVENUE PROJECTIONS

Sheet PROFORMA
A1: HIDE | B1: COLLEGE OF MEDICINE | H1: =COMP!N1 -> JFR FBP V24.5 | I1: HIDE | J1: HIDE | K1: HIDE | L1: HIDE | M1: HIDE | N1: HIDE
B2: FACULTY RECRUITMENT BUSINESS PLAN | H2: =COMP!B1 -> 0; [select]; [select] [select]; | N2: 1
N3: 2
B4: PROFORMA | N4: 3
D5: Year 1 | E5: Year 2 | F5: Year 3 | G5: Year 4 | H5: Year 5 | N5: 4
B6: Total Impact | D6: =D52+D87+D122+D157+D192 -> 0 | E6: =E52+E87+E122+E157+E192 -> 0 | F6: =F52+F87+F122+F157+F192 -> 0 | G6: =G52+G87+G122+G157+G192 -> 0 | H6: =H52+H87+H122+H157+H192 -> 0 | N6: 5
N7: 6
B8: RVU Analysis:
B11: RVU Analysis: | N11: 7
B14: Net Margin/RVU | D14: =D6/'CLIN REV'!D215 ->  | E14: =E6/'CLIN REV'!E215 ->  | F14: =F6/'CLIN REV'!F215 ->  | G14: =G6/'CLIN REV'!G215 ->  | H14: =H6/'CLIN REV'!H215 ->  | N14: 8
B15: Total Revenue/RVU | D15: ='CLIN REV'!D221/'CLIN REV'!D215 ->  | E15: ='CLIN REV'!E221/'CLIN REV'!E215 ->  | F15: ='CLIN REV'!F221/'CLIN REV'!F215 ->  | G15: ='CLIN REV'!G221/'CLIN REV'!G215 ->  | H15: ='CLIN REV'!H221/'CLIN REV'!H215 ->  | N15: 9
B16: Total Expense/RVU | D16: =D198/'CLIN REV'!D215 ->  | E16: =E198/'CLIN REV'!E215 ->  | F16: =F198/'CLIN REV'!F215 ->  | G16: =G198/'CLIN REV'!G215 ->  | H16: =H198/'CLIN REV'!H215 ->  | N16: 10
Q17: MidLevel Comp $/RVU | S17: 32.77223298 | T17: 23.39937435 | U17: 23.86736184 | V17: 24.34470907 | W17: 24.83160325
B19: COM | N19: =N33+N50 -> 0
B20: Incremental Budget Impact | N20: =N33+N50 -> 0
C21: L# | D21: Year 1 | E21: Year 2 | F21: Year 3 | G21: Year 4 | H21: Year 5 | N21: =N33+N50 -> 0
A22: ="COM"&B22 -> COMClinical Pro Fees | B22: Clinical Pro Fees | C22: -1 | D22: =SUMIF('CLIN REV'!$A$13:$A$211,$A22,'CLIN REV'!D$13:D$211) -> 0 | E22: =SUMIF('CLIN REV'!$A$13:$A$211,$A22,'CLIN REV'!E$13:E$211) -> 0 | F22: =SUMIF('CLIN REV'!$A$13:$A$211,$A22,'CLIN REV'!F$13:F$211) -> 0 | G22: =SUMIF('CLIN REV'!$A$13:$A$211,$A22,'CLIN REV'!G$13:G$211) -> 0 | H22: =SUMIF('CLIN REV'!$A$13:$A$211,$A22,'CLIN REV'!H$13:H$211) -> 0 | I22: =IF(D22=0,0,1) -> 0 | J22: =IF(E22=0,0,1) -> 0 | K22: =IF(F22=0,0,1) -> 0 | L22: =IF(G22=0,0,1) -> 0 | M22: =IF(H22=0,0,1) -> 0 | N22: =SUM(I22:M22) -> 0
A23: ="COM"&B23 -> COMClinical Tech Fees | B23: Clinical Tech Fees | C23: =C22-1 -> -2 | D23: =SUMIF('CLIN REV'!$A$13:$A$211,$A23,'CLIN REV'!D$13:D$211) -> 0 | E23: =SUMIF('CLIN REV'!$A$13:$A$211,$A23,'CLIN REV'!E$13:E$211) -> 0 | F23: =SUMIF('CLIN REV'!$A$13:$A$211,$A23,'CLIN REV'!F$13:F$211) -> 0 | G23: =SUMIF('CLIN REV'!$A$13:$A$211,$A23,'CLIN REV'!G$13:G$211) -> 0 | H23: =SUMIF('CLIN REV'!$A$13:$A$211,$A23,'CLIN REV'!H$13:H$211) -> 0 | I23: =IF(D23=0,0,1) -> 0 | J23: 0 | K23: 0 | L23: 0 | M23: 0 | N23: =SUM(I23:M23) -> 0
A24: COMClinical Down Stream | B24: Clinical Down Stream | C24: -3 | D24: =SUMIF('CLIN REV'!$A$13:$A$211,$A24,'CLIN REV'!D$13:D$211) -> 0 | E24: =SUMIF('CLIN REV'!$A$13:$A$211,$A24,'CLIN REV'!E$13:E$211) -> 0 | F24: =SUMIF('CLIN REV'!$A$13:$A$211,$A24,'CLIN REV'!F$13:F$211) -> 0 | G24: =SUMIF('CLIN REV'!$A$13:$A$211,$A24,'CLIN REV'!G$13:G$211) -> 0 | H24: =SUMIF('CLIN REV'!$A$13:$A$211,$A24,'CLIN REV'!H$13:H$211) -> 0 | I24: 0 | J24: 0 | K24: 0 | L24: 0 | M24: 0 | N24: 0
A25: COMEnhanced Medicaid | B25: Enhanced Medicaid | C25: -4 | D25: =SUMIF('OTH REV'!$A$10:$A$43,$A25,'OTH REV'!I$10:I$43) -> 0 | E25: =SUMIF('OTH REV'!$A$10:$A$43,$A25,'OTH REV'!J$10:J$43) -> 0 | F25: =SUMIF('OTH REV'!$A$10:$A$43,$A25,'OTH REV'!K$10:K$43) -> 0 | G25: =SUMIF('OTH REV'!$A$10:$A$43,$A25,'OTH REV'!L$10:L$43) -> 0 | H25: =SUMIF('OTH REV'!$A$10:$A$43,$A25,'OTH REV'!M$10:M$43) -> 0 | I25: 0 | J25: 0 | K25: 0 | L25: 0 | M25: 0 | N25: 0
A26: COMBudget | B26: Budget | C26: -5 | D26: =SUMIF('OTH REV'!$A$10:$A$43,$A26,'OTH REV'!I$10:I$43) -> 0 | E26: =SUMIF('OTH REV'!$A$10:$A$43,$A26,'OTH REV'!J$10:J$43) -> 0 | F26: =SUMIF('OTH REV'!$A$10:$A$43,$A26,'OTH REV'!K$10:K$43) -> 0 | G26: =SUMIF('OTH REV'!$A$10:$A$43,$A26,'OTH REV'!L$10:L$43) -> 0 | H26: =SUMIF('OTH REV'!$A$10:$A$43,$A26,'OTH REV'!M$10:M$43) -> 0 | I26: 0 | J26: 0 | K26: 0 | L26: 0 | M26: 0 | N26: =SUM(I26:M26) -> 0
A27: COMDean's Commitment | B27: Dean's Commitment | C27: -6 | D27: =SUMIF('OTH REV'!$A$10:$A$43,$A27,'OTH REV'!I$10:I$43) -> 0 | E27: =SUMIF('OTH REV'!$A$10:$A$43,$A27,'OTH REV'!J$10:J$43) -> 0 | F27: =SUMIF('OTH REV'!$A$10:$A$43,$A27,'OTH REV'!K$10:K$43) -> 0 | G27: =SUMIF('OTH REV'!$A$10:$A$43,$A27,'OTH REV'!L$10:L$43) -> 0 | H27: =SUMIF('OTH REV'!$A$10:$A$43,$A27,'OTH REV'!M$10:M$43) -> 0 | I27: 0 | J27: 0 | K27: 0 | L27: 0 | M27: 0 | N27: 0
A28: COMGrant | B28: Grant | C28: -7 | D28: =SUMIF('OTH REV'!$A$10:$A$43,$A28,'OTH REV'!I$10:I$43) -> 0 | E28: =SUMIF('OTH REV'!$A$10:$A$43,$A28,'OTH REV'!J$10:J$43) -> 0 | F28: =SUMIF('OTH REV'!$A$10:$A$43,$A28,'OTH REV'!K$10:K$43) -> 0 | G28: =SUMIF('OTH REV'!$A$10:$A$43,$A28,'OTH REV'!L$10:L$43) -> 0 | H28: =SUMIF('OTH REV'!$A$10:$A$43,$A28,'OTH REV'!M$10:M$43) -> 0 | I28: 0 | J28: 0 | K28: 0 | L28: 0 | M28: 0 | N28: 0
A29: COMContract | B29: Contract | C29: -8 | D29: =SUMIF('OTH REV'!$A$10:$A$43,$A29,'OTH REV'!I$10:I$43) -> 0 | E29: =SUMIF('OTH REV'!$A$10:$A$43,$A29,'OTH REV'!J$10:J$43) -> 0 | F29: =SUMIF('OTH REV'!$A$10:$A$43,$A29,'OTH REV'!K$10:K$43) -> 0 | G29: =SUMIF('OTH REV'!$A$10:$A$43,$A29,'OTH REV'!L$10:L$43) -> 0 | H29: =SUMIF('OTH REV'!$A$10:$A$43,$A29,'OTH REV'!M$10:M$43) -> 0 | I29: 0 | J29: 0 | K29: 0 | L29: 0 | M29: 0 | N29: 0
A30: COMGift | B30: Gift | C30: -9 | D30: =SUMIF('OTH REV'!$A$10:$A$43,$A30,'OTH REV'!I$10:I$43) -> 0 | E30: =SUMIF('OTH REV'!$A$10:$A$43,$A30,'OTH REV'!J$10:J$43) -> 0 | F30: =SUMIF('OTH REV'!$A$10:$A$43,$A30,'OTH REV'!K$10:K$43) -> 0 | G30: =SUMIF('OTH REV'!$A$10:$A$43,$A30,'OTH REV'!L$10:L$43) -> 0 | H30: =SUMIF('OTH REV'!$A$10:$A$43,$A30,'OTH REV'!M$10:M$43) -> 0 | I30: 0 | J30: 0 | K30: 0 | L30: 0 | M30: 0 | N30: 0
A31: COMFoundation | B31: Foundation | C31: -10 | D31: =SUMIF('OTH REV'!$A$10:$A$43,$A31,'OTH REV'!I$10:I$43) -> 0 | E31: =SUMIF('OTH REV'!$A$10:$A$43,$A31,'OTH REV'!J$10:J$43) -> 0 | F31: =SUMIF('OTH REV'!$A$10:$A$43,$A31,'OTH REV'!K$10:K$43) -> 0 | G31: =SUMIF('OTH REV'!$A$10:$A$43,$A31,'OTH REV'!L$10:L$43) -> 0 | H31: =SUMIF('OTH REV'!$A$10:$A$43,$A31,'OTH REV'!M$10:M$43) -> 0 | I31: 0 | J31: 0 | K31: 0 | L31: 0 | M31: 0 | N31: 0
A32: COMOther | B32: Other | C32: -11 | D32: =SUMIF('OTH REV'!$A$10:$A$43,$A32,'OTH REV'!I$10:I$43) -> 0 | E32: =SUMIF('OTH REV'!$A$10:$A$43,$A32,'OTH REV'!J$10:J$43) -> 0 | F32: =SUMIF('OTH REV'!$A$10:$A$43,$A32,'OTH REV'!K$10:K$43) -> 0 | G32: =SUMIF('OTH REV'!$A$10:$A$43,$A32,'OTH REV'!L$10:L$43) -> 0 | H32: =SUMIF('OTH REV'!$A$10:$A$43,$A32,'OTH REV'!M$10:M$43) -> 0 | I32: 0 | J32: 0 | K32: 0 | L32: 0 | M32: 0 | N32: 0
B33: Total Resources | D33: =SUM(D22:D32) -> 0 | E33: =SUM(E22:E32) -> 0 | F33: =SUM(F22:F32) -> 0 | G33: =SUM(G22:G32) -> 0 | H33: =SUM(H22:H32) -> 0 | I33: 0 | J33: 0 | K33: 0 | L33: 0 | M33: 0 | N33: 0
N34: =SUM(I33:M33) -> 0
A35: ="COM" -> COM | B35: Salary | C35: =C32-1 -> -12 | D35: =SUMIF(ASSIGN!$I$9:$I$40,$A35,ASSIGN!M$9:M$40)*COMP!I$70 -> 0 | E35: =SUMIF(ASSIGN!$I$9:$I$40,$A35,ASSIGN!N$9:N$40)*COMP!J$70 -> 0 | F35: =SUMIF(ASSIGN!$I$9:$I$40,$A35,ASSIGN!O$9:O$40)*COMP!K$70 -> 0 | G35: =SUMIF(ASSIGN!$I$9:$I$40,$A35,ASSIGN!P$9:P$40)*COMP!L$70 -> 0 | H35: =SUMIF(ASSIGN!$I$9:$I$40,$A35,ASSIGN!Q$9:Q$40)*COMP!M$70 -> 0 | I35: =IF(D35=0,0,1) -> 0 | J35: 0 | K35: 0 | L35: 0 | M35: 0 | N35: =SUM(I35:M35) -> 0
A36: ="COM" -> COM | B36: Incentive | C36: =C35-1 -> -13 | D36: =SUMIF(COMP!$F$36:$F$39,$A36,COMP!J$36:J$39) -> 0 | E36: =SUMIF(COMP!$F$36:$F$39,$A36,COMP!K$36:K$39) -> 0 | F36: =SUMIF(COMP!$F$36:$F$39,$A36,COMP!L$36:L$39) -> 0 | G36: =SUMIF(COMP!$F$36:$F$39,$A36,COMP!M$36:M$39) -> 0 | H36: =SUMIF(COMP!$F$36:$F$39,$A36,COMP!N$36:N$39) -> 0 | I36: 0 | J36: 0 | K36: 0 | L36: 0 | M36: 0 | N36: 0
A37: ="COM" -> COM | B37: Fringe | C37: =C36-1 -> -14 | D37: =SUMIF(ASSIGN!$I$9:$I$40,$A35,ASSIGN!M$9:M$40)*COMP!I$76+SUMIF(COMP!$F$36:$F$39,$A37,COMP!O$36:O$39) -> 0 | E37: =SUMIF(ASSIGN!$I$9:$I$40,$A35,ASSIGN!N$9:N$40)*COMP!J$76+SUMIF(COMP!$F$36:$F$39,$A37,COMP!P$36:P$39) -> 0 | F37: =SUMIF(ASSIGN!$I$9:$I$40,$A35,ASSIGN!O$9:O$40)*COMP!K$76+SUMIF(COMP!$F$36:$F$39,$A37,COMP!Q$36:Q$39) -> 0 | G37: =SUMIF(ASSIGN!$I$9:$I$40,$A35,ASSIGN!P$9:P$40)*COMP!L$76+SUMIF(COMP!$F$36:$F$39,$A37,COMP!R$36:R$39) -> 0 | H37: =SUMIF(ASSIGN!$I$9:$I$40,$A35,ASSIGN!Q$9:Q$40)*COMP!M$76+SUMIF(COMP!$F$36:$F$39,$A37,COMP!S$36:S$39) -> 0 | I37: 0 | J37: 0 | K37: 0 | L37: 0 | M37: 0 | N37: 0
I38: 0 | J38: 0 | K38: 0 | L38: 0 | M38: 0 | N38: 0
A39: ="COM"&B39 -> COMExtenders | B39: Extenders | C39: =C37-1 -> -15 | D39: =SUMIF('OTH EXP'!$B$10:$B$32,$A39,'OTH EXP'!G$10:G$32) -> 0 | E39: =SUMIF('OTH EXP'!$B$10:$B$32,$A39,'OTH EXP'!H$10:H$32) -> 0 | F39: =SUMIF('OTH EXP'!$B$10:$B$32,$A39,'OTH EXP'!I$10:I$32) -> 0 | G39: =SUMIF('OTH EXP'!$B$10:$B$32,$A39,'OTH EXP'!J$10:J$32) -> 0 | H39: =SUMIF('OTH EXP'!$B$10:$B$32,$A39,'OTH EXP'!K$10:K$32) -> 0 | I39: 0 | J39: 0 | K39: 0 | L39: 0 | M39: 0 | N39: 0
A40: COMStaff | B40: Staff | C40: =C39-1 -> -16 | D40: =SUMIF('OTH EXP'!$B$10:$B$32,$A40,'OTH EXP'!G$10:G$32) -> 0 | E40: =SUMIF('OTH EXP'!$B$10:$B$32,$A40,'OTH EXP'!H$10:H$32) -> 0 | F40: =SUMIF('OTH EXP'!$B$10:$B$32,$A40,'OTH EXP'!I$10:I$32) -> 0 | G40: =SUMIF('OTH EXP'!$B$10:$B$32,$A40,'OTH EXP'!J$10:J$32) -> 0 | H40: =SUMIF('OTH EXP'!$B$10:$B$32,$A40,'OTH EXP'!K$10:K$32) -> 0 | I40: 0 | J40: 0 | K40: 0 | L40: 0 | M40: 0 | N40: 0
A41: COMComputer | B41: Computer | C41: =C40-1 -> -17 | D41: =SUMIF('OTH EXP'!$B$10:$B$32,$A41,'OTH EXP'!G$10:G$32) -> 0 | E41: =SUMIF('OTH EXP'!$B$10:$B$32,$A41,'OTH EXP'!H$10:H$32) -> 0 | F41: =SUMIF('OTH EXP'!$B$10:$B$32,$A41,'OTH EXP'!I$10:I$32) -> 0 | G41: =SUMIF('OTH EXP'!$B$10:$B$32,$A41,'OTH EXP'!J$10:J$32) -> 0 | H41: =SUMIF('OTH EXP'!$B$10:$B$32,$A41,'OTH EXP'!K$10:K$32) -> 0 | I41: 0 | J41: 0 | K41: 0 | L41: 0 | M41: 0 | N41: 0
A42: COMEducational Funds | B42: Educational Funds | C42: =C41-1 -> -18 | D42: =SUMIF('OTH EXP'!$B$10:$B$32,$A42,'OTH EXP'!G$10:G$32) -> 0 | E42: =SUMIF('OTH EXP'!$B$10:$B$32,$A42,'OTH EXP'!H$10:H$32) -> 0 | F42: =SUMIF('OTH EXP'!$B$10:$B$32,$A42,'OTH EXP'!I$10:I$32) -> 0 | G42: =SUMIF('OTH EXP'!$B$10:$B$32,$A42,'OTH EXP'!J$10:J$32) -> 0 | H42: =SUMIF('OTH EXP'!$B$10:$B$32,$A42,'OTH EXP'!K$10:K$32) -> 0 | I42: 0 | J42: 0 | K42: 0 | L42: 0 | M42: 0 | N42: 0
A43: COMEquipment | B43: Equipment | C43: =C42-1 -> -19 | D43: =SUMIF('OTH EXP'!$B$10:$B$32,$A43,'OTH EXP'!G$10:G$32) -> 0 | E43: =SUMIF('OTH EXP'!$B$10:$B$32,$A43,'OTH EXP'!H$10:H$32) -> 0 | F43: =SUMIF('OTH EXP'!$B$10:$B$32,$A43,'OTH EXP'!I$10:I$32) -> 0 | G43: =SUMIF('OTH EXP'!$B$10:$B$32,$A43,'OTH EXP'!J$10:J$32) -> 0 | H43: =SUMIF('OTH EXP'!$B$10:$B$32,$A43,'OTH EXP'!K$10:K$32) -> 0 | I43: 0 | J43: 0 | K43: 0 | L43: 0 | M43: 0 | N43: 0
A44: COMConstruction | B44: Construction | C44: -20 | D44: =SUMIF('OTH EXP'!$B$10:$B$32,$A44,'OTH EXP'!G$10:G$32) -> 0 | E44: =SUMIF('OTH EXP'!$B$10:$B$32,$A44,'OTH EXP'!H$10:H$32) -> 0 | F44: =SUMIF('OTH EXP'!$B$10:$B$32,$A44,'OTH EXP'!I$10:I$32) -> 0 | G44: =SUMIF('OTH EXP'!$B$10:$B$32,$A44,'OTH EXP'!J$10:J$32) -> 0 | H44: =SUMIF('OTH EXP'!$B$10:$B$32,$A44,'OTH EXP'!K$10:K$32) -> 0 | I44: 0 | J44: 0 | K44: 0 | L44: 0 | M44: 0 | N44: 0
A45: COMFurniture | B45: Furniture | C45: -21 | D45: =SUMIF('OTH EXP'!$B$10:$B$32,$A45,'OTH EXP'!G$10:G$32) -> 0 | E45: =SUMIF('OTH EXP'!$B$10:$B$32,$A45,'OTH EXP'!H$10:H$32) -> 0 | F45: =SUMIF('OTH EXP'!$B$10:$B$32,$A45,'OTH EXP'!I$10:I$32) -> 0 | G45: =SUMIF('OTH EXP'!$B$10:$B$32,$A45,'OTH EXP'!J$10:J$32) -> 0 | H45: =SUMIF('OTH EXP'!$B$10:$B$32,$A45,'OTH EXP'!K$10:K$32) -> 0 | I45: 0 | J45: 0 | K45: 0 | L45: 0 | M45: 0 | N45: 0
A46: COMGeneral M&O | B46: General M&O | C46: -22 | D46: =SUMIF('OTH EXP'!$B$10:$B$32,$A46,'OTH EXP'!G$10:G$32) -> 0 | E46: =SUMIF('OTH EXP'!$B$10:$B$32,$A46,'OTH EXP'!H$10:H$32) -> 0 | F46: =SUMIF('OTH EXP'!$B$10:$B$32,$A46,'OTH EXP'!I$10:I$32) -> 0 | G46: =SUMIF('OTH EXP'!$B$10:$B$32,$A46,'OTH EXP'!J$10:J$32) -> 0 | H46: =SUMIF('OTH EXP'!$B$10:$B$32,$A46,'OTH EXP'!K$10:K$32) -> 0 | I46: 0 | J46: 0 | K46: 0 | L46: 0 | M46: 0 | N46: 0
A47: COMMalpractice | B47: Malpractice | C47: -23 | D47: =SUMIF('OTH EXP'!$B$10:$B$32,$A47,'OTH EXP'!G$10:G$32) -> 0 | E47: =SUMIF('OTH EXP'!$B$10:$B$32,$A47,'OTH EXP'!H$10:H$32) -> 0 | F47: =SUMIF('OTH EXP'!$B$10:$B$32,$A47,'OTH EXP'!I$10:I$32) -> 0 | G47: =SUMIF('OTH EXP'!$B$10:$B$32,$A47,'OTH EXP'!J$10:J$32) -> 0 | H47: =SUMIF('OTH EXP'!$B$10:$B$32,$A47,'OTH EXP'!K$10:K$32) -> 0 | I47: 0 | J47: 0 | K47: 0 | L47: 0 | M47: 0 | N47: 0
A48: COMMoving/Relocation | B48: Moving/Relocation | C48: -24 | D48: =SUMIF('OTH EXP'!$B$10:$B$32,$A48,'OTH EXP'!G$10:G$32) -> 0 | E48: =SUMIF('OTH EXP'!$B$10:$B$32,$A48,'OTH EXP'!H$10:H$32) -> 0 | F48: =SUMIF('OTH EXP'!$B$10:$B$32,$A48,'OTH EXP'!I$10:I$32) -> 0 | G48: =SUMIF('OTH EXP'!$B$10:$B$32,$A48,'OTH EXP'!J$10:J$32) -> 0 | H48: =SUMIF('OTH EXP'!$B$10:$B$32,$A48,'OTH EXP'!K$10:K$32) -> 0 | I48: 0 | J48: 0 | K48: 0 | L48: 0 | M48: 0 | N48: 0
A49: COMOther | B49: Other | C49: -25 | D49: =SUMIF('OTH EXP'!$B$10:$B$32,$A49,'OTH EXP'!G$10:G$32) -> 0 | E49: =SUMIF('OTH EXP'!$B$10:$B$32,$A49,'OTH EXP'!H$10:H$32) -> 0 | F49: =SUMIF('OTH EXP'!$B$10:$B$32,$A49,'OTH EXP'!I$10:I$32) -> 0 | G49: =SUMIF('OTH EXP'!$B$10:$B$32,$A49,'OTH EXP'!J$10:J$32) -> 0 | H49: =SUMIF('OTH EXP'!$B$10:$B$32,$A49,'OTH EXP'!K$10:K$32) -> 0 | I49: 0 | J49: 0 | K49: 0 | L49: 0 | M49: 0 | N49: 0
B50: Total Costs | D50: =SUM(D34:D49) -> 0 | E50: =SUM(E34:E49) -> 0 | F50: =SUM(F34:F49) -> 0 | G50: =SUM(G34:G49) -> 0 | H50: =SUM(H34:H49) -> 0 | I50: 0 | J50: 0 | K50: 0 | L50: 0 | M50: 0 | N50: 0
N51: =N33+N50 -> 0
B52: Impact | D52: =D33-D50 -> 0 | E52: =E33-E50 -> 0 | F52: =F33-F50 -> 0 | G52: =G33-G50 -> 0 | H52: =H33-H50 -> 0 | N52: =N33+N50 -> 0
N53: =N33+N50 -> 0
B54: ICE | N54: =N68+N85 -> 0
B55: Incremental Budget Impact | N55: =N68+N85 -> 0
D56: Year 1 | E56: Year 2 | F56: Year 3 | G56: Year 4 | H56: Year 5 | N56: =N68+N85 -> 0
A57: ="ICE"&B57 -> ICEClinical Pro Fees | B57: Clinical Pro Fees | C57: =C49-1 -> -26 | D57: =SUMIF('CLIN REV'!$A$13:$A$211,$A57,'CLIN REV'!D$13:D$211) -> 0 | E57: =SUMIF('CLIN REV'!$A$13:$A$211,$A57,'CLIN REV'!E$13:E$211) -> 0 | F57: =SUMIF('CLIN REV'!$A$13:$A$211,$A57,'CLIN REV'!F$13:F$211) -> 0 | G57: =SUMIF('CLIN REV'!$A$13:$A$211,$A57,'CLIN REV'!G$13:G$211) -> 0 | H57: =SUMIF('CLIN REV'!$A$13:$A$211,$A57,'CLIN REV'!H$13:H$211) -> 0 | I57: =IF(D57=0,0,1) -> 0 | J57: =IF(E57=0,0,1) -> 0 | K57: =IF(F57=0,0,1) -> 0 | L57: =IF(G57=0,0,1) -> 0 | M57: =IF(H57=0,0,1) -> 0 | N57: =SUM(I57:M57) -> 0
A58: ="ICE"&B58 -> ICEClinical Contrib Margin | B58: Clinical Contrib Margin | C58: =C57-1 -> -27 | D58: ='CLIN REV'!D86 -> 0 | E58: ='CLIN REV'!E86 -> 0 | F58: ='CLIN REV'!F86 -> 0 | G58: ='CLIN REV'!G86 -> 0 | H58: ='CLIN REV'!H86 -> 0 | I58: =IF(D58=0,0,1) -> 0 | J58: 0 | K58: 0 | L58: 0 | M58: 0 | N58: =SUM(I58:M58) -> 0
A59: ="COM"&B59 -> COMClinical Down Stream | B59: Clinical Down Stream | C59: -28 | D59: =SUMIF('CLIN REV'!$A$13:$A$211,$A59,'CLIN REV'!D$13:D$211) -> 0 | E59: =SUMIF('CLIN REV'!$A$13:$A$211,$A59,'CLIN REV'!E$13:E$211) -> 0 | F59: =SUMIF('CLIN REV'!$A$13:$A$211,$A59,'CLIN REV'!F$13:F$211) -> 0 | G59: =SUMIF('CLIN REV'!$A$13:$A$211,$A59,'CLIN REV'!G$13:G$211) -> 0 | H59: =SUMIF('CLIN REV'!$A$13:$A$211,$A59,'CLIN REV'!H$13:H$211) -> 0 | I59: 0 | J59: 0 | K59: 0 | L59: 0 | M59: 0 | N59: 0
A60: ICEEnhanced Medicaid | B60: Enhanced Medicaid | C60: -29 | D60: =SUMIF('OTH REV'!$A$10:$A$43,$A60,'OTH REV'!I$10:I$43) -> 0 | E60: =SUMIF('OTH REV'!$A$10:$A$43,$A60,'OTH REV'!J$10:J$43) -> 0 | F60: =SUMIF('OTH REV'!$A$10:$A$43,$A60,'OTH REV'!K$10:K$43) -> 0 | G60: =SUMIF('OTH REV'!$A$10:$A$43,$A60,'OTH REV'!L$10:L$43) -> 0 | H60: =SUMIF('OTH REV'!$A$10:$A$43,$A60,'OTH REV'!M$10:M$43) -> 0 | I60: 0 | J60: 0 | K60: 0 | L60: 0 | M60: 0 | N60: 0
A61: ICEBudget | B61: Budget | C61: =C60-1 -> -30 | D61: =SUMIF('OTH REV'!$A$10:$A$43,$A61,'OTH REV'!I$10:I$43) -> 0 | E61: =SUMIF('OTH REV'!$A$10:$A$43,$A61,'OTH REV'!J$10:J$43) -> 0 | F61: =SUMIF('OTH REV'!$A$10:$A$43,$A61,'OTH REV'!K$10:K$43) -> 0 | G61: =SUMIF('OTH REV'!$A$10:$A$43,$A61,'OTH REV'!L$10:L$43) -> 0 | H61: =SUMIF('OTH REV'!$A$10:$A$43,$A61,'OTH REV'!M$10:M$43) -> 0 | I61: 0 | J61: 0 | K61: 0 | L61: 0 | M61: 0 | N61: 0
A62: ICEDean's Commitment | B62: Dean's Commitment | C62: -31 | D62: =SUMIF('OTH REV'!$A$10:$A$43,$A62,'OTH REV'!I$10:I$43) -> 0 | E62: =SUMIF('OTH REV'!$A$10:$A$43,$A62,'OTH REV'!J$10:J$43) -> 0 | F62: =SUMIF('OTH REV'!$A$10:$A$43,$A62,'OTH REV'!K$10:K$43) -> 0 | G62: =SUMIF('OTH REV'!$A$10:$A$43,$A62,'OTH REV'!L$10:L$43) -> 0 | H62: =SUMIF('OTH REV'!$A$10:$A$43,$A62,'OTH REV'!M$10:M$43) -> 0 | I62: 0 | J62: 0 | K62: 0 | L62: 0 | M62: 0 | N62: 0
A63: ICEGrant | B63: Grant | C63: -32 | D63: =SUMIF('OTH REV'!$A$10:$A$43,$A63,'OTH REV'!I$10:I$43) -> 0 | E63: =SUMIF('OTH REV'!$A$10:$A$43,$A63,'OTH REV'!J$10:J$43) -> 0 | F63: =SUMIF('OTH REV'!$A$10:$A$43,$A63,'OTH REV'!K$10:K$43) -> 0 | G63: =SUMIF('OTH REV'!$A$10:$A$43,$A63,'OTH REV'!L$10:L$43) -> 0 | H63: =SUMIF('OTH REV'!$A$10:$A$43,$A63,'OTH REV'!M$10:M$43) -> 0 | I63: 0 | J63: 0 | K63: 0 | L63: 0 | M63: 0 | N63: 0
A64: ICEContract | B64: Contract | C64: -33 | D64: =SUMIF('OTH REV'!$A$10:$A$43,$A64,'OTH REV'!I$10:I$43) -> 0 | E64: =SUMIF('OTH REV'!$A$10:$A$43,$A64,'OTH REV'!J$10:J$43) -> 0 | F64: =SUMIF('OTH REV'!$A$10:$A$43,$A64,'OTH REV'!K$10:K$43) -> 0 | G64: =SUMIF('OTH REV'!$A$10:$A$43,$A64,'OTH REV'!L$10:L$43) -> 0 | H64: =SUMIF('OTH REV'!$A$10:$A$43,$A64,'OTH REV'!M$10:M$43) -> 0 | I64: 0 | J64: 0 | K64: 0 | L64: 0 | M64: 0 | N64: 0
A65: ICEGift | B65: Gift | C65: -34 | D65: =SUMIF('OTH REV'!$A$10:$A$43,$A65,'OTH REV'!I$10:I$43) -> 0 | E65: =SUMIF('OTH REV'!$A$10:$A$43,$A65,'OTH REV'!J$10:J$43) -> 0 | F65: =SUMIF('OTH REV'!$A$10:$A$43,$A65,'OTH REV'!K$10:K$43) -> 0 | G65: =SUMIF('OTH REV'!$A$10:$A$43,$A65,'OTH REV'!L$10:L$43) -> 0 | H65: =SUMIF('OTH REV'!$A$10:$A$43,$A65,'OTH REV'!M$10:M$43) -> 0 | I65: 0 | J65: 0 | K65: 0 | L65: 0 | M65: 0 | N65: 0
A66: ICEFoundation | B66: Foundation | C66: -35 | D66: =SUMIF('OTH REV'!$A$10:$A$43,$A66,'OTH REV'!I$10:I$43) -> 0 | E66: =SUMIF('OTH REV'!$A$10:$A$43,$A66,'OTH REV'!J$10:J$43) -> 0 | F66: =SUMIF('OTH REV'!$A$10:$A$43,$A66,'OTH REV'!K$10:K$43) -> 0 | G66: =SUMIF('OTH REV'!$A$10:$A$43,$A66,'OTH REV'!L$10:L$43) -> 0 | H66: =SUMIF('OTH REV'!$A$10:$A$43,$A66,'OTH REV'!M$10:M$43) -> 0 | I66: 0 | J66: 0 | K66: 0 | L66: 0 | M66: 0 | N66: 0
A67: ICEOther | B67: Other | C67: -36 | D67: =SUMIF('OTH REV'!$A$10:$A$43,$A67,'OTH REV'!I$10:I$43) -> 0 | E67: =SUMIF('OTH REV'!$A$10:$A$43,$A67,'OTH REV'!J$10:J$43) -> 0 | F67: =SUMIF('OTH REV'!$A$10:$A$43,$A67,'OTH REV'!K$10:K$43) -> 0 | G67: =SUMIF('OTH REV'!$A$10:$A$43,$A67,'OTH REV'!L$10:L$43) -> 0 | H67: =SUMIF('OTH REV'!$A$10:$A$43,$A67,'OTH REV'!M$10:M$43) -> 0 | I67: 0 | J67: 0 | K67: 0 | L67: 0 | M67: 0 | N67: 0
B68: Total Resources | D68: =SUM(D57:D67) -> 0 | E68: =SUM(E57:E67) -> 0 | F68: =SUM(F57:F67) -> 0 | G68: =SUM(G57:G67) -> 0 | H68: =SUM(H57:H67) -> 0 | I68: 0 | J68: 0 | K68: 0 | L68: 0 | M68: 0 | N68: 0
N69: =SUM(I68:M68) -> 0
A70: ICE | B70: Salary | C70: =C67-1 -> -37 | D70: =SUMIF(ASSIGN!$I$9:$I$40,$A70,ASSIGN!M$9:M$40)*COMP!I$70 -> 0 | E70: =SUMIF(ASSIGN!$I$9:$I$40,$A70,ASSIGN!N$9:N$40)*COMP!J$70 -> 0 | F70: =SUMIF(ASSIGN!$I$9:$I$40,$A70,ASSIGN!O$9:O$40)*COMP!K$70 -> 0 | G70: =SUMIF(ASSIGN!$I$9:$I$40,$A70,ASSIGN!P$9:P$40)*COMP!L$70 -> 0 | H70: =SUMIF(ASSIGN!$I$9:$I$40,$A70,ASSIGN!Q$9:Q$40)*COMP!M$70 -> 0 | I70: =IF(D70=0,0,1) -> 0 | J70: 0 | K70: 0 | L70: 0 | M70: 0 | N70: =SUM(I70:M70) -> 0
A71: ICE | B71: Incentive | C71: =C70-1 -> -38 | D71: =SUMIF(COMP!$F$36:$F$39,$A71,COMP!J$36:J$39) -> 0 | E71: =SUMIF(COMP!$F$36:$F$39,$A71,COMP!K$36:K$39) -> 0 | F71: =SUMIF(COMP!$F$36:$F$39,$A71,COMP!L$36:L$39) -> 0 | G71: =SUMIF(COMP!$F$36:$F$39,$A71,COMP!M$36:M$39) -> 0 | H71: =SUMIF(COMP!$F$36:$F$39,$A71,COMP!N$36:N$39) -> 0 | I71: 0 | J71: 0 | K71: 0 | L71: 0 | M71: 0 | N71: 0
A72: ICE | B72: Fringe | C72: =C71-1 -> -39 | D72: =SUMIF(ASSIGN!$I$9:$I$40,$A72,ASSIGN!M$9:M$40)*COMP!I$76+SUMIF(COMP!$F$36:$F$39,$A72,COMP!O$36:O$39) -> 0 | E72: =SUMIF(ASSIGN!$I$9:$I$40,$A72,ASSIGN!N$9:N$40)*COMP!J$76+SUMIF(COMP!$F$36:$F$39,$A72,COMP!P$36:P$39) -> 0 | F72: =SUMIF(ASSIGN!$I$9:$I$40,$A72,ASSIGN!O$9:O$40)*COMP!K$76+SUMIF(COMP!$F$36:$F$39,$A72,COMP!Q$36:Q$39) -> 0 | G72: =SUMIF(ASSIGN!$I$9:$I$40,$A72,ASSIGN!P$9:P$40)*COMP!L$76+SUMIF(COMP!$F$36:$F$39,$A72,COMP!R$36:R$39) -> 0 | H72: =SUMIF(ASSIGN!$I$9:$I$40,$A72,ASSIGN!Q$9:Q$40)*COMP!M$76+SUMIF(COMP!$F$36:$F$39,$A72,COMP!S$36:S$39) -> 0 | I72: 0 | J72: 0 | K72: 0 | L72: 0 | M72: 0 | N72: 0
I73: 0 | J73: 0 | K73: 0 | L73: 0 | M73: 0 | N73: 0
A74: ="ICE"&B74 -> ICEExtenders | B74: Extenders | C74: =C72-1 -> -40 | D74: =SUMIF('OTH EXP'!$B$10:$B$32,$A74,'OTH EXP'!G$10:G$32) -> 0 | E74: =SUMIF('OTH EXP'!$B$10:$B$32,$A74,'OTH EXP'!H$10:H$32) -> 0 | F74: =SUMIF('OTH EXP'!$B$10:$B$32,$A74,'OTH EXP'!I$10:I$32) -> 0 | G74: =SUMIF('OTH EXP'!$B$10:$B$32,$A74,'OTH EXP'!J$10:J$32) -> 0 | H74: =SUMIF('OTH EXP'!$B$10:$B$32,$A74,'OTH EXP'!K$10:K$32) -> 0 | I74: 0 | J74: 0 | K74: 0 | L74: 0 | M74: 0 | N74: 0
A75: ="ICE"&B75 -> ICEStaff | B75: Staff | C75: =C74-1 -> -41 | D75: =SUMIF('OTH EXP'!$B$10:$B$32,$A75,'OTH EXP'!G$10:G$32) -> 0 | E75: =SUMIF('OTH EXP'!$B$10:$B$32,$A75,'OTH EXP'!H$10:H$32) -> 0 | F75: =SUMIF('OTH EXP'!$B$10:$B$32,$A75,'OTH EXP'!I$10:I$32) -> 0 | G75: =SUMIF('OTH EXP'!$B$10:$B$32,$A75,'OTH EXP'!J$10:J$32) -> 0 | H75: =SUMIF('OTH EXP'!$B$10:$B$32,$A75,'OTH EXP'!K$10:K$32) -> 0 | I75: 0 | J75: 0 | K75: 0 | L75: 0 | M75: 0 | N75: 0
A76: ICEComputer | B76: Computer | C76: =C75-1 -> -42 | D76: =SUMIF('OTH EXP'!$B$10:$B$32,$A76,'OTH EXP'!G$10:G$32) -> 0 | E76: =SUMIF('OTH EXP'!$B$10:$B$32,$A76,'OTH EXP'!H$10:H$32) -> 0 | F76: =SUMIF('OTH EXP'!$B$10:$B$32,$A76,'OTH EXP'!I$10:I$32) -> 0 | G76: =SUMIF('OTH EXP'!$B$10:$B$32,$A76,'OTH EXP'!J$10:J$32) -> 0 | H76: =SUMIF('OTH EXP'!$B$10:$B$32,$A76,'OTH EXP'!K$10:K$32) -> 0 | I76: 0 | J76: 0 | K76: 0 | L76: 0 | M76: 0 | N76: 0
A77: ICEEducational Funds | B77: Educational Funds | C77: =C76-1 -> -43 | D77: =SUMIF('OTH EXP'!$B$10:$B$32,$A77,'OTH EXP'!G$10:G$32) -> 0 | E77: =SUMIF('OTH EXP'!$B$10:$B$32,$A77,'OTH EXP'!H$10:H$32) -> 0 | F77: =SUMIF('OTH EXP'!$B$10:$B$32,$A77,'OTH EXP'!I$10:I$32) -> 0 | G77: =SUMIF('OTH EXP'!$B$10:$B$32,$A77,'OTH EXP'!J$10:J$32) -> 0 | H77: =SUMIF('OTH EXP'!$B$10:$B$32,$A77,'OTH EXP'!K$10:K$32) -> 0 | I77: 0 | J77: 0 | K77: 0 | L77: 0 | M77: 0 | N77: 0
A78: ICEEquipment | B78: Equipment | C78: =C77-1 -> -44 | D78: =SUMIF('OTH EXP'!$B$10:$B$32,$A78,'OTH EXP'!G$10:G$32) -> 0 | E78: =SUMIF('OTH EXP'!$B$10:$B$32,$A78,'OTH EXP'!H$10:H$32) -> 0 | F78: =SUMIF('OTH EXP'!$B$10:$B$32,$A78,'OTH EXP'!I$10:I$32) -> 0 | G78: =SUMIF('OTH EXP'!$B$10:$B$32,$A78,'OTH EXP'!J$10:J$32) -> 0 | H78: =SUMIF('OTH EXP'!$B$10:$B$32,$A78,'OTH EXP'!K$10:K$32) -> 0 | I78: 0 | J78: 0 | K78: 0 | L78: 0 | M78: 0 | N78: 0
A79: ICEConstruction | B79: Construction | C79: -45 | D79: =SUMIF('OTH EXP'!$B$10:$B$32,$A79,'OTH EXP'!G$10:G$32) -> 0 | E79: =SUMIF('OTH EXP'!$B$10:$B$32,$A79,'OTH EXP'!H$10:H$32) -> 0 | F79: =SUMIF('OTH EXP'!$B$10:$B$32,$A79,'OTH EXP'!I$10:I$32) -> 0 | G79: =SUMIF('OTH EXP'!$B$10:$B$32,$A79,'OTH EXP'!J$10:J$32) -> 0 | H79: =SUMIF('OTH EXP'!$B$10:$B$32,$A79,'OTH EXP'!K$10:K$32) -> 0 | I79: 0 | J79: 0 | K79: 0 | L79: 0 | M79: 0 | N79: 0
A80: ICEFurniture | B80: Furniture | C80: -46 | D80: =SUMIF('OTH EXP'!$B$10:$B$32,$A80,'OTH EXP'!G$10:G$32) -> 0 | E80: =SUMIF('OTH EXP'!$B$10:$B$32,$A80,'OTH EXP'!H$10:H$32) -> 0 | F80: =SUMIF('OTH EXP'!$B$10:$B$32,$A80,'OTH EXP'!I$10:I$32) -> 0 | G80: =SUMIF('OTH EXP'!$B$10:$B$32,$A80,'OTH EXP'!J$10:J$32) -> 0 | H80: =SUMIF('OTH EXP'!$B$10:$B$32,$A80,'OTH EXP'!K$10:K$32) -> 0 | I80: 0 | J80: 0 | K80: 0 | L80: 0 | M80: 0 | N80: 0
A81: ICEGeneral M&O | B81: General M&O | C81: -47 | D81: =SUMIF('OTH EXP'!$B$10:$B$32,$A81,'OTH EXP'!G$10:G$32) -> 0 | E81: =SUMIF('OTH EXP'!$B$10:$B$32,$A81,'OTH EXP'!H$10:H$32) -> 0 | F81: =SUMIF('OTH EXP'!$B$10:$B$32,$A81,'OTH EXP'!I$10:I$32) -> 0 | G81: =SUMIF('OTH EXP'!$B$10:$B$32,$A81,'OTH EXP'!J$10:J$32) -> 0 | H81: =SUMIF('OTH EXP'!$B$10:$B$32,$A81,'OTH EXP'!K$10:K$32) -> 0 | I81: 0 | J81: 0 | K81: 0 | L81: 0 | M81: 0 | N81: 0
A82: ICEMalpractice | B82: Malpractice | C82: -48 | D82: =SUMIF('OTH EXP'!$B$10:$B$32,$A82,'OTH EXP'!G$10:G$32) -> 0 | E82: =SUMIF('OTH EXP'!$B$10:$B$32,$A82,'OTH EXP'!H$10:H$32) -> 0 | F82: =SUMIF('OTH EXP'!$B$10:$B$32,$A82,'OTH EXP'!I$10:I$32) -> 0 | G82: =SUMIF('OTH EXP'!$B$10:$B$32,$A82,'OTH EXP'!J$10:J$32) -> 0 | H82: =SUMIF('OTH EXP'!$B$10:$B$32,$A82,'OTH EXP'!K$10:K$32) -> 0 | I82: 0 | J82: 0 | K82: 0 | L82: 0 | M82: 0 | N82: 0
A83: ICEMoving/Relocation | B83: Moving/Relocation | C83: -49 | D83: =SUMIF('OTH EXP'!$B$10:$B$32,$A83,'OTH EXP'!G$10:G$32) -> 0 | E83: =SUMIF('OTH EXP'!$B$10:$B$32,$A83,'OTH EXP'!H$10:H$32) -> 0 | F83: =SUMIF('OTH EXP'!$B$10:$B$32,$A83,'OTH EXP'!I$10:I$32) -> 0 | G83: =SUMIF('OTH EXP'!$B$10:$B$32,$A83,'OTH EXP'!J$10:J$32) -> 0 | H83: =SUMIF('OTH EXP'!$B$10:$B$32,$A83,'OTH EXP'!K$10:K$32) -> 0 | I83: 0 | J83: 0 | K83: 0 | L83: 0 | M83: 0 | N83: 0
A84: ICEOther | B84: Other | C84: -50 | D84: =SUMIF('OTH EXP'!$B$10:$B$32,$A84,'OTH EXP'!G$10:G$32) -> 0 | E84: =SUMIF('OTH EXP'!$B$10:$B$32,$A84,'OTH EXP'!H$10:H$32) -> 0 | F84: =SUMIF('OTH EXP'!$B$10:$B$32,$A84,'OTH EXP'!I$10:I$32) -> 0 | G84: =SUMIF('OTH EXP'!$B$10:$B$32,$A84,'OTH EXP'!J$10:J$32) -> 0 | H84: =SUMIF('OTH EXP'!$B$10:$B$32,$A84,'OTH EXP'!K$10:K$32) -> 0 | I84: 0 | J84: 0 | K84: 0 | L84: 0 | M84: 0 | N84: 0
B85: Total Costs | D85: =SUM(D69:D84) -> 0 | E85: =SUM(E69:E84) -> 0 | F85: =SUM(F69:F84) -> 0 | G85: =SUM(G69:G84) -> 0 | H85: =SUM(H69:H84) -> 0 | I85: 0 | J85: 0 | K85: 0 | L85: 0 | M85: 0 | N85: 0
N86: =N68+N85 -> 0
B87: Impact | D87: =D68-D85 -> 0 | E87: =E68-E85 -> 0 | F87: =F68-F85 -> 0 | G87: =G68-G85 -> 0 | H87: =H68-H85 -> 0 | N87: =N68+N85 -> 0
N88: =N68+N85 -> 0
B89: ACH | N89: =N103+N120 -> 0
B90: Incremental Budget Impact | N90: =N103+N120 -> 0
D91: Year 1 | E91: Year 2 | F91: Year 3 | G91: Year 4 | H91: Year 5 | N91: =N103+N120 -> 0
A92: ="ACH"&B92 -> ACHClinical Pro Fees | B92: Clinical Pro Fees | C92: =C84-1 -> -51 | D92: =SUMIF('CLIN REV'!$A$13:$A$211,$A92,'CLIN REV'!D$13:D$211) -> 0 | E92: =SUMIF('CLIN REV'!$A$13:$A$211,$A92,'CLIN REV'!E$13:E$211) -> 0 | F92: =SUMIF('CLIN REV'!$A$13:$A$211,$A92,'CLIN REV'!F$13:F$211) -> 0 | G92: =SUMIF('CLIN REV'!$A$13:$A$211,$A92,'CLIN REV'!G$13:G$211) -> 0 | H92: =SUMIF('CLIN REV'!$A$13:$A$211,$A92,'CLIN REV'!H$13:H$211) -> 0 | I92: =IF(D92=0,0,1) -> 0 | J92: =IF(E92=0,0,1) -> 0 | K92: =IF(F92=0,0,1) -> 0 | L92: =IF(G92=0,0,1) -> 0 | M92: =IF(H92=0,0,1) -> 0 | N92: =SUM(I92:M92) -> 0
A93: ="ACH"&B93 -> ACHClinical Tech Fees | B93: Clinical Tech Fees | C93: =C92-1 -> -52 | D93: =SUMIF('CLIN REV'!$A$13:$A$211,$A93,'CLIN REV'!D$13:D$211) -> 0 | E93: =SUMIF('CLIN REV'!$A$13:$A$211,$A93,'CLIN REV'!E$13:E$211) -> 0 | F93: =SUMIF('CLIN REV'!$A$13:$A$211,$A93,'CLIN REV'!F$13:F$211) -> 0 | G93: =SUMIF('CLIN REV'!$A$13:$A$211,$A93,'CLIN REV'!G$13:G$211) -> 0 | H93: =SUMIF('CLIN REV'!$A$13:$A$211,$A93,'CLIN REV'!H$13:H$211) -> 0 | I93: =IF(D93=0,0,1) -> 0 | J93: 0 | K93: 0 | L93: 0 | M93: 0 | N93: =SUM(I93:M93) -> 0
A94: ="COM"&B94 -> COMClinical Down Stream | B94: Clinical Down Stream | C94: -53 | D94: =SUMIF('CLIN REV'!$A$13:$A$211,$A94,'CLIN REV'!D$13:D$211) -> 0 | E94: =SUMIF('CLIN REV'!$A$13:$A$211,$A94,'CLIN REV'!E$13:E$211) -> 0 | F94: =SUMIF('CLIN REV'!$A$13:$A$211,$A94,'CLIN REV'!F$13:F$211) -> 0 | G94: =SUMIF('CLIN REV'!$A$13:$A$211,$A94,'CLIN REV'!G$13:G$211) -> 0 | H94: =SUMIF('CLIN REV'!$A$13:$A$211,$A94,'CLIN REV'!H$13:H$211) -> 0 | I94: 0 | J94: 0 | K94: 0 | L94: 0 | M94: 0 | N94: 0
A95: ACHEnhanced Medicaid | B95: Enhanced Medicaid | C95: -54 | D95: =SUMIF('OTH REV'!$A$10:$A$43,$A95,'OTH REV'!I$10:I$43) -> 0 | E95: =SUMIF('OTH REV'!$A$10:$A$43,$A95,'OTH REV'!J$10:J$43) -> 0 | F95: =SUMIF('OTH REV'!$A$10:$A$43,$A95,'OTH REV'!K$10:K$43) -> 0 | G95: =SUMIF('OTH REV'!$A$10:$A$43,$A95,'OTH REV'!L$10:L$43) -> 0 | H95: =SUMIF('OTH REV'!$A$10:$A$43,$A95,'OTH REV'!M$10:M$43) -> 0 | I95: 0 | J95: 0 | K95: 0 | L95: 0 | M95: 0 | N95: 0
A96: ACHBudget | B96: Budget | C96: -55 | D96: =SUMIF('OTH REV'!$A$10:$A$43,$A96,'OTH REV'!I$10:I$43) -> 0 | E96: =SUMIF('OTH REV'!$A$10:$A$43,$A96,'OTH REV'!J$10:J$43) -> 0 | F96: =SUMIF('OTH REV'!$A$10:$A$43,$A96,'OTH REV'!K$10:K$43) -> 0 | G96: =SUMIF('OTH REV'!$A$10:$A$43,$A96,'OTH REV'!L$10:L$43) -> 0 | H96: =SUMIF('OTH REV'!$A$10:$A$43,$A96,'OTH REV'!M$10:M$43) -> 0 | I96: 0 | J96: 0 | K96: 0 | L96: 0 | M96: 0 | N96: 0
A97: ACHDean's Commitment | B97: Dean's Commitment | C97: -56 | D97: =SUMIF('OTH REV'!$A$10:$A$43,$A97,'OTH REV'!I$10:I$43) -> 0 | E97: =SUMIF('OTH REV'!$A$10:$A$43,$A97,'OTH REV'!J$10:J$43) -> 0 | F97: =SUMIF('OTH REV'!$A$10:$A$43,$A97,'OTH REV'!K$10:K$43) -> 0 | G97: =SUMIF('OTH REV'!$A$10:$A$43,$A97,'OTH REV'!L$10:L$43) -> 0 | H97: =SUMIF('OTH REV'!$A$10:$A$43,$A97,'OTH REV'!M$10:M$43) -> 0 | I97: 0 | J97: 0 | K97: 0 | L97: 0 | M97: 0 | N97: 0
A98: ACHGrant | B98: Grant | C98: -57 | D98: =SUMIF('OTH REV'!$A$10:$A$43,$A98,'OTH REV'!I$10:I$43) -> 0 | E98: =SUMIF('OTH REV'!$A$10:$A$43,$A98,'OTH REV'!J$10:J$43) -> 0 | F98: =SUMIF('OTH REV'!$A$10:$A$43,$A98,'OTH REV'!K$10:K$43) -> 0 | G98: =SUMIF('OTH REV'!$A$10:$A$43,$A98,'OTH REV'!L$10:L$43) -> 0 | H98: =SUMIF('OTH REV'!$A$10:$A$43,$A98,'OTH REV'!M$10:M$43) -> 0 | I98: 0 | J98: 0 | K98: 0 | L98: 0 | M98: 0 | N98: 0
A99: ACHContract | B99: Contract | C99: -58 | D99: =SUMIF('OTH REV'!$A$10:$A$43,$A99,'OTH REV'!I$10:I$43) -> 0 | E99: =SUMIF('OTH REV'!$A$10:$A$43,$A99,'OTH REV'!J$10:J$43) -> 0 | F99: =SUMIF('OTH REV'!$A$10:$A$43,$A99,'OTH REV'!K$10:K$43) -> 0 | G99: =SUMIF('OTH REV'!$A$10:$A$43,$A99,'OTH REV'!L$10:L$43) -> 0 | H99: =SUMIF('OTH REV'!$A$10:$A$43,$A99,'OTH REV'!M$10:M$43) -> 0 | I99: 0 | J99: 0 | K99: 0 | L99: 0 | M99: 0 | N99: 0
A100: ACHGift | B100: Gift | C100: -59 | D100: =SUMIF('OTH REV'!$A$10:$A$43,$A100,'OTH REV'!I$10:I$43) -> 0 | E100: =SUMIF('OTH REV'!$A$10:$A$43,$A100,'OTH REV'!J$10:J$43) -> 0 | F100: =SUMIF('OTH REV'!$A$10:$A$43,$A100,'OTH REV'!K$10:K$43) -> 0 | G100: =SUMIF('OTH REV'!$A$10:$A$43,$A100,'OTH REV'!L$10:L$43) -> 0 | H100: =SUMIF('OTH REV'!$A$10:$A$43,$A100,'OTH REV'!M$10:M$43) -> 0 | I100: 0 | J100: 0 | K100: 0 | L100: 0 | M100: 0 | N100: 0
A101: ACHFoundation | B101: Foundation | C101: -60 | D101: =SUMIF('OTH REV'!$A$10:$A$43,$A101,'OTH REV'!I$10:I$43) -> 0 | E101: =SUMIF('OTH REV'!$A$10:$A$43,$A101,'OTH REV'!J$10:J$43) -> 0 | F101: =SUMIF('OTH REV'!$A$10:$A$43,$A101,'OTH REV'!K$10:K$43) -> 0 | G101: =SUMIF('OTH REV'!$A$10:$A$43,$A101,'OTH REV'!L$10:L$43) -> 0 | H101: =SUMIF('OTH REV'!$A$10:$A$43,$A101,'OTH REV'!M$10:M$43) -> 0 | I101: 0 | J101: 0 | K101: 0 | L101: 0 | M101: 0 | N101: 0
A102: ACHOther | B102: Other | C102: -61 | D102: =SUMIF('OTH REV'!$A$10:$A$43,$A102,'OTH REV'!I$10:I$43) -> 0 | E102: =SUMIF('OTH REV'!$A$10:$A$43,$A102,'OTH REV'!J$10:J$43) -> 0 | F102: =SUMIF('OTH REV'!$A$10:$A$43,$A102,'OTH REV'!K$10:K$43) -> 0 | G102: =SUMIF('OTH REV'!$A$10:$A$43,$A102,'OTH REV'!L$10:L$43) -> 0 | H102: =SUMIF('OTH REV'!$A$10:$A$43,$A102,'OTH REV'!M$10:M$43) -> 0 | I102: 0 | J102: 0 | K102: 0 | L102: 0 | M102: 0 | N102: 0
B103: Total Resources | D103: =SUM(D92:D102) -> 0 | E103: =SUM(E92:E102) -> 0 | F103: =SUM(F92:F102) -> 0 | G103: =SUM(G92:G102) -> 0 | H103: =SUM(H92:H102) -> 0 | I103: 0 | J103: 0 | K103: 0 | L103: 0 | M103: 0 | N103: 0
N104: =SUM(I103:M103) -> 0
A105: ACH | B105: Salary | C105: =C102-1 -> -62 | D105: =SUMIF(ASSIGN!$I$9:$I$40,$A105,ASSIGN!M$9:M$40)*COMP!I$70 -> 0 | E105: =SUMIF(ASSIGN!$I$9:$I$40,$A105,ASSIGN!N$9:N$40)*COMP!J$70 -> 0 | F105: =SUMIF(ASSIGN!$I$9:$I$40,$A105,ASSIGN!O$9:O$40)*COMP!K$70 -> 0 | G105: =SUMIF(ASSIGN!$I$9:$I$40,$A105,ASSIGN!P$9:P$40)*COMP!L$70 -> 0 | H105: =SUMIF(ASSIGN!$I$9:$I$40,$A105,ASSIGN!Q$9:Q$40)*COMP!M$70 -> 0 | I105: =IF(D105=0,0,1) -> 0 | J105: 0 | K105: 0 | L105: 0 | M105: 0 | N105: =SUM(I105:M105) -> 0
A106: ACH | B106: Incentive | C106: =C105-1 -> -63 | D106: =SUMIF(COMP!$F$36:$F$39,$A106,COMP!J$36:J$39) -> 0 | E106: =SUMIF(COMP!$F$36:$F$39,$A106,COMP!K$36:K$39) -> 0 | F106: =SUMIF(COMP!$F$36:$F$39,$A106,COMP!L$36:L$39) -> 0 | G106: =SUMIF(COMP!$F$36:$F$39,$A106,COMP!M$36:M$39) -> 0 | H106: =SUMIF(COMP!$F$36:$F$39,$A106,COMP!N$36:N$39) -> 0 | I106: 0 | J106: 0 | K106: 0 | L106: 0 | M106: 0 | N106: 0
A107: ACH | B107: Fringe | C107: =C106-1 -> -64 | D107: =SUMIF(ASSIGN!$I$9:$I$40,$A105,ASSIGN!M$9:M$40)*COMP!I$76+SUMIF(COMP!$F$36:$F$39,$A107,COMP!O$36:O$39) -> 0 | E107: =SUMIF(ASSIGN!$I$9:$I$40,$A105,ASSIGN!N$9:N$40)*COMP!J$76+SUMIF(COMP!$F$36:$F$39,$A107,COMP!P$36:P$39) -> 0 | F107: =SUMIF(ASSIGN!$I$9:$I$40,$A105,ASSIGN!O$9:O$40)*COMP!K$76+SUMIF(COMP!$F$36:$F$39,$A107,COMP!Q$36:Q$39) -> 0 | G107: =SUMIF(ASSIGN!$I$9:$I$40,$A105,ASSIGN!P$9:P$40)*COMP!L$76+SUMIF(COMP!$F$36:$F$39,$A107,COMP!R$36:R$39) -> 0 | H107: =SUMIF(ASSIGN!$I$9:$I$40,$A105,ASSIGN!Q$9:Q$40)*COMP!M$76+SUMIF(COMP!$F$36:$F$39,$A107,COMP!S$36:S$39) -> 0 | I107: 0 | J107: 0 | K107: 0 | L107: 0 | M107: 0 | N107: 0
I108: 0 | J108: 0 | K108: 0 | L108: 0 | M108: 0 | N108: 0
A109: ="ACH"&B109 -> ACHExtenders | B109: Extenders | C109: =C107-1 -> -65 | D109: =SUMIF('OTH EXP'!$B$10:$B$32,$A109,'OTH EXP'!G$10:G$32) -> 0 | E109: =SUMIF('OTH EXP'!$B$10:$B$32,$A109,'OTH EXP'!H$10:H$32) -> 0 | F109: =SUMIF('OTH EXP'!$B$10:$B$32,$A109,'OTH EXP'!I$10:I$32) -> 0 | G109: =SUMIF('OTH EXP'!$B$10:$B$32,$A109,'OTH EXP'!J$10:J$32) -> 0 | H109: =SUMIF('OTH EXP'!$B$10:$B$32,$A109,'OTH EXP'!K$10:K$32) -> 0 | I109: 0 | J109: 0 | K109: 0 | L109: 0 | M109: 0 | N109: 0
A110: ="ACH"&B110 -> ACHStaff | B110: Staff | C110: =C109-1 -> -66 | D110: =SUMIF('OTH EXP'!$B$10:$B$32,$A110,'OTH EXP'!G$10:G$32) -> 0 | E110: =SUMIF('OTH EXP'!$B$10:$B$32,$A110,'OTH EXP'!H$10:H$32) -> 0 | F110: =SUMIF('OTH EXP'!$B$10:$B$32,$A110,'OTH EXP'!I$10:I$32) -> 0 | G110: =SUMIF('OTH EXP'!$B$10:$B$32,$A110,'OTH EXP'!J$10:J$32) -> 0 | H110: =SUMIF('OTH EXP'!$B$10:$B$32,$A110,'OTH EXP'!K$10:K$32) -> 0 | I110: 0 | J110: 0 | K110: 0 | L110: 0 | M110: 0 | N110: 0
A111: ACHComputer | B111: Computer | C111: =C110-1 -> -67 | D111: =SUMIF('OTH EXP'!$B$10:$B$32,$A111,'OTH EXP'!G$10:G$32) -> 0 | E111: =SUMIF('OTH EXP'!$B$10:$B$32,$A111,'OTH EXP'!H$10:H$32) -> 0 | F111: =SUMIF('OTH EXP'!$B$10:$B$32,$A111,'OTH EXP'!I$10:I$32) -> 0 | G111: =SUMIF('OTH EXP'!$B$10:$B$32,$A111,'OTH EXP'!J$10:J$32) -> 0 | H111: =SUMIF('OTH EXP'!$B$10:$B$32,$A111,'OTH EXP'!K$10:K$32) -> 0 | I111: 0 | J111: 0 | K111: 0 | L111: 0 | M111: 0 | N111: 0
A112: ACHEducational Funds | B112: Educational Funds | C112: =C111-1 -> -68 | D112: =SUMIF('OTH EXP'!$B$10:$B$32,$A112,'OTH EXP'!G$10:G$32) -> 0 | E112: =SUMIF('OTH EXP'!$B$10:$B$32,$A112,'OTH EXP'!H$10:H$32) -> 0 | F112: =SUMIF('OTH EXP'!$B$10:$B$32,$A112,'OTH EXP'!I$10:I$32) -> 0 | G112: =SUMIF('OTH EXP'!$B$10:$B$32,$A112,'OTH EXP'!J$10:J$32) -> 0 | H112: =SUMIF('OTH EXP'!$B$10:$B$32,$A112,'OTH EXP'!K$10:K$32) -> 0 | I112: 0 | J112: 0 | K112: 0 | L112: 0 | M112: 0 | N112: 0
A113: ACHEquipment | B113: Equipment | C113: =C112-1 -> -69 | D113: =SUMIF('OTH EXP'!$B$10:$B$32,$A113,'OTH EXP'!G$10:G$32) -> 0 | E113: =SUMIF('OTH EXP'!$B$10:$B$32,$A113,'OTH EXP'!H$10:H$32) -> 0 | F113: =SUMIF('OTH EXP'!$B$10:$B$32,$A113,'OTH EXP'!I$10:I$32) -> 0 | G113: =SUMIF('OTH EXP'!$B$10:$B$32,$A113,'OTH EXP'!J$10:J$32) -> 0 | H113: =SUMIF('OTH EXP'!$B$10:$B$32,$A113,'OTH EXP'!K$10:K$32) -> 0 | I113: 0 | J113: 0 | K113: 0 | L113: 0 | M113: 0 | N113: 0
A114: ACHConstruction | B114: Construction | C114: -70 | D114: =SUMIF('OTH EXP'!$B$10:$B$32,$A114,'OTH EXP'!G$10:G$32) -> 0 | E114: =SUMIF('OTH EXP'!$B$10:$B$32,$A114,'OTH EXP'!H$10:H$32) -> 0 | F114: =SUMIF('OTH EXP'!$B$10:$B$32,$A114,'OTH EXP'!I$10:I$32) -> 0 | G114: =SUMIF('OTH EXP'!$B$10:$B$32,$A114,'OTH EXP'!J$10:J$32) -> 0 | H114: =SUMIF('OTH EXP'!$B$10:$B$32,$A114,'OTH EXP'!K$10:K$32) -> 0 | I114: 0 | J114: 0 | K114: 0 | L114: 0 | M114: 0 | N114: 0
A115: ACHFurniture | B115: Furniture | C115: -71 | D115: =SUMIF('OTH EXP'!$B$10:$B$32,$A115,'OTH EXP'!G$10:G$32) -> 0 | E115: =SUMIF('OTH EXP'!$B$10:$B$32,$A115,'OTH EXP'!H$10:H$32) -> 0 | F115: =SUMIF('OTH EXP'!$B$10:$B$32,$A115,'OTH EXP'!I$10:I$32) -> 0 | G115: =SUMIF('OTH EXP'!$B$10:$B$32,$A115,'OTH EXP'!J$10:J$32) -> 0 | H115: =SUMIF('OTH EXP'!$B$10:$B$32,$A115,'OTH EXP'!K$10:K$32) -> 0 | I115: 0 | J115: 0 | K115: 0 | L115: 0 | M115: 0 | N115: 0
A116: ACHGeneral M&O | B116: General M&O | C116: -72 | D116: =SUMIF('OTH EXP'!$B$10:$B$32,$A116,'OTH EXP'!G$10:G$32) -> 0 | E116: =SUMIF('OTH EXP'!$B$10:$B$32,$A116,'OTH EXP'!H$10:H$32) -> 0 | F116: =SUMIF('OTH EXP'!$B$10:$B$32,$A116,'OTH EXP'!I$10:I$32) -> 0 | G116: =SUMIF('OTH EXP'!$B$10:$B$32,$A116,'OTH EXP'!J$10:J$32) -> 0 | H116: =SUMIF('OTH EXP'!$B$10:$B$32,$A116,'OTH EXP'!K$10:K$32) -> 0 | I116: 0 | J116: 0 | K116: 0 | L116: 0 | M116: 0 | N116: 0
A117: ACHMalpractice | B117: Malpractice | C117: -73 | D117: =SUMIF('OTH EXP'!$B$10:$B$32,$A117,'OTH EXP'!G$10:G$32) -> 0 | E117: =SUMIF('OTH EXP'!$B$10:$B$32,$A117,'OTH EXP'!H$10:H$32) -> 0 | F117: =SUMIF('OTH EXP'!$B$10:$B$32,$A117,'OTH EXP'!I$10:I$32) -> 0 | G117: =SUMIF('OTH EXP'!$B$10:$B$32,$A117,'OTH EXP'!J$10:J$32) -> 0 | H117: =SUMIF('OTH EXP'!$B$10:$B$32,$A117,'OTH EXP'!K$10:K$32) -> 0 | I117: 0 | J117: 0 | K117: 0 | L117: 0 | M117: 0 | N117: 0
A118: ACHMoving/Relocation | B118: Moving/Relocation | C118: -74 | D118: =SUMIF('OTH EXP'!$B$10:$B$32,$A118,'OTH EXP'!G$10:G$32) -> 0 | E118: =SUMIF('OTH EXP'!$B$10:$B$32,$A118,'OTH EXP'!H$10:H$32) -> 0 | F118: =SUMIF('OTH EXP'!$B$10:$B$32,$A118,'OTH EXP'!I$10:I$32) -> 0 | G118: =SUMIF('OTH EXP'!$B$10:$B$32,$A118,'OTH EXP'!J$10:J$32) -> 0 | H118: =SUMIF('OTH EXP'!$B$10:$B$32,$A118,'OTH EXP'!K$10:K$32) -> 0 | I118: 0 | J118: 0 | K118: 0 | L118: 0 | M118: 0 | N118: 0
A119: ACHOther | B119: Other | C119: -75 | D119: =SUMIF('OTH EXP'!$B$10:$B$32,$A119,'OTH EXP'!G$10:G$32) -> 0 | E119: =SUMIF('OTH EXP'!$B$10:$B$32,$A119,'OTH EXP'!H$10:H$32) -> 0 | F119: =SUMIF('OTH EXP'!$B$10:$B$32,$A119,'OTH EXP'!I$10:I$32) -> 0 | G119: =SUMIF('OTH EXP'!$B$10:$B$32,$A119,'OTH EXP'!J$10:J$32) -> 0 | H119: =SUMIF('OTH EXP'!$B$10:$B$32,$A119,'OTH EXP'!K$10:K$32) -> 0 | I119: 0 | J119: 0 | K119: 0 | L119: 0 | M119: 0 | N119: 0
B120: Total Costs | D120: =SUM(D105:D119) -> 0 | E120: =SUM(E105:E119) -> 0 | F120: =SUM(F105:F119) -> 0 | G120: =SUM(G105:G119) -> 0 | H120: =SUM(H105:H119) -> 0 | I120: 0 | J120: 0 | K120: 0 | L120: 0 | M120: 0 | N120: 0
N121: =N103+N120 -> 0
B122: Impact | D122: =D103-D120 -> 0 | E122: =E103-E120 -> 0 | F122: =F103-F120 -> 0 | G122: =G103-G120 -> 0 | H122: =H103-H120 -> 0 | N122: =N103+N120 -> 0
N123: =N103+N120 -> 0
B124: INSTITUTE | N124: =N138+N155 -> 0
B125: Incremental Budget Impact | N125: =N138+N155 -> 0
D126: Year 1 | E126: Year 2 | F126: Year 3 | G126: Year 4 | H126: Year 5 | N126: =N138+N155 -> 0
A127: ="INST"&B127 -> INSTClinical Pro Fees | B127: Clinical Pro Fees | C127: =C119-1 -> -76 | D127: =SUMIF('CLIN REV'!$A$13:$A$211,$A127,'CLIN REV'!D$13:D$211) -> 0 | E127: =SUMIF('CLIN REV'!$A$13:$A$211,$A127,'CLIN REV'!E$13:E$211) -> 0 | F127: =SUMIF('CLIN REV'!$A$13:$A$211,$A127,'CLIN REV'!F$13:F$211) -> 0 | G127: =SUMIF('CLIN REV'!$A$13:$A$211,$A127,'CLIN REV'!G$13:G$211) -> 0 | H127: =SUMIF('CLIN REV'!$A$13:$A$211,$A127,'CLIN REV'!H$13:H$211) -> 0 | I127: =IF(D127=0,0,1) -> 0 | J127: =IF(E127=0,0,1) -> 0 | K127: =IF(F127=0,0,1) -> 0 | L127: =IF(G127=0,0,1) -> 0 | M127: =IF(H127=0,0,1) -> 0 | N127: =SUM(I127:M127) -> 0
A128: ="INST"&B128 -> INSTClinical Tech Fees | B128: Clinical Tech Fees | C128: =C127-1 -> -77 | D128: =SUMIF('CLIN REV'!$A$13:$A$211,$A128,'CLIN REV'!D$13:D$211) -> 0 | E128: =SUMIF('CLIN REV'!$A$13:$A$211,$A128,'CLIN REV'!E$13:E$211) -> 0 | F128: =SUMIF('CLIN REV'!$A$13:$A$211,$A128,'CLIN REV'!F$13:F$211) -> 0 | G128: =SUMIF('CLIN REV'!$A$13:$A$211,$A128,'CLIN REV'!G$13:G$211) -> 0 | H128: =SUMIF('CLIN REV'!$A$13:$A$211,$A128,'CLIN REV'!H$13:H$211) -> 0 | I128: =IF(D128=0,0,1) -> 0 | J128: 0 | K128: 0 | L128: 0 | M128: 0 | N128: =SUM(I128:M128) -> 0
A129: ="COM"&B129 -> COMClinical Down Stream | B129: Clinical Down Stream | C129: -78 | D129: =SUMIF('CLIN REV'!$A$13:$A$211,$A129,'CLIN REV'!D$13:D$211) -> 0 | E129: =SUMIF('CLIN REV'!$A$13:$A$211,$A129,'CLIN REV'!E$13:E$211) -> 0 | F129: =SUMIF('CLIN REV'!$A$13:$A$211,$A129,'CLIN REV'!F$13:F$211) -> 0 | G129: =SUMIF('CLIN REV'!$A$13:$A$211,$A129,'CLIN REV'!G$13:G$211) -> 0 | H129: =SUMIF('CLIN REV'!$A$13:$A$211,$A129,'CLIN REV'!H$13:H$211) -> 0 | I129: 0 | J129: 0 | K129: 0 | L129: 0 | M129: 0 | N129: 0
A130: INSTEnhanced Medicaid | B130: Enhanced Medicaid | C130: -79 | D130: =SUMIF('OTH REV'!$A$10:$A$43,$A130,'OTH REV'!I$10:I$43) -> 0 | E130: =SUMIF('OTH REV'!$A$10:$A$43,$A130,'OTH REV'!J$10:J$43) -> 0 | F130: =SUMIF('OTH REV'!$A$10:$A$43,$A130,'OTH REV'!K$10:K$43) -> 0 | G130: =SUMIF('OTH REV'!$A$10:$A$43,$A130,'OTH REV'!L$10:L$43) -> 0 | H130: =SUMIF('OTH REV'!$A$10:$A$43,$A130,'OTH REV'!M$10:M$43) -> 0 | I130: 0 | J130: 0 | K130: 0 | L130: 0 | M130: 0 | N130: 0
